Workbook

Sheet BUILDERS SETTINGS (hidden)
B1: SUMMITS STANDARD TAKEOFF REQUIREMENTS
B5: Lintel Span Charts As Per
B6: Structerre For Square/Raking Bulkheads | M6: Scheduler Names
B7: (no longer in use for lintels)
D8: mm | L8: 1 | M8: Brett Cornwill
B9: 75x75x6 75x75x8 90x90x8 | C9: 200 | D9: mm | L9: 2 | M9: Bradley Rocke
B10: 100x75x8 100x100x8 | C10: 240 | D10: mm | L10: 3 | M10: Billy Moi
B11: 127x75x8 | C11: 260 | D11: mm | L11: 4 | M11: Scott Kenyon
B12: 150x90x8 | C12: 300 | D12: mm | L12: 5 | M12: Dan Bedford
B13: 150x100x10 | C13: 350 | D13: mm | L13: 6 | M13: Tom Conlan
B14: 200x100x10 | C14: 400 | D14: mm | L14: 7 | M14: Jin Huang
B15: T-BARS | C15: 500 | D15: mm | L15: 8 | M15: Allen Wong
D16: mm | L16: 9 | M16: Holly Apelu
D17: mm | L17: 10 | M17: Cody Johnson
D18: mm | L18: 11 | M18: Vincent Wee
B19: Tiling Purchase Allowance | C19: 44 | L19: 12 | M19: Marc (VNIX)
B20: Face Brick Wastage Std Brick | C20: 0 | D20: % | L20: 13 | M20: Adrian (VNIX)
B21: Bricks per Cubic Metre Sand | C21: 1000 | D21: no | L21: 14 | M21: Diandra (VNIX)
B22: Cement Brickies Grey /1000 Bricks | C22: 10.8 | D22: bags | E22: 0 | F22: BAGS EXTRA | L22: 15
B23: Cement Brickies Lite /1000 Bricks | C23: 11.2 | D23: bags | E23: 0 | F23: BAGS EXTRA | L23: 16
B24: Cement Lime Hydro | C24: 0 | D24: bags | E24: 0 | F24: BAGS EXTRA | L24: 17
B25: Cement Coastal Lite /1000 Bricks | C25: 0 | D25: bags | E25: 0 | F25: BAGS EXTRA | L25: 18
B26: Wire Ties /1000 Bricks | C26: 83 | D26: no | L26: 19
B27: Wire Ties Pack Size | C27: 50 | D27: no | L27: 20
B28: Hoop Iron Spacing | C28: 1.2 | D28: L/m | E28: 3 | F28: EXTRA HOOP IRONS
B29: Frame Straps per Ext Frame | C29: 10 | D29: no
B30: Reinforcement Overlap Length | C30: 0.5 | D30: L/m
B31: Reinforcement 3mm Mesh Length Size | C31: 3.6 | D31: L/m
B32: Reinforcement 6mm Rod Length Size | C32: 6 | D32: L/m
B33: Reinforcement Y12 Spacing | C33: 0.5 | D33: L/m
B34: Reinforecment F8 Trench Mesh Sheet Size | C34: 6 | D34: L/m
B35: Wall Plate Length | C35: 6 | D35: L/m
B36: Std Ext face per m2 | C36: 48.5 | D36: /m2
B37: limestone thickness | C37: 0.15 | D37: ht
B38: Paving sand thickness | C38: 0.05 | D38: ht
B39: Paving Waste multiplier | C39: 1.3 | D39: multiply
B40: limestone waste | C40: 1.05 | D40: multiply
D41: Structerre Footing Details | F41: 2
B42: Internal Blocks Wastage Percent | C42: 0 | D42: Type | E42: Description | F42: Slab | G42: Mesh Type | J42: Footing | M42: Trench Mesh?
D43: A | E43: Slab Type "A" | F43: 100 | G43: SL63 | H43: 280 | I43: x | J43: 300 | K43: = | L43: =(H43/1000)*(J43/1000) -> 0.084 | M43: NO
D44: B | E44: Slab Type "B" | F44: 100 | G44: SL63 | H44: 280 | I44: x | J44: 300 | K44: = | L44: =(H44/1000)*(J44/1000) -> 0.084 | M44: YES
D45: B1 | E45: Slab Type "B1" | F45: 100 | G45: SL63 | H45: 280 | I45: x | J45: 300 | K45: = | L45: 0.084 | M45: YES
D46: C1 | E46: Slab Type "C1" | F46: 100 | G46: SL63 | H46: 280 | I46: x | J46: 300 | K46: = | L46: 0.084 | M46: YES
D47: C2 | E47: Slab Type "C2" | F47: 100 | G47: SL63 | H47: 280 | I47: x | J47: 300 | K47: = | L47: 0.084 | M47: YES
D48: C3 | E48: Slab Type "C3" | F48: 100 | G48: SL62 | H48: 280 | I48: x | J48: 300 | K48: = | L48: 0.084 | M48: YES
D49: C4 | E49: Slab Type "C4" | F49: 100 | G49: SL62 | H49: 350 | I49: x | J49: 300 | K49: = | L49: 0.105 | M49: YES
D50: C5 | E50: Slab Type "C5" | F50: 100 | G50: SL72 | H50: 350 | I50: x | J50: 350 | K50: = | L50: 0.1225 | M50: YES
D51: C6 | E51: Slab Type "C6" | F51: 100 | G51: SL72 | H51: 400 | I51: x | J51: 350 | K51: = | L51: 0.14 | M51: YES
D52: C7 | E52: Slab Type "C7" | F52: 100 | G52: SL72 | H52: 450 | I52: x | J52: 350 | K52: = | L52: 0.1575 | M52: YES
D53: C8 | E53: Slab Type "C8" | F53: 100 | G53: SL72 | H53: 500 | I53: x | J53: 350 | K53: = | L53: 0.175 | M53: YES
D54: C9 | E54: Slab Type "C9" | F54: 100 | G54: SL82 | H54: 600 | I54: x | J54: 350 | K54: = | L54: 0.21 | M54: YES
D55: C10 | E55: Slab Type "C10" | F55: 100 | G55: SL92 | H55: 650 | I55: x | J55: 300 | K55: = | L55: 0.195 | M55: YES
D56: D10 | E56: Slab Type "D10" | F56: 85 | G56: SL53 | H56: 200 | I56: x | J56: 300 | K56: = | L56: 0.06 | M56: NO
D57: D13 | E57: Slab Type "D13" | F57: 85 | G57: SL63 | H57: 280 | I57: x | J57: 300 | K57: = | L57: 0.084 | M57: NO
D58: E | E58: Slab Type "E" | F58: 100 | G58: SL63 | H58: 280 | I58: x | J58: 300 | K58: = | L58: 0.084 | M58: YES
D59: E1 | E59: Slab Type "E1" | F59: 100 | G59: SL63 | H59: 280 | I59: x | J59: 300 | K59: = | L59: 0.084 | M59: YES
D60: E2 | E60: Slab Type "E2" | F60: 100 | G60: SL62 | H60: 350 | I60: x | J60: 400 | K60: = | L60: 0.14 | M60: YES
D61: E3 | E61: Slab Type "E3" | F61: 100 | G61: SL62 | H61: 350 | I61: x | J61: 400 | K61: = | L61: 0.14 | M61: YES
D62: E9 | E62: Slab Type "E9" | F62: 100 | G62: SL63 | H62: 280 | I62: x | J62: 300 | K62: = | L62: 0.084 | M62: YES
D63: F | E63: Slab Type "F" | F63: 100 | G63: SL62 | H63: 350 | I63: x | J63: 350 | K63: = | L63: 0.1225 | M63: YES
D64: G2 | E64: Slab Type "G2" | F64: 100 | G64: SL62 | H64: 375 | I64: x | J64: 200 | K64: = | L64: 0.075 | M64: YES
D65: S1 | E65: Slab Type "S1" | F65: 100 | G65: SL63 | H65: 280 | I65: x | J65: 300 | K65: = | L65: 0.084 | M65: YES
D66: S2 | E66: Slab Type "S2" | F66: 100 | G66: SL63 | H66: 280 | I66: x | J66: 300 | K66: = | L66: 0.084 | M66: YES
D67: M1 | E67: Slab Type "M1" | F67: 100 | G67: SL72 | H67: 350 | I67: x | J67: 350 | K67: = | L67: 0.1225 | M67: YES
D68: M2 | E68: Slab Type "M2" | F68: 100 | G68: SL72 | H68: 400 | I68: x | J68: 350 | K68: = | L68: 0.14 | M68: YES
D69: S4 | E69: Slab Type "S4" | F69: 100 | G69: SL62 | H69: 350 | I69: x | J69: 300 | K69: = | L69: 0.105 | M69: YES
K70: =
D71: Prompt | K71: =
D72: A85 | E72: Slab Type "A85" | F72: 85 | G72: SL53 | H72: 200 | I72: x | J72: 300 | K72: = | L72: 0.06 | M72: NO | P72: =L72 -> 0.06
D73: A100 | E73: Slab Type "A100" | F73: 100 | G73: SL53 | H73: 280 | I73: x | J73: 300 | K73: = | L73: 0.084 | M73: NO | P73: =L73 -> 0.084
D74: DF-A3POD | E74: Slab Type "DF-A3POD" | F74: 85 | G74: SL63 | H74: 280 | I74: x | J74: 400 | K74: = | L74: 0.112 | M74: NO | P74: 0.112
D75: M25 | E75: Slab Type "M25" | F75: 100 | G75: SL62 | H75: 450 | I75: x | J75: 350 | K75: = | L75: =(H75/1000)*(J75/1000) -> 0.1575 | M75: YES | P75: 0.1575
D76: M30 | E76: Slab Type "M30" | F76: 100 | G76: SL62 | H76: 500 | I76: x | J76: 350 | K76: = | L76: 0.175 | M76: YES | P76: 0.175
D77: M35 | E77: Slab Type "M35" | F77: 100 | G77: SL82 | H77: 550 | I77: x | J77: 350 | K77: = | L77: 0.1925 | M77: YES | P77: 0.1925
D78: M40 | E78: Slab Type "M40" | F78: 100 | G78: SL82 | H78: 600 | I78: x | J78: 340 | K78: = | L78: 0.204 | M78: YES | P78: 0.204
D79: S6 | E79: Slab Type "S6" | F79: 100 | G79: SL52 | H79: 250 | I79: x | J79: 300 | K79: = | L79: 0.075 | M79: YES | P79: 0.075
D80: S6 BV | E80: Slab Type "S6" | F80: 100 | G80: SL52 | H80: 200 | J80: 300 | L80: 0.06 | M80: YES | N80: 280 | O80: 300 | P80: =(N80*O80)/100000 -> 0.84
D81: S10 | E81: Slab Type "S10" | F81: 100 | G81: SL52 | H81: 280 | I81: x | J81: 300 | K81: = | L81: 0.084 | M81: YES | P81: =L81 -> 0.084
D82: S15 DB | E82: Slab Type "S15" | F82: 100 | G82: SL62 | H82: 280 | I82: x | J82: 300 | K82: = | L82: 0.084 | M82: YES | P82: =L82 -> 0.084
D83: S15 BV | E83: Slab Type "S15" | F83: 100 | G83: SL62 | H83: 300 | J83: 250 | L83: 0.075 | M83: YES | P83: 0.075
D84: S20 | E84: Slab Type "S20" | F84: 100 | G84: SL62 | H84: 280 | I84: x | J84: 300 | K84: = | L84: 0.084 | M84: YES | P84: 0.084
I85: x | K85: = | L85: 0
I86: x | K86: = | L86: 0
I87: x | K87: = | L87: 0
I88: x | K88: = | L88: 0
I89: x | K89: = | L89: 0
B91: Internal Metal Frame Type | C91: DDT | D91: longreach
B92: =" " ->  | C92: 0 | D92: 0
B93: DO NOT INCLUDE FRAMES TO PODS!! | C93: 0 | D93: 0 | M93: 2040X820 LH 90mm W/-SILL EXTERNAL | N93: 1.673
M94: 2040X820 RH 90mm W/-SILL EXTERNAL | N94: 1.673
B95: 2040X1040 DELUXE (2x520) | C95: 2.122 | D95: 0.104 | M95: 2040X820 LH 110mm W/-SILL EXTERNAL | N95: 1.673
B96: 2040X1240 DELUXE (2x620) | C96: 2.53 | D96: 0.124 | M96: 2040X820 RH 110mm W/-SILL EXTERNAL | N96: 1.673
B97: 2040X1440 DELUXE (2x720) | C97: 2.938 | D97: 0.144
B98: 2040x1640 DELUXE (2x820) | C98: 3.346 | D98: 0.164 | M98: 2040X920 LH 90mm W/-SILL EXTERNAL | N98: 1.877
M99: 2040X920 RH 90mm W/-SILL EXTERNAL | N99: 1.877
B100: 2040x820 LH WC | C100: 1.673 | D100: 0.82 | M100: 2040X920 LH 110mm W/-SILL EXTERNAL | N100: 1.877
B101: 2040x820 RH WC | C101: 1.673 | D101: 0.82 | M101: 2040X920 RH 110mm W/-SILL EXTERNAL | N101: 1.877
B102: 2040x920 LH WC | C102: 1.877 | D102: 0.92
B103: 2040x920 RH WC | C103: 1.877 | D103: 0.92 | M103: 2040X720 LH 90mm W/-SILL EXTERNAL | N103: 1.469
M104: 2040X720 RH 90mm W/-SILL EXTERNAL | N104: 1.469
B105: 2040X820 DELUXE SLIDER (870 DOOR) | C105: 1.673 | D105: 0.82 | M105: 2040X720 LH 110mm W/-SILL EXTERNAL | N105: 1.469
B106: 2040X720 DELUXE SLIDER (770 DOOR) | C106: 1.469 | D106: 0.72 | M106: 2040X720 RH 110mm W/-SILL EXTERNAL | N106: 1.469
B107: 2040X620 DELUXE SLIDER (670 DOOR) | C107: 1.265 | D107: 0.62
B108: 2040X520 DELUXE SLIDER (570 DOOR) | C108: 1.061 | D108: 0.62
B109: 2040X420 DELUXE SLIDER (470 DOOR) | C109: 0.836 | D109: 0.42
B111: 2040X1640 DELUXE SLIDER (2x870) | C111: 3.346 | D111: 0.164
B112: 2040X1440 DELUXE SLIDER (2x770) | C112: 2.938 | D112: 0.144
B113: 2040X1240 DELUXE SLIDER (2x670) | C113: 2.53 | D113: 0.124
B115: 2040x920 DELUXE LH | C115: 1.877 | D115: 0.92
B116: 2040x920 DELUXE RH | C116: 1.877 | D116: 0.92
B118: 2040x870 DELUXE LH | C118: 1.775 | D118: 0.87
B119: 2040x870 DELUXE RH | C119: 1.775 | D119: 0.87
B120: 2040x770 DELUXE LH | C120: 1.469 | D120: 0.77
B121: 2040x770 DELUXE RH | C121: 1.469 | D121: 0.77
B122: 2040x670 DELUXE LH | C122: 1.265 | D122: 0.67
B123: 2040x670 DELUXE RH | C123: 1.265 | D123: 0.67
B125: 2040x3x520 DELU/ROBE W/SHELF R | C125: 3.183 | D125: 1.56
B126: 2040x3x620 DELU/ROBE W/SHELF R | C126: 3.795 | D126: 1.86
B127: 2040x3x720 DELU/ROBE W/SHELF R | C127: 4.407 | D127: 2.16
B128: 2040x3x820 DELU/ROBE W/SHELF R | C128: 5.019 | D128: 2.46
B129: 2040x4x520 DELU/ROBE W/SHELF R | C129: 4.244 | D129: 2.08
B130: 2040x4x620 DELU/ROBE W/SHELF R | C130: 5.06 | D130: 2.48
B131: 2040x4x720 DELU/ROBE W/SHELF R | C131: 5.876 | D131: 2.88
B132: 2040x4x820 DELU/ROBE W/SHELF R | C132: 6.692 | D132: 3.28
B134: 2300x1x520 DELU/ROBE W/SHELF R | C134: 1.186 | D134: 0.52
B135: 2300x1x620 DELU/ROBE W/SHELF R | C135: 1.414 | D135: 0.62
B136: 2300x1x720 DELU/ROBE W/SHELF R | C136: 1.642 | D136: 0.72
B137: 2300x1x820 DELU/ROBE W/SHELF R | C137: 1.87 | D137: 0.82
B138: 2300x2x520 DELU/ROBE W/SHELF R | C138: 2.372 | D138: 1.04
B139: 2300x2x620 DELU/ROBE W/SHELF R | C139: 2.828 | D139: 1.24
B140: 2300x2x720 DELU/ROBE W/SHELF R | C140: 3.284 | D140: 1.44
B141: 2300x2x820 DELU/ROBE W/SHELF R | C141: 3.74 | D141: 1.64
B142: 2300x3x520 DELU/ROBE W/SHELF R | C142: 3.558 | D142: 1.56
B143: 2300x3x620 DELU/ROBE W/SHELF R | C143: 4.242 | D143: 1.86
B144: 2300x3x720 DELU/ROBE W/SHELF R | C144: 4.926 | D144: 2.16
B145: 2300x3x820 DELU/ROBE W/SHELF R | C145: 5.61 | D145: 2.46
B146: 2300x4x520 DELU/ROBE W/SHELF R | C146: 4.744 | D146: 2.08
B147: 2300x4x620 DELU/ROBE W/SHELF R | C147: 5.656 | D147: 2.48
B148: 2300x4x720 DELU/ROBE W/SHELF R | C148: 6.568 | D148: 2.88
B149: 2300x4x820 DELU/ROBE W/SHELF R | C149: 7.48 | D149: 3.28
B150: 2300x6x520 DELU/ROBE W/SHELF R | C150: 7.116 | D150: 3.12
B151: 2300x6x620 DELU/ROBE W/SHELF R | C151: 8.484 | D151: 3.72
B153: 2040X820 DELUXE LH NO STRIKER | C153: 1.673 | D153: 0.82
B154: 2040X820 DELUXE RH NO STRIKER | C154: 1.673 | D154: 0.82
B155: 2040X720 DELUXE LH NO STRIKER | C155: 1.469 | D155: 0.72
B156: 2040X720 DELUXE RH NO STRIKER | C156: 1.469 | D156: 0.72
B157: 2040X620 DELUXE LH NO STRIKER | C157: 1.265 | D157: 0.62
B158: 2040X620 DELUXE RH NO STRIKER | C158: 1.265 | D158: 0.62

Sheet Brick Chart (hidden)

Sheet STD LINTEL SHEET (hidden)
A1: JOB No: | F1: ='Main Details'!D6 -> 0 | K1: LOT:
B3: INTERNAL = O/ALL BRICKWORK - 150mm + BEARING | U3: INTERNAL = O/ALL BRICKWORK - 150mm + BEARING
B4: EXTERNAL = O/ALL BRICKWORK - 120mm + BEARING | U4: EXTERNAL = O/ALL BRICKWORK - 120mm + BEARING
B7: COLUMN:- | AH7: COLUMN:-
AN12: NOTE: MUST PRINT SEPARATE
M17: LOCATION:- | W17: LOCATION:-
M27: LOCATION:-
B37: COLUMN:- | AH37: COLUMN:-
J41: INTERNAL = O/ALL BRICKWORK - 300mm / Returns -150mm + BEARING
J42: EXTERNAL = O/ALL BRICKWORK - 240mm / Returns - 120mm + BEARING
U44: INTERNAL = O/ALL BRICKWORK - 60mm + BEARING
U45: INTERNAL = O/ALL BRICKWORK - 125mm
D47: LOCATION:- | AA47: LOCATION:-
N58: COLUMN:- | U58: COLUMN:- | AH58: COLUMN:-
B61: INTERNAL = O/ALL BRICKWORK - 60mm + BEARING | U61: EXTERNAL = O/ALL BRICKWORK - 50mm + BEARING
B62: EXTERNAL = O/ALL BRICKWORK - 50mm + BEARING | U62: EXTERNAL = O/ALL BRICKWORK - 100mm

Sheet BUILDERS BRICK SELECTION
A2: AUSTRAL/MIDLAND FACE BRICK STANDARD LISTING | I2: INT/EXT BLOCK SELECTION | P2: PAVING BRICKS
B3: LAST UPDATED 23 NOVEMBER 2017 | Q3: LAST UPDATED 23 NOVEMBER 2017
A4: Line | B4: Brick Type Description | C4: Pk size | D4: Lfs/pk | E4: no/m2 | F4: brick size | H4: Line | I4: Brick Type Selection | J4: Pk Size | K4: No/m2 | L4: Brick Size | M4: LEAFS | N4: 1c pk size | P4: Line | Q4: Brick Type Selection | R4: Pk Size | S4: No/m2 | T4: Brick Size | X4: Thickness | Y4: LEAFS | Z4: PICK UP | AA4: M2 PER PACK
A5: 1 | B5: NO SELECTION MADE | C5: 264 | D5: 4 | E5: 50.5 | F5: 230x110x76 | H5: 1 | I5: NO SELECTION MADE | J5: 132 | P5: 1 | Q5: NO SELECTION MADE | R5: 0 | S5: 0 | U5: x | W5: x
A6: 2 | H6: 2 | P6: 2
A7: 3 | B7: MIDLAND 1C BRICK - REDS | H7: 3 | I7: MIDLAND MAXIBRICK | J7: 138 | K7: 18.5 | L7: 305x90x162 | M7: 3 | P7: 3 | Q7: MIDLAND RANGE PAVERS 60mm:-
A8: 4 | B8: MIDLAND- Burnished Red | C8: 264 | D8: 4 | E8: 48.5 | F8: 230x110x76 | G8: TRUE | H8: 4 | P8: 4
A9: 6 | B9: MIDLAND- Kalbarri | C9: 264 | D9: 4 | E9: 48.5 | F9: 230x110x76 | G9: TRUE | H9: 5 | I9: AUSTRAL ARMACLAY | J9: 132 | K9: 19.5 | L9: 305x90x162 | M9: 3 | P9: 5 | Q9: MASTERPAVE CLASSIC 60 | R9: 228 | S9: 25 | T9: 200 | U9: x | V9: 200 | Y9: 4 | AA9: 9.12
A10: 8 | B10: MIDLAND- Red Smooth | C10: 264 | D10: 4 | E10: 48.5 | F10: 230x110x76 | G10: TRUE | H10: 6 | P10: 6
A11: 9 | B11: MIDLAND- Restoration Red | C11: 264 | D11: 4 | E11: 48.5 | F11: 230x110x76 | G11: TRUE | H11: 7 | I11: MIDLAND FASTWALL | J11: 132 | K11: 18.5 | L11: 305x90x162 | M11: 3 | P11: 7 | Q11: MASTERPAVE GRANITE 60 | R11: 228 | S11: 25 | T11: 200 | U11: x | V11: 200 | Y11: 4 | AA11: 9.12
A12: 11 | B12: MIDLAND- Salmon Gum | C12: 264 | D12: 4 | E12: 48.5 | F12: 230x110x76 | G12: TRUE | H12: 8 | P12: 8
A13: 12 | B13: MIDLAND- Subiaco Red | C13: 264 | D13: 4 | E13: 48.5 | F13: 230x110x76 | G13: TRUE | H13: 9 | I13: BRIKMAKERS DURACLAY | J13: 138 | K13: 19.5 | L13: 305x90x162 | M13: 3 | P13: 9 | Q13: MASTERPAVE STONEWASH 60 | R13: 228 | S13: 25 | T13: 200 | U13: x | V13: 200 | Y13: 4 | AA13: 9.12
A14: 13 | B14: MIDLAND- Traditional | C14: 264 | D14: 4 | E14: 48.5 | F14: 230x110x76 | G14: TRUE | H14: 10 | P14: 10
A15: 14 | B15: MIDLAND- Restoration Red Coach | C15: 264 | D15: 4 | E15: 48.5 | F15: 230x110x76 | G15: TRUE | H15: 11 | I15: **EXTERNAL RENDERS** | J15: 132 | K15: 19.5 | L15: 305x90x162 | M15: 3 | P15: 11 | Q15: MASTERPAVE GEO 60 | R15: 228 | S15: 25 | T15: 200 | U15: x | V15: 200 | Y15: 4 | AA15: 9.12
A16: 15 | B16: MIDLAND- Subiaco Red Coach | C16: 264 | D16: 4 | E16: 48.5 | F16: 230x110x76 | G16: TRUE | H16: 12 | P16: 12
A17: 16 | B17: MIDLAND- Traditional Coach | C17: 264 | D17: 4 | E17: 48.5 | F17: 230x110x76 | G17: TRUE | H17: 13 | I17: AUSTRAL VERTICORE | J17: 132 | K17: 19.5 | L17: 305x90x162 | M17: 3 | P17: 13 | Q17: MIDLAND ORIGINAL COLLECTION 60:- | AE17: Original | AF17: Pavestone | AH17: * ANTIQUE BLEND | AJ17: 330 | AK17: 8.66 | AL17: 230 x 114 x 60
A18: 17 | H18: 14 | P18: 14 | Q18: PAVESTONE 60 Antique Blend | R18: 330 | S18: =1/Z18 -> 38.13882532 | T18: 230 | U18: x | V18: 114 | W18: x | X18: 60 | Y18: 5 | Z18: =(T18/1000)*(V18/1000) -> 0.02622 | AA18: 8.66 | AH18: * AUTUMN BLEND
A19: 18 | B19: MIDLAND 1C BRICK - CREAMS | H19: 15 | P19: 15 | Q19: PAVESTONE 60 Autumn Blend | R19: 330 | S19: =1/Z19 -> 38.13882532 | T19: 230 | U19: x | V19: 114 | W19: x | X19: 60 | Y19: 5 | Z19: =(T19/1000)*(V19/1000) -> 0.02622 | AA19: 8.66 | AH19: * CAPPUCCINO
A20: 19 | B20: MIDLAND- Cream Maxi | C20: 264 | D20: 4 | E20: 48.5 | F20: 230x110x76 | H20: 16 | P20: 16 | Q20: PAVESTONE 60 Cappuccino | R20: 330 | S20: 38.13882532 | T20: 230 | U20: x | V20: 114 | W20: x | X20: 60 | Y20: 5 | Z20: 0.02622 | AA20: 8.66 | AH20: * CHARCOAL
A21: 20 | H21: 17 | I21: BRIKMAKERS VERTICLAY | J21: 138 | K21: 19.5 | L21: 305x90x162 | M21: 3 | P21: 17 | Q21: PAVESTONE 60 Heritage Red | R21: 330 | S21: 38.13882532 | T21: 230 | U21: x | V21: 114 | W21: x | X21: 60 | Y21: 5 | Z21: 0.02622 | AA21: 8.66 | AH21: * HERITAGE RED
A22: 21 | H22: 18 | P22: 18 | Q22: PAVESTONE 60 Limestone | R22: 330 | S22: 38.13882532 | T22: 230 | U22: x | V22: 114 | W22: x | X22: 60 | Y22: 5 | Z22: 0.02622 | AA22: 8.66 | AH22: * LIMESTONE
A23: 22 | B23: MIDLAND- Limestone Hue | C23: 264 | D23: 4 | E23: 48.5 | F23: 230x110x76 | H23: 19 | I23: **INTERNAL RENDERS** | J23: 132 | K23: 19.5 | L23: 305x90x162 | M23: 3 | P23: 19 | Q23: PAVESTONE 60 Silver | R23: 330 | S23: 38.13882532 | T23: 230 | U23: x | V23: 114 | W23: x | X23: 60 | Y23: 5 | Z23: 0.02622 | AA23: 8.66 | AH23: * SILVER
A24: 23 | B24: MIDLAND- Milano | C24: 264 | D24: 4 | E24: 48.5 | F24: 230x110x76 | H24: 20 | P24: 20 | Q24: PAVESTONE 60 Pewter | R24: 330 | S24: 38.13882532 | T24: 230 | U24: x | V24: 114 | W24: x | X24: 60 | Y24: 5 | Z24: 0.02622 | AA24: 8.66
A25: 24 | B25: MIDLAND- Seville | C25: 264 | D25: 4 | E25: 48.5 | F25: 230x110x76 | P25: 21 | AF25: Masterpave | AH25: * CHARCOAL | AJ25: 228 | AK25: 9.12 | AL25: 200x200x60
A26: 25 | B26: MIDLAND- Tuscan | C26: 264 | D26: 4 | E26: 48.5 | F26: 230x110x76 | P26: 22 | Q26: MIDLAND CLASSIC COLLECTION 60:- | AH26: * GOLDEN SAND
A27: 26 | P27: 23 | Q27: MASTERPAVE 60 Charcoal | R27: 228 | S27: =1/Z27 -> 25 | T27: 200 | U27: x | V27: 200 | W27: x | X27: 60 | Y27: 4 | Z27: =(T27/1000)*(V27/1000) -> 0.04 | AA27: 9.12 | AH27: * HERITAGE RED
A28: 27 | I28: INT/EXT LONGREACH CORED | P28: 24 | Q28: MASTERPAVE 60 Golden Sand | R28: 228 | S28: 25 | T28: 200 | U28: x | V28: 200 | W28: x | X28: 60 | Y28: 4 | Z28: 0.04 | AA28: 9.12 | AH28: * LIMESTONE
A29: 28 | B29: MIDLAND 1C BRICK - PEARL | H29: Line | P29: 25 | Q29: MASTERPAVE 60 Heritage | R29: 228 | S29: 25 | T29: 200 | U29: x | V29: 200 | W29: x | X29: 60 | Y29: 4 | Z29: 0.04 | AA29: 9.12 | AH29: * PEWTER
A30: 29 | B30: MIDLAND- Amber | C30: 264 | D30: 4 | E30: 50.5 | F30: 230x110x76 | H30: 1 | I30: Brick Type Selection | J30: Pk Size | K30: No/m2 | L30: Brick Size | P30: 26 | Q30: MASTERPAVE 60 Limestone | R30: 228 | S30: 25 | T30: 200 | U30: x | V30: 200 | W30: x | X30: 60 | Y30: 4 | Z30: 0.04 | AA30: 9.12 | AH30: * STEEL GREY
A31: 30 | B31: MIDLAND- Black | C31: 264 | D31: 4 | E31: 50.5 | F31: 230x110x76 | H31: 2 | I31: NO SELECTION MADE | J31: 252 | P31: 27 | Q31: MASTERPAVE 60 Pewter | R31: 228 | S31: 25 | T31: 200 | U31: x | V31: 200 | W31: x | X31: 60 | Y31: 4 | Z31: 0.04 | AA31: 9.12 | AH31: * SILVER
A32: 31 | B32: MIDLAND- Copper | C32: 264 | D32: 4 | E32: 50.5 | F32: 230x110x76 | H32: 3 | P32: 28 | Q32: MASTERPAVE 60 Steel Grey | R32: 228 | S32: 25 | T32: 200 | U32: x | V32: 200 | W32: x | X32: 60 | Y32: 4 | Z32: 0.04 | AA32: 9.12
A33: 32 | B33: MIDLAND- Grey | C33: 264 | D33: 4 | E33: 50.5 | F33: 230x110x76 | H33: 4 | I33: MIDLAND LONGREACH | J33: 252 | K33: 37 | L33: 305x90x76 | M33: 3 | P33: 29 | Q33: MASTERPAVE 60 Silver | R33: 228 | S33: 25 | T33: 200 | U33: x | V33: 200 | W33: x | X33: 60 | Y33: 4 | Z33: 0.04 | AA33: 9.12 | AF33: Promenade | AH33: * AUTUMN BLEND | AJ33: 160 | AK33: 14.41
A34: 33 | H34: 5 | P34: 30 | AH34: * CHARCOAL
A35: 34 | H35: 6 | I35: AUSTRAL MODULAR 76 | J35: 264 | K35: 40 | L35: 305x90x76 | M35: 3 | P35: 31 | Q35: MIDLAND CLASSIC COLLECTION 60:- | AH35: * GOLDEN SAND
A36: 35 | B36: MIDLAND 1C BRICK - CODA | H36: 7 | P36: 32 | Q36: PROMENADE CLASSIC 60 Limestone | R36: 160 | S36: =1/Z36 -> 11.11111111 | T36: 300 | U36: x | V36: 300 | Y36: 10 | Z36: =(T36/1000)*(V36/1000) -> 0.09 | AA36: 14.41 | AH36: * LIMESTONE
A37: 36 | B37: MIDLAND- Grey | C37: 264 | D37: 4 | E37: 50.5 | F37: 230x110x76 | H37: 8 | P37: 33 | Q37: PROMENADE CLASSIC 60 Autum Blend | R37: 160 | S37: =1/Z37 -> 11.11111111 | T37: 300 | U37: x | V37: 300 | Y37: 10 | Z37: 0.09 | AA37: 14.41 | AH37: * PEWTER
A38: 37 | B38: MIDLAND- Red | C38: 264 | D38: 4 | E38: 50.5 | F38: 230x110x76 | H38: 9 | P38: 34 | Q38: PROMENADE CLASSIC 60 Golden Sand | R38: 160 | S38: 11.11111111 | T38: 300 | U38: x | V38: 300 | Y38: 10 | Z38: 0.09 | AA38: 14.41 | AH38: * STEEL GREY
A39: 38 | H39: 10 | P39: 35 | Q39: PROMENADE CLASSIC 60 Pewter | R39: 160 | S39: 11.11111111 | T39: 300 | U39: x | V39: 300 | Y39: 10 | Z39: 0.09 | AA39: 14.41
A40: 39 | B40: MIDLAND 1C BRICK - HANDMADE | H40: 11 | I40: BRIKMAKERS VERTI 76 | J40: 264 | K40: 40 | L40: 305x90x76 | M40: 3 | P40: 36 | Q40: PROMENADE CLASSIC 60 Charcoal | R40: 160 | S40: 11.11111111 | T40: 300 | U40: x | V40: 300 | Y40: 10 | Z40: 0.09 | AA40: 14.41
A41: 40 | B41: MIDLAND- Caversham | C41: 264 | D41: 4 | E41: 50.5 | F41: 230x110x76 | H41: 12 | P41: 37 | Q41: PROMENADE CLASSIC 60 Steel Grey | R41: 160 | S41: 11.11111111 | T41: 300 | U41: x | V41: 300 | Y41: 10 | Z41: 0.09 | AA41: 14.41
A42: 41 | B42: MIDLAND- Helena vale | C42: 264 | D42: 4 | E42: 50.5 | F42: 230x110x76 | G42: TRUE | P42: 38
A43: 42 | B43: MIDLAND- Sandalford | C43: 264 | D43: 4 | E43: 50.5 | F43: 230x110x76 | G43: TRUE | P43: 39 | Q43: MIDLAND BOULEVARD 60 CLASSIC:-
A44: 43 | B44: MIDLAND- Woodbridge | C44: 264 | D44: 4 | E44: 50.5 | F44: 230x110x76 | P44: 40 | Q44: BOULEVARD CLASSIC 60 Charcoal | S44: 12.5 | T44: 400 | U44: x | V44: 200 | Y44: 10 | AA44: 14.4
H45: Line | P45: 41 | Q45: BOULEVARD CLASSIC 60 Limestone | R45: 180 | S45: 12.5 | T45: 400 | U45: x | V45: 200 | Y45: 10 | AA45: 14.4
B46: MIDLAND 1C BRICK - REVIVAL RANGE | H46: 1 | I46: INT/EXT LONGREACH SOLIDS | P46: 42 | Q46: BOULEVARD CLASSIC 60 Pewter | R46: 180 | S46: 12.5 | T46: 400 | U46: x | V46: 200 | Y46: 10 | AA46: 14.4
B47: MIDLAND BISHOPS HOUSE | C47: 264 | D47: 4 | E47: 48.5 | F47: 230x110x76 | G47: TRUE | H47: 2 | P47: 43 | Q47: BOULEVARD CLASSIC 60 Steel Grey | R47: 180 | S47: 12.5 | T47: 400 | U47: x | V47: 200 | Y47: 10 | AA47: 14.4
B48: MIDLAND BISHOPS HOUSE RUMBLED | C48: 264 | D48: 4 | E48: 48.5 | F48: 230x110x76 | G48: TRUE | H48: 3 | I48: Brick Type Selection | J48: Pk Size | K48: No/m2 | L48: Brick Size | P48: 44
B49: MIDLAND LANEWAY VIBE | C49: 264 | D49: 4 | E49: 48.5 | F49: 230x110x76 | G49: TRUE | H49: 4 | I49: NO SELECTION MADE | J49: 252 | P49: 45
B50: MIDLAND LANEWAY VIBE RUMBLED | C50: 264 | D50: 4 | E50: 48.5 | F50: 230x110x76 | G50: TRUE | H50: 5 | P50: 46 | Q50: MIDLAND BOULEVARD 60 GRANITE:-
H51: 6 | I51: MIDLAND LONGREACH | J51: 252 | K51: 37 | L51: 305x90x76 | M51: 3 | P51: 47 | Q51: BOULEVARD GRANITE 60 Platinum | R51: 180 | S51: 12.5 | T51: 400 | U51: x | V51: 200 | Y51: 10 | AA51: 14.4
H52: 7 | P52: 48 | Q52: BOULEVARD GRANITE 60 Chalk | R52: 180 | S52: 12.5 | T52: 400 | U52: x | V52: 200 | Y52: 10 | AA52: 14.4
H53: 8 | I53: AUSTRAL MODULAR 76 | J53: 264 | K53: 40 | L53: 305x90x76 | M53: 3 | P53: 49 | Q53: BOULEVARD GRANITE 60 Graphite | R53: 180 | S53: 12.5 | T53: 400 | U53: x | V53: 200 | Y53: 10 | AA53: 14.4
H54: 9 | P54: 50 | Q54: BOULEVARD GRANITE 60 Titanium | R54: 180 | S54: 12.5 | T54: 400 | U54: x | V54: 200 | Y54: 10 | AA54: 14.4
H55: 10 | P55: 51
H56: 11 | I56: BRIKMAKERS VERTI 76 | J56: 264 | K56: 40 | L56: 305x90x76 | M56: 3 | P56: 52 | Q56: MIDLAND PROMENADE 60 CLASSIC:-
H57: 12 | P57: 53 | Q57: PROMENADE CLASSIC 60 Limestone | R57: 160 | S57: 11.1 | T57: 300 | U57: x | V57: 300 | Y57: 10 | AA57: 14.41
P58: 54 | Q58: PROMENADE CLASSIC 60 Donnybrook | R58: 160 | S58: 11.1 | T58: 300 | U58: x | V58: 300 | Y58: 10 | AA58: 14.41
P59: 55 | Q59: PROMENADE CLASSIC 60 Autum Blend | R59: 160 | S59: 11.1 | T59: 300 | U59: x | V59: 300 | Y59: 10 | AA59: 14.41
P60: 56 | Q60: PROMENADE CLASSIC 60 Golden Sand | R60: 160 | S60: 11.1 | T60: 300 | U60: x | V60: 300 | Y60: 10 | AA60: 14.41
P61: 57 | Q61: PROMENADE CLASSIC 60 Heritage Red | R61: 160 | S61: 11.1 | T61: 300 | U61: x | V61: 300 | Y61: 10 | AA61: 14.41
P62: 58 | Q62: PROMENADE CLASSIC 60 Morocco | R62: 160 | S62: 11.1 | T62: 300 | U62: x | V62: 300 | Y62: 10 | AA62: 14.41
P63: 59 | Q63: PROMENADE CLASSIC 60 Pewter | R63: 160 | S63: 11.1 | T63: 300 | U63: x | V63: 300 | Y63: 10 | AA63: 14.41
P64: 60 | Q64: PROMENADE CLASSIC 60 Charcoal | R64: 160 | S64: 11.1 | T64: 300 | U64: x | V64: 300 | Y64: 10 | AA64: 14.41
P65: 61 | Q65: PROMENADE CLASSIC 60 Steel Grey | R65: 160 | S65: 11.1 | T65: 300 | U65: x | V65: 300 | Y65: 10 | AA65: 14.41
P66: 62
P67: 63 | Q67: MIDLAND PROMENADE 60 GRANITE:-
P68: 64 | Q68: PROMENADE GRANITE 60 Chalk | R68: 160 | S68: 11.1 | T68: 300 | U68: x | V68: 300 | Y68: 10 | AA68: 14.41
P69: 65 | Q69: PROMENADE GRANITE 60 Rose Quartz | R69: 160 | S69: 11.1 | T69: 300 | U69: x | V69: 300 | Y69: 10 | AA69: 14.41
H70: Line | P70: 66 | Q70: PROMENADE GRANITE 60 Amber | R70: 160 | S70: 11.1 | T70: 300 | U70: x | V70: 300 | Y70: 10 | AA70: 14.41
H71: 1 | I71: INT/EXT COMMON SELECTION | P71: 67 | Q71: PROMENADE GRANITE 60 Titanium | R71: 160 | S71: 11.1 | T71: 300 | U71: x | V71: 300 | Y71: 10 | AA71: 14.41
H72: 2 | P72: 68 | Q72: PROMENADE GRANITE 60 Copper | R72: 160 | S72: 11.1 | T72: 300 | U72: x | V72: 300 | Y72: 10 | AA72: 14.41
H73: 3 | I73: Brick Type Selection | J73: Pk Size | K73: No/m2 | L73: Brick Size | P73: 69 | Q73: PROMENADE GRANITE 60 Graphite | R73: 160 | S73: 11.1 | T73: 300 | U73: x | V73: 300 | Y73: 10 | AA73: 14.41
H74: 4 | I74: NO SELECTION MADE | J74: 264 | P74: 70 | Q74: PROMENADE GRANITE 60 Platinum | R74: 160 | S74: 11.1 | T74: 300 | U74: x | V74: 300 | Y74: 10 | AA74: 14.41
H75: 5 | P75: 71
H76: 6 | I76: MIDLAND COMMONS | J76: 264 | K76: 48.5 | L76: 230x110x76 | M76: 4 | P76: 72 | Q76: MIDLAND PROMENADE 60 HONED:-
H77: 7 | P77: 73 | Q77: PROMENADE HONED 60 Brun | R77: 160 | S77: 10.9 | T77: 300 | U77: x | V77: 300 | Y77: 10 | AA77: 14.68
H78: 8 | I78: AUSTRAL COMMONS | J78: 264 | K78: 48.5 | L78: 230x110x76 | M78: 4 | P78: 74 | Q78: PROMENADE HONED 60 Gesso | R78: 160 | S78: 10.9 | T78: 300 | U78: x | V78: 300 | Y78: 10 | AA78: 14.68
H79: 9 | P79: 75 | Q79: PROMENADE HONED 60 Grigio | R79: 160 | S79: 10.9 | T79: 300 | U79: x | V79: 300 | Y79: 10 | AA79: 14.68
H80: 10 | P80: 76 | Q80: PROMENADE HONED 60 Noire | R80: 160 | S80: 10.9 | T80: 300 | U80: x | V80: 300 | Y80: 10 | AA80: 14.68
H81: 11 | I81: BRIKMAKERS COMMONS | J81: 264 | K81: 50.5 | L81: 230x110x76 | M81: 4 | P81: 77
H82: 12 | P82: 78 | Q82: MIDLAND STYLESTONE ROCKPAVE 60:-
P83: 79 | Q83: STYLESTONE ROCK 60 Charcoal | R83: 160 | S83: 10.9 | T83: 300 | U83: x | V83: 300 | Y83: 10 | AA83: 14.68
I84: 2C FACE BLOCKS | P84: 80 | Q84: STYLESTONE ROCK 60 Morocco | R84: 160 | S84: 10.9 | T84: 300 | U84: x | V84: 300 | Y84: 10 | AA84: 14.68
P85: 81 | Q85: STYLESTONE ROCK 60 Sandstone | R85: 160 | S85: 10.9 | T85: 300 | U85: x | V85: 300 | Y85: 10 | AA85: 14.68
H86: Line | I86: Brick Type Selection | J86: Pk Size | K86: No/m2 | L86: Brick Size | M86: leafs | P86: 82 | Q86: STYLESTONE ROCK 60 Wheat | R86: 160 | S86: 10.9 | T86: 300 | U86: x | V86: 300 | Y86: 10 | AA86: 14.68
H87: 1 | I87: NO SELECTION MADE | J87: 138 | P87: 83 | Q87: STYLESTONE ROCK 60 Golden Sand | R87: 160 | S87: 10.9 | T87: 300 | U87: x | V87: 300 | Y87: 10 | AA87: 14.68
H88: 2 | P88: 84 | Q88: STYLESTONE ROCK 60 Steel Grey | R88: 160 | S88: 10.9 | T88: 300 | U88: x | V88: 300 | Y88: 10 | AA88: 14.68
H89: 3 | I89: MIDLAND- 2c face Blocks | J89: 138 | K89: 19.4 | L89: 290x90x162 | M89: 3 | P89: 85
H90: 4 | I90: MIDLAND- 2c face Blocks | J90: 138 | K90: 19.4 | L90: 290x90x162 | M90: 3 | P90: 86 | Q90: MIDLAND SIG. SERIES ROCKPAVE 60:-
H91: 5 | P91: 87 | Q91: SIGNATURE ROCK 60 Alpine Ash | R91: 160 | S91: 10.9 | T91: 300 | U91: x | V91: 300 | Y91: 10 | AA91: 14.68
H92: 6 | I92: MIDLAND 2C BRICKS | N92: =J89/M89 -> 46 | P92: 88 | Q92: SIGNATURE ROCK 60 Onyx | R92: 160 | S92: 10.9 | T92: 300 | U92: x | V92: 300 | Y92: 10 | AA92: 14.68
H93: 7 | I93: MIDLAND - Bremer Bay | J93: 138 | K93: 19.4 | L93: 290x90x162 | M93: 3 | N93: =J90/M90 -> 46 | P93: 89
H94: 8 | I94: MIDLAND - Bullara | J94: 138 | K94: 19.4 | L94: 290x90x162 | M94: 3 | Q94: MIDLAND STONEWASH COLLECTION
H95: 9 | I95: MIDLAND - Kennedy | J95: 138 | K95: 19.4 | L95: 290x90x162 | M95: 3 | Q95: FLAGSTONE 60 Charcoal | R95: 135 | S95: 18 | T95: 330 | V95: 165 | Y95: 3 | AA95: 7.5
H96: 10 | I96: MIDLAND - Loongana Limestone | J96: 138 | K96: 19.4 | L96: 290x90x162 | M96: 3 | N96: 46 | Q96: FLAGSTONE 60 Grey | R96: 135 | S96: 18 | T96: 330 | V96: 165 | Y96: 3 | AA96: 7.5
H97: 11 | I97: MIDLAND - Roebuck | J97: 138 | K97: 19.4 | L97: 290x90x162 | M97: 3 | N97: 46 | Q97: FLAGSTONE 60 Silver | R97: 135 | S97: 18 | T97: 330 | V97: 165 | Y97: 3 | AA97: 7.5
H98: 12 | I98: MIDLAND - Shale | J98: 138 | K98: 19.4 | L98: 290x90x162 | M98: 3 | N98: 46 | AH98: x | AI98: 200 | AL98: 4
H99: 13 | I99: MIDLAND - Trealla Limestone | J99: 138 | K99: 19.4 | L99: 290x90x162 | M99: 3 | N99: 46 | Q99: MIDLAND FLAGSTONE GEO 60
H100: 14 | I100: MIDLAND - Mandu | J100: 138 | K100: 19.4 | L100: 290x90x162 | M100: 3 | N100: 46 | Q100: FLAGSTONE GEO DEW | R100: 135 | S100: 18 | T100: 330 | U100: X | V100: 165 | Y100: 3 | AA100: 7.35 | AH100: x | AI100: 200 | AL100: 4
Q101: FLAGSTONE GEO KAO | R101: 135 | S101: 18 | T101: 330 | U101: X | V101: 165 | Y101: 3 | AA101: 7.35 | AD101: MASTERPAVE CLASSIC 60 | AE101: 228 | AF101: 25 | AG101: 200 | AN101: 9.12
Q102: FLAGSTONE GEO SKY | R102: 135 | S102: 18 | T102: 330 | U102: X | V102: 165 | Y102: 3 | AA102: 7.35 | AH102: x | AI102: 200 | AL102: 4
AD103: MASTERPAVE GRANITE 60 | AE103: 228 | AF103: 25 | AG103: 200 | AN103: 9.12
AH104: x | AI104: 200 | AL104: 4
AD105: MASTERPAVE STONEWASH 60 | AE105: 228 | AF105: 25 | AG105: 200 | AN105: 9.12
AD107: MASTERPAVE GEO 60 | AE107: 228 | AF107: 25 | AG107: 200 | AN107: 9.12
A119: 74 | B119: BRICKMAKERS 1C BRICK - Traditional collection | P119: 92 | Q119: BGC VISTAPAVE 60 ORIGINAL:-
A120: 75 | P120: 93 | Q120: VISTAPAVE 60 Fed Red | R120: 228 | S120: 27 | T120: 190 | U120: x | V120: 190 | Y120: 2 | AA120: 8.4
A121: 76 | H121: 15 | N121: =J98/M98 -> 46 | P121: 94 | Q121: VISTAPAVE 60 Charcoal | R121: 228 | S121: 27 | T121: 190 | U121: x | V121: 190 | Y121: 2 | AA121: 8.4
A122: 77 | H122: 16 | N122: =J99/M99 -> 46 | P122: 95 | Q122: VISTAPAVE 60 Sandstone | R122: 228 | S122: 27 | T122: 190 | U122: x | V122: 190 | Y122: 2 | AA122: 8.4
A123: 78 | B123: BMAKERS- Cream Smooth | C123: 264 | D123: 4 | E123: 50.5 | F123: 230x110x76 | H123: 17 | I123: AUSTRAL- 2c Face Blocks | J123: 138 | K123: 20.5 | L123: 290x90x162 | M123: 3 | N123: =J100/M100 -> 46 | P123: 96 | Q123: VISTAPAVE 60 Terracotta | R123: 228 | S123: 27 | T123: 190 | U123: x | V123: 190 | Y123: 2 | AA123: 8.4
A124: 79 | H124: 18 | P124: 97 | Q124: VISTAPAVE 60 Grey | R124: 228 | S124: 27 | T124: 190 | U124: x | V124: 190 | Y124: 2 | AA124: 8.4
A125: 80 | H125: 20 | I125: AUSTRAL 2C BRICKS | P125: 98 | Q125: VISTAPAVE 60 Silver | R125: 228 | S125: 27 | T125: 190 | U125: x | V125: 190 | Y125: 2 | AA125: 8.4
A126: 81 | B126: BMAKERS- Mosmon Red | C126: 264 | D126: 4 | E126: 50.5 | F126: 230x110x76 | G126: TRUE | H126: 21 | I126: AUSTRAL - Chai Latte | J126: 138 | K126: 20.5 | L126: 290x90x162 | M126: 3 | N126: 46 | P126: 99 | Q126: VISTAPAVE 60 Mocha | R126: 228 | S126: 27 | T126: 190 | U126: x | V126: 190 | Y126: 2 | AA126: 8.4
A127: 82 | B127: BMAKERS- Nouveau Grey | C127: 264 | D127: 4 | E127: 50.5 | F127: 230x110x76 | G127: TRUE | H127: 22 | I127: AUSTRAL - French Brie | J127: 138 | K127: 20.5 | L127: 290x90x162 | M127: 3 | P127: 100 | Q127: VISTAPAVE 60 Cappuccino | R127: 228 | S127: 27 | T127: 190 | U127: x | V127: 190 | Y127: 2 | AA127: 8.4
A128: 83 | B128: BMAKERS- Red Smooth | C128: 264 | D128: 4 | E128: 50.5 | F128: 230x110x76 | G128: TRUE | H128: 23 | I128: AUSTRAL - Fremantle (Sandfire) | J128: 138 | K128: 20.5 | L128: 290x90x162 | M128: 3 | P128: 101 | Q128: VISTAPAVE 60 Natural | R128: 228 | S128: 27 | T128: 190 | U128: X | V128: 190 | Y128: 2 | AA128: 8.4
A129: 84 | H129: 24 | I129: AUSTRAL - Kingston | J129: 138 | K129: 20.5 | L129: 290x90x162 | M129: 3 | N129: 46 | P129: 102 | Q129: VISTAPAVE 60 Platinum | R129: 228 | S129: 27 | T129: 190 | U129: X | V129: 190 | Y129: 2 | AA129: 8.4
A130: 85 | H130: 25 | I130: AUSTRAL - Leeuwin | J130: 138 | K130: 20.5 | L130: 290x90x162 | M130: 3 | N130: 46 | P130: 103
A131: 86 | H131: 26 | I131: AUSTRAL - Carbide | J131: 138 | K131: 20.5 | L131: 290x90x162 | M131: 3 | N131: 46 | P131: 104 | Q131: BGC VISTAPAVE 60 GRANITE:-
A132: 87 | H132: 27 | I132: AUSTRAL - Hannan | J132: 138 | K132: 20.5 | L132: 290x90x162 | M132: 3 | N132: 46 | P132: 105 | Q132: VISTAPAVE GRANITE 60 Arctic | R132: 228 | S132: 27 | T132: 190 | U132: x | V132: 190 | Y132: 2 | AA132: 8.4
A133: 88 | B133: BRICKMAKERS 1C BRICK - Tumbled | C133: 264 | D133: 4 | E133: 50.5 | F133: 230x110x76 | H133: 28 | I133: AUSTRAL - Prevelly Limestone | J133: 138 | K133: 20.5 | L133: 290x90x162 | M133: 3 | N133: 46 | P133: 106 | Q133: VISTAPAVE GRANITE 60 Chert | R133: 228 | S133: 27 | T133: 190 | U133: x | V133: 190 | Y133: 2 | AA133: 8.4
A134: 89 | H134: 29 | I134: AUSTRAL - Praline | J134: 138 | K134: 20.5 | L134: 290x90x162 | M134: 3 | N134: 46 | P134: 107 | Q134: VISTAPAVE GRANITE 60 Pebble Beach | R134: 228 | S134: 27 | T134: 190 | U134: x | V134: 190 | Y134: 2 | AA134: 8.4
A135: 90 | B135: BMAKERS- Classic Cream Tumbled | C135: 264 | D135: 4 | E135: 50.5 | F135: 230x110x76 | H135: 30 | I135: AUSTRAL - Muscatel | J135: 138 | K135: 20.5 | L135: 290x90x162 | M135: 3 | N135: 46 | P135: 108 | Q135: VISTAPAVE GRANITE 60 Sea Mist | R135: 228 | S135: 27 | T135: 190 | U135: x | V135: 190 | Y135: 2 | AA135: 8.4
A136: 91 | N136: 46 | P136: 109 | Q136: VISTAPAVE GRANITE 60 Storm Cloud | R136: 228 | S136: 27 | T136: 190 | U136: x | V136: 190 | Y136: 2 | AA136: 8.4
A137: 92 | N137: 46 | P137: 110 | Q137: VISTAPAVE GRANITE 60 Tundra | R137: 228 | S137: 27 | T137: 190 | U137: x | V137: 190 | Y137: 2 | AA137: 8.4
A138: 93 | N138: 46 | P138: 111
A139: 94 | G139: TRUE | P139: 112 | Q139: BGC VISTAPAVE 60 STONEWASH:-
A140: 95 | B140: BMAKERS- Mosmon Red Tumbled | C140: 264 | D140: 4 | E140: 50.5 | F140: 230x110x76 | G140: TRUE | P140: 113 | Q140: VISTAPAVE STONEWASH 60 Charcoal | R140: 228 | S140: 27 | T140: 190 | U140: x | V140: 190 | Y140: 2 | AA140: 8.4
A141: 96 | B141: BMAKERS- Nouveau Grey Tumbled | C141: 264 | D141: 4 | E141: 50.5 | F141: 230x110x76 | G141: TRUE | P141: 114 | Q141: VISTAPAVE STONEWASH 60 Grey | R141: 228 | S141: 27 | T141: 190 | U141: x | V141: 190 | Y141: 2 | AA141: 8.4
A142: 97 | B142: BMAKERS- Red Smooth Tumbled | C142: 264 | D142: 4 | E142: 50.5 | F142: 230x110x76 | G142: TRUE | P142: 115 | Q142: VISTAPAVE STONEWASH 60 Silver | R142: 228 | S142: 27 | T142: 190 | U142: x | V142: 190 | Y142: 2 | AA142: 8.4
A143: 98 | B143: BMAKERS- Sunset Beach Tumbled | C143: 264 | D143: 4 | E143: 50.5 | F143: 230x110x76 | P143: 116
A144: 99 | P144: 117 | Q144: BGC VISTAPAVE 60 GEO:-
A145: 100 | B145: BMAKERS- Vintage Red Tumbled | C145: 264 | D145: 4 | E145: 50.5 | F145: 230x110x76 | G145: TRUE | P145: 118 | Q145: VISTAPAVE GEO 60 GEM | R145: 228 | S145: 27 | T145: 190 | U145: x | V145: 190 | Y145: 2 | AA145: 8.4
A146: 101 | P146: 119 | Q146: VISTAPAVE GEO 60 INK | R146: 228 | S146: 27 | T146: 190 | U146: x | V146: 190 | Y146: 2 | AA146: 8.4
A147: 102 | B147: BRICKMAKERS ROMAN BRICK | P147: 120 | Q147: VISTAPAVE GEO 60 NEO | R147: 228 | S147: 27 | T147: 190 | U147: x | V147: 190 | Y147: 2 | AA147: 8.4
A148: 103 | B148: BMAKERS ROMAN BRICK - Kansas Sunset | C148: 336 | E148: 58.5 | F148: 290X90X47 | P148: 121 | Q148: VISTAPAVE GEO 60 ORA | R148: 228 | S148: 27 | T148: 190 | U148: x | V148: 190 | Y148: 2 | AA148: 8.4
A149: 104 | P149: 122 | Q149: VISTAPAVE GEO 60 TUX | R149: 228 | S149: 27 | T149: 190 | U149: x | V149: 190 | Y149: 2 | AA149: 8.4
A150: 105 | P150: 123
A151: 106 | P151: 124 | Q151: BGC EASIPAVE 60:-
A152: 107 | P152: 125 | Q152: PAVESTONE 60 | R152: 330 | S152: 38.1 | T152: 230 | U152: x | V152: 114 | Y152: 5 | AA152: 8.66
A153: 108 | P153: 126 | Q153: EASIPAVE 60 Charcoal | R153: 336 | S153: 40 | T153: 220 | U153: x | V153: 110 | Y153: 2 | AA153: 8.4
A154: 109 | P154: 127 | Q154: EASIPAVE 60 Silver | R154: 336 | S154: 40 | T154: 220 | U154: x | V154: 110 | Y154: 2 | AA154: 8.4
A155: 110 | P155: 128 | Q155: EASIPAVE 60 Sandstone | R155: 336 | S155: 40 | T155: 220 | U155: x | V155: 110 | Y155: 2 | AA155: 8.4
A156: 111 | P156: 129 | Q156: EASIPAVE 60 Terracotta | R156: 336 | S156: 40 | T156: 220 | U156: x | V156: 110 | Y156: 2 | AA156: 8.4
A157: 112 | P157: 130 | Q157: EASIPAVE 60 Grey | R157: 336 | S157: 40 | T157: 220 | U157: x | V157: 110 | Y157: 2 | AA157: 8.4
A158: 3 | B158: AUSTRAL- Leeuwin | C158: 264 | D158: 4 | E158: 50.5 | F158: 230x110x76 | P158: 131 | Q158: EASIPAVE 60 Capuccino | R158: 336 | S158: 40 | T158: 220 | U158: x | V158: 110 | Y158: 2 | AA158: 8.4
A159: 4 | B159: AUSTRAL- Prevelly Limestone | C159: 276 | D159: 4 | E159: 50.5 | F159: 230x110x76 | P159: 132 | Q159: EASIPAVE 60 Natural | R159: 336 | S159: 40 | T159: 220 | U159: x | V159: 110 | Y159: 2 | AA159: 8.4
A160: 5 | B160: AUSTRAL- Federation Limestone | C160: 264 | D160: 4 | E160: 50.5 | F160: 230x110x76 | P160: 133 | Q160: EASIPAVE 60 Mocha | R160: 336 | S160: 40 | T160: 220 | U160: x | V160: 110 | Y160: 2 | AA160: 8.4
A161: 6 | B161: AUSTRAL- French Brie | C161: 264 | D161: 4 | E161: 50.5 | F161: 230x110x76 | P161: 134 | Q161: EASIPAVE 60 Platinum | R161: 336 | S161: 40 | T161: 220 | U161: x | V161: 110 | Y161: 2 | AA161: 8.4
A162: 7 | B162: AUSTRAL- Chai Latte | C162: 264 | D162: 4 | E162: 50.5 | F162: 230x110x76 | P162: 135 | Q162: EASIPAVE 60 Autumn Blend | R162: 336 | S162: 40 | T162: 220 | U162: x | V162: 110 | Y162: 2 | AA162: 8.4
A163: 8 | B163: AUSTRAL- Praline | C163: 264 | D163: 4 | E163: 50.5 | F163: 230x110x76 | P163: 136 | Q163: EASIPAVE 60 Antique Blend | R163: 336 | S163: 40 | T163: 220 | U163: x | V163: 110 | Y163: 2 | AA163: 8.4
A164: 9 | B164: AUSTRAL- Muscatel | C164: 264 | D164: 4 | E164: 50.5 | F164: 230x110x76 | G164: TRUE | P164: 137
A165: 10 | B165: AUSTRAL- Fremantle (Sandfire) | C165: 264 | D165: 4 | E165: 50.5 | F165: 230x110x76 | G165: TRUE | P165: 138 | Q165: BGC FLAGSTONE 60:-
A166: 11 | B166: AUSTRAL- Hannan | C166: 264 | D166: 4 | E166: 50.5 | F166: 230x110x76 | G166: TRUE | P166: 139 | Q166: FLAGSTONE ORIG. 60 Charcoal | R166: 135 | S166: 18 | T166: 330 | U166: x | V166: 165 | Y166: 3 | AA166: 7.5
A167: 12 | B167: AUSTRAL- Kingston | C167: 264 | D167: 4 | E167: 50.5 | F167: 230x110x76 | G167: TRUE | P167: 140 | Q167: FLAGSTONE ORIG. 60 Grey | R167: 135 | S167: 18 | T167: 330 | U167: x | V167: 165 | Y167: 3 | AA167: 7.5
A168: 13 | B168: AUSTRAL- Carbide | C168: 264 | D168: 4 | E168: 50.5 | F168: 230x110x76 | P168: 141 | Q168: FLAGSTONE ORIG. 60 Silver | R168: 135 | S168: 18 | T168: 330 | U168: x | V168: 165 | Y168: 3 | AA168: 7.5
A169: 14 | B169: AUSTRAL- Red Smooth | C169: 264 | D169: 4 | E169: 50.5 | F169: 230x110x76 | G169: TRUE | P169: 142
A170: 15 | B170: AUSTRAL- Cream Smooth | C170: 264 | D170: 4 | E170: 50.5 | F170: 230x110x76 | P170: 143 | Q170: FLAGSTONE S/WASH 60 Charcoal | R170: 135 | S170: 18 | T170: 330 | U170: x | V170: 165 | Y170: 3 | AA170: 7.5
A171: 16 | B171: AUSTRAL- Jackson | C171: 264 | D171: 4 | E171: 50.5 | F171: 230x110x76 | P171: 144 | Q171: FLAGSTONE S/WASH 60 Grey | R171: 135 | S171: 18 | T171: 330 | U171: x | V171: 165 | Y171: 3 | AA171: 7.5
A172: 17 | B172: AUSTRAL- Menzies | C172: 264 | D172: 4 | E172: 50.5 | F172: 230x110x76 | G172: TRUE | P172: 145 | Q172: FLAGSTONE S/WASH 60 Silver | R172: 135 | S172: 18 | T172: 330 | U172: x | V172: 165 | Y172: 3 | AA172: 7.5
A173: 18 | B173: AUSTRAL- Mundaring Red | C173: 264 | D173: 4 | E173: 50.5 | F173: 230x110x76 | G173: TRUE | P173: 147
A174: 19 | B174: AUSTRAL- Leonora | C174: 264 | D174: 4 | E174: 50.5 | F174: 230x110x76 | G174: TRUE | P174: 148 | Q174: FLAGSTONE GRANITE 60 Arctic | R174: 135 | S174: 18 | T174: 330 | U174: x | V174: 165 | Y174: 3 | AA174: 7.5
A175: 20 | B175: AUSTRAL- Menzies Tumbled (Leveque) | C175: 264 | D175: 4 | E175: 50.5 | F175: 230x110x76 | G175: TRUE | P175: 149 | Q175: FLAGSTONE GRANITE 60 Chert | R175: 135 | S175: 18 | T175: 330 | U175: x | V175: 165 | Y175: 3 | AA175: 7.5
A176: 21 | B176: AUSTRAL- Mundaring Red Tumbled (Monte Bello) | C176: 264 | D176: 4 | E176: 50.5 | F176: 230x110x76 | G176: TRUE | P176: 150 | Q176: FLAGSTONE GRANITE 60 Pebble Beach | R176: 135 | S176: 18 | T176: 330 | U176: x | V176: 165 | Y176: 3 | AA176: 7.5
A177: 22 | B177: AUSTRAL- Leonora Tumbled | C177: 264 | D177: 4 | E177: 50.5 | F177: 230x110x76 | G177: TRUE | P177: 151 | Q177: FLAGSTONE GRANITE 60 Sea Mist | R177: 135 | S177: 18 | T177: 330 | U177: x | V177: 165 | Y177: 3 | AA177: 7.5
A178: 23 | P178: 152 | Q178: FLAGSTONE GRANITE 60 Storm Cloud | R178: 135 | S178: 18 | T178: 330 | U178: x | V178: 165 | Y178: 3 | AA178: 7.5
A179: 24 | B179: AUSTRAL- GOVERNORS RANGE | C179: 320 | D179: 4 | E179: 50.5 | F179: 230x110x76 | P179: 153 | Q179: FLAGSTONE GRANITE 60 Tundra | R179: 135 | S179: 18 | T179: 330 | U179: x | V179: 165 | Y179: 3 | AA179: 7.5
A180: 25 | P180: 154
A181: 26 | B181: AUSTRAL - ELEMENTS RANGE | C181: 264 | D181: 4 | E181: 50.5 | F181: 230x110x76 | P181: 155 | Q181: BGC GRANDPAVE 60 ORIGINAL:-
A182: 27 | P182: 156 | Q182: GRANDPAVE ORIGINAL 60 Cappuccino | R182: 72 | S182: 9 | T182: 330 | U182: x | V182: 330 | Y182: 3 | AA182: 8
A183: 28 | B183: AUSTRAL - BURLESQUE RANGE (pallets) | C183: 512 | D183: 512 | E183: 50.5 | F183: 230x110x76 | P183: 157 | Q183: GRANDPAVE ORIGINAL 60 Charcoal | R183: 72 | S183: 9 | T183: 330 | U183: x | V183: 330 | Y183: 3 | AA183: 8
A184: 29 | P184: 158 | Q184: GRANDPAVE ORIGINAL 60 Grey | R184: 72 | S184: 9 | T184: 330 | U184: x | V184: 330 | Y184: 3 | AA184: 8
A185: 30 | B185: AUSTRAL - BOWRAL RANGE (pallets) | C185: 512 | D185: 512 | E185: 50.5 | F185: 230x110x76 | P185: 159 | Q185: GRANDPAVE ORIGINAL 60 Mocha | R185: 72 | S185: 9 | T185: 330 | U185: x | V185: 330 | Y185: 3 | AA185: 8
A186: 31 | B186: NO SELECTION MADE | C186: 264 | P186: 160 | Q186: GRANDPAVE ORIGINAL 60 Natural | R186: 72 | S186: 9 | T186: 330 | U186: x | V186: 330 | Y186: 3 | AA186: 8
A187: 142 | P187: 161 | Q187: GRANDPAVE ORIGINAL 60 Sandstone | R187: 72 | S187: 9 | T187: 330 | U187: x | V187: 330 | Y187: 3 | AA187: 8
A188: 143 | P188: 162 | Q188: GRANDPAVE ORIGINAL 60 Silver | R188: 72 | S188: 9 | T188: 330 | U188: x | V188: 330 | Y188: 3 | AA188: 8
A189: 144 | P189: 163 | Q189: GRANDPAVE ORIGINAL 60 Terracptta | R189: 72 | S189: 9 | T189: 330 | U189: x | V189: 330 | Y189: 3 | AA189: 8
A190: 145 | P190: 164
P191: 165 | Q191: BGC GRANDPAVE 60 GRANITE:-
G192: TRUE | P192: 166 | Q192: GRANDPAVE GRANITE 60 Arctic | R192: 108 | S192: 9 | T192: 330 | U192: x | V192: 330 | Y192: 2 | AA192: 12
G193: TRUE | P193: 167 | Q193: GRANDPAVE GRANITE 60 Chert | R193: 108 | S193: 9 | T193: 330 | U193: x | V193: 330 | Y193: 2 | AA193: 12
P194: 168 | Q194: GRANDPAVE GRANITE 60 Pebble Beach | R194: 108 | S194: 9 | T194: 330 | U194: x | V194: 330 | Y194: 2 | AA194: 12
P195: 169 | Q195: GRANDPAVE GRANITE 60 Sea Mist | R195: 108 | S195: 9 | T195: 330 | U195: x | V195: 330 | Y195: 2 | AA195: 12
G196: TRUE | P196: 170 | Q196: GRANDPAVE GRANITE 60 Storm Cloud | R196: 108 | S196: 9 | T196: 330 | U196: x | V196: 330 | Y196: 2 | AA196: 12
Q197: GRANDPAVE GRANITE 60 Tundra | R197: 108 | S197: 9 | T197: 330 | U197: x | V197: 330 | Y197: 2 | AA197: 12
Q199: BGC GRANDPAVE 60 STONEWASH:-
Q200: GRANDPAVE STONEWASH 60 Charcoal | R200: 108 | S200: 9 | T200: 330 | U200: x | V200: 330 | Y200: 2 | AA200: 12
Q201: GRANDPAVE STONEWASH 60 Grey | R201: 108 | S201: 9 | T201: 330 | U201: x | V201: 330 | Y201: 2 | AA201: 12
Q202: GRANDPAVE STONEWASH 60 Silver | R202: 108 | S202: 9 | T202: 330 | U202: x | V202: 330 | Y202: 2 | AA202: 12
Q204: BGC HELENASTONE 60 STONEWASH:-
Q205: HELENASTONE STONEWASH 60 Charcoal | R205: 72 | S205: 6.25 | T205: 400 | U205: x | V205: 400 | Y205: 2 | AA205: 11.5
Q206: HELENASTONE STONEWASH 60 Grey | R206: 72 | S206: 6.25 | T206: 400 | U206: x | V206: 400 | Y206: 2 | AA206: 11.5
Q207: HELENASTONE STONEWASH 60 Silver | R207: 72 | S207: 6.25 | T207: 400 | U207: x | V207: 400 | Y207: 2 | AA207: 11.5

Sheet START UP
Q4: TANGENT SCHEDULING QUANTS
Q5: Version - 16/11/2018
J9: Job No: | O9: ='Main Details'!D6 -> 0 | T9: CLIENT: | V9: ='Main Details'!D7 -> 0
N10: Scheduler: | O10: ='Main Details'!Q3 -> 0 | T10: Date: | V10: ='Main Details'!Q4 -> 00:00:00

Sheet Main Details
B2: =INDEX(AR7:AR12,$AR$6) -> QUANTITY SHEET FOR EASY START HOMES | Q2: SCHEDULER | S2: PG 1
B3: JOB INFORMATION DETAIL SHEET | Q3: =INDEX('BUILDERS SETTINGS'!M7:M24,AR13) -> 0
I4: DATE:
D5: Answer Here | I5: Last VO #
B6: ENTER JOB NUMBER | AR6: 3
B7: ENTER CLIENTS SURNAME | AQ7: 1 | AR7: QUANTITY SHEET FOR SUMMIT HOMES
AQ8: 2 | AR8: QUANTITY SHEET FOR NEW GENERATION HOMES
B9: MAIN BRICK SELECTIONS | F9: 1c or 2c? | AQ9: 3 | AR9: QUANTITY SHEET FOR EASY START HOMES
F10: =IF(D40=0.23,"2c","1c") -> 2c | AQ10: 4 | AR10: QUANTITY SHEET FOR SUMMIT PROJECTS
B11: EXTERNAL SELECTION | D11: DON’T | H11: SELECT STD BRICK TYPE | K11: PK SIZE | L11: seq No | M11: lfs/pk | N11: no/m2 | O11: red brick/CLEAN | P11: size of block | T11: 250 cavity | U11: 250 internal | V11: 250 internal | W11: 230 cavity | X11: 230 internal | Y11: 230 internal | AQ11: 5 | AR11: QUANTITY SHEET FOR LIFESTYLE HOMES
B12: 1c Face Bricks | C12: =IF($E$12=TRUE,"Y","N") -> N | E12: FALSE | F12: =IF(G12=TRUE,"Y","N") -> Y | G12: TRUE | I12: =INDEX('BUILDERS BRICK SELECTION'!B5:B191,$L$12) -> MIDLAND- Burnished Red | K12: =IF(INDEX('BUILDERS BRICK SELECTION'!C5:C191,$L$12)=0," ",INDEX('BUILDERS BRICK SELECTION'!C5:C191,$L$12)) -> 264 | L12: 4 | M12: =IF(INDEX('BUILDERS BRICK SELECTION'!D5:D191,$L$12)=0," ",INDEX('BUILDERS BRICK SELECTION'!D5:D191,$L$12)) -> 4 | N12: =IF(INDEX('BUILDERS BRICK SELECTION'!E5:E191,$L$12)=0," ",INDEX('BUILDERS BRICK SELECTION'!E5:E191,$L$12)) -> 48.5 | O12: =IF(INDEX('BUILDERS BRICK SELECTION'!G5:G190,$L$12)=0," ",INDEX('BUILDERS BRICK SELECTION'!G5:G190,$L$12)) -> TRUE | P12: =IF(INDEX('BUILDERS BRICK SELECTION'!F5:F191,$L$12)=0," ",INDEX('BUILDERS BRICK SELECTION'!F5:F191,$L$12)) -> 230x110x76 | T12: ext m/g | U12: M.g | V12: plastering | W12: ext m/g | X12: M.g | Y12: plastering | AQ12: 6 | AR12: QUANTITY SHEET FOR SUMMIT HOMES BUNBURY
B13: Contrast 1c Face Bricks | C13: =IF($E$13=TRUE,"Y","N") -> N | E13: FALSE | F13: =IF(G13=TRUE,"Y","N") -> Y | G13: TRUE | I13: =INDEX('BUILDERS BRICK SELECTION'!B5:B191,$L$13) -> NO SELECTION MADE | K13: =IF(INDEX('BUILDERS BRICK SELECTION'!C5:C191,$L$13)=0," ",INDEX('BUILDERS BRICK SELECTION'!C5:C191,$L$13)) -> 264 | L13: 1 | M13: =IF(INDEX('BUILDERS BRICK SELECTION'!D5:D191,$L$13)=0," ",INDEX('BUILDERS BRICK SELECTION'!D5:D191,$L$13)) -> 4 | N13: =IF(INDEX('BUILDERS BRICK SELECTION'!E5:E191,$L$13)=0," ",INDEX('BUILDERS BRICK SELECTION'!E5:E191,$L$13)) -> 50.5 | O13: =IF(INDEX('BUILDERS BRICK SELECTION'!G5:G190,$L$13)=0," ",INDEX('BUILDERS BRICK SELECTION'!G5:G190,$L$13)) ->  | P13: =IF(INDEX('BUILDERS BRICK SELECTION'!F5:F191,$L$13)=0," ",INDEX('BUILDERS BRICK SELECTION'!F5:F191,$L$13)) -> 230x110x76 | AR13: 1
B14: 2c Render Blocks | C14: =IF($E$14=TRUE,"Y","N") -> Y | E14: TRUE | F14: =IF(G14=TRUE,"Y","N") -> N | G14: FALSE | I14: =INDEX('BUILDERS BRICK SELECTION'!I5:I25,$L$14) -> MIDLAND MAXIBRICK | K14: =IF(INDEX('BUILDERS BRICK SELECTION'!J5:J25,$L$14)=0," ",INDEX('BUILDERS BRICK SELECTION'!J5:J25,$L$14)) -> 138 | L14: 3 | M14: =IF(INDEX('BUILDERS BRICK SELECTION'!M5:M25,$L$14)=0," ",INDEX('BUILDERS BRICK SELECTION'!M5:M25,$L$14)) -> 3 | N14: =IF(INDEX('BUILDERS BRICK SELECTION'!K5:K25,$L$14)=0," ",INDEX('BUILDERS BRICK SELECTION'!K5:K25,$L$14)) -> 18.5 | P14: =IF(INDEX('BUILDERS BRICK SELECTION'!L5:L25,$L$14)=0," ",INDEX('BUILDERS BRICK SELECTION'!L5:L25,$L$14)) -> 305x90x162 | T14: =IF(D40=0.25,S14*-0.11,0) -> 0 | U14: =S14*-0.41 -> 0 | V14: =$S$14*-0.5 -> 0 | W14: =$S$14*-0.09 -> 0 | X14: =$S$14*-0.37 -> 0 | Y14: =$S$14*-0.46 -> 0
B15: 1c Rendered Longreach | C15: =IF($E15=TRUE,"Y","N") -> Y | E15: TRUE | F15: N | G15: FALSE | I15: =INDEX('BUILDERS BRICK SELECTION'!I31:I45,$L$15) -> MIDLAND LONGREACH | K15: =IF(INDEX('BUILDERS BRICK SELECTION'!J31:J45,$L$15)=0," ",INDEX('BUILDERS BRICK SELECTION'!J31:J45,$L$15)) -> 252 | L15: 3 | M15: =IF(INDEX('BUILDERS BRICK SELECTION'!M31:M45,$L$15)=0," ",INDEX('BUILDERS BRICK SELECTION'!M31:M45,$L$15)) -> 3 | N15: =IF(INDEX('BUILDERS BRICK SELECTION'!K31:K45,$L$15)=0," ",INDEX('BUILDERS BRICK SELECTION'!K31:K45,$L$15)) -> 37 | P15: =IF(INDEX('BUILDERS BRICK SELECTION'!L31:L45,$L$15)=0," ",INDEX('BUILDERS BRICK SELECTION'!L31:L45,$L$15)) -> 305x90x76 | T15: =IF(D40=0.25,S15*0.11,0) -> 0 | U15: =S15*0.41 -> 0 | V15: =$S$15*0.5 -> 0 | W15: =$S$15*0.09 -> 0 | X15: =$S$15*0.37 -> 0 | Y15: =$S$15*0.46 -> 0
B16: 1c Rendered Commons | C16: =IF($E16=TRUE,"Y","N") -> N | E16: FALSE | F16: Y | G16: TRUE | I16: =INDEX('BUILDERS BRICK SELECTION'!I74:I83,$L$16) -> NO SELECTION MADE | K16: =IF(INDEX('BUILDERS BRICK SELECTION'!J74:J81,$L$16)=0," ",INDEX('BUILDERS BRICK SELECTION'!J74:J81,$L$16)) -> 264 | L16: 1 | M16: =IF(INDEX('BUILDERS BRICK SELECTION'!M74:M83,$L$16)=0," ",INDEX('BUILDERS BRICK SELECTION'!M74:M83,$L$16)) ->  | N16: =IF(INDEX('BUILDERS BRICK SELECTION'!K74:K83,$L$16)=0," ",INDEX('BUILDERS BRICK SELECTION'!K74:K83,$L$16)) ->  | P16: =IF(INDEX('BUILDERS BRICK SELECTION'!L74:L83,$L$16)=0," ",INDEX('BUILDERS BRICK SELECTION'!L74:L83,$L$16)) ->  | T16: =IF(D40=0.25,S16*-0.046,0) -> 0 | U16: =S16*-0.17 -> 0 | V16: =$S$16*-0.208 -> 0 | W16: =$S$16*-0.038 -> 0 | X16: =$S$16*-0.154 -> 0 | Y16: =$S$16*-0.19 -> 0
B17: 2nd Contrast 1c Face Blocks | C17: =IF($E17=TRUE,"Y","N") -> N | E17: FALSE | F17: Y | G17: TRUE | I17: =INDEX('BUILDERS BRICK SELECTION'!L87:L152,$L$17) -> 0 | K17: =IF(INDEX('BUILDERS BRICK SELECTION'!C5:C191,$L$17)=0," ",INDEX('BUILDERS BRICK SELECTION'!C5:C191,$L$17)) -> 264 | L17: 1 | M17: =IF(INDEX('BUILDERS BRICK SELECTION'!D5:D191,$L$17)=0," ",INDEX('BUILDERS BRICK SELECTION'!D5:D191,$L$17)) -> 4 | N17: =IF(INDEX('BUILDERS BRICK SELECTION'!E5:E191,$L$17)=0," ",INDEX('BUILDERS BRICK SELECTION'!E5:E191,$L$17)) -> 50.5 | O17: =IF(INDEX('BUILDERS BRICK SELECTION'!G187:G216,$L$17)=0," ",INDEX('BUILDERS BRICK SELECTION'!G187:G216,$L$17)) ->  | P17: =IF(INDEX('BUILDERS BRICK SELECTION'!F5:F191,$L$17)=0," ",INDEX('BUILDERS BRICK SELECTION'!F5:F191,$L$17)) -> 230x110x76 | T17: =IF(D40=0.25,S17*0.046,0) -> 0 | U17: =S17*0.17 -> 0 | V17: =$S$17*0.208 -> 0 | W17: =$S$17*0.038 -> 0 | X17: =$S$17*0.154 -> 0 | Y17: =$S$17*0.19 -> 0
B18: 2c Face Blocks | C18: =IF($E18=TRUE,"Y","N") -> Y | E18: TRUE | F18: N | G18: FALSE | I18: =INDEX('BUILDERS BRICK SELECTION'!I87:I152,$L$18) -> NO SELECTION MADE | K18: =IF(INDEX('BUILDERS BRICK SELECTION'!J87:J152,$L$18)=0," ",INDEX('BUILDERS BRICK SELECTION'!J87:J152,$L$18)) -> 138 | L18: 1 | M18: =IF(INDEX('BUILDERS BRICK SELECTION'!M87:M150,$L$18)=0," ",INDEX('BUILDERS BRICK SELECTION'!M87:M150,$L$18)) ->  | N18: =IF(INDEX('BUILDERS BRICK SELECTION'!K87:K150,$L$18)=0," ",INDEX('BUILDERS BRICK SELECTION'!K87:K150,$L$18)) ->  | O18: =IF(INDEX('BUILDERS BRICK SELECTION'!G187:G216,$L$18)=0," ",INDEX('BUILDERS BRICK SELECTION'!G187:G209,$L$18)) ->  | P18: =IF(INDEX('BUILDERS BRICK SELECTION'!L87:L150,$L$18)=0," ",INDEX('BUILDERS BRICK SELECTION'!L87:L150,$L$18)) -> 
B19: INTERNAL SELECTION | K19: =IF(INDEX('BUILDERS BRICK SELECTION'!N88:N153,$L$18)=0," ",INDEX('BUILDERS BRICK SELECTION'!N88:N153,$L$18)) ->  | M19: =IF(INDEX('BUILDERS BRICK SELECTION'!M89:M152,$L$18)=0," ",INDEX('BUILDERS BRICK SELECTION'!M89:M152,$L$18)) -> 3
B20: 1c Face Bricks | C20: =IF($E20=TRUE,"Y","N") -> N | E20: FALSE | F20: =IF(G20=TRUE,"Y","N") -> Y | G20: TRUE | I20: =INDEX('BUILDERS BRICK SELECTION'!B5:B191,$L$20) -> NO SELECTION MADE | K20: =IF(INDEX('BUILDERS BRICK SELECTION'!C5:C191,$L$20)=0," ",INDEX('BUILDERS BRICK SELECTION'!C5:C191,$L$20)) -> 264 | L20: 1 | M20: =IF(INDEX('BUILDERS BRICK SELECTION'!D5:D191,$L$20)=0," ",INDEX('BUILDERS BRICK SELECTION'!D5:D191,$L$20)) -> 4 | N20: =IF(INDEX('BUILDERS BRICK SELECTION'!E5:E191,$L$20)=0," ",INDEX('BUILDERS BRICK SELECTION'!E5:E191,$L$20)) -> 50.5 | O20: =IF(INDEX('BUILDERS BRICK SELECTION'!G5:G190,$L$20)=0," ",INDEX('BUILDERS BRICK SELECTION'!G5:G190,$L$20)) ->  | P20: =IF(INDEX('BUILDERS BRICK SELECTION'!F5:F186,$L$20)=0," ",INDEX('BUILDERS BRICK SELECTION'!F5:F195,$L$20)) -> 230x110x76 | T20: =IF(D40=0.25,$D$37+(T14+T15+T16+T17),0) -> 0 | U20: =IF(D40=0.25,$D$37+(U14+U15+U16+U17),0) -> 0 | V20: =IF(D40=0.25,$D$37+(V14+V15+V16+V17),0) -> 0 | W20: =IF(D40=0.23,$D$37+(W14+W15+W16+W17),0) -> 0 | X20: =IF(D40=0.23,$D$37+(X14+X15+X16+X17),0) -> 0 | Y20: =IF(D40=0.23,$D$37+(Y14+Y15+Y16+Y17),0) -> 0
B21: 2c Render Blocks | C21: =IF($E21=TRUE,"Y","N") -> Y | E21: TRUE | F21: =IF(G21=TRUE,"Y","N") -> N | G21: FALSE | I21: =INDEX('BUILDERS BRICK SELECTION'!I5:I25,$L$21) -> NO SELECTION MADE | K21: =IF(INDEX('BUILDERS BRICK SELECTION'!J5:J25,$L$21)=0," ",INDEX('BUILDERS BRICK SELECTION'!J5:J25,$L$21)) -> 132 | L21: 1 | M21: =IF(INDEX('BUILDERS BRICK SELECTION'!M5:M25,$L$21)=0," ",INDEX('BUILDERS BRICK SELECTION'!M5:M25,$L$21)) ->  | N21: =IF(INDEX('BUILDERS BRICK SELECTION'!K5:K25,$L$21)=0," ",INDEX('BUILDERS BRICK SELECTION'!K5:K25,$L$21)) ->  | P21: =IF(INDEX('BUILDERS BRICK SELECTION'!L5:L25,$L$21)=0," ",INDEX('BUILDERS BRICK SELECTION'!L5:L25,$L$21)) -> 
B22: 1c Rendered Longreach | C22: =IF($E22=TRUE,"Y","N") -> Y | E22: TRUE | F22: =IF(G22=TRUE,"Y","N") -> N | G22: FALSE | I22: =INDEX('BUILDERS BRICK SELECTION'!I31:I45,$L$22) -> NO SELECTION MADE | K22: =IF(INDEX('BUILDERS BRICK SELECTION'!J31:J45,$L$22)=0," ",INDEX('BUILDERS BRICK SELECTION'!J31:J45,$L$22)) -> 252 | L22: 1 | M22: =IF(INDEX('BUILDERS BRICK SELECTION'!M31:M45,$L$22)=0," ",INDEX('BUILDERS BRICK SELECTION'!M31:M45,$L$22)) ->  | N22: =IF(INDEX('BUILDERS BRICK SELECTION'!K31:K45,$L$22)=0," ",INDEX('BUILDERS BRICK SELECTION'!K31:K45,$L$22)) ->  | P22: =IF(INDEX('BUILDERS BRICK SELECTION'!L31:L45,$L$22)=0," ",INDEX('BUILDERS BRICK SELECTION'!L31:L45,$L$22)) -> 
B23: 1c Rendered Commons | C23: =IF($E23=TRUE,"Y","N") -> N | E23: FALSE | F23: =IF(G23=TRUE,"Y","N") -> Y | G23: TRUE | I23: =INDEX('BUILDERS BRICK SELECTION'!I74:I83,$L$23) -> NO SELECTION MADE | K23: =IF(INDEX('BUILDERS BRICK SELECTION'!J74:J83,$L$23)=0," ",INDEX('BUILDERS BRICK SELECTION'!J74:J83,$L$23)) -> 264 | L23: 1 | M23: =IF(INDEX('BUILDERS BRICK SELECTION'!M74:M83,$L$23)=0," ",INDEX('BUILDERS BRICK SELECTION'!M74:M83,$L$23)) ->  | N23: =IF(INDEX('BUILDERS BRICK SELECTION'!K74:K83,$L$23)=0," ",INDEX('BUILDERS BRICK SELECTION'!K74:K83,$L$23)) ->  | P23: =IF(INDEX('BUILDERS BRICK SELECTION'!L74:L83,$L$23)=0," ",INDEX('BUILDERS BRICK SELECTION'!L74:L83,$L$23)) -> 
B26: General Questions…
B28: Tiled Roof='Y' Colorbond = 'N' | C28: =IF(E28=TRUE,"Y","N") -> N | E28: FALSE | F28: =IF(G28=TRUE,"Y","N") -> Y | G28: TRUE
B29: Coastal Areas | C29: =IF(E29=TRUE,"Y","N") -> N | E29: FALSE | F29: =IF(G29=TRUE,"Y","N") -> Y | G29: TRUE
B30: Half Bond='Y' Third Bond = 'N' | C30: =IF(E30=TRUE,"Y","N") -> N | E30: FALSE | F30: =IF(G30=TRUE,"Y","N") -> Y | G30: TRUE
B31: Timber Roof = 'Y' Metal Truss = 'N' | E31: FALSE | F31: =IF(G31=TRUE,"Y","N") -> Y | G31: TRUE
B32: Areas Single Storey | D32: m2
B33: Ground Floor Area:
B34: Garage Floor Area:
B35: Flat Roof Area:
B36: Perimeters/lengths | D36: l/m
B37: House Perimeter
B38: Internal Partition Wall Length
B39: Flat Roof Perimeter
B40: Main Cavity Width (.250 or .230) | D40: 0.23
D41: =D40 -> 0.23
B45: Garage / House Wall Length
B46: Garage / House Wall Width | D46: 0.09 | E46: ddt add for ceiling | G46: =D40-D46 -> 0.14
B48: Garage Perimeter LM | H48: Note - Does not include Piers,
B49: Double Brick Boundary Length
B50: Double Brick Boundary Height | E50: =D49*D50 -> 0
B54: =D7 -> 0

Sheet Concrete & Reo
B2: ='Main Details'!B2 -> QUANTITY SHEET FOR EASY START HOMES | M2: PG 2
B3: ='Main Details'!D6 -> 0
B4: CONCRETOR SINGLE STOREY
B5: SLAB TYPE | C5: Prompt | D5: (Note: Only Guides! Overwrite if Required as per Engineer/Shire Requirements)
B6: SLAB THICKNESS | C6: =(VLOOKUP($C$5,'BUILDERS SETTINGS'!D72:F84,3,0)) ->  | D6: mm
B7: MESH | C7: CERTS | D7: Select Mesh Below
B8: FOOTING / L/M | C8: =(VLOOKUP($C$5,'BUILDERS SETTINGS'!D71:L84,9,0)) -> 0 | D8: (cubic)
B9: TRENCH MESH | C9: =(VLOOKUP($C$5,'BUILDERS SETTINGS'!D42:M89,10,0)) -> 0
B10: FOOTINGS: | H10: SLAB:
B11: Ext per Footing | C11: ='Main Details'!D37 -> 0 | D11: l/m x | E11: =C8 -> 0 | F11: = | G11: =IF(C11*E11>0,C11*E11," ") ->  | H11: Slab: | I11: ='Main Details'!D33 -> 0 | J11: Sq/m x | K11: =C6/1000 ->  | L11: = | M11: =IF(I11*K11>0,I11*K11," ") -> 
D12: No x | F12: = | J12: L/m x | L12: = | M12: =IF(I12*K12>0,I12*K12," ") -> 
B13: 2c step footing | D13: No x | E13: 0.02 | F13: = | H13: 2c Step Down | J13: L/m x | K13: 0.04 | L13: =
B14: 4c step footing | D14: No x | E14: 0.04 | F14: = | H14: 4c Step Down | J14: L/m x | K14: 0.07 | L14: =
B15: 6c step footing | D15: No x | E15: 0.06 | F15: = | H15: 6c Step Down | J15: L/m x | K15: 0.11 | L15: = | M15: =IF(I15*K15>0,I15*K15," ") -> 
D16: No x | F16: = | J16: L/m x | L16: = | M16: =IF(I16*K16>0,I16*K16," ") -> 
B17: Garage Perimeter | C17: ='Main Details'!D48 -> 0 | D17: l/m x | E17: =C8 -> 0 | F17: = | G17: =IF(C17*E17>0,C17*E17," ") ->  | J17: L/m x | L17: =
B18: FP1 | D18: No x | F18: = | H18: Thickenings (No T/M) | J18: L/m x | L18: =
B19: FP2 | D19: No x | F19: = | J19: L/m x | L19: =
B20: FP3 | D20: No x | F20: = | H20: Slab Edge Thickenings | I20: ='Main Details'!D37 -> 0 | J20: L/m x | K20: 0.019 | L20: =
B21: FP4 | D21: No x | F21: = | H21: Thickenings (incl. T/M) | J21: L/m x | L21: =
B22: FP5 | D22: No x | F22: = | K22: Subtotal | L22: = | M22: =IF((SUM(M11:M21))>0,SUM(M11:M21)," ") -> 
B23: SF1 | D23: l/m x | F23: =
B24: SF2 | D24: l/m x | F24: = | H24: NUMBER OF SLAB PUMPS | L24: = | M24: 1 | O24: 0.6
F25: =
F26: =F24 -> = | K26: Labour Slab | L26: = | M26: =IF(M22=" "," ",(INT(((M22*100)+20)/20)*20)/100) -> 
F27: = | H27: ADD | I27: Concrete Slab Supply | L27: = | M27: =IF(M26=" "," ",(INT(((N27*100)+20)/20)*20)/100)+M24 ->  | N27: =IF($M$22=" "," ",($M$22*$H$29)+$M$22) -> 
F28: = | H28: Wastage Percentage
B29: Deductions | D29: l/m x | F29: = | G29: =IF(C29*E29>0,C29*E29,"0") -> 0 | H29: 0.03
E30: Subtotal | F30: = | G30: =IF((SUM(G11:G29))>0,SUM(G11:G28,-G29)," ") -> 
B32: NUMBER OF FOOTING PUMPS | F32: = | G32: 1 | H32: TOTAL LABOUR CONCRETE m3 | L32: = | M32: =IF(AND('Main Details'!D33>0,'Main Details'!D37>0),G34+M26," ") -> 
H33: =IF($G$30=" "," ",$G$30+($G$30*$H$29)) -> 
B34: Labour Footings | F34: = | G34: =IF(G30=" "," ",(INT(((G30*100)+20)/20)*20)/100) ->  | H34: TOTAL CONCRETE SUPPLY m3 | L34: = | M34: =IF(AND('Main Details'!D33>0,'Main Details'!D37>0),G35+M27," ") -> 
B35: Concrete Footing Supply | F35: = | G35: =IF(H33=" "," ",(INT(((H33*100)+20)/20)*20)/100)+G32 -> 
B37: REINFORCEMENT
C38: Qty | D38: Unit
B39: Z Bars (N12 Ties) | D39: No
B40: Trench Mesh (select) | C40: =IF(C9="Yes",SUM(C11*G41)+I21+SUM(C17*G40))+IF(C9="NO",0) -> 0 | D40: L/m - | E40: (Includes) | G40: 0 | H40: (select) Rows To Garage Perimeter | K40: =IF(C40=0," ",((C40+0.5)/5.5)) -> 
B41: Total Trench Mesh Sheets | C41: =IF(K40=" ","0 ",(ROUNDUP($K$40/1,0)*1)+1) -> 0 | D41: No | G41: 0 | H41: (select) Rows To House Perimeter
B43: Re-entrant Bars
B46: Additional Sheets as per engs | D46: m2
B47: Mesh Sheets Required | C47: =ROUNDUP(SUM(C49/12+(C46/12))+1,0) -> 1 | D47: Sheets
B48: Bar Chairs | C48: =(MROUND($K$54/100,1)*100)/100 -> 0 | D48: Bags
B49: SLABMESH - NO SELECTION | C49: =I11 -> 0 | D49: M2
C53: E/O Slab Mesh (select) | G53: 0 | H53: Trench Mesh (select)
C54: SL52 Mesh | G54: 1 | H54: L8 Trench Mesh (200mm) | K54: =C47*24+C41*8 -> 24
C55: SL53 Mesh | G55: 2 | H55: L8 Trench Mesh (300mm)
C56: SL63 Mesh | H56: L11 Trench Mesh (200mm)
C57: SL62 Mesh
C58: SL72 Mesh
C59: SL82 Mesh
C60: SL92 Mesh

Sheet Internal deductions & int walls
B2: ='Main Details'!B2 -> QUANTITY SHEET FOR EASY START HOMES | R2: PG 3 | T2: INTERNAL FACE DEDUCTIONS | AD2: PG 3
B3: ='Main Details'!D6 -> 0
A4: DOOR OPENING. DEDUCTIONS
D6: Broad Butt Hinges | L6: Rod LM | N6: INTERNAL PARTITION WALLS | Z6: INTERNAL WALLS (FACE BRICKWORK):-
B7: INTERNALMETAL FRAME | D7: Extra Hinges | L7: Internal | Z7: Horizontal: | AB7: Vertical: | AD7: Diagonal:
B8: LH | C8: STD D/JAMBS 90mm | E8: RH | F8: DDT | H8: longreach m2 | L8: Openings | T8: Left Hand | U8: STD 110mm back D.jamb | W8: Right hand | X8: deduct
C9: 2040x920mm | F9: =IF(I9=0,"",I9) ->  | G9: =_xlfn.IFNA(VLOOKUP(C9,$B$54:$C$78,2,FALSE),"") -> 1.8768 | H9: =(B9+E9)*_xlfn.IFNA(VLOOKUP(C9,$B$54:$E$77,3,FALSE),"")*0.086 -> 0 | I9: =(B9+$E9)*G9 -> 0 | J9: =_xlfn.IFNA(VLOOKUP(C9,$B$54:$E$77,3,FALSE),"") -> 0.92 | K9: =(B9+E9)*J9 -> 0 | L9: =K9+(B9+E9)*1.5 -> 0
C10: 2040x820mm | F10: =IF(I10=0,"",I10) ->  | G10: =_xlfn.IFNA(VLOOKUP(C10,$B$54:$C$78,2,FALSE),"") -> 1.6728 | H10: =(B10+E10)*_xlfn.IFNA(VLOOKUP(C10,$B$54:$E$77,3,FALSE),"")*0.086 -> 0 | I10: =(B10+$E10)*G10 -> 0 | J10: =_xlfn.IFNA(VLOOKUP(C10,$B$54:$E$77,3,FALSE),"") -> 0.82 | K10: 0 | L10: =K10+(B10+E10)*1.5 -> 0 | U10: 2060x820mm | X10: =(T10+W10)*1.67 -> 0
C11: 2040x720mm | F11: =IF(I11=0,"",I11) ->  | G11: =_xlfn.IFNA(VLOOKUP(C11,$B$54:$C$78,2,FALSE),"") -> 1.4688 | H11: =(B11+E11)*_xlfn.IFNA(VLOOKUP(C11,$B$54:$E$77,3,FALSE),"")*0.086 -> 0 | I11: 0 | J11: 0.72 | K11: 0 | L11: 0 | U11: 2060x720mm | X11: =(T11+W11)*1.43 -> 0
C12: 2040x620mm | F12: =IF(I12=0,"",I12) ->  | G12: =_xlfn.IFNA(VLOOKUP(C12,$B$54:$C$78,2,FALSE),"") -> 1.2648 | H12: =(B12+E12)*_xlfn.IFNA(VLOOKUP(C12,$B$54:$E$77,3,FALSE),"")*0.086 -> 0 | I12: 0 | J12: 0.62 | K12: 0 | L12: 0 | U12: 2060x620mm | X12: =(T12+W12)*1.26 -> 0
C13: 2040x520mm | F13: =IF(I13=0,"",I13) ->  | G13: =_xlfn.IFNA(VLOOKUP(C13,$B$54:$C$78,2,FALSE),"") -> 1.0608 | H13: =(B13+E13)*_xlfn.IFNA(VLOOKUP(C13,$B$54:$E$77,3,FALSE),"")*0.086 -> 0 | I13: 0 | J13: 0.52 | K13: 0 | L13: 0
L14: 0
C15: 2040x920mm WC | G15: =_xlfn.IFNA(VLOOKUP(C15,$B$54:$C$78,2,FALSE),"") -> 1.8768 | H15: =(B15+E15)*_xlfn.IFNA(VLOOKUP(C15,$B$54:$E$77,3,FALSE),"")*0.086 -> 0 | I15: 0 | J15: 0.92 | K15: 0 | L15: 0 | U15: 2060x520mm | X15: =(T15+W15)*1.06 -> 0
C16: 2040x820mm WC | G16: =_xlfn.IFNA(VLOOKUP(C16,$B$54:$C$78,2,FALSE),"") -> 1.6728 | H16: =(B16+E16)*_xlfn.IFNA(VLOOKUP(C16,$B$54:$E$77,3,FALSE),"")*0.086 -> 0 | I16: 0 | J16: 0.82 | K16: 0 | L16: 0 | U16: 2060x620mm W.C | X16: =(T16+W16)*1.26 -> 0
C17: 2040x720mm WC | G17: =_xlfn.IFNA(VLOOKUP(C17,$B$54:$C$78,2,FALSE),"") -> 1.4688 | H17: =(B17+E17)*_xlfn.IFNA(VLOOKUP(C17,$B$54:$E$77,3,FALSE),"")*0.086 -> 0 | I17: 0 | J17: 0.72 | K17: 0 | L17: 0
C18: 2040x620mm WC | G18: =_xlfn.IFNA(VLOOKUP(C18,$B$54:$C$78,2,FALSE),"") -> 1.2648 | H18: =(B18+E18)*_xlfn.IFNA(VLOOKUP(C18,$B$54:$E$77,3,FALSE),"")*0.086 -> 0 | I18: 0 | J18: 0.62 | K18: 0 | L18: 0
B19: EXTERNAL METAL FRAME | I19: =SUM(I9:I18) -> 0
B20: LH | C20: STD D/JAMBS 90mm | E20: RH | F20: DDT
C21: DELUXE 3 HINGE 2040x820 | F21: =IF(I21=0,"",I21) ->  | G21: =_xlfn.IFNA(VLOOKUP(C21,$F$54:$N$62,4,FALSE),"0") -> 1.6728 | H21: =(B21+E21)*_xlfn.IFNA(VLOOKUP(C21,$F$54:$J$62,5,FALSE),"0")*0.086 -> 0 | I21: =(B21+E21)*G21 -> 0 | J21: =_xlfn.IFNA(VLOOKUP(C21,$F$54:$J$62,5,FALSE),"") -> 0.82 | K21: =(B21+E21)*J21 -> 0 | L21: 0
C22: DELUXE 3 HINGE 2040x870 | F22: =IF(I22=0,"",I22) ->  | G22: =_xlfn.IFNA(VLOOKUP(C22,$F$54:$N$62,4,FALSE),"0") -> 1.7748 | H22: =(B22+E22)*_xlfn.IFNA(VLOOKUP(C22,$F$54:$J$62,5,FALSE),"0")*0.086 -> 0 | I22: =(B22+E22)*G22 -> 0 | J22: =_xlfn.IFNA(VLOOKUP(C22,$F$54:$J$62,5,FALSE),"") -> 0.87 | K22: =B22+E22*J22 -> 0 | L22: 0
C23: DELUXE 3 HINGE 2040x920 | G23: =_xlfn.IFNA(VLOOKUP(C23,$F$54:$N$62,4,FALSE),"0") -> 1.8768 | H23: =(B23+E23)*_xlfn.IFNA(VLOOKUP(C23,$F$54:$J$62,5,FALSE),"0")*0.086 -> 0 | I23: =(B23+E23)*G23 -> 0 | J23: =_xlfn.IFNA(VLOOKUP(C23,$F$54:$J$62,5,FALSE),"") -> 0.92 | K23: =B23+E23*J23 -> 0 | L23: 0 | U23: 2060x520mm | X23: =(T23+W23)*1.06 -> 0
C24: SQUARE BEND 2040x820 | G24: =_xlfn.IFNA(VLOOKUP(C24,$F$54:$N$62,4,FALSE),"0") -> 1.6728 | H24: =(B24+E24)*_xlfn.IFNA(VLOOKUP(C24,$F$54:$J$62,5,FALSE),"0")*0.086 -> 0 | I24: 0 | J24: =_xlfn.IFNA(VLOOKUP(C24,$F$54:$J$62,5,FALSE),"") -> 0.82 | K24: 0 | L24: 0 | U24: 2060x620mm W.C | X24: =(T24+W24)*1.26 -> 0
G25: =_xlfn.IFNA(VLOOKUP(C25,$F$54:$N$62,4,FALSE),"0") -> 0 | H25: =(B25+E25)*_xlfn.IFNA(VLOOKUP(C25,$F$54:$J$62,5,FALSE),"0")*0.086 -> 0 | I25: 0 | J25: =_xlfn.IFNA(VLOOKUP(C25,$F$54:$J$62,5,FALSE),"") ->  | L25: 0 | AG25: SQUARE BEND FRAMES IN PRICE BOOK
I26: =SUM(I21:I25) -> 0 | K26: =SUM(K21:K25) -> 0 | L26: =SUM(L9:L25) -> 0 | AG26: Manually add openings and m2
B27: SLIDING / DOUBLE DOOR FRAMES | V27: x | X27: =U27*W27 -> 0
C28: STD D/JAMBS 90mm | E28: No | F28: DDT
B29: 2040x620 SLIDER | F29: =IF(I29=0,"",I29) ->  | G29: =_xlfn.IFNA(VLOOKUP(B29,$H$68:$N$86,2,FALSE),"") -> 1.2648 | H29: =(VLOOKUP(B29,$H$68:$N$86,3,0))*0.086 -> 0.05332 | I29: =(VLOOKUP(B29,$H$68:$N$86,2,0))*D29 -> 0 | N29: TOTAL INTERNAL WALL LENGTHS | R29: =SUM(N8:R26) -> 0 | V29: x | X29: 0
B30: 2040x720 SLIDER | F30: =IF(I30=0,"",I30) ->  | G30: =_xlfn.IFNA(VLOOKUP(B30,$H$68:$N$86,2,FALSE),"") -> 1.4688 | H30: =(VLOOKUP(B30,$H$68:$N$86,3,0))*0.086 -> 0.06192 | I30: =(VLOOKUP(B30,$H$68:$N$86,2,0))*D30 -> 0 | V30: x | X30: 0 | Z30: Total: | AA30: =SUM(Z27:Z29)+SUM(AA27:AA29) -> 0 | AB30: Total: | AC30: =SUM(AB27:AB29)+SUM(AC27:AC29) -> 0 | AD30: =SUM(AD27:AD29) -> 0
B31: DELUXE 2 HINGES 2040x1040 | F31: =IF(I31=0,"",I31) ->  | G31: =_xlfn.IFNA(VLOOKUP(B31,$H$68:$N$86,2,FALSE),"") -> 2.1216 | H31: =(VLOOKUP(B31,$H$68:$N$86,3,0))*0.086 -> 0.08944 | I31: =(VLOOKUP(B31,$H$68:$N$86,2,0))*D31 -> 0 | V31: x | X31: 0
B32: DELUXE 2 HINGES 2040x1440 | G32: =_xlfn.IFNA(VLOOKUP(B32,$H$68:$N$86,2,FALSE),"") -> 2.9376 | H32: =(VLOOKUP(B32,$H$68:$N$86,3,0))*0.086 -> 0.12384 | I32: =(VLOOKUP(B32,$H$68:$N$86,2,0))*D32 -> 0 | V32: x | X32: 0 | Z32: TOT 110mm FACE INT= | AC32: LM | AD32: =SUM(AA30+AC30+AD30) -> 0
I33: =SUM(I29:I32) -> 0
B34: SPECIAL DEDUCTIONS INTERNAL BLOCKS
B35: Description | C35: length | D35: x | E35: width | F35: DDT
B36: 25c high openings | D36: x | E36: 2.143 | F36: =C36*E36 -> 0
B37: 27c high openings | D37: x | E37: 2.314 | F37: 0
B38: 28c high openings | D38: x | E38: 2.4 | F38: 0
D39: x | F39: 0
B40: Cornice Through | D40: x | F40: 0
D41: x | F41: 0
C43: TOTAL DDT INT ROUGH | D43: = | E43: =I19+I33+SUM(F36:F41) -> 0 | F43: m2 | U43: TOTAL DDT INT FACE | V43: = | W43: =SUM(X10:X16)+SUM(#REF!)+SUM(X27:X32) ->  | X43: m2
C44: TOTAL DDT EXT FACE | D44: = | E44: =I26 -> 0 | F44: m2
C45: Total Deductions | D45: = | E45: =E43+E44 -> 0
B51: STD D/JAMBS 90mm
B52: STD D/JAMBS 110mm
B53: 0 | G53: External Face
B54: 2040x920mm | C54: =2.04*0.92 -> 1.8768 | D54: 0.92 | F54: DELUXE 3 HINGE 2040x820 | I54: =C57 -> 1.6728 | J54: 0.82
B55: 2340x920mm | C55: =2.34*0.92 -> 2.1528 | D55: 0.92 | F55: DELUXE 3 HINGE 2040x870 | I55: =2.04*0.87 -> 1.7748 | J55: 0.87
F56: DELUXE 3 HINGE 2040x920 | I56: =C54 -> 1.8768 | J56: 0.92
B57: 2040x820mm | C57: =2.04*0.82 -> 1.6728 | D57: 0.82 | F57: SQUARE BEND 2040x820 | I57: =C57 -> 1.6728 | J57: 0.82
B58: 2340x820mm | C58: =2.34*0.82 -> 1.9188 | D58: 0.82 | F58: SQUARE BEND 2040x720 | I58: =C60 -> 1.4688 | J58: 0.92
F59: DELUXE 3 HINGE 2340x920 | I59: =C74 -> 2.1528 | J59: 0.92
B60: 2040x720mm | C60: =2.04*0.72 -> 1.4688 | D60: 0.72 | F60: DELUXE 3 HINGE 2340x820 | I60: =C75 -> 1.9188 | J60: 0.82
B61: 2340x720mm | C61: =2.34*0.72 -> 1.6848 | D61: 0.72 | F61: DELUXE 3 HINGE 2340x720 | I61: =C76 -> 1.6848 | J61: 0.72
F62: DELUXE 3 HINGE 2340x720 | I62: 1.4508 | J62: 0.62
B63: 2040x620mm | C63: =2.04*0.62 -> 1.2648 | D63: 0.62
B64: 2340x620mm | C64: =2.34*0.62 -> 1.4508 | D64: 0.62
B66: 2040x520mm | C66: =2.04*0.52 -> 1.0608 | D66: 0.52 | G66: Internal Sliding/Double frames
B67: 2340x520mm | C67: =2.34*0.52 -> 1.2168 | D67: 0.52
H68: 2040x620 SLIDER | I68: =C63 -> 1.2648 | J68: 0.62
B69: 2040x920mm WC | C69: =C54 -> 1.8768 | D69: 0.92 | H69: 2040x720 SLIDER | I69: =C60 -> 1.4688 | J69: 0.72
B70: 2040x820mm WC | C70: =C57 -> 1.6728 | D70: 0.82 | H70: 2040x820 SLIDER | I70: =C57 -> 1.6728 | J70: 0.82
B71: 2040x720mm WC | C71: =C60 -> 1.4688 | D71: 0.72 | H71: 2040x870 SLIDER | I71: =I55 -> 1.7748 | J71: 0.87
B72: 2040x620mm WC | C72: =C63 -> 1.2648 | D72: 0.62 | H72: 2040x1240 SLIDER | I72: =2.04*1.24 -> 2.5296 | J72: 1.24
H73: 2040x1440 SLIDER | I73: =2.04*1.44 -> 2.9376 | J73: 1.44
B74: 2340x920mm WC | C74: =C55 -> 2.1528 | D74: 0.92 | H74: 2040x1640 SLIDER | I74: =2.04*1.64 -> 3.3456 | J74: 1.64
B75: 2340x820mm WC | C75: =C58 -> 1.9188 | D75: 0.82
B76: 2340x720mm WC | C76: =C61 -> 1.6848 | D76: 0.72 | H76: 2340x820 SLIDER | I76: =2.34*0.82 -> 1.9188
B77: 2340x620mm WC | C77: =C64 -> 1.4508 | D77: 0.62 | H77: 2340x870 SLIDER | I77: =2.34*0.87 -> 2.0358
H79: DELUXE 2 HINGES 2040x1040 | I79: =2.04*1.04 -> 2.1216 | J79: 1.04
H80: DELUXE 2 HINGES 2040x1240 | I80: =2.04*1.24 -> 2.5296 | J80: 1.24
H81: DELUXE 2 HINGES 2040x1440 | I81: =2.04*1.44 -> 2.9376 | J81: 1.44
H82: DELUXE 2 HINGES 2040x1640 | I82: =2.04*1.64 -> 3.3456 | J82: 1.64
H84: DELUXE 3 HINGES 2340x1240 | I84: =2.34*1.24 -> 2.9016
H85: DELUXE 3 HINGES 2340x1640 | I85: =2.34*1.64 -> 3.8376
H86: DELUXE 3 HINGES 2340x1440 | I86: =2.34*1.44 -> 3.3696

Sheet Lintels.windows
B2: ='Main Details'!B2 -> QUANTITY SHEET FOR EASY START HOMES | AN2: PG 4
B3: ='Main Details'!D6 -> 0
G4: LINTEL TAKEOFF | P4: STD 2c Face Brick Sills | Q4: Ext Render Blocks Sills | R4: 1c Feature Face Sills | Y4: GALVANISED: | AA4: YES | AJ4: GALVANISED: | AL4: YES | AM4: T-BARS (Incl. Lugs)
Y5: GENERALLY INTERNAL LINTELS: | AJ5: GENERALLY EXTERNAL | AY5: 1c Face Cored m2 Sill | AZ5: 1c Face Solid m2 Sill | BA5: 1c Render Cored m2 | BB5: 1c Render Solid m2 | BC5: 1c Feature Cored m2 | BD5: 1c Feature Solid m2
D6: ext ddt only | E6: Window Nosing? Yes = "Y" | F6: deduction | G6: WINDOW OR DOOR SIZE | J6: Width | M6: External Lintel? Yes = "Y" | Z6: =IF('Main Details'!$G$28,"0.1>1.6","0.1>1.2") -> 0.1>1.6 | AA6: =IF('Main Details'!$G$28,"1.6>1.9","1.2>1.5") -> 1.6>1.9 | AB6: =IF('Main Details'!$G$28,"1.9>2.6","1.5>2.2") -> 1.9>2.6 | AC6: =IF('Main Details'!$G$28,"2.6>3.1","2.2>2.6") -> 2.6>3.1 | AD6: =IF('Main Details'!$G$28,"3.1>3.45","2.6>3.0") -> 3.1>3.45 | AE6: =IF('Main Details'!$G$28,"3.45>3.85","3.0>3.45") -> 3.45>3.85 | AF6: =IF('Main Details'!$G$28,"N/A","N/A") -> N/A | AG6: LUGS- LINTELS & TBARS | AH6: =IF('Main Details'!F10="2c",IF('Main Details'!$G$28,"0.1>2.35","0.1>2.05"),IF('Main Details'!$G$28,"0.1>2.4","0.1>2.1")) -> 0.1>2.35 | AI6: =IF('Main Details'!$F$10="2C",IF('Main Details'!$G$28,"2.35>2.65","2.05>2.25"),IF('Main Details'!$G$28,"2.4>2.65","2.1>2.25")) -> 2.35>2.65 | AJ6: =IF('Main Details'!$F$10="2C",IF('Main Details'!$G$28,"2.65>3.45","2.25>3.0"),"N/A") -> 2.65>3.45 | AK6: =IF('Main Details'!$F$10="2C",IF('Main Details'!$G$28,"3.45>3.85","3.0>3.45"),IF('Main Details'!$G$28,"2.65>3.85","2.25>3.45")) -> 3.45>3.85 | AL6: =IF('Main Details'!$G$28,"N/A","N/A") -> N/A | AM6: TBAR SIZE (to be nominated) | AN6: 4.0> | AO6: deduction | BE6: Face M2 | BF6: Render M2 | BG6: Face Feature M2 | BH6: Render Openings LM | BI6: Face Openings LM
B7: LOCATION | C7: ddt ext only | F7: window | K7: nosing | Y7: 75x8 | Z7: 75x75 | AA7: 75x75 | AB7: 100x75 | AC7: 125x75 | AD7: 150x90 | AE7: 150x100 | AF7: N/A | AH7: =IF('Main Details'!$F$10="2c","90x90 x8","100x100 x6") -> 90x90 x8 | AI7: 100x100 | AJ7: =IF('Main Details'!$F$10="2c","150x90 x8","N/A") -> 150x90 x8 | AK7: 150x100 | AL7: N/A | AN7: TBARS | AO7: window | AQ7: PRE-WELDED LUGS FORMULAS | BJ7: Alcor
F8: cont 1 | T8: 240 SNAPS | U8: 190 SNAPS | V8: 140 | Y8: FB | Z8: x6 | AA8: x8 | AB8: x8 | AC8: x8 | AD8: x8 | AE8: x10 | AI8: x8 | AK8: x10 | AO8: cont 2 | AW8: RODS UNDER | AX8: Ext Deduction
A9: =IF(Q9>0,I9+#REF!) -> FALSE | C9: =IF(D9="Y",G9*I9,0) -> 0 | D9: N | F9: =IF(AND(#REF!>0,G9>0),(#REF!*0.086)*(J9/1000)," ") ->  | H9: x | I9: =(IF(J9=""," ",(J9-10)/240)) ->  | K9: =IF(G9>0,(J9+160)/1000," ") ->  | O9: =IF(#REF!="Y",I9," ") ->  | R9: =IF(AND(Q9>0,G9>0),(Q9*0.086)*(J9/1000)," ") ->  | T9: =ROUNDUP(G9/2,0) -> 0 | U9: =ROUNDUP(G9/2,0) -> 0 | V9: =ROUNDUP(G9/2,0) -> 0 | Z9: =IF('Main Details'!$G$28,IF(AND($J9>0,$J9<=1600),($J9/1000)+0.2,""),IF(AND($J9>0,$J9<=1200),($J9/1000)+0.2,"")) ->  | AA9: =IF('Main Details'!$G$28,IF(AND($J9>1600,$J9<=1900),($J9/1000)+0.2,""),IF(AND($J9>1200,$J9<=1500),($J9/1000)+0.2,"")) ->  | AB9: =IF('Main Details'!$G$28,IF(AND($J9>1900,$J9<=2600),($J9/1000)+0.27,""),IF(AND($J9>1500,$J9<=2200),($J9/1000)+0.27,"")) ->  | AC9: =IF('Main Details'!$G$28,IF(AND($J9>2600,$J9<=3100),($J9/1000)+0.3,""),IF(AND($J9>2200,$J9<=2600),($J9/1000)+0.3,"")) ->  | AD9: =IF('Main Details'!$G$28,IF(AND($J9>3100,$J9<=3450),($J9/1000)+0.3,""),IF(AND($J9>2600,$J9<=3000),($J9/1000)+0.3,"")) ->  | AE9: =IF('Main Details'!$G$28,IF(AND($J9>3450,$J9<=3850),($J9/1000)+0.3,""),IF(AND($J9>3000,$J9<=3450),($J9/1000)+0.3,"")) ->  | AG9: =IF(AQ9>=1200,AR9+AS9+AT9+AU9," ") ->  | AH9: =IF($M9="Y",IF('Main Details'!$G$28, IF('Main Details'!$F$10="2c",IF(AND($J9>0,$J9<=2350),($J9/1000)+0.24,""),IF(AND($J9>0,$J9<=2400),($J9/1000)+0.27,"")), IF('Main Details'!$F$10="2c",IF(AND($J9>0,$J9<=2050),($J9/1000)+0.24,""),IF(AND($J9>0,$J9<=2100),($J9/1000)+0.27,"")) ),"") ->  | AI9: =IF($M9="Y",IF('Main Details'!$G$28, IF('Main Details'!$F$10="2c",IF(AND($J9>2350,$J9<=2650),($J9/1000)+0.3,""),IF(AND($J9>2400,$J9<=2650),($J9/1000)+0.3,"")), IF('Main Details'!$F$10="2c",IF(AND($J9>2050,$J9<=2250),($J9/1000)+0.3,""),IF(AND($J9>2100,$J9<=2250),($J9/1000)+0.3,"")) ),"") ->  | AJ9: =IF($M9="Y",IF('Main Details'!$G$28, IF('Main Details'!$F$10="2c",IF(AND($J9>2650,$J9<=3450),($J9/1000)+0.3,""),""), IF('Main Details'!$F$10="2c",IF(AND($J9>2250,$J9<=3000),($J9/1000)+0.3,""),"") ),"") ->  | AK9: =IF($M9="Y",IF('Main Details'!$G$28, IF('Main Details'!$F$10="2c",IF(AND($J9>3450,$J9<=3850),($J9/1000)+0.3,""),IF(AND($J9>2650,$J9<=3850),($J9/1000)+0.3,"")), IF('Main Details'!$F$10="2c",IF(AND($J9>3000,$J9<=3450),($J9/1000)+0.3,""),IF(AND($J9>2250,$J9<=3450),($J9/1000)+0.3,"")) ),"") ->  | AL9: =IF(AND($J9<=4000,$J9>=3401,M9="Y"),($J9+'BUILDERS SETTINGS'!$C$14)/1000," ") ->  | AN9: =IF(AND($J9<=7199,$J9>=4001),($J9+'BUILDERS SETTINGS'!$C$15)/1000," ") ->  | AO9: =IF(AND(#REF!>0,G9>0),(#REF!*0.086)*(J9/1000)," ") ->  | AQ9: =J9+200 -> 200 | AR9: =IF(AND($AQ9<=1999,$AQ9>=1000),1,"0") -> 0 | AS9: =IF(AND($AQ9<=2999,$AQ9>=2000),2,"0") -> 0 | AT9: =IF(AND($AQ9<=3999,$AQ9>=3000),3,"0") -> 0 | AU9: =IF(AND($AQ9<=4999,$AQ9>=4000),4,"0") -> 0
A10: =IF(Q10>0,I10+#REF!) -> FALSE | H10: x | I10: 4.041666667 | O10: =IF(M10="Y",J10,"") ->  | T10: =IF(S10<=0,ROUNDUP(G10/2,0),"0") -> 0 | U10: =IF(S10<=0,ROUNDUP(G10/2,0),"0") -> 0 | V10: =IF(S10<=0,ROUNDUP(G10/2,0),"0") -> 0 | Z10: =IF('Main Details'!$G$28,IF(AND($J10>0,$J10<=1600,$B10<>"GOB"),($J10/1000)+0.2,""),IF(AND($J10>0,$J10<=1200),($J10/1000)+0.2,"")) ->  | AA10: =IF('Main Details'!$G$28,IF(AND($J10>1600,$J10<=1900),($J10/1000)+0.2,""),IF(AND($J10>1200,$J10<=1500),($J10/1000)+0.2,"")) ->  | AB10: =IF('Main Details'!$G$28,IF(AND($J10>1900,$J10<=2600),($J10/1000)+0.27,""),IF(AND($J10>1500,$J10<=2200),($J10/1000)+0.27,"")) ->  | AC10: =IF('Main Details'!$G$28,IF(AND($J10>2600,$J10<=3100),($J10/1000)+0.3,""),IF(AND($J10>2200,$J10<=2600),($J10/1000)+0.3,"")) ->  | AD10: =IF('Main Details'!$G$28,IF(AND($J10>3100,$J10<=3450),($J10/1000)+0.3,""),IF(AND($J10>2600,$J10<=3000),($J10/1000)+0.3,"")) ->  | AE10: =IF('Main Details'!$G$28,IF(AND($J10>3450,$J10<=3850),($J10/1000)+0.3,""),IF(AND($J10>3000,$J10<=3450),($J10/1000)+0.3,"")) ->  | AH10: =IF(OR($M10="Y",$B10="GOB"),IF('Main Details'!$G$28, IF('Main Details'!$F$10="2c",IF(AND($J10>0,$J10<=2350),($J10/1000)+0.24,""),IF(AND($J10>0,$J10<=2400),($J10/1000)+0.27,"")), IF('Main Details'!$F$10="2c",IF(AND($J10>0,$J10<=2050),($J10/1000)+0.24,""),IF(AND($J10>0,$J10<=2100),($J10/1000)+0.27,"")) ),"") ->  | AI10: =IF($M10="Y",IF('Main Details'!$G$28, IF('Main Details'!$F$10="2c",IF(AND($J10>2350,$J10<=2650),($J10/1000)+0.3,""),IF(AND($J10>2400,$J10<=2650),($J10/1000)+0.3,"")), IF('Main Details'!$F$10="2c",IF(AND($J10>2050,$J10<=2250),($J10/1000)+0.3,""),IF(AND($J10>2100,$J10<=2250),($J10/1000)+0.3,"")) ),"") ->  | AJ10: =IF($M10="Y",IF('Main Details'!$G$28, IF('Main Details'!$F$10="2c",IF(AND($J10>2650,$J10<=3450),($J10/1000)+0.3,""),""), IF('Main Details'!$F$10="2c",IF(AND($J10>2250,$J10<=3000),($J10/1000)+0.3,""),"") ),"") ->  | AK10: =IF($M10="Y",IF('Main Details'!$G$28, IF('Main Details'!$F$10="2c",IF(AND($J10>3450,$J10<=3850),($J10/1000)+0.3,""),IF(AND($J10>2650,$J10<=3850),($J10/1000)+0.3,"")), IF('Main Details'!$F$10="2c",IF(AND($J10>3000,$J10<=3450),($J10/1000)+0.3,""),IF(AND($J10>2250,$J10<=3450),($J10/1000)+0.3,"")) ),"") ->  | AN10: =IF(AND($J10<=7199,$J10>=4001),($J10+'BUILDERS SETTINGS'!$C$15)/1000," ") ->  | AO10: =IF(AND(#REF!>0,G10>0),(#REF!*0.086)*(J10/1000)," ") ->  | AQ10: 200 | AR10: 0 | AS10: 0 | AT10: 0 | AU10: 0 | AW10: =IF(AND(G10>0,G10<25),J10/1000+1.5,0) -> 0 | AX10: =IF(AND(G10>0,M10=FALSE),J10/1000,0) -> 0 | AY10: =IF(AND(P10="Y",ISEVEN(G10)),(J10*0.086/1000),"") ->  | AZ10: =IF(AND(P10="Y"),J10*0.086/1000,"") ->  | BA10: =IF(AND(Q10="Y",ISODD(G10)),(J10*0.086/1000),"") ->  | BB10: =IF(AND(Q10="Y"),J10*0.086/1000,"") ->  | BC10: =IF(AND(R10="Y",ISODD(G10)),(J10*0.086/1000),"") ->  | BD10: =IF(AND(R10="Y"),J10*0.086/1000,"") ->  | BE10: =IF(OR(P10="Y"),(G10*0.086)*J10/1000,"") ->  | BF10: =IF(OR(Q10="Y"),(G10*0.086)*J10/1000,"") ->  | BG10: =IF(OR(R10="Y"),(G10*0.086)*J10/1000,"") ->  | BH10: =IF(OR(Q10="Y"),(J10/1000),"") ->  | BI10: =IF(OR(P10="Y"),(J10/1000),"") ->  | BJ10: =IF(M10="Y",(J10+200)/1000,"") -> 
A11: =IF(Q11>0,I11+#REF!) -> FALSE | H11: x | I11: 3.75 | O11: =IF(M11="Y",J11,"") ->  | T11: 0 | U11: 0 | V11: 0 | Z11: =IF('Main Details'!$G$28,IF(AND($J11>0,$J11<=1600,$B11<>"GOB"),($J11/1000)+0.2,""),IF(AND($J11>0,$J11<=1200),($J11/1000)+0.2,"")) ->  | AA11: =IF('Main Details'!$G$28,IF(AND($J11>1600,$J11<=1900),($J11/1000)+0.2,""),IF(AND($J11>1200,$J11<=1500),($J11/1000)+0.2,"")) ->  | AB11: =IF('Main Details'!$G$28,IF(AND($J11>1900,$J11<=2600),($J11/1000)+0.27,""),IF(AND($J11>1500,$J11<=2200),($J11/1000)+0.27,"")) ->  | AC11: =IF('Main Details'!$G$28,IF(AND($J11>2600,$J11<=3100),($J11/1000)+0.3,""),IF(AND($J11>2200,$J11<=2600),($J11/1000)+0.3,"")) ->  | AD11: =IF('Main Details'!$G$28,IF(AND($J11>3100,$J11<=3450),($J11/1000)+0.3,""),IF(AND($J11>2600,$J11<=3000),($J11/1000)+0.3,"")) ->  | AE11: =IF('Main Details'!$G$28,IF(AND($J11>3450,$J11<=3850),($J11/1000)+0.3,""),IF(AND($J11>3000,$J11<=3450),($J11/1000)+0.3,"")) ->  | AH11: =IF(OR($M11="Y",$B11="GOB"),IF('Main Details'!$G$28, IF('Main Details'!$F$10="2c",IF(AND($J11>0,$J11<=2350),($J11/1000)+0.24,""),IF(AND($J11>0,$J11<=2400),($J11/1000)+0.27,"")), IF('Main Details'!$F$10="2c",IF(AND($J11>0,$J11<=2050),($J11/1000)+0.24,""),IF(AND($J11>0,$J11<=2100),($J11/1000)+0.27,"")) ),"") ->  | AI11: =IF($M11="Y",IF('Main Details'!$G$28, IF('Main Details'!$F$10="2c",IF(AND($J11>2350,$J11<=2650),($J11/1000)+0.3,""),IF(AND($J11>2400,$J11<=2650),($J11/1000)+0.3,"")), IF('Main Details'!$F$10="2c",IF(AND($J11>2050,$J11<=2250),($J11/1000)+0.3,""),IF(AND($J11>2100,$J11<=2250),($J11/1000)+0.3,"")) ),"") ->  | AJ11: =IF($M11="Y",IF('Main Details'!$G$28, IF('Main Details'!$F$10="2c",IF(AND($J11>2650,$J11<=3450),($J11/1000)+0.3,""),""), IF('Main Details'!$F$10="2c",IF(AND($J11>2250,$J11<=3000),($J11/1000)+0.3,""),"") ),"") ->  | AK11: =IF($M11="Y",IF('Main Details'!$G$28, IF('Main Details'!$F$10="2c",IF(AND($J11>3450,$J11<=3850),($J11/1000)+0.3,""),IF(AND($J11>2650,$J11<=3850),($J11/1000)+0.3,"")), IF('Main Details'!$F$10="2c",IF(AND($J11>3000,$J11<=3450),($J11/1000)+0.3,""),IF(AND($J11>2250,$J11<=3450),($J11/1000)+0.3,"")) ),"") ->  | AN11: =IF(AND($J11<=7199,$J11>=4001),($J11+'BUILDERS SETTINGS'!$C$15)/1000," ") ->  | AO11: =IF(AND(#REF!>0,G11>0),(#REF!*0.086)*(J11/1000)," ") ->  | AQ11: 200 | AR11: 0 | AS11: 0 | AT11: 0 | AU11: 0 | AW11: 0 | AX11: 0 | BL11: r
A12: =IF(Q12>0,I12+#REF!) -> FALSE | H12: x | I12: 3.75 | T12: 0 | U12: 0 | V12: 0 | Z12: =IF('Main Details'!$G$28,IF(AND($J12>0,$J12<=1600,$B12<>"GOB"),($J12/1000)+0.2,""),IF(AND($J12>0,$J12<=1200),($J12/1000)+0.2,"")) ->  | AA12: =IF('Main Details'!$G$28,IF(AND($J12>1600,$J12<=1900),($J12/1000)+0.2,""),IF(AND($J12>1200,$J12<=1500),($J12/1000)+0.2,"")) ->  | AB12: =IF('Main Details'!$G$28,IF(AND($J12>1900,$J12<=2600),($J12/1000)+0.27,""),IF(AND($J12>1500,$J12<=2200),($J12/1000)+0.27,"")) ->  | AC12: =IF('Main Details'!$G$28,IF(AND($J12>2600,$J12<=3100),($J12/1000)+0.3,""),IF(AND($J12>2200,$J12<=2600),($J12/1000)+0.3,"")) ->  | AD12: =IF('Main Details'!$G$28,IF(AND($J12>3100,$J12<=3450),($J12/1000)+0.3,""),IF(AND($J12>2600,$J12<=3000),($J12/1000)+0.3,"")) ->  | AE12: =IF('Main Details'!$G$28,IF(AND($J12>3450,$J12<=3850),($J12/1000)+0.3,""),IF(AND($J12>3000,$J12<=3450),($J12/1000)+0.3,"")) ->  | AH12: =IF(OR($M12="Y",$B12="GOB"),IF('Main Details'!$G$28, IF('Main Details'!$F$10="2c",IF(AND($J12>0,$J12<=2350),($J12/1000)+0.24,""),IF(AND($J12>0,$J12<=2400),($J12/1000)+0.27,"")), IF('Main Details'!$F$10="2c",IF(AND($J12>0,$J12<=2050),($J12/1000)+0.24,""),IF(AND($J12>0,$J12<=2100),($J12/1000)+0.27,"")) ),"") ->  | AI12: =IF($M12="Y",IF('Main Details'!$G$28, IF('Main Details'!$F$10="2c",IF(AND($J12>2350,$J12<=2650),($J12/1000)+0.3,""),IF(AND($J12>2400,$J12<=2650),($J12/1000)+0.3,"")), IF('Main Details'!$F$10="2c",IF(AND($J12>2050,$J12<=2250),($J12/1000)+0.3,""),IF(AND($J12>2100,$J12<=2250),($J12/1000)+0.3,"")) ),"") ->  | AJ12: =IF($M12="Y",IF('Main Details'!$G$28, IF('Main Details'!$F$10="2c",IF(AND($J12>2650,$J12<=3450),($J12/1000)+0.3,""),""), IF('Main Details'!$F$10="2c",IF(AND($J12>2250,$J12<=3000),($J12/1000)+0.3,""),"") ),"") ->  | AK12: =IF($M12="Y",IF('Main Details'!$G$28, IF('Main Details'!$F$10="2c",IF(AND($J12>3450,$J12<=3850),($J12/1000)+0.3,""),IF(AND($J12>2650,$J12<=3850),($J12/1000)+0.3,"")), IF('Main Details'!$F$10="2c",IF(AND($J12>3000,$J12<=3450),($J12/1000)+0.3,""),IF(AND($J12>2250,$J12<=3450),($J12/1000)+0.3,"")) ),"") ->  | AN12: =IF(AND($J12<=7199,$J12>=4001),($J12+'BUILDERS SETTINGS'!$C$15)/1000," ") ->  | AO12: =IF(AND(#REF!>0,G12>0),(#REF!*0.086)*(J12/1000)," ") ->  | AQ12: 200 | AR12: 0 | AS12: 0 | AT12: 0 | AU12: 0 | AW12: 0 | AX12: 0
A13: =IF(Q13>0,I13+#REF!) -> FALSE | H13: x | I13: 20 | T13: 0 | U13: 0 | V13: 0 | Z13: =IF('Main Details'!$G$28,IF(AND($J13>0,$J13<=1600,$B13<>"GOB"),($J13/1000)+0.2,""),IF(AND($J13>0,$J13<=1200),($J13/1000)+0.2,"")) ->  | AA13: =IF('Main Details'!$G$28,IF(AND($J13>1600,$J13<=1900),($J13/1000)+0.2,""),IF(AND($J13>1200,$J13<=1500),($J13/1000)+0.2,"")) ->  | AB13: =IF('Main Details'!$G$28,IF(AND($J13>1900,$J13<=2600),($J13/1000)+0.27,""),IF(AND($J13>1500,$J13<=2200),($J13/1000)+0.27,"")) ->  | AC13: =IF('Main Details'!$G$28,IF(AND($J13>2600,$J13<=3100),($J13/1000)+0.3,""),IF(AND($J13>2200,$J13<=2600),($J13/1000)+0.3,"")) ->  | AD13: =IF('Main Details'!$G$28,IF(AND($J13>3100,$J13<=3450),($J13/1000)+0.3,""),IF(AND($J13>2600,$J13<=3000),($J13/1000)+0.3,"")) ->  | AE13: =IF('Main Details'!$G$28,IF(AND($J13>3450,$J13<=3850),($J13/1000)+0.3,""),IF(AND($J13>3000,$J13<=3450),($J13/1000)+0.3,"")) ->  | AH13: =IF(OR($M13="Y",$B13="GOB"),IF('Main Details'!$G$28, IF('Main Details'!$F$10="2c",IF(AND($J13>0,$J13<=2350),($J13/1000)+0.24,""),IF(AND($J13>0,$J13<=2400),($J13/1000)+0.27,"")), IF('Main Details'!$F$10="2c",IF(AND($J13>0,$J13<=2050),($J13/1000)+0.24,""),IF(AND($J13>0,$J13<=2100),($J13/1000)+0.27,"")) ),"") ->  | AI13: =IF($M13="Y",IF('Main Details'!$G$28, IF('Main Details'!$F$10="2c",IF(AND($J13>2350,$J13<=2650),($J13/1000)+0.3,""),IF(AND($J13>2400,$J13<=2650),($J13/1000)+0.3,"")), IF('Main Details'!$F$10="2c",IF(AND($J13>2050,$J13<=2250),($J13/1000)+0.3,""),IF(AND($J13>2100,$J13<=2250),($J13/1000)+0.3,"")) ),"") ->  | AJ13: =IF($M13="Y",IF('Main Details'!$G$28, IF('Main Details'!$F$10="2c",IF(AND($J13>2650,$J13<=3450),($J13/1000)+0.3,""),""), IF('Main Details'!$F$10="2c",IF(AND($J13>2250,$J13<=3000),($J13/1000)+0.3,""),"") ),"") ->  | AK13: =IF($M13="Y",IF('Main Details'!$G$28, IF('Main Details'!$F$10="2c",IF(AND($J13>3450,$J13<=3850),($J13/1000)+0.3,""),IF(AND($J13>2650,$J13<=3850),($J13/1000)+0.3,"")), IF('Main Details'!$F$10="2c",IF(AND($J13>3000,$J13<=3450),($J13/1000)+0.3,""),IF(AND($J13>2250,$J13<=3450),($J13/1000)+0.3,"")) ),"") ->  | AN13: =IF(AND($J13<=7199,$J13>=4001),($J13+'BUILDERS SETTINGS'!$C$15)/1000," ") ->  | AO13: =IF(AND(#REF!>0,G13>0),(#REF!*0.086)*(J13/1000)," ") ->  | AQ13: 200 | AR13: 0 | AS13: 0 | AT13: 0 | AU13: 0 | AW13: 0 | AX13: 0
A14: =IF(Q14>0,I14+#REF!) -> FALSE | H14: x | I14: 7.5 | T14: 0 | U14: 0 | V14: 0 | Z14: =IF('Main Details'!$G$28,IF(AND($J14>0,$J14<=1600,$B14<>"GOB"),($J14/1000)+0.2,""),IF(AND($J14>0,$J14<=1200),($J14/1000)+0.2,"")) ->  | AA14: =IF('Main Details'!$G$28,IF(AND($J14>1600,$J14<=1900),($J14/1000)+0.2,""),IF(AND($J14>1200,$J14<=1500),($J14/1000)+0.2,"")) ->  | AB14: =IF('Main Details'!$G$28,IF(AND($J14>1900,$J14<=2600),($J14/1000)+0.27,""),IF(AND($J14>1500,$J14<=2200),($J14/1000)+0.27,"")) ->  | AC14: =IF('Main Details'!$G$28,IF(AND($J14>2600,$J14<=3100),($J14/1000)+0.3,""),IF(AND($J14>2200,$J14<=2600),($J14/1000)+0.3,"")) ->  | AD14: =IF('Main Details'!$G$28,IF(AND($J14>3100,$J14<=3450),($J14/1000)+0.3,""),IF(AND($J14>2600,$J14<=3000),($J14/1000)+0.3,"")) ->  | AE14: =IF('Main Details'!$G$28,IF(AND($J14>3450,$J14<=3850),($J14/1000)+0.3,""),IF(AND($J14>3000,$J14<=3450),($J14/1000)+0.3,"")) ->  | AH14: =IF(OR($M14="Y",$B14="GOB"),IF('Main Details'!$G$28, IF('Main Details'!$F$10="2c",IF(AND($J14>0,$J14<=2350),($J14/1000)+0.24,""),IF(AND($J14>0,$J14<=2400),($J14/1000)+0.27,"")), IF('Main Details'!$F$10="2c",IF(AND($J14>0,$J14<=2050),($J14/1000)+0.24,""),IF(AND($J14>0,$J14<=2100),($J14/1000)+0.27,"")) ),"") ->  | AI14: =IF($M14="Y",IF('Main Details'!$G$28, IF('Main Details'!$F$10="2c",IF(AND($J14>2350,$J14<=2650),($J14/1000)+0.3,""),IF(AND($J14>2400,$J14<=2650),($J14/1000)+0.3,"")), IF('Main Details'!$F$10="2c",IF(AND($J14>2050,$J14<=2250),($J14/1000)+0.3,""),IF(AND($J14>2100,$J14<=2250),($J14/1000)+0.3,"")) ),"") ->  | AJ14: =IF($M14="Y",IF('Main Details'!$G$28, IF('Main Details'!$F$10="2c",IF(AND($J14>2650,$J14<=3450),($J14/1000)+0.3,""),""), IF('Main Details'!$F$10="2c",IF(AND($J14>2250,$J14<=3000),($J14/1000)+0.3,""),"") ),"") ->  | AK14: =IF($M14="Y",IF('Main Details'!$G$28, IF('Main Details'!$F$10="2c",IF(AND($J14>3450,$J14<=3850),($J14/1000)+0.3,""),IF(AND($J14>2650,$J14<=3850),($J14/1000)+0.3,"")), IF('Main Details'!$F$10="2c",IF(AND($J14>3000,$J14<=3450),($J14/1000)+0.3,""),IF(AND($J14>2250,$J14<=3450),($J14/1000)+0.3,"")) ),"") ->  | AN14: =IF(AND($J14<=7199,$J14>=4001),($J14+'BUILDERS SETTINGS'!$C$15)/1000," ") ->  | AO14: =IF(AND(#REF!>0,G14>0),(#REF!*0.086)*(J14/1000)," ") ->  | AQ14: 200 | AR14: 0 | AS14: 0 | AT14: 0 | AU14: 0 | AW14: 0 | AX14: 0
A15: =IF(Q15>0,I15+#REF!) -> FALSE | H15: x | I15: 10 | T15: 0 | U15: 0 | V15: 0 | Z15: =IF('Main Details'!$G$28,IF(AND($J15>0,$J15<=1600,$B15<>"GOB"),($J15/1000)+0.2,""),IF(AND($J15>0,$J15<=1200),($J15/1000)+0.2,"")) ->  | AA15: =IF('Main Details'!$G$28,IF(AND($J15>1600,$J15<=1900),($J15/1000)+0.2,""),IF(AND($J15>1200,$J15<=1500),($J15/1000)+0.2,"")) ->  | AB15: =IF('Main Details'!$G$28,IF(AND($J15>1900,$J15<=2600),($J15/1000)+0.27,""),IF(AND($J15>1500,$J15<=2200),($J15/1000)+0.27,"")) ->  | AC15: =IF('Main Details'!$G$28,IF(AND($J15>2600,$J15<=3100),($J15/1000)+0.3,""),IF(AND($J15>2200,$J15<=2600),($J15/1000)+0.3,"")) ->  | AD15: =IF('Main Details'!$G$28,IF(AND($J15>3100,$J15<=3450),($J15/1000)+0.3,""),IF(AND($J15>2600,$J15<=3000),($J15/1000)+0.3,"")) ->  | AE15: =IF('Main Details'!$G$28,IF(AND($J15>3450,$J15<=3850),($J15/1000)+0.3,""),IF(AND($J15>3000,$J15<=3450),($J15/1000)+0.3,"")) ->  | AH15: =IF(OR($M15="Y",$B15="GOB"),IF('Main Details'!$G$28, IF('Main Details'!$F$10="2c",IF(AND($J15>0,$J15<=2350),($J15/1000)+0.24,""),IF(AND($J15>0,$J15<=2400),($J15/1000)+0.27,"")), IF('Main Details'!$F$10="2c",IF(AND($J15>0,$J15<=2050),($J15/1000)+0.24,""),IF(AND($J15>0,$J15<=2100),($J15/1000)+0.27,"")) ),"") ->  | AI15: =IF($M15="Y",IF('Main Details'!$G$28, IF('Main Details'!$F$10="2c",IF(AND($J15>2350,$J15<=2650),($J15/1000)+0.3,""),IF(AND($J15>2400,$J15<=2650),($J15/1000)+0.3,"")), IF('Main Details'!$F$10="2c",IF(AND($J15>2050,$J15<=2250),($J15/1000)+0.3,""),IF(AND($J15>2100,$J15<=2250),($J15/1000)+0.3,"")) ),"") ->  | AJ15: =IF($M15="Y",IF('Main Details'!$G$28, IF('Main Details'!$F$10="2c",IF(AND($J15>2650,$J15<=3450),($J15/1000)+0.3,""),""), IF('Main Details'!$F$10="2c",IF(AND($J15>2250,$J15<=3000),($J15/1000)+0.3,""),"") ),"") ->  | AK15: =IF($M15="Y",IF('Main Details'!$G$28, IF('Main Details'!$F$10="2c",IF(AND($J15>3450,$J15<=3850),($J15/1000)+0.3,""),IF(AND($J15>2650,$J15<=3850),($J15/1000)+0.3,"")), IF('Main Details'!$F$10="2c",IF(AND($J15>3000,$J15<=3450),($J15/1000)+0.3,""),IF(AND($J15>2250,$J15<=3450),($J15/1000)+0.3,"")) ),"") ->  | AN15: =IF(AND($J15<=7199,$J15>=4001),($J15+'BUILDERS SETTINGS'!$C$15)/1000," ") ->  | AO15: =IF(AND(#REF!>0,G15>0),(#REF!*0.086)*(J15/1000)," ") ->  | AQ15: 200 | AR15: 0 | AS15: 0 | AT15: 0 | AU15: 0 | AW15: 0 | AX15: 0
A16: =IF(Q16>0,I16+#REF!) -> FALSE | H16: x | I16: 5 | T16: 0 | U16: 0 | V16: 0 | Z16: =IF('Main Details'!$G$28,IF(AND($J16>0,$J16<=1600,$B16<>"GOB"),($J16/1000)+0.2,""),IF(AND($J16>0,$J16<=1200),($J16/1000)+0.2,"")) ->  | AA16: =IF('Main Details'!$G$28,IF(AND($J16>1600,$J16<=1900),($J16/1000)+0.2,""),IF(AND($J16>1200,$J16<=1500),($J16/1000)+0.2,"")) ->  | AB16: =IF('Main Details'!$G$28,IF(AND($J16>1900,$J16<=2600),($J16/1000)+0.27,""),IF(AND($J16>1500,$J16<=2200),($J16/1000)+0.27,"")) ->  | AC16: =IF('Main Details'!$G$28,IF(AND($J16>2600,$J16<=3100),($J16/1000)+0.3,""),IF(AND($J16>2200,$J16<=2600),($J16/1000)+0.3,"")) ->  | AD16: =IF('Main Details'!$G$28,IF(AND($J16>3100,$J16<=3450),($J16/1000)+0.3,""),IF(AND($J16>2600,$J16<=3000),($J16/1000)+0.3,"")) ->  | AE16: =IF('Main Details'!$G$28,IF(AND($J16>3450,$J16<=3850),($J16/1000)+0.3,""),IF(AND($J16>3000,$J16<=3450),($J16/1000)+0.3,"")) ->  | AH16: =IF(OR($M16="Y",$B16="GOB"),IF('Main Details'!$G$28, IF('Main Details'!$F$10="2c",IF(AND($J16>0,$J16<=2350),($J16/1000)+0.24,""),IF(AND($J16>0,$J16<=2400),($J16/1000)+0.27,"")), IF('Main Details'!$F$10="2c",IF(AND($J16>0,$J16<=2050),($J16/1000)+0.24,""),IF(AND($J16>0,$J16<=2100),($J16/1000)+0.27,"")) ),"") ->  | AI16: =IF($M16="Y",IF('Main Details'!$G$28, IF('Main Details'!$F$10="2c",IF(AND($J16>2350,$J16<=2650),($J16/1000)+0.3,""),IF(AND($J16>2400,$J16<=2650),($J16/1000)+0.3,"")), IF('Main Details'!$F$10="2c",IF(AND($J16>2050,$J16<=2250),($J16/1000)+0.3,""),IF(AND($J16>2100,$J16<=2250),($J16/1000)+0.3,"")) ),"") ->  | AJ16: =IF($M16="Y",IF('Main Details'!$G$28, IF('Main Details'!$F$10="2c",IF(AND($J16>2650,$J16<=3450),($J16/1000)+0.3,""),""), IF('Main Details'!$F$10="2c",IF(AND($J16>2250,$J16<=3000),($J16/1000)+0.3,""),"") ),"") ->  | AK16: =IF($M16="Y",IF('Main Details'!$G$28, IF('Main Details'!$F$10="2c",IF(AND($J16>3450,$J16<=3850),($J16/1000)+0.3,""),IF(AND($J16>2650,$J16<=3850),($J16/1000)+0.3,"")), IF('Main Details'!$F$10="2c",IF(AND($J16>3000,$J16<=3450),($J16/1000)+0.3,""),IF(AND($J16>2250,$J16<=3450),($J16/1000)+0.3,"")) ),"") ->  | AN16: =IF(AND($J16<=7199,$J16>=4001),($J16+'BUILDERS SETTINGS'!$C$15)/1000," ") ->  | AO16: =IF(AND(#REF!>0,G16>0),(#REF!*0.086)*(J16/1000)," ") ->  | AQ16: 200 | AR16: 0 | AS16: 0 | AT16: 0 | AU16: 0 | AW16: 0 | AX16: 0
A17: =IF(Q17>0,I17+#REF!) -> FALSE | H17: x | I17: 2.5 | T17: 0 | U17: 0 | V17: 0 | Z17: =IF('Main Details'!$G$28,IF(AND($J17>0,$J17<=1600,$B17<>"GOB"),($J17/1000)+0.2,""),IF(AND($J17>0,$J17<=1200),($J17/1000)+0.2,"")) ->  | AA17: =IF('Main Details'!$G$28,IF(AND($J17>1600,$J17<=1900),($J17/1000)+0.2,""),IF(AND($J17>1200,$J17<=1500),($J17/1000)+0.2,"")) ->  | AB17: =IF('Main Details'!$G$28,IF(AND($J17>1900,$J17<=2600),($J17/1000)+0.27,""),IF(AND($J17>1500,$J17<=2200),($J17/1000)+0.27,"")) ->  | AC17: =IF('Main Details'!$G$28,IF(AND($J17>2600,$J17<=3100),($J17/1000)+0.3,""),IF(AND($J17>2200,$J17<=2600),($J17/1000)+0.3,"")) ->  | AD17: =IF('Main Details'!$G$28,IF(AND($J17>3100,$J17<=3450),($J17/1000)+0.3,""),IF(AND($J17>2600,$J17<=3000),($J17/1000)+0.3,"")) ->  | AE17: =IF('Main Details'!$G$28,IF(AND($J17>3450,$J17<=3850),($J17/1000)+0.3,""),IF(AND($J17>3000,$J17<=3450),($J17/1000)+0.3,"")) ->  | AH17: =IF(OR($M17="Y",$B17="GOB"),IF('Main Details'!$G$28, IF('Main Details'!$F$10="2c",IF(AND($J17>0,$J17<=2350),($J17/1000)+0.24,""),IF(AND($J17>0,$J17<=2400),($J17/1000)+0.27,"")), IF('Main Details'!$F$10="2c",IF(AND($J17>0,$J17<=2050),($J17/1000)+0.24,""),IF(AND($J17>0,$J17<=2100),($J17/1000)+0.27,"")) ),"") ->  | AI17: =IF($M17="Y",IF('Main Details'!$G$28, IF('Main Details'!$F$10="2c",IF(AND($J17>2350,$J17<=2650),($J17/1000)+0.3,""),IF(AND($J17>2400,$J17<=2650),($J17/1000)+0.3,"")), IF('Main Details'!$F$10="2c",IF(AND($J17>2050,$J17<=2250),($J17/1000)+0.3,""),IF(AND($J17>2100,$J17<=2250),($J17/1000)+0.3,"")) ),"") ->  | AJ17: =IF($M17="Y",IF('Main Details'!$G$28, IF('Main Details'!$F$10="2c",IF(AND($J17>2650,$J17<=3450),($J17/1000)+0.3,""),""), IF('Main Details'!$F$10="2c",IF(AND($J17>2250,$J17<=3000),($J17/1000)+0.3,""),"") ),"") ->  | AK17: =IF($M17="Y",IF('Main Details'!$G$28, IF('Main Details'!$F$10="2c",IF(AND($J17>3450,$J17<=3850),($J17/1000)+0.3,""),IF(AND($J17>2650,$J17<=3850),($J17/1000)+0.3,"")), IF('Main Details'!$F$10="2c",IF(AND($J17>3000,$J17<=3450),($J17/1000)+0.3,""),IF(AND($J17>2250,$J17<=3450),($J17/1000)+0.3,"")) ),"") ->  | AN17: =IF(AND($J17<=7199,$J17>=4001),($J17+'BUILDERS SETTINGS'!$C$15)/1000," ") ->  | AO17: =IF(AND(#REF!>0,G17>0),(#REF!*0.086)*(J17/1000)," ") ->  | AQ17: 200 | AR17: 0 | AS17: 0 | AT17: 0 | AU17: 0 | AW17: 0 | AX17: 0
A18: =IF(Q18>0,I18+#REF!) -> FALSE | H18: x | I18: 6.666666667 | T18: 0 | U18: 0 | V18: 0 | Z18: =IF('Main Details'!$G$28,IF(AND($J18>0,$J18<=1600,$B18<>"GOB"),($J18/1000)+0.2,""),IF(AND($J18>0,$J18<=1200),($J18/1000)+0.2,"")) ->  | AA18: =IF('Main Details'!$G$28,IF(AND($J18>1600,$J18<=1900),($J18/1000)+0.2,""),IF(AND($J18>1200,$J18<=1500),($J18/1000)+0.2,"")) ->  | AB18: =IF('Main Details'!$G$28,IF(AND($J18>1900,$J18<=2600),($J18/1000)+0.27,""),IF(AND($J18>1500,$J18<=2200),($J18/1000)+0.27,"")) ->  | AC18: =IF('Main Details'!$G$28,IF(AND($J18>2600,$J18<=3100),($J18/1000)+0.3,""),IF(AND($J18>2200,$J18<=2600),($J18/1000)+0.3,"")) ->  | AD18: =IF('Main Details'!$G$28,IF(AND($J18>3100,$J18<=3450),($J18/1000)+0.3,""),IF(AND($J18>2600,$J18<=3000),($J18/1000)+0.3,"")) ->  | AE18: =IF('Main Details'!$G$28,IF(AND($J18>3450,$J18<=3850),($J18/1000)+0.3,""),IF(AND($J18>3000,$J18<=3450),($J18/1000)+0.3,"")) ->  | AH18: =IF(OR($M18="Y",$B18="GOB"),IF('Main Details'!$G$28, IF('Main Details'!$F$10="2c",IF(AND($J18>0,$J18<=2350),($J18/1000)+0.24,""),IF(AND($J18>0,$J18<=2400),($J18/1000)+0.27,"")), IF('Main Details'!$F$10="2c",IF(AND($J18>0,$J18<=2050),($J18/1000)+0.24,""),IF(AND($J18>0,$J18<=2100),($J18/1000)+0.27,"")) ),"") ->  | AI18: =IF($M18="Y",IF('Main Details'!$G$28, IF('Main Details'!$F$10="2c",IF(AND($J18>2350,$J18<=2650),($J18/1000)+0.3,""),IF(AND($J18>2400,$J18<=2650),($J18/1000)+0.3,"")), IF('Main Details'!$F$10="2c",IF(AND($J18>2050,$J18<=2250),($J18/1000)+0.3,""),IF(AND($J18>2100,$J18<=2250),($J18/1000)+0.3,"")) ),"") ->  | AJ18: =IF($M18="Y",IF('Main Details'!$G$28, IF('Main Details'!$F$10="2c",IF(AND($J18>2650,$J18<=3450),($J18/1000)+0.3,""),""), IF('Main Details'!$F$10="2c",IF(AND($J18>2250,$J18<=3000),($J18/1000)+0.3,""),"") ),"") ->  | AK18: =IF($M18="Y",IF('Main Details'!$G$28, IF('Main Details'!$F$10="2c",IF(AND($J18>3450,$J18<=3850),($J18/1000)+0.3,""),IF(AND($J18>2650,$J18<=3850),($J18/1000)+0.3,"")), IF('Main Details'!$F$10="2c",IF(AND($J18>3000,$J18<=3450),($J18/1000)+0.3,""),IF(AND($J18>2250,$J18<=3450),($J18/1000)+0.3,"")) ),"") ->  | AN18: =IF(AND($J18<=7199,$J18>=4001),($J18+'BUILDERS SETTINGS'!$C$15)/1000," ") ->  | AO18: =IF(AND(#REF!>0,G18>0),(#REF!*0.086)*(J18/1000)," ") ->  | AQ18: 200 | AR18: 0 | AS18: 0 | AT18: 0 | AU18: 0 | AW18: 0 | AX18: 0
A19: =IF(Q19>0,I19+#REF!) -> FALSE | H19: x | I19: 6.666666667 | T19: 0 | U19: 0 | V19: 0 | Z19: =IF('Main Details'!$G$28,IF(AND($J19>0,$J19<=1600,$B19<>"GOB"),($J19/1000)+0.2,""),IF(AND($J19>0,$J19<=1200),($J19/1000)+0.2,"")) ->  | AA19: =IF('Main Details'!$G$28,IF(AND($J19>1600,$J19<=1900),($J19/1000)+0.2,""),IF(AND($J19>1200,$J19<=1500),($J19/1000)+0.2,"")) ->  | AB19: =IF('Main Details'!$G$28,IF(AND($J19>1900,$J19<=2600),($J19/1000)+0.27,""),IF(AND($J19>1500,$J19<=2200),($J19/1000)+0.27,"")) ->  | AC19: =IF('Main Details'!$G$28,IF(AND($J19>2600,$J19<=3100),($J19/1000)+0.3,""),IF(AND($J19>2200,$J19<=2600),($J19/1000)+0.3,"")) ->  | AD19: =IF('Main Details'!$G$28,IF(AND($J19>3100,$J19<=3450),($J19/1000)+0.3,""),IF(AND($J19>2600,$J19<=3000),($J19/1000)+0.3,"")) ->  | AE19: =IF('Main Details'!$G$28,IF(AND($J19>3450,$J19<=3850),($J19/1000)+0.3,""),IF(AND($J19>3000,$J19<=3450),($J19/1000)+0.3,"")) ->  | AH19: =IF(OR($M19="Y",$B19="GOB"),IF('Main Details'!$G$28, IF('Main Details'!$F$10="2c",IF(AND($J19>0,$J19<=2350),($J19/1000)+0.24,""),IF(AND($J19>0,$J19<=2400),($J19/1000)+0.27,"")), IF('Main Details'!$F$10="2c",IF(AND($J19>0,$J19<=2050),($J19/1000)+0.24,""),IF(AND($J19>0,$J19<=2100),($J19/1000)+0.27,"")) ),"") ->  | AI19: =IF($M19="Y",IF('Main Details'!$G$28, IF('Main Details'!$F$10="2c",IF(AND($J19>2350,$J19<=2650),($J19/1000)+0.3,""),IF(AND($J19>2400,$J19<=2650),($J19/1000)+0.3,"")), IF('Main Details'!$F$10="2c",IF(AND($J19>2050,$J19<=2250),($J19/1000)+0.3,""),IF(AND($J19>2100,$J19<=2250),($J19/1000)+0.3,"")) ),"") ->  | AJ19: =IF($M19="Y",IF('Main Details'!$G$28, IF('Main Details'!$F$10="2c",IF(AND($J19>2650,$J19<=3450),($J19/1000)+0.3,""),""), IF('Main Details'!$F$10="2c",IF(AND($J19>2250,$J19<=3000),($J19/1000)+0.3,""),"") ),"") ->  | AK19: =IF($M19="Y",IF('Main Details'!$G$28, IF('Main Details'!$F$10="2c",IF(AND($J19>3450,$J19<=3850),($J19/1000)+0.3,""),IF(AND($J19>2650,$J19<=3850),($J19/1000)+0.3,"")), IF('Main Details'!$F$10="2c",IF(AND($J19>3000,$J19<=3450),($J19/1000)+0.3,""),IF(AND($J19>2250,$J19<=3450),($J19/1000)+0.3,"")) ),"") ->  | AN19: =IF(AND($J19<=7199,$J19>=4001),($J19+'BUILDERS SETTINGS'!$C$15)/1000," ") ->  | AO19: =IF(AND(#REF!>0,G19>0),(#REF!*0.086)*(J19/1000)," ") ->  | AQ19: 200 | AR19: 0 | AS19: 0 | AT19: 0 | AU19: 0 | AW19: 0 | AX19: 0
A20: =IF(Q20>0,I20+#REF!) -> FALSE | H20: x | I20: 2.916666667 | T20: 0 | U20: 0 | V20: 0 | Z20: =IF('Main Details'!$G$28,IF(AND($J20>0,$J20<=1600,$B20<>"GOB"),($J20/1000)+0.2,""),IF(AND($J20>0,$J20<=1200),($J20/1000)+0.2,"")) ->  | AA20: =IF('Main Details'!$G$28,IF(AND($J20>1600,$J20<=1900),($J20/1000)+0.2,""),IF(AND($J20>1200,$J20<=1500),($J20/1000)+0.2,"")) ->  | AB20: =IF('Main Details'!$G$28,IF(AND($J20>1900,$J20<=2600),($J20/1000)+0.27,""),IF(AND($J20>1500,$J20<=2200),($J20/1000)+0.27,"")) ->  | AC20: =IF('Main Details'!$G$28,IF(AND($J20>2600,$J20<=3100),($J20/1000)+0.3,""),IF(AND($J20>2200,$J20<=2600),($J20/1000)+0.3,"")) ->  | AD20: =IF('Main Details'!$G$28,IF(AND($J20>3100,$J20<=3450),($J20/1000)+0.3,""),IF(AND($J20>2600,$J20<=3000),($J20/1000)+0.3,"")) ->  | AE20: =IF('Main Details'!$G$28,IF(AND($J20>3450,$J20<=3850),($J20/1000)+0.3,""),IF(AND($J20>3000,$J20<=3450),($J20/1000)+0.3,"")) ->  | AH20: =IF(OR($M20="Y",$B20="GOB"),IF('Main Details'!$G$28, IF('Main Details'!$F$10="2c",IF(AND($J20>0,$J20<=2350),($J20/1000)+0.24,""),IF(AND($J20>0,$J20<=2400),($J20/1000)+0.27,"")), IF('Main Details'!$F$10="2c",IF(AND($J20>0,$J20<=2050),($J20/1000)+0.24,""),IF(AND($J20>0,$J20<=2100),($J20/1000)+0.27,"")) ),"") ->  | AI20: =IF($M20="Y",IF('Main Details'!$G$28, IF('Main Details'!$F$10="2c",IF(AND($J20>2350,$J20<=2650),($J20/1000)+0.3,""),IF(AND($J20>2400,$J20<=2650),($J20/1000)+0.3,"")), IF('Main Details'!$F$10="2c",IF(AND($J20>2050,$J20<=2250),($J20/1000)+0.3,""),IF(AND($J20>2100,$J20<=2250),($J20/1000)+0.3,"")) ),"") ->  | AJ20: =IF($M20="Y",IF('Main Details'!$G$28, IF('Main Details'!$F$10="2c",IF(AND($J20>2650,$J20<=3450),($J20/1000)+0.3,""),""), IF('Main Details'!$F$10="2c",IF(AND($J20>2250,$J20<=3000),($J20/1000)+0.3,""),"") ),"") ->  | AK20: =IF($M20="Y",IF('Main Details'!$G$28, IF('Main Details'!$F$10="2c",IF(AND($J20>3450,$J20<=3850),($J20/1000)+0.3,""),IF(AND($J20>2650,$J20<=3850),($J20/1000)+0.3,"")), IF('Main Details'!$F$10="2c",IF(AND($J20>3000,$J20<=3450),($J20/1000)+0.3,""),IF(AND($J20>2250,$J20<=3450),($J20/1000)+0.3,"")) ),"") ->  | AN20: =IF(AND($J20<=7199,$J20>=4001),($J20+'BUILDERS SETTINGS'!$C$15)/1000," ") ->  | AO20: =IF(AND(#REF!>0,G20>0),(#REF!*0.086)*(J20/1000)," ") ->  | AQ20: 200 | AR20: 0 | AS20: 0 | AT20: 0 | AU20: 0 | AW20: 0 | AX20: 0
A21: =IF(Q21>0,I21+#REF!) -> FALSE | H21: x | I21: 7.5 | T21: 0 | U21: 0 | V21: 0 | Z21: =IF('Main Details'!$G$28,IF(AND($J21>0,$J21<=1600,$B21<>"GOB"),($J21/1000)+0.2,""),IF(AND($J21>0,$J21<=1200),($J21/1000)+0.2,"")) ->  | AA21: =IF('Main Details'!$G$28,IF(AND($J21>1600,$J21<=1900),($J21/1000)+0.2,""),IF(AND($J21>1200,$J21<=1500),($J21/1000)+0.2,"")) ->  | AB21: =IF('Main Details'!$G$28,IF(AND($J21>1900,$J21<=2600),($J21/1000)+0.27,""),IF(AND($J21>1500,$J21<=2200),($J21/1000)+0.27,"")) ->  | AC21: =IF('Main Details'!$G$28,IF(AND($J21>2600,$J21<=3100),($J21/1000)+0.3,""),IF(AND($J21>2200,$J21<=2600),($J21/1000)+0.3,"")) ->  | AD21: =IF('Main Details'!$G$28,IF(AND($J21>3100,$J21<=3450),($J21/1000)+0.3,""),IF(AND($J21>2600,$J21<=3000),($J21/1000)+0.3,"")) ->  | AE21: =IF('Main Details'!$G$28,IF(AND($J21>3450,$J21<=3850),($J21/1000)+0.3,""),IF(AND($J21>3000,$J21<=3450),($J21/1000)+0.3,"")) ->  | AH21: =IF(OR($M21="Y",$B21="GOB"),IF('Main Details'!$G$28, IF('Main Details'!$F$10="2c",IF(AND($J21>0,$J21<=2350),($J21/1000)+0.24,""),IF(AND($J21>0,$J21<=2400),($J21/1000)+0.27,"")), IF('Main Details'!$F$10="2c",IF(AND($J21>0,$J21<=2050),($J21/1000)+0.24,""),IF(AND($J21>0,$J21<=2100),($J21/1000)+0.27,"")) ),"") ->  | AI21: =IF($M21="Y",IF('Main Details'!$G$28, IF('Main Details'!$F$10="2c",IF(AND($J21>2350,$J21<=2650),($J21/1000)+0.3,""),IF(AND($J21>2400,$J21<=2650),($J21/1000)+0.3,"")), IF('Main Details'!$F$10="2c",IF(AND($J21>2050,$J21<=2250),($J21/1000)+0.3,""),IF(AND($J21>2100,$J21<=2250),($J21/1000)+0.3,"")) ),"") ->  | AJ21: =IF($M21="Y",IF('Main Details'!$G$28, IF('Main Details'!$F$10="2c",IF(AND($J21>2650,$J21<=3450),($J21/1000)+0.3,""),""), IF('Main Details'!$F$10="2c",IF(AND($J21>2250,$J21<=3000),($J21/1000)+0.3,""),"") ),"") ->  | AK21: =IF($M21="Y",IF('Main Details'!$G$28, IF('Main Details'!$F$10="2c",IF(AND($J21>3450,$J21<=3850),($J21/1000)+0.3,""),IF(AND($J21>2650,$J21<=3850),($J21/1000)+0.3,"")), IF('Main Details'!$F$10="2c",IF(AND($J21>3000,$J21<=3450),($J21/1000)+0.3,""),IF(AND($J21>2250,$J21<=3450),($J21/1000)+0.3,"")) ),"") ->  | AN21: =IF(AND($J21<=7199,$J21>=4001),($J21+'BUILDERS SETTINGS'!$C$15)/1000," ") ->  | AO21: =IF(AND(#REF!>0,G21>0),(#REF!*0.086)*(J21/1000)," ") ->  | AQ21: 200 | AR21: 0 | AS21: 0 | AT21: 0 | AU21: 0 | AW21: 0 | AX21: 0
A22: =IF(Q22>0,I22+#REF!) -> FALSE | H22: x | I22: 7.5 | T22: 0 | U22: 0 | V22: 0 | Z22: =IF('Main Details'!$G$28,IF(AND($J22>0,$J22<=1600,$B22<>"GOB"),($J22/1000)+0.2,""),IF(AND($J22>0,$J22<=1200),($J22/1000)+0.2,"")) ->  | AA22: =IF('Main Details'!$G$28,IF(AND($J22>1600,$J22<=1900),($J22/1000)+0.2,""),IF(AND($J22>1200,$J22<=1500),($J22/1000)+0.2,"")) ->  | AB22: =IF('Main Details'!$G$28,IF(AND($J22>1900,$J22<=2600),($J22/1000)+0.27,""),IF(AND($J22>1500,$J22<=2200),($J22/1000)+0.27,"")) ->  | AC22: =IF('Main Details'!$G$28,IF(AND($J22>2600,$J22<=3100),($J22/1000)+0.3,""),IF(AND($J22>2200,$J22<=2600),($J22/1000)+0.3,"")) ->  | AD22: =IF('Main Details'!$G$28,IF(AND($J22>3100,$J22<=3450),($J22/1000)+0.3,""),IF(AND($J22>2600,$J22<=3000),($J22/1000)+0.3,"")) ->  | AE22: =IF('Main Details'!$G$28,IF(AND($J22>3450,$J22<=3850),($J22/1000)+0.3,""),IF(AND($J22>3000,$J22<=3450),($J22/1000)+0.3,"")) ->  | AH22: =IF(OR($M22="Y",$B22="GOB"),IF('Main Details'!$G$28, IF('Main Details'!$F$10="2c",IF(AND($J22>0,$J22<=2350),($J22/1000)+0.24,""),IF(AND($J22>0,$J22<=2400),($J22/1000)+0.27,"")), IF('Main Details'!$F$10="2c",IF(AND($J22>0,$J22<=2050),($J22/1000)+0.24,""),IF(AND($J22>0,$J22<=2100),($J22/1000)+0.27,"")) ),"") ->  | AI22: =IF($M22="Y",IF('Main Details'!$G$28, IF('Main Details'!$F$10="2c",IF(AND($J22>2350,$J22<=2650),($J22/1000)+0.3,""),IF(AND($J22>2400,$J22<=2650),($J22/1000)+0.3,"")), IF('Main Details'!$F$10="2c",IF(AND($J22>2050,$J22<=2250),($J22/1000)+0.3,""),IF(AND($J22>2100,$J22<=2250),($J22/1000)+0.3,"")) ),"") ->  | AJ22: =IF($M22="Y",IF('Main Details'!$G$28, IF('Main Details'!$F$10="2c",IF(AND($J22>2650,$J22<=3450),($J22/1000)+0.3,""),""), IF('Main Details'!$F$10="2c",IF(AND($J22>2250,$J22<=3000),($J22/1000)+0.3,""),"") ),"") ->  | AK22: =IF($M22="Y",IF('Main Details'!$G$28, IF('Main Details'!$F$10="2c",IF(AND($J22>3450,$J22<=3850),($J22/1000)+0.3,""),IF(AND($J22>2650,$J22<=3850),($J22/1000)+0.3,"")), IF('Main Details'!$F$10="2c",IF(AND($J22>3000,$J22<=3450),($J22/1000)+0.3,""),IF(AND($J22>2250,$J22<=3450),($J22/1000)+0.3,"")) ),"") ->  | AN22: =IF(AND($J22<=7199,$J22>=4001),($J22+'BUILDERS SETTINGS'!$C$15)/1000," ") ->  | AO22: =IF(AND(#REF!>0,G22>0),(#REF!*0.086)*(J22/1000)," ") ->  | AQ22: 200 | AR22: 0 | AS22: 0 | AT22: 0 | AU22: 0 | AW22: 0 | AX22: 0 | BL22: r
A23: =IF(Q23>0,I23+#REF!) -> FALSE | H23: x | I23: =(IF(J23=""," ",(J23-10)/240)) ->  | K23: =IF(G23>0,(J23+160)/1000," ") ->  | T23: 0 | U23: 0 | V23: 0 | Z23: =IF('Main Details'!$G$28,IF(AND($J23>0,$J23<=1600,$B23<>"GOB"),($J23/1000)+0.2,""),IF(AND($J23>0,$J23<=1200),($J23/1000)+0.2,"")) ->  | AA23: =IF('Main Details'!$G$28,IF(AND($J23>1600,$J23<=1900),($J23/1000)+0.2,""),IF(AND($J23>1200,$J23<=1500),($J23/1000)+0.2,"")) ->  | AB23: =IF('Main Details'!$G$28,IF(AND($J23>1900,$J23<=2600),($J23/1000)+0.27,""),IF(AND($J23>1500,$J23<=2200),($J23/1000)+0.27,"")) ->  | AC23: =IF('Main Details'!$G$28,IF(AND($J23>2600,$J23<=3100),($J23/1000)+0.3,""),IF(AND($J23>2200,$J23<=2600),($J23/1000)+0.3,"")) ->  | AD23: =IF('Main Details'!$G$28,IF(AND($J23>3100,$J23<=3450),($J23/1000)+0.3,""),IF(AND($J23>2600,$J23<=3000),($J23/1000)+0.3,"")) ->  | AE23: =IF('Main Details'!$G$28,IF(AND($J23>3450,$J23<=3850),($J23/1000)+0.3,""),IF(AND($J23>3000,$J23<=3450),($J23/1000)+0.3,"")) ->  | AH23: =IF(OR($M23="Y",$B23="GOB"),IF('Main Details'!$G$28, IF('Main Details'!$F$10="2c",IF(AND($J23>0,$J23<=2350),($J23/1000)+0.24,""),IF(AND($J23>0,$J23<=2400),($J23/1000)+0.27,"")), IF('Main Details'!$F$10="2c",IF(AND($J23>0,$J23<=2050),($J23/1000)+0.24,""),IF(AND($J23>0,$J23<=2100),($J23/1000)+0.27,"")) ),"") ->  | AI23: =IF($M23="Y",IF('Main Details'!$G$28, IF('Main Details'!$F$10="2c",IF(AND($J23>2350,$J23<=2650),($J23/1000)+0.3,""),IF(AND($J23>2400,$J23<=2650),($J23/1000)+0.3,"")), IF('Main Details'!$F$10="2c",IF(AND($J23>2050,$J23<=2250),($J23/1000)+0.3,""),IF(AND($J23>2100,$J23<=2250),($J23/1000)+0.3,"")) ),"") ->  | AJ23: =IF($M23="Y",IF('Main Details'!$G$28, IF('Main Details'!$F$10="2c",IF(AND($J23>2650,$J23<=3450),($J23/1000)+0.3,""),""), IF('Main Details'!$F$10="2c",IF(AND($J23>2250,$J23<=3000),($J23/1000)+0.3,""),"") ),"") ->  | AK23: =IF($M23="Y",IF('Main Details'!$G$28, IF('Main Details'!$F$10="2c",IF(AND($J23>3450,$J23<=3850),($J23/1000)+0.3,""),IF(AND($J23>2650,$J23<=3850),($J23/1000)+0.3,"")), IF('Main Details'!$F$10="2c",IF(AND($J23>3000,$J23<=3450),($J23/1000)+0.3,""),IF(AND($J23>2250,$J23<=3450),($J23/1000)+0.3,"")) ),"") ->  | AN23: =IF(AND($J23<=7199,$J23>=4001),($J23+'BUILDERS SETTINGS'!$C$15)/1000," ") ->  | AO23: =IF(AND(#REF!>0,G23>0),(#REF!*0.086)*(J23/1000)," ") ->  | AQ23: 200 | AR23: 0 | AS23: 0 | AT23: 0 | AU23: 0 | AW23: 0 | AX23: 0 | BL23: r
A24: =IF(Q24>0,I24+#REF!) -> FALSE | H24: x | T24: 0 | U24: 0 | V24: 0 | Z24: =IF('Main Details'!$G$28,IF(AND($J24>0,$J24<=1600,$B24<>"GOB"),($J24/1000)+0.2,""),IF(AND($J24>0,$J24<=1200),($J24/1000)+0.2,"")) ->  | AA24: =IF('Main Details'!$G$28,IF(AND($J24>1600,$J24<=1900),($J24/1000)+0.2,""),IF(AND($J24>1200,$J24<=1500),($J24/1000)+0.2,"")) ->  | AB24: =IF('Main Details'!$G$28,IF(AND($J24>1900,$J24<=2600),($J24/1000)+0.27,""),IF(AND($J24>1500,$J24<=2200),($J24/1000)+0.27,"")) ->  | AC24: =IF('Main Details'!$G$28,IF(AND($J24>2600,$J24<=3100),($J24/1000)+0.3,""),IF(AND($J24>2200,$J24<=2600),($J24/1000)+0.3,"")) ->  | AD24: =IF('Main Details'!$G$28,IF(AND($J24>3100,$J24<=3450),($J24/1000)+0.3,""),IF(AND($J24>2600,$J24<=3000),($J24/1000)+0.3,"")) ->  | AE24: =IF('Main Details'!$G$28,IF(AND($J24>3450,$J24<=3850),($J24/1000)+0.3,""),IF(AND($J24>3000,$J24<=3450),($J24/1000)+0.3,"")) ->  | AH24: =IF(OR($M24="Y",$B24="GOB"),IF('Main Details'!$G$28, IF('Main Details'!$F$10="2c",IF(AND($J24>0,$J24<=2350),($J24/1000)+0.24,""),IF(AND($J24>0,$J24<=2400),($J24/1000)+0.27,"")), IF('Main Details'!$F$10="2c",IF(AND($J24>0,$J24<=2050),($J24/1000)+0.24,""),IF(AND($J24>0,$J24<=2100),($J24/1000)+0.27,"")) ),"") ->  | AI24: =IF($M24="Y",IF('Main Details'!$G$28, IF('Main Details'!$F$10="2c",IF(AND($J24>2350,$J24<=2650),($J24/1000)+0.3,""),IF(AND($J24>2400,$J24<=2650),($J24/1000)+0.3,"")), IF('Main Details'!$F$10="2c",IF(AND($J24>2050,$J24<=2250),($J24/1000)+0.3,""),IF(AND($J24>2100,$J24<=2250),($J24/1000)+0.3,"")) ),"") ->  | AJ24: =IF($M24="Y",IF('Main Details'!$G$28, IF('Main Details'!$F$10="2c",IF(AND($J24>2650,$J24<=3450),($J24/1000)+0.3,""),""), IF('Main Details'!$F$10="2c",IF(AND($J24>2250,$J24<=3000),($J24/1000)+0.3,""),"") ),"") ->  | AK24: =IF($M24="Y",IF('Main Details'!$G$28, IF('Main Details'!$F$10="2c",IF(AND($J24>3450,$J24<=3850),($J24/1000)+0.3,""),IF(AND($J24>2650,$J24<=3850),($J24/1000)+0.3,"")), IF('Main Details'!$F$10="2c",IF(AND($J24>3000,$J24<=3450),($J24/1000)+0.3,""),IF(AND($J24>2250,$J24<=3450),($J24/1000)+0.3,"")) ),"") ->  | AN24: =IF(AND($J24<=7199,$J24>=4001),($J24+'BUILDERS SETTINGS'!$C$15)/1000," ") ->  | AO24: =IF(AND(#REF!>0,G24>0),(#REF!*0.086)*(J24/1000)," ") ->  | AQ24: 200 | AR24: 0 | AS24: 0 | AT24: 0 | AU24: 0 | AW24: 0 | AX24: 0
A25: =IF(Q25>0,I25+#REF!) -> FALSE | H25: x | T25: 0 | U25: 0 | V25: 0 | Z25: =IF('Main Details'!$G$28,IF(AND($J25>0,$J25<=1600,$B25<>"GOB"),($J25/1000)+0.2,""),IF(AND($J25>0,$J25<=1200),($J25/1000)+0.2,"")) ->  | AA25: =IF('Main Details'!$G$28,IF(AND($J25>1600,$J25<=1900),($J25/1000)+0.2,""),IF(AND($J25>1200,$J25<=1500),($J25/1000)+0.2,"")) ->  | AB25: =IF('Main Details'!$G$28,IF(AND($J25>1900,$J25<=2600),($J25/1000)+0.27,""),IF(AND($J25>1500,$J25<=2200),($J25/1000)+0.27,"")) ->  | AC25: =IF('Main Details'!$G$28,IF(AND($J25>2600,$J25<=3100),($J25/1000)+0.3,""),IF(AND($J25>2200,$J25<=2600),($J25/1000)+0.3,"")) ->  | AD25: =IF('Main Details'!$G$28,IF(AND($J25>3100,$J25<=3450),($J25/1000)+0.3,""),IF(AND($J25>2600,$J25<=3000),($J25/1000)+0.3,"")) ->  | AE25: =IF('Main Details'!$G$28,IF(AND($J25>3450,$J25<=3850),($J25/1000)+0.3,""),IF(AND($J25>3000,$J25<=3450),($J25/1000)+0.3,"")) ->  | AH25: =IF(OR($M25="Y",$B25="GOB"),IF('Main Details'!$G$28, IF('Main Details'!$F$10="2c",IF(AND($J25>0,$J25<=2350),($J25/1000)+0.24,""),IF(AND($J25>0,$J25<=2400),($J25/1000)+0.27,"")), IF('Main Details'!$F$10="2c",IF(AND($J25>0,$J25<=2050),($J25/1000)+0.24,""),IF(AND($J25>0,$J25<=2100),($J25/1000)+0.27,"")) ),"") ->  | AI25: =IF($M25="Y",IF('Main Details'!$G$28, IF('Main Details'!$F$10="2c",IF(AND($J25>2350,$J25<=2650),($J25/1000)+0.3,""),IF(AND($J25>2400,$J25<=2650),($J25/1000)+0.3,"")), IF('Main Details'!$F$10="2c",IF(AND($J25>2050,$J25<=2250),($J25/1000)+0.3,""),IF(AND($J25>2100,$J25<=2250),($J25/1000)+0.3,"")) ),"") ->  | AJ25: =IF($M25="Y",IF('Main Details'!$G$28, IF('Main Details'!$F$10="2c",IF(AND($J25>2650,$J25<=3450),($J25/1000)+0.3,""),""), IF('Main Details'!$F$10="2c",IF(AND($J25>2250,$J25<=3000),($J25/1000)+0.3,""),"") ),"") ->  | AK25: =IF($M25="Y",IF('Main Details'!$G$28, IF('Main Details'!$F$10="2c",IF(AND($J25>3450,$J25<=3850),($J25/1000)+0.3,""),IF(AND($J25>2650,$J25<=3850),($J25/1000)+0.3,"")), IF('Main Details'!$F$10="2c",IF(AND($J25>3000,$J25<=3450),($J25/1000)+0.3,""),IF(AND($J25>2250,$J25<=3450),($J25/1000)+0.3,"")) ),"") ->  | AN25: =IF(AND($J25<=7199,$J25>=4001),($J25+'BUILDERS SETTINGS'!$C$15)/1000," ") ->  | AO25: =IF(AND(#REF!>0,G25>0),(#REF!*0.086)*(J25/1000)," ") ->  | AQ25: 200 | AR25: 0 | AS25: 0 | AT25: 0 | AU25: 0 | AW25: 0 | AX25: 0
A26: =IF(Q26>0,I26+#REF!) -> FALSE | H26: x | T26: 0 | U26: 0 | V26: 0 | Z26: =IF('Main Details'!$G$28,IF(AND($J26>0,$J26<=1600,$B26<>"GOB"),($J26/1000)+0.2,""),IF(AND($J26>0,$J26<=1200),($J26/1000)+0.2,"")) ->  | AA26: =IF('Main Details'!$G$28,IF(AND($J26>1600,$J26<=1900),($J26/1000)+0.2,""),IF(AND($J26>1200,$J26<=1500),($J26/1000)+0.2,"")) ->  | AB26: =IF('Main Details'!$G$28,IF(AND($J26>1900,$J26<=2600),($J26/1000)+0.27,""),IF(AND($J26>1500,$J26<=2200),($J26/1000)+0.27,"")) ->  | AC26: =IF('Main Details'!$G$28,IF(AND($J26>2600,$J26<=3100),($J26/1000)+0.3,""),IF(AND($J26>2200,$J26<=2600),($J26/1000)+0.3,"")) ->  | AD26: =IF('Main Details'!$G$28,IF(AND($J26>3100,$J26<=3450),($J26/1000)+0.3,""),IF(AND($J26>2600,$J26<=3000),($J26/1000)+0.3,"")) ->  | AE26: =IF('Main Details'!$G$28,IF(AND($J26>3450,$J26<=3850),($J26/1000)+0.3,""),IF(AND($J26>3000,$J26<=3450),($J26/1000)+0.3,"")) ->  | AH26: =IF(OR($M26="Y",$B26="GOB"),IF('Main Details'!$G$28, IF('Main Details'!$F$10="2c",IF(AND($J26>0,$J26<=2350),($J26/1000)+0.24,""),IF(AND($J26>0,$J26<=2400),($J26/1000)+0.27,"")), IF('Main Details'!$F$10="2c",IF(AND($J26>0,$J26<=2050),($J26/1000)+0.24,""),IF(AND($J26>0,$J26<=2100),($J26/1000)+0.27,"")) ),"") ->  | AI26: =IF($M26="Y",IF('Main Details'!$G$28, IF('Main Details'!$F$10="2c",IF(AND($J26>2350,$J26<=2650),($J26/1000)+0.3,""),IF(AND($J26>2400,$J26<=2650),($J26/1000)+0.3,"")), IF('Main Details'!$F$10="2c",IF(AND($J26>2050,$J26<=2250),($J26/1000)+0.3,""),IF(AND($J26>2100,$J26<=2250),($J26/1000)+0.3,"")) ),"") ->  | AJ26: =IF($M26="Y",IF('Main Details'!$G$28, IF('Main Details'!$F$10="2c",IF(AND($J26>2650,$J26<=3450),($J26/1000)+0.3,""),""), IF('Main Details'!$F$10="2c",IF(AND($J26>2250,$J26<=3000),($J26/1000)+0.3,""),"") ),"") ->  | AK26: =IF($M26="Y",IF('Main Details'!$G$28, IF('Main Details'!$F$10="2c",IF(AND($J26>3450,$J26<=3850),($J26/1000)+0.3,""),IF(AND($J26>2650,$J26<=3850),($J26/1000)+0.3,"")), IF('Main Details'!$F$10="2c",IF(AND($J26>3000,$J26<=3450),($J26/1000)+0.3,""),IF(AND($J26>2250,$J26<=3450),($J26/1000)+0.3,"")) ),"") ->  | AN26: =IF(AND($J26<=7199,$J26>=4001),($J26+'BUILDERS SETTINGS'!$C$15)/1000," ") ->  | AO26: =IF(AND(#REF!>0,G26>0),(#REF!*0.086)*(J26/1000)," ") ->  | AQ26: 200 | AR26: 0 | AS26: 0 | AT26: 0 | AU26: 0 | AW26: 0 | AX26: 0
A27: =IF(Q27>0,I27+#REF!) -> FALSE | H27: x | T27: 0 | U27: 0 | V27: 0 | Z27: =IF('Main Details'!$G$28,IF(AND($J27>0,$J27<=1600,$B27<>"GOB"),($J27/1000)+0.2,""),IF(AND($J27>0,$J27<=1200),($J27/1000)+0.2,"")) ->  | AA27: =IF('Main Details'!$G$28,IF(AND($J27>1600,$J27<=1900),($J27/1000)+0.2,""),IF(AND($J27>1200,$J27<=1500),($J27/1000)+0.2,"")) ->  | AB27: =IF('Main Details'!$G$28,IF(AND($J27>1900,$J27<=2600),($J27/1000)+0.27,""),IF(AND($J27>1500,$J27<=2200),($J27/1000)+0.27,"")) ->  | AC27: =IF('Main Details'!$G$28,IF(AND($J27>2600,$J27<=3100),($J27/1000)+0.3,""),IF(AND($J27>2200,$J27<=2600),($J27/1000)+0.3,"")) ->  | AD27: =IF('Main Details'!$G$28,IF(AND($J27>3100,$J27<=3450),($J27/1000)+0.3,""),IF(AND($J27>2600,$J27<=3000),($J27/1000)+0.3,"")) ->  | AE27: =IF('Main Details'!$G$28,IF(AND($J27>3450,$J27<=3850),($J27/1000)+0.3,""),IF(AND($J27>3000,$J27<=3450),($J27/1000)+0.3,"")) ->  | AH27: =IF(OR($M27="Y",$B27="GOB"),IF('Main Details'!$G$28, IF('Main Details'!$F$10="2c",IF(AND($J27>0,$J27<=2350),($J27/1000)+0.24,""),IF(AND($J27>0,$J27<=2400),($J27/1000)+0.27,"")), IF('Main Details'!$F$10="2c",IF(AND($J27>0,$J27<=2050),($J27/1000)+0.24,""),IF(AND($J27>0,$J27<=2100),($J27/1000)+0.27,"")) ),"") ->  | AI27: =IF($M27="Y",IF('Main Details'!$G$28, IF('Main Details'!$F$10="2c",IF(AND($J27>2350,$J27<=2650),($J27/1000)+0.3,""),IF(AND($J27>2400,$J27<=2650),($J27/1000)+0.3,"")), IF('Main Details'!$F$10="2c",IF(AND($J27>2050,$J27<=2250),($J27/1000)+0.3,""),IF(AND($J27>2100,$J27<=2250),($J27/1000)+0.3,"")) ),"") ->  | AJ27: =IF($M27="Y",IF('Main Details'!$G$28, IF('Main Details'!$F$10="2c",IF(AND($J27>2650,$J27<=3450),($J27/1000)+0.3,""),""), IF('Main Details'!$F$10="2c",IF(AND($J27>2250,$J27<=3000),($J27/1000)+0.3,""),"") ),"") ->  | AK27: =IF($M27="Y",IF('Main Details'!$G$28, IF('Main Details'!$F$10="2c",IF(AND($J27>3450,$J27<=3850),($J27/1000)+0.3,""),IF(AND($J27>2650,$J27<=3850),($J27/1000)+0.3,"")), IF('Main Details'!$F$10="2c",IF(AND($J27>3000,$J27<=3450),($J27/1000)+0.3,""),IF(AND($J27>2250,$J27<=3450),($J27/1000)+0.3,"")) ),"") ->  | AN27: =IF(AND($J27<=7199,$J27>=4001),($J27+'BUILDERS SETTINGS'!$C$15)/1000," ") ->  | AO27: =IF(AND(#REF!>0,G27>0),(#REF!*0.086)*(J27/1000)," ") ->  | AQ27: 200 | AR27: 0 | AS27: 0 | AT27: 0 | AU27: 0 | AW27: 0 | AX27: 0
A28: =IF(Q28>0,I28+#REF!) -> FALSE | C28: =IF(D28="Y",G28*I28,0) -> 0 | D28: N | F28: =IF(AND(#REF!>0,G28>0),(#REF!*0.086)*(J28/1000)," ") ->  | H28: x | T28: 0 | U28: 0 | V28: 0 | Z28: =IF('Main Details'!$G$28,IF(AND($J28>0,$J28<=1600,$B28<>"GOB"),($J28/1000)+0.2,""),IF(AND($J28>0,$J28<=1200),($J28/1000)+0.2,"")) ->  | AA28: =IF('Main Details'!$G$28,IF(AND($J28>1600,$J28<=1900),($J28/1000)+0.2,""),IF(AND($J28>1200,$J28<=1500),($J28/1000)+0.2,"")) ->  | AB28: =IF('Main Details'!$G$28,IF(AND($J28>1900,$J28<=2600),($J28/1000)+0.27,""),IF(AND($J28>1500,$J28<=2200),($J28/1000)+0.27,"")) ->  | AC28: =IF('Main Details'!$G$28,IF(AND($J28>2600,$J28<=3100),($J28/1000)+0.3,""),IF(AND($J28>2200,$J28<=2600),($J28/1000)+0.3,"")) ->  | AD28: =IF('Main Details'!$G$28,IF(AND($J28>3100,$J28<=3450),($J28/1000)+0.3,""),IF(AND($J28>2600,$J28<=3000),($J28/1000)+0.3,"")) ->  | AE28: =IF('Main Details'!$G$28,IF(AND($J28>3450,$J28<=3850),($J28/1000)+0.3,""),IF(AND($J28>3000,$J28<=3450),($J28/1000)+0.3,"")) ->  | AH28: =IF(OR($M28="Y",$B28="GOB"),IF('Main Details'!$G$28, IF('Main Details'!$F$10="2c",IF(AND($J28>0,$J28<=2350),($J28/1000)+0.24,""),IF(AND($J28>0,$J28<=2400),($J28/1000)+0.27,"")), IF('Main Details'!$F$10="2c",IF(AND($J28>0,$J28<=2050),($J28/1000)+0.24,""),IF(AND($J28>0,$J28<=2100),($J28/1000)+0.27,"")) ),"") ->  | AI28: =IF($M28="Y",IF('Main Details'!$G$28, IF('Main Details'!$F$10="2c",IF(AND($J28>2350,$J28<=2650),($J28/1000)+0.3,""),IF(AND($J28>2400,$J28<=2650),($J28/1000)+0.3,"")), IF('Main Details'!$F$10="2c",IF(AND($J28>2050,$J28<=2250),($J28/1000)+0.3,""),IF(AND($J28>2100,$J28<=2250),($J28/1000)+0.3,"")) ),"") ->  | AJ28: =IF($M28="Y",IF('Main Details'!$G$28, IF('Main Details'!$F$10="2c",IF(AND($J28>2650,$J28<=3450),($J28/1000)+0.3,""),""), IF('Main Details'!$F$10="2c",IF(AND($J28>2250,$J28<=3000),($J28/1000)+0.3,""),"") ),"") ->  | AK28: =IF($M28="Y",IF('Main Details'!$G$28, IF('Main Details'!$F$10="2c",IF(AND($J28>3450,$J28<=3850),($J28/1000)+0.3,""),IF(AND($J28>2650,$J28<=3850),($J28/1000)+0.3,"")), IF('Main Details'!$F$10="2c",IF(AND($J28>3000,$J28<=3450),($J28/1000)+0.3,""),IF(AND($J28>2250,$J28<=3450),($J28/1000)+0.3,"")) ),"") ->  | AN28: =IF(AND($J28<=7199,$J28>=4001),($J28+'BUILDERS SETTINGS'!$C$15)/1000," ") ->  | AO28: =IF(AND(#REF!>0,G28>0),(#REF!*0.086)*(J28/1000)," ") ->  | AQ28: 200 | AR28: 0 | AS28: 0 | AT28: 0 | AU28: 0 | AW28: 0 | AX28: 0
A29: =IF(Q29>0,I29+#REF!) -> FALSE | C29: =IF(D29="Y",G29*I29,0) -> 0 | D29: N | F29: =IF(AND(#REF!>0,G29>0),(#REF!*0.086)*(J29/1000)," ") ->  | H29: x | I29: =(IF(J29=""," ",(J29-10)/240)) ->  | T29: 0 | U29: 0 | V29: 0 | Z29: =IF('Main Details'!$G$28,IF(AND($J29>0,$J29<=1600,$B29<>"GOB"),($J29/1000)+0.2,""),IF(AND($J29>0,$J29<=1200),($J29/1000)+0.2,"")) ->  | AA29: =IF('Main Details'!$G$28,IF(AND($J29>1600,$J29<=1900),($J29/1000)+0.2,""),IF(AND($J29>1200,$J29<=1500),($J29/1000)+0.2,"")) ->  | AB29: =IF('Main Details'!$G$28,IF(AND($J29>1900,$J29<=2600),($J29/1000)+0.27,""),IF(AND($J29>1500,$J29<=2200),($J29/1000)+0.27,"")) ->  | AC29: =IF('Main Details'!$G$28,IF(AND($J29>2600,$J29<=3100),($J29/1000)+0.3,""),IF(AND($J29>2200,$J29<=2600),($J29/1000)+0.3,"")) ->  | AD29: =IF('Main Details'!$G$28,IF(AND($J29>3100,$J29<=3450),($J29/1000)+0.3,""),IF(AND($J29>2600,$J29<=3000),($J29/1000)+0.3,"")) ->  | AE29: =IF('Main Details'!$G$28,IF(AND($J29>3450,$J29<=3850),($J29/1000)+0.3,""),IF(AND($J29>3000,$J29<=3450),($J29/1000)+0.3,"")) ->  | AH29: =IF(OR($M29="Y",$B29="GOB"),IF('Main Details'!$G$28, IF('Main Details'!$F$10="2c",IF(AND($J29>0,$J29<=2350),($J29/1000)+0.24,""),IF(AND($J29>0,$J29<=2400),($J29/1000)+0.27,"")), IF('Main Details'!$F$10="2c",IF(AND($J29>0,$J29<=2050),($J29/1000)+0.24,""),IF(AND($J29>0,$J29<=2100),($J29/1000)+0.27,"")) ),"") ->  | AI29: =IF($M29="Y",IF('Main Details'!$G$28, IF('Main Details'!$F$10="2c",IF(AND($J29>2350,$J29<=2650),($J29/1000)+0.3,""),IF(AND($J29>2400,$J29<=2650),($J29/1000)+0.3,"")), IF('Main Details'!$F$10="2c",IF(AND($J29>2050,$J29<=2250),($J29/1000)+0.3,""),IF(AND($J29>2100,$J29<=2250),($J29/1000)+0.3,"")) ),"") ->  | AJ29: =IF($M29="Y",IF('Main Details'!$G$28, IF('Main Details'!$F$10="2c",IF(AND($J29>2650,$J29<=3450),($J29/1000)+0.3,""),""), IF('Main Details'!$F$10="2c",IF(AND($J29>2250,$J29<=3000),($J29/1000)+0.3,""),"") ),"") ->  | AK29: =IF($M29="Y",IF('Main Details'!$G$28, IF('Main Details'!$F$10="2c",IF(AND($J29>3450,$J29<=3850),($J29/1000)+0.3,""),IF(AND($J29>2650,$J29<=3850),($J29/1000)+0.3,"")), IF('Main Details'!$F$10="2c",IF(AND($J29>3000,$J29<=3450),($J29/1000)+0.3,""),IF(AND($J29>2250,$J29<=3450),($J29/1000)+0.3,"")) ),"") ->  | AN29: =IF(AND($J29<=7199,$J29>=4001),($J29+'BUILDERS SETTINGS'!$C$15)/1000," ") ->  | AO29: =IF(AND(#REF!>0,G29>0),(#REF!*0.086)*(J29/1000)," ") ->  | AQ29: 200 | AR29: 0 | AS29: 0 | AT29: 0 | AU29: 0 | AW29: 0 | AX29: 0
A30: =IF(Q30>0,I30+#REF!) -> FALSE | C30: =IF(D30="Y",G30*I30,0) -> 0 | D30: N | F30: =IF(AND(#REF!>0,G30>0),(#REF!*0.086)*(J30/1000)," ") ->  | H30: x | I30: =(IF(J30=""," ",(J30-10)/240)) ->  | T30: 0 | U30: 0 | V30: 0 | Z30: =IF('Main Details'!$G$28,IF(AND($J30>0,$J30<=1600,$B30<>"GOB"),($J30/1000)+0.2,""),IF(AND($J30>0,$J30<=1200),($J30/1000)+0.2,"")) ->  | AA30: =IF('Main Details'!$G$28,IF(AND($J30>1600,$J30<=1900),($J30/1000)+0.2,""),IF(AND($J30>1200,$J30<=1500),($J30/1000)+0.2,"")) ->  | AB30: =IF('Main Details'!$G$28,IF(AND($J30>1900,$J30<=2600),($J30/1000)+0.27,""),IF(AND($J30>1500,$J30<=2200),($J30/1000)+0.27,"")) ->  | AC30: =IF('Main Details'!$G$28,IF(AND($J30>2600,$J30<=3100),($J30/1000)+0.3,""),IF(AND($J30>2200,$J30<=2600),($J30/1000)+0.3,"")) ->  | AD30: =IF('Main Details'!$G$28,IF(AND($J30>3100,$J30<=3450),($J30/1000)+0.3,""),IF(AND($J30>2600,$J30<=3000),($J30/1000)+0.3,"")) ->  | AE30: =IF('Main Details'!$G$28,IF(AND($J30>3450,$J30<=3850),($J30/1000)+0.3,""),IF(AND($J30>3000,$J30<=3450),($J30/1000)+0.3,"")) ->  | AH30: =IF(OR($M30="Y",$B30="GOB"),IF('Main Details'!$G$28, IF('Main Details'!$F$10="2c",IF(AND($J30>0,$J30<=2350),($J30/1000)+0.24,""),IF(AND($J30>0,$J30<=2400),($J30/1000)+0.27,"")), IF('Main Details'!$F$10="2c",IF(AND($J30>0,$J30<=2050),($J30/1000)+0.24,""),IF(AND($J30>0,$J30<=2100),($J30/1000)+0.27,"")) ),"") ->  | AI30: =IF($M30="Y",IF('Main Details'!$G$28, IF('Main Details'!$F$10="2c",IF(AND($J30>2350,$J30<=2650),($J30/1000)+0.3,""),IF(AND($J30>2400,$J30<=2650),($J30/1000)+0.3,"")), IF('Main Details'!$F$10="2c",IF(AND($J30>2050,$J30<=2250),($J30/1000)+0.3,""),IF(AND($J30>2100,$J30<=2250),($J30/1000)+0.3,"")) ),"") ->  | AJ30: =IF($M30="Y",IF('Main Details'!$G$28, IF('Main Details'!$F$10="2c",IF(AND($J30>2650,$J30<=3450),($J30/1000)+0.3,""),""), IF('Main Details'!$F$10="2c",IF(AND($J30>2250,$J30<=3000),($J30/1000)+0.3,""),"") ),"") ->  | AK30: =IF($M30="Y",IF('Main Details'!$G$28, IF('Main Details'!$F$10="2c",IF(AND($J30>3450,$J30<=3850),($J30/1000)+0.3,""),IF(AND($J30>2650,$J30<=3850),($J30/1000)+0.3,"")), IF('Main Details'!$F$10="2c",IF(AND($J30>3000,$J30<=3450),($J30/1000)+0.3,""),IF(AND($J30>2250,$J30<=3450),($J30/1000)+0.3,"")) ),"") ->  | AN30: =IF(AND($J30<=7199,$J30>=4001),($J30+'BUILDERS SETTINGS'!$C$15)/1000," ") ->  | AO30: =IF(AND(#REF!>0,G30>0),(#REF!*0.086)*(J30/1000)," ") ->  | AQ30: 200 | AR30: 0 | AS30: 0 | AT30: 0 | AU30: 0 | AW30: 0 | AX30: 0
A31: =IF(Q31>0,I31+#REF!) -> FALSE | C31: =IF(D31="Y",G31*I31,0) -> 0 | D31: N | F31: =IF(AND(#REF!>0,G31>0),(#REF!*0.086)*(J31/1000)," ") ->  | H31: x | I31: =(IF(J31=""," ",(J31-10)/240)) ->  | T31: 0 | U31: 0 | V31: 0 | Z31: =IF('Main Details'!$G$28,IF(AND($J31>0,$J31<=1600,$B31<>"GOB"),($J31/1000)+0.2,""),IF(AND($J31>0,$J31<=1200),($J31/1000)+0.2,"")) ->  | AA31: =IF('Main Details'!$G$28,IF(AND($J31>1600,$J31<=1900),($J31/1000)+0.2,""),IF(AND($J31>1200,$J31<=1500),($J31/1000)+0.2,"")) ->  | AB31: =IF('Main Details'!$G$28,IF(AND($J31>1900,$J31<=2600),($J31/1000)+0.27,""),IF(AND($J31>1500,$J31<=2200),($J31/1000)+0.27,"")) ->  | AC31: =IF('Main Details'!$G$28,IF(AND($J31>2600,$J31<=3100),($J31/1000)+0.3,""),IF(AND($J31>2200,$J31<=2600),($J31/1000)+0.3,"")) ->  | AD31: =IF('Main Details'!$G$28,IF(AND($J31>3100,$J31<=3450),($J31/1000)+0.3,""),IF(AND($J31>2600,$J31<=3000),($J31/1000)+0.3,"")) ->  | AE31: =IF('Main Details'!$G$28,IF(AND($J31>3450,$J31<=3850),($J31/1000)+0.3,""),IF(AND($J31>3000,$J31<=3450),($J31/1000)+0.3,"")) ->  | AH31: =IF(OR($M31="Y",$B31="GOB"),IF('Main Details'!$G$28, IF('Main Details'!$F$10="2c",IF(AND($J31>0,$J31<=2350),($J31/1000)+0.24,""),IF(AND($J31>0,$J31<=2400),($J31/1000)+0.27,"")), IF('Main Details'!$F$10="2c",IF(AND($J31>0,$J31<=2050),($J31/1000)+0.24,""),IF(AND($J31>0,$J31<=2100),($J31/1000)+0.27,"")) ),"") ->  | AI31: =IF($M31="Y",IF('Main Details'!$G$28, IF('Main Details'!$F$10="2c",IF(AND($J31>2350,$J31<=2650),($J31/1000)+0.3,""),IF(AND($J31>2400,$J31<=2650),($J31/1000)+0.3,"")), IF('Main Details'!$F$10="2c",IF(AND($J31>2050,$J31<=2250),($J31/1000)+0.3,""),IF(AND($J31>2100,$J31<=2250),($J31/1000)+0.3,"")) ),"") ->  | AJ31: =IF($M31="Y",IF('Main Details'!$G$28, IF('Main Details'!$F$10="2c",IF(AND($J31>2650,$J31<=3450),($J31/1000)+0.3,""),""), IF('Main Details'!$F$10="2c",IF(AND($J31>2250,$J31<=3000),($J31/1000)+0.3,""),"") ),"") ->  | AK31: =IF($M31="Y",IF('Main Details'!$G$28, IF('Main Details'!$F$10="2c",IF(AND($J31>3450,$J31<=3850),($J31/1000)+0.3,""),IF(AND($J31>2650,$J31<=3850),($J31/1000)+0.3,"")), IF('Main Details'!$F$10="2c",IF(AND($J31>3000,$J31<=3450),($J31/1000)+0.3,""),IF(AND($J31>2250,$J31<=3450),($J31/1000)+0.3,"")) ),"") ->  | AN31: =IF(AND($J31<=7199,$J31>=4001),($J31+'BUILDERS SETTINGS'!$C$15)/1000," ") ->  | AO31: =IF(AND(#REF!>0,G31>0),(#REF!*0.086)*(J31/1000)," ") ->  | AQ31: 200 | AR31: 0 | AS31: 0 | AT31: 0 | AU31: 0 | AW31: 0 | AX31: 0
A32: =IF(Q32>0,I32+#REF!) -> FALSE | C32: =IF(D32="Y",G32*I32,0) -> 0 | D32: N | F32: =IF(AND(#REF!>0,G32>0),(#REF!*0.086)*(J32/1000)," ") ->  | H32: x | I32: =(IF(J32=""," ",(J32-10)/240)) ->  | T32: 0 | U32: 0 | V32: 0 | Z32: =IF('Main Details'!$G$28,IF(AND($J32>0,$J32<=1600,$B32<>"GOB"),($J32/1000)+0.2,""),IF(AND($J32>0,$J32<=1200),($J32/1000)+0.2,"")) ->  | AA32: =IF('Main Details'!$G$28,IF(AND($J32>1600,$J32<=1900),($J32/1000)+0.2,""),IF(AND($J32>1200,$J32<=1500),($J32/1000)+0.2,"")) ->  | AB32: =IF('Main Details'!$G$28,IF(AND($J32>1900,$J32<=2600),($J32/1000)+0.27,""),IF(AND($J32>1500,$J32<=2200),($J32/1000)+0.27,"")) ->  | AC32: =IF('Main Details'!$G$28,IF(AND($J32>2600,$J32<=3100),($J32/1000)+0.3,""),IF(AND($J32>2200,$J32<=2600),($J32/1000)+0.3,"")) ->  | AD32: =IF('Main Details'!$G$28,IF(AND($J32>3100,$J32<=3450),($J32/1000)+0.3,""),IF(AND($J32>2600,$J32<=3000),($J32/1000)+0.3,"")) ->  | AE32: =IF('Main Details'!$G$28,IF(AND($J32>3450,$J32<=3850),($J32/1000)+0.3,""),IF(AND($J32>3000,$J32<=3450),($J32/1000)+0.3,"")) ->  | AH32: =IF(OR($M32="Y",$B32="GOB"),IF('Main Details'!$G$28, IF('Main Details'!$F$10="2c",IF(AND($J32>0,$J32<=2350),($J32/1000)+0.24,""),IF(AND($J32>0,$J32<=2400),($J32/1000)+0.27,"")), IF('Main Details'!$F$10="2c",IF(AND($J32>0,$J32<=2050),($J32/1000)+0.24,""),IF(AND($J32>0,$J32<=2100),($J32/1000)+0.27,"")) ),"") ->  | AI32: =IF($M32="Y",IF('Main Details'!$G$28, IF('Main Details'!$F$10="2c",IF(AND($J32>2350,$J32<=2650),($J32/1000)+0.3,""),IF(AND($J32>2400,$J32<=2650),($J32/1000)+0.3,"")), IF('Main Details'!$F$10="2c",IF(AND($J32>2050,$J32<=2250),($J32/1000)+0.3,""),IF(AND($J32>2100,$J32<=2250),($J32/1000)+0.3,"")) ),"") ->  | AJ32: =IF($M32="Y",IF('Main Details'!$G$28, IF('Main Details'!$F$10="2c",IF(AND($J32>2650,$J32<=3450),($J32/1000)+0.3,""),""), IF('Main Details'!$F$10="2c",IF(AND($J32>2250,$J32<=3000),($J32/1000)+0.3,""),"") ),"") ->  | AK32: =IF($M32="Y",IF('Main Details'!$G$28, IF('Main Details'!$F$10="2c",IF(AND($J32>3450,$J32<=3850),($J32/1000)+0.3,""),IF(AND($J32>2650,$J32<=3850),($J32/1000)+0.3,"")), IF('Main Details'!$F$10="2c",IF(AND($J32>3000,$J32<=3450),($J32/1000)+0.3,""),IF(AND($J32>2250,$J32<=3450),($J32/1000)+0.3,"")) ),"") ->  | AN32: =IF(AND($J32<=7199,$J32>=4001),($J32+'BUILDERS SETTINGS'!$C$15)/1000," ") ->  | AO32: =IF(AND(#REF!>0,G32>0),(#REF!*0.086)*(J32/1000)," ") ->  | AQ32: 200 | AR32: 0 | AS32: 0 | AT32: 0 | AU32: 0 | AW32: 0 | AX32: 0
A33: =IF(Q33>0,I33+#REF!) -> FALSE | C33: =IF(D33="Y",G33*I33,0) -> 0 | D33: N | F33: =IF(AND(#REF!>0,G33>0),(#REF!*0.086)*(J33/1000)," ") ->  | H33: x | I33: =(IF(J33=""," ",(J33-10)/240)) ->  | T33: 0 | U33: 0 | V33: 0 | Z33: =IF('Main Details'!$G$28,IF(AND($J33>0,$J33<=1600,$B33<>"GOB"),($J33/1000)+0.2,""),IF(AND($J33>0,$J33<=1200),($J33/1000)+0.2,"")) ->  | AA33: =IF('Main Details'!$G$28,IF(AND($J33>1600,$J33<=1900),($J33/1000)+0.2,""),IF(AND($J33>1200,$J33<=1500),($J33/1000)+0.2,"")) ->  | AB33: =IF('Main Details'!$G$28,IF(AND($J33>1900,$J33<=2600),($J33/1000)+0.27,""),IF(AND($J33>1500,$J33<=2200),($J33/1000)+0.27,"")) ->  | AC33: =IF('Main Details'!$G$28,IF(AND($J33>2600,$J33<=3100),($J33/1000)+0.3,""),IF(AND($J33>2200,$J33<=2600),($J33/1000)+0.3,"")) ->  | AD33: =IF('Main Details'!$G$28,IF(AND($J33>3100,$J33<=3450),($J33/1000)+0.3,""),IF(AND($J33>2600,$J33<=3000),($J33/1000)+0.3,"")) ->  | AE33: =IF('Main Details'!$G$28,IF(AND($J33>3450,$J33<=3850),($J33/1000)+0.3,""),IF(AND($J33>3000,$J33<=3450),($J33/1000)+0.3,"")) ->  | AH33: =IF(OR($M33="Y",$B33="GOB"),IF('Main Details'!$G$28, IF('Main Details'!$F$10="2c",IF(AND($J33>0,$J33<=2350),($J33/1000)+0.24,""),IF(AND($J33>0,$J33<=2400),($J33/1000)+0.27,"")), IF('Main Details'!$F$10="2c",IF(AND($J33>0,$J33<=2050),($J33/1000)+0.24,""),IF(AND($J33>0,$J33<=2100),($J33/1000)+0.27,"")) ),"") ->  | AI33: =IF($M33="Y",IF('Main Details'!$G$28, IF('Main Details'!$F$10="2c",IF(AND($J33>2350,$J33<=2650),($J33/1000)+0.3,""),IF(AND($J33>2400,$J33<=2650),($J33/1000)+0.3,"")), IF('Main Details'!$F$10="2c",IF(AND($J33>2050,$J33<=2250),($J33/1000)+0.3,""),IF(AND($J33>2100,$J33<=2250),($J33/1000)+0.3,"")) ),"") ->  | AJ33: =IF($M33="Y",IF('Main Details'!$G$28, IF('Main Details'!$F$10="2c",IF(AND($J33>2650,$J33<=3450),($J33/1000)+0.3,""),""), IF('Main Details'!$F$10="2c",IF(AND($J33>2250,$J33<=3000),($J33/1000)+0.3,""),"") ),"") ->  | AK33: =IF($M33="Y",IF('Main Details'!$G$28, IF('Main Details'!$F$10="2c",IF(AND($J33>3450,$J33<=3850),($J33/1000)+0.3,""),IF(AND($J33>2650,$J33<=3850),($J33/1000)+0.3,"")), IF('Main Details'!$F$10="2c",IF(AND($J33>3000,$J33<=3450),($J33/1000)+0.3,""),IF(AND($J33>2250,$J33<=3450),($J33/1000)+0.3,"")) ),"") ->  | AN33: =IF(AND($J33<=7199,$J33>=4001),($J33+'BUILDERS SETTINGS'!$C$15)/1000," ") ->  | AO33: =IF(AND(#REF!>0,G33>0),(#REF!*0.086)*(J33/1000)," ") ->  | AQ33: 200 | AR33: 0 | AS33: 0 | AT33: 0 | AU33: 0 | AW33: 0 | AX33: 0
A34: =IF(Q34>0,I34+#REF!) -> FALSE | C34: =IF(D34="Y",G34*I34,0) -> 0 | D34: N | F34: =IF(AND(#REF!>0,G34>0),(#REF!*0.086)*(J34/1000)," ") ->  | H34: x | I34: =(IF(J34=""," ",(J34-10)/240)) ->  | T34: 0 | U34: 0 | V34: 0 | Z34: =IF('Main Details'!$G$28,IF(AND($J34>0,$J34<=1600,$B34<>"GOB"),($J34/1000)+0.2,""),IF(AND($J34>0,$J34<=1200),($J34/1000)+0.2,"")) ->  | AA34: =IF('Main Details'!$G$28,IF(AND($J34>1600,$J34<=1900),($J34/1000)+0.2,""),IF(AND($J34>1200,$J34<=1500),($J34/1000)+0.2,"")) ->  | AB34: =IF('Main Details'!$G$28,IF(AND($J34>1900,$J34<=2600),($J34/1000)+0.27,""),IF(AND($J34>1500,$J34<=2200),($J34/1000)+0.27,"")) ->  | AC34: =IF('Main Details'!$G$28,IF(AND($J34>2600,$J34<=3100),($J34/1000)+0.3,""),IF(AND($J34>2200,$J34<=2600),($J34/1000)+0.3,"")) ->  | AD34: =IF('Main Details'!$G$28,IF(AND($J34>3100,$J34<=3450),($J34/1000)+0.3,""),IF(AND($J34>2600,$J34<=3000),($J34/1000)+0.3,"")) ->  | AE34: =IF('Main Details'!$G$28,IF(AND($J34>3450,$J34<=3850),($J34/1000)+0.3,""),IF(AND($J34>3000,$J34<=3450),($J34/1000)+0.3,"")) ->  | AH34: =IF(OR($M34="Y",$B34="GOB"),IF('Main Details'!$G$28, IF('Main Details'!$F$10="2c",IF(AND($J34>0,$J34<=2350),($J34/1000)+0.24,""),IF(AND($J34>0,$J34<=2400),($J34/1000)+0.27,"")), IF('Main Details'!$F$10="2c",IF(AND($J34>0,$J34<=2050),($J34/1000)+0.24,""),IF(AND($J34>0,$J34<=2100),($J34/1000)+0.27,"")) ),"") ->  | AI34: =IF($M34="Y",IF('Main Details'!$G$28, IF('Main Details'!$F$10="2c",IF(AND($J34>2350,$J34<=2650),($J34/1000)+0.3,""),IF(AND($J34>2400,$J34<=2650),($J34/1000)+0.3,"")), IF('Main Details'!$F$10="2c",IF(AND($J34>2050,$J34<=2250),($J34/1000)+0.3,""),IF(AND($J34>2100,$J34<=2250),($J34/1000)+0.3,"")) ),"") ->  | AJ34: =IF($M34="Y",IF('Main Details'!$G$28, IF('Main Details'!$F$10="2c",IF(AND($J34>2650,$J34<=3450),($J34/1000)+0.3,""),""), IF('Main Details'!$F$10="2c",IF(AND($J34>2250,$J34<=3000),($J34/1000)+0.3,""),"") ),"") ->  | AK34: =IF($M34="Y",IF('Main Details'!$G$28, IF('Main Details'!$F$10="2c",IF(AND($J34>3450,$J34<=3850),($J34/1000)+0.3,""),IF(AND($J34>2650,$J34<=3850),($J34/1000)+0.3,"")), IF('Main Details'!$F$10="2c",IF(AND($J34>3000,$J34<=3450),($J34/1000)+0.3,""),IF(AND($J34>2250,$J34<=3450),($J34/1000)+0.3,"")) ),"") ->  | AN34: =IF(AND($J34<=7199,$J34>=4001),($J34+'BUILDERS SETTINGS'!$C$15)/1000," ") ->  | AO34: =IF(AND(#REF!>0,G34>0),(#REF!*0.086)*(J34/1000)," ") ->  | AQ34: 200 | AR34: 0 | AS34: 0 | AT34: 0 | AU34: 0 | AW34: 0 | AX34: 0
A35: =IF(Q35>0,I35+#REF!) -> FALSE | C35: =IF(D35="Y",G35*I35,0) -> 0 | D35: N | F35: =IF(AND(#REF!>0,G35>0),(#REF!*0.086)*(J35/1000)," ") ->  | H35: x | I35: =(IF(J35=""," ",(J35-10)/240)) ->  | T35: 0 | U35: 0 | V35: 0 | Z35: =IF('Main Details'!$G$28,IF(AND($J35>0,$J35<=1600,$B35<>"GOB"),($J35/1000)+0.2,""),IF(AND($J35>0,$J35<=1200),($J35/1000)+0.2,"")) ->  | AA35: =IF('Main Details'!$G$28,IF(AND($J35>1600,$J35<=1900),($J35/1000)+0.2,""),IF(AND($J35>1200,$J35<=1500),($J35/1000)+0.2,"")) ->  | AB35: =IF('Main Details'!$G$28,IF(AND($J35>1900,$J35<=2600),($J35/1000)+0.27,""),IF(AND($J35>1500,$J35<=2200),($J35/1000)+0.27,"")) ->  | AC35: =IF('Main Details'!$G$28,IF(AND($J35>2600,$J35<=3100),($J35/1000)+0.3,""),IF(AND($J35>2200,$J35<=2600),($J35/1000)+0.3,"")) ->  | AD35: =IF('Main Details'!$G$28,IF(AND($J35>3100,$J35<=3450),($J35/1000)+0.3,""),IF(AND($J35>2600,$J35<=3000),($J35/1000)+0.3,"")) ->  | AE35: =IF('Main Details'!$G$28,IF(AND($J35>3450,$J35<=3850),($J35/1000)+0.3,""),IF(AND($J35>3000,$J35<=3450),($J35/1000)+0.3,"")) ->  | AH35: =IF(OR($M35="Y",$B35="GOB"),IF('Main Details'!$G$28, IF('Main Details'!$F$10="2c",IF(AND($J35>0,$J35<=2350),($J35/1000)+0.24,""),IF(AND($J35>0,$J35<=2400),($J35/1000)+0.27,"")), IF('Main Details'!$F$10="2c",IF(AND($J35>0,$J35<=2050),($J35/1000)+0.24,""),IF(AND($J35>0,$J35<=2100),($J35/1000)+0.27,"")) ),"") ->  | AI35: =IF($M35="Y",IF('Main Details'!$G$28, IF('Main Details'!$F$10="2c",IF(AND($J35>2350,$J35<=2650),($J35/1000)+0.3,""),IF(AND($J35>2400,$J35<=2650),($J35/1000)+0.3,"")), IF('Main Details'!$F$10="2c",IF(AND($J35>2050,$J35<=2250),($J35/1000)+0.3,""),IF(AND($J35>2100,$J35<=2250),($J35/1000)+0.3,"")) ),"") ->  | AJ35: =IF($M35="Y",IF('Main Details'!$G$28, IF('Main Details'!$F$10="2c",IF(AND($J35>2650,$J35<=3450),($J35/1000)+0.3,""),""), IF('Main Details'!$F$10="2c",IF(AND($J35>2250,$J35<=3000),($J35/1000)+0.3,""),"") ),"") ->  | AK35: =IF($M35="Y",IF('Main Details'!$G$28, IF('Main Details'!$F$10="2c",IF(AND($J35>3450,$J35<=3850),($J35/1000)+0.3,""),IF(AND($J35>2650,$J35<=3850),($J35/1000)+0.3,"")), IF('Main Details'!$F$10="2c",IF(AND($J35>3000,$J35<=3450),($J35/1000)+0.3,""),IF(AND($J35>2250,$J35<=3450),($J35/1000)+0.3,"")) ),"") ->  | AN35: =IF(AND($J35<=7199,$J35>=4001),($J35+'BUILDERS SETTINGS'!$C$15)/1000," ") ->  | AO35: =IF(AND(#REF!>0,G35>0),(#REF!*0.086)*(J35/1000)," ") ->  | AQ35: 200 | AR35: 0 | AS35: 0 | AT35: 0 | AU35: 0 | AW35: 0 | AX35: 0
A36: =IF(Q36>0,I36+#REF!) -> FALSE | C36: =IF(D36="Y",G36*I36,0) -> 0 | D36: N | F36: =IF(AND(#REF!>0,G36>0),(#REF!*0.086)*(J36/1000)," ") ->  | H36: x | I36: =(IF(J36=""," ",(J36-10)/240)) ->  | T36: 0 | U36: 0 | V36: 0 | Z36: =IF('Main Details'!$G$28,IF(AND($J36>0,$J36<=1600,$B36<>"GOB"),($J36/1000)+0.2,""),IF(AND($J36>0,$J36<=1200),($J36/1000)+0.2,"")) ->  | AA36: =IF('Main Details'!$G$28,IF(AND($J36>1600,$J36<=1900),($J36/1000)+0.2,""),IF(AND($J36>1200,$J36<=1500),($J36/1000)+0.2,"")) ->  | AB36: =IF('Main Details'!$G$28,IF(AND($J36>1900,$J36<=2600),($J36/1000)+0.27,""),IF(AND($J36>1500,$J36<=2200),($J36/1000)+0.27,"")) ->  | AC36: =IF('Main Details'!$G$28,IF(AND($J36>2600,$J36<=3100),($J36/1000)+0.3,""),IF(AND($J36>2200,$J36<=2600),($J36/1000)+0.3,"")) ->  | AD36: =IF('Main Details'!$G$28,IF(AND($J36>3100,$J36<=3450),($J36/1000)+0.3,""),IF(AND($J36>2600,$J36<=3000),($J36/1000)+0.3,"")) ->  | AE36: =IF('Main Details'!$G$28,IF(AND($J36>3450,$J36<=3850),($J36/1000)+0.3,""),IF(AND($J36>3000,$J36<=3450),($J36/1000)+0.3,"")) ->  | AH36: =IF(OR($M36="Y",$B36="GOB"),IF('Main Details'!$G$28, IF('Main Details'!$F$10="2c",IF(AND($J36>0,$J36<=2350),($J36/1000)+0.24,""),IF(AND($J36>0,$J36<=2400),($J36/1000)+0.27,"")), IF('Main Details'!$F$10="2c",IF(AND($J36>0,$J36<=2050),($J36/1000)+0.24,""),IF(AND($J36>0,$J36<=2100),($J36/1000)+0.27,"")) ),"") ->  | AI36: =IF($M36="Y",IF('Main Details'!$G$28, IF('Main Details'!$F$10="2c",IF(AND($J36>2350,$J36<=2650),($J36/1000)+0.3,""),IF(AND($J36>2400,$J36<=2650),($J36/1000)+0.3,"")), IF('Main Details'!$F$10="2c",IF(AND($J36>2050,$J36<=2250),($J36/1000)+0.3,""),IF(AND($J36>2100,$J36<=2250),($J36/1000)+0.3,"")) ),"") ->  | AJ36: =IF($M36="Y",IF('Main Details'!$G$28, IF('Main Details'!$F$10="2c",IF(AND($J36>2650,$J36<=3450),($J36/1000)+0.3,""),""), IF('Main Details'!$F$10="2c",IF(AND($J36>2250,$J36<=3000),($J36/1000)+0.3,""),"") ),"") ->  | AK36: =IF($M36="Y",IF('Main Details'!$G$28, IF('Main Details'!$F$10="2c",IF(AND($J36>3450,$J36<=3850),($J36/1000)+0.3,""),IF(AND($J36>2650,$J36<=3850),($J36/1000)+0.3,"")), IF('Main Details'!$F$10="2c",IF(AND($J36>3000,$J36<=3450),($J36/1000)+0.3,""),IF(AND($J36>2250,$J36<=3450),($J36/1000)+0.3,"")) ),"") ->  | AN36: =IF(AND($J36<=7199,$J36>=4001),($J36+'BUILDERS SETTINGS'!$C$15)/1000," ") ->  | AO36: =IF(AND(#REF!>0,G36>0),(#REF!*0.086)*(J36/1000)," ") ->  | AQ36: 200 | AR36: 0 | AS36: 0 | AT36: 0 | AU36: 0 | AW36: 0 | AX36: 0
A37: =IF(Q37>0,I37+#REF!) -> FALSE | C37: =IF(D37="Y",G37*I37,0) -> 0 | D37: N | F37: =IF(AND(#REF!>0,G37>0),(#REF!*0.086)*(J37/1000)," ") ->  | H37: x | I37: =(IF(J37=""," ",(J37-10)/240)) ->  | T37: 0 | U37: 0 | V37: 0 | Z37: =IF('Main Details'!$G$28,IF(AND($J37>0,$J37<=1600,$B37<>"GOB"),($J37/1000)+0.2,""),IF(AND($J37>0,$J37<=1200),($J37/1000)+0.2,"")) ->  | AA37: =IF('Main Details'!$G$28,IF(AND($J37>1600,$J37<=1900),($J37/1000)+0.2,""),IF(AND($J37>1200,$J37<=1500),($J37/1000)+0.2,"")) ->  | AB37: =IF('Main Details'!$G$28,IF(AND($J37>1900,$J37<=2600),($J37/1000)+0.27,""),IF(AND($J37>1500,$J37<=2200),($J37/1000)+0.27,"")) ->  | AC37: =IF('Main Details'!$G$28,IF(AND($J37>2600,$J37<=3100),($J37/1000)+0.3,""),IF(AND($J37>2200,$J37<=2600),($J37/1000)+0.3,"")) ->  | AD37: =IF('Main Details'!$G$28,IF(AND($J37>3100,$J37<=3450),($J37/1000)+0.3,""),IF(AND($J37>2600,$J37<=3000),($J37/1000)+0.3,"")) ->  | AE37: =IF('Main Details'!$G$28,IF(AND($J37>3450,$J37<=3850),($J37/1000)+0.3,""),IF(AND($J37>3000,$J37<=3450),($J37/1000)+0.3,"")) ->  | AH37: =IF(OR($M37="Y",$B37="GOB"),IF('Main Details'!$G$28, IF('Main Details'!$F$10="2c",IF(AND($J37>0,$J37<=2350),($J37/1000)+0.24,""),IF(AND($J37>0,$J37<=2400),($J37/1000)+0.27,"")), IF('Main Details'!$F$10="2c",IF(AND($J37>0,$J37<=2050),($J37/1000)+0.24,""),IF(AND($J37>0,$J37<=2100),($J37/1000)+0.27,"")) ),"") ->  | AI37: =IF($M37="Y",IF('Main Details'!$G$28, IF('Main Details'!$F$10="2c",IF(AND($J37>2350,$J37<=2650),($J37/1000)+0.3,""),IF(AND($J37>2400,$J37<=2650),($J37/1000)+0.3,"")), IF('Main Details'!$F$10="2c",IF(AND($J37>2050,$J37<=2250),($J37/1000)+0.3,""),IF(AND($J37>2100,$J37<=2250),($J37/1000)+0.3,"")) ),"") ->  | AJ37: =IF($M37="Y",IF('Main Details'!$G$28, IF('Main Details'!$F$10="2c",IF(AND($J37>2650,$J37<=3450),($J37/1000)+0.3,""),""), IF('Main Details'!$F$10="2c",IF(AND($J37>2250,$J37<=3000),($J37/1000)+0.3,""),"") ),"") ->  | AK37: =IF($M37="Y",IF('Main Details'!$G$28, IF('Main Details'!$F$10="2c",IF(AND($J37>3450,$J37<=3850),($J37/1000)+0.3,""),IF(AND($J37>2650,$J37<=3850),($J37/1000)+0.3,"")), IF('Main Details'!$F$10="2c",IF(AND($J37>3000,$J37<=3450),($J37/1000)+0.3,""),IF(AND($J37>2250,$J37<=3450),($J37/1000)+0.3,"")) ),"") ->  | AN37: =IF(AND($J37<=7199,$J37>=4001),($J37+'BUILDERS SETTINGS'!$C$15)/1000," ") ->  | AO37: =IF(AND(#REF!>0,G37>0),(#REF!*0.086)*(J37/1000)," ") ->  | AQ37: 200 | AR37: 0 | AS37: 0 | AT37: 0 | AU37: 0 | AW37: 0 | AX37: 0
A38: =IF(Q38>0,I38+#REF!) -> FALSE | C38: 0 | D38: N | F38: =IF(AND(#REF!>0,G38>0),(#REF!*0.086)*(J38/1000)," ") ->  | H38: x | T38: 0 | U38: 0 | V38: 0 | Z38: =IF('Main Details'!$G$28,IF(AND($J38>0,$J38<=1600,$B38<>"GOB"),($J38/1000)+0.2,""),IF(AND($J38>0,$J38<=1200),($J38/1000)+0.2,"")) ->  | AA38: =IF('Main Details'!$G$28,IF(AND($J38>1600,$J38<=1900),($J38/1000)+0.2,""),IF(AND($J38>1200,$J38<=1500),($J38/1000)+0.2,"")) ->  | AB38: =IF('Main Details'!$G$28,IF(AND($J38>1900,$J38<=2600),($J38/1000)+0.27,""),IF(AND($J38>1500,$J38<=2200),($J38/1000)+0.27,"")) ->  | AC38: =IF('Main Details'!$G$28,IF(AND($J38>2600,$J38<=3100),($J38/1000)+0.3,""),IF(AND($J38>2200,$J38<=2600),($J38/1000)+0.3,"")) ->  | AD38: =IF('Main Details'!$G$28,IF(AND($J38>3100,$J38<=3450),($J38/1000)+0.3,""),IF(AND($J38>2600,$J38<=3000),($J38/1000)+0.3,"")) ->  | AE38: =IF('Main Details'!$G$28,IF(AND($J38>3450,$J38<=3850),($J38/1000)+0.3,""),IF(AND($J38>3000,$J38<=3450),($J38/1000)+0.3,"")) ->  | AH38: =IF(OR($M38="Y",$B38="GOB"),IF('Main Details'!$G$28, IF('Main Details'!$F$10="2c",IF(AND($J38>0,$J38<=2350),($J38/1000)+0.24,""),IF(AND($J38>0,$J38<=2400),($J38/1000)+0.27,"")), IF('Main Details'!$F$10="2c",IF(AND($J38>0,$J38<=2050),($J38/1000)+0.24,""),IF(AND($J38>0,$J38<=2100),($J38/1000)+0.27,"")) ),"") ->  | AI38: =IF($M38="Y",IF('Main Details'!$G$28, IF('Main Details'!$F$10="2c",IF(AND($J38>2350,$J38<=2650),($J38/1000)+0.3,""),IF(AND($J38>2400,$J38<=2650),($J38/1000)+0.3,"")), IF('Main Details'!$F$10="2c",IF(AND($J38>2050,$J38<=2250),($J38/1000)+0.3,""),IF(AND($J38>2100,$J38<=2250),($J38/1000)+0.3,"")) ),"") ->  | AJ38: =IF($M38="Y",IF('Main Details'!$G$28, IF('Main Details'!$F$10="2c",IF(AND($J38>2650,$J38<=3450),($J38/1000)+0.3,""),""), IF('Main Details'!$F$10="2c",IF(AND($J38>2250,$J38<=3000),($J38/1000)+0.3,""),"") ),"") ->  | AK38: =IF($M38="Y",IF('Main Details'!$G$28, IF('Main Details'!$F$10="2c",IF(AND($J38>3450,$J38<=3850),($J38/1000)+0.3,""),IF(AND($J38>2650,$J38<=3850),($J38/1000)+0.3,"")), IF('Main Details'!$F$10="2c",IF(AND($J38>3000,$J38<=3450),($J38/1000)+0.3,""),IF(AND($J38>2250,$J38<=3450),($J38/1000)+0.3,"")) ),"") ->  | AN38: =IF(AND($J38<=7199,$J38>=4001),($J38+'BUILDERS SETTINGS'!$C$15)/1000," ") ->  | AO38: =IF(AND(#REF!>0,G38>0),(#REF!*0.086)*(J38/1000)," ") ->  | AQ38: 200 | AR38: 0 | AS38: 0 | AT38: 0 | AU38: 0 | AW38: 0 | AX38: 0
A39: =IF(Q39>0,I39+#REF!) -> FALSE | C39: 0 | D39: N | F39: =IF(AND(#REF!>0,G39>0),(#REF!*0.086)*(J39/1000)," ") ->  | H39: x | T39: 0 | U39: 0 | V39: 0 | Z39: =IF('Main Details'!$G$28,IF(AND($J39>0,$J39<=1600,$B39<>"GOB"),($J39/1000)+0.2,""),IF(AND($J39>0,$J39<=1200),($J39/1000)+0.2,"")) ->  | AA39: =IF('Main Details'!$G$28,IF(AND($J39>1600,$J39<=1900),($J39/1000)+0.2,""),IF(AND($J39>1200,$J39<=1500),($J39/1000)+0.2,"")) ->  | AB39: =IF('Main Details'!$G$28,IF(AND($J39>1900,$J39<=2600),($J39/1000)+0.27,""),IF(AND($J39>1500,$J39<=2200),($J39/1000)+0.27,"")) ->  | AC39: =IF('Main Details'!$G$28,IF(AND($J39>2600,$J39<=3100),($J39/1000)+0.3,""),IF(AND($J39>2200,$J39<=2600),($J39/1000)+0.3,"")) ->  | AD39: =IF('Main Details'!$G$28,IF(AND($J39>3100,$J39<=3450),($J39/1000)+0.3,""),IF(AND($J39>2600,$J39<=3000),($J39/1000)+0.3,"")) ->  | AE39: =IF('Main Details'!$G$28,IF(AND($J39>3450,$J39<=3850),($J39/1000)+0.3,""),IF(AND($J39>3000,$J39<=3450),($J39/1000)+0.3,"")) ->  | AH39: =IF(OR($M39="Y",$B39="GOB"),IF('Main Details'!$G$28, IF('Main Details'!$F$10="2c",IF(AND($J39>0,$J39<=2350),($J39/1000)+0.24,""),IF(AND($J39>0,$J39<=2400),($J39/1000)+0.27,"")), IF('Main Details'!$F$10="2c",IF(AND($J39>0,$J39<=2050),($J39/1000)+0.24,""),IF(AND($J39>0,$J39<=2100),($J39/1000)+0.27,"")) ),"") ->  | AI39: =IF($M39="Y",IF('Main Details'!$G$28, IF('Main Details'!$F$10="2c",IF(AND($J39>2350,$J39<=2650),($J39/1000)+0.3,""),IF(AND($J39>2400,$J39<=2650),($J39/1000)+0.3,"")), IF('Main Details'!$F$10="2c",IF(AND($J39>2050,$J39<=2250),($J39/1000)+0.3,""),IF(AND($J39>2100,$J39<=2250),($J39/1000)+0.3,"")) ),"") ->  | AJ39: =IF($M39="Y",IF('Main Details'!$G$28, IF('Main Details'!$F$10="2c",IF(AND($J39>2650,$J39<=3450),($J39/1000)+0.3,""),""), IF('Main Details'!$F$10="2c",IF(AND($J39>2250,$J39<=3000),($J39/1000)+0.3,""),"") ),"") ->  | AK39: =IF($M39="Y",IF('Main Details'!$G$28, IF('Main Details'!$F$10="2c",IF(AND($J39>3450,$J39<=3850),($J39/1000)+0.3,""),IF(AND($J39>2650,$J39<=3850),($J39/1000)+0.3,"")), IF('Main Details'!$F$10="2c",IF(AND($J39>3000,$J39<=3450),($J39/1000)+0.3,""),IF(AND($J39>2250,$J39<=3450),($J39/1000)+0.3,"")) ),"") ->  | AN39: =IF(AND($J39<=7199,$J39>=4001),($J39+'BUILDERS SETTINGS'!$C$15)/1000," ") ->  | AO39: =IF(AND(#REF!>0,G39>0),(#REF!*0.086)*(J39/1000)," ") ->  | AQ39: 200 | AR39: 0 | AS39: 0 | AT39: 0 | AU39: 0 | AW39: 0 | AX39: 0
A40: =IF(Q40>0,I40+#REF!) -> FALSE | C40: 0 | D40: N | F40: =IF(AND(#REF!>0,G40>0),(#REF!*0.086)*(J40/1000)," ") ->  | H40: x | T40: 0 | U40: 0 | V40: 0 | Z40: =IF('Main Details'!$G$28,IF(AND($J40>0,$J40<=1600,$B40<>"GOB"),($J40/1000)+0.2,""),IF(AND($J40>0,$J40<=1200),($J40/1000)+0.2,"")) ->  | AA40: =IF('Main Details'!$G$28,IF(AND($J40>1600,$J40<=1900),($J40/1000)+0.2,""),IF(AND($J40>1200,$J40<=1500),($J40/1000)+0.2,"")) ->  | AB40: =IF('Main Details'!$G$28,IF(AND($J40>1900,$J40<=2600),($J40/1000)+0.27,""),IF(AND($J40>1500,$J40<=2200),($J40/1000)+0.27,"")) ->  | AC40: =IF('Main Details'!$G$28,IF(AND($J40>2600,$J40<=3100),($J40/1000)+0.3,""),IF(AND($J40>2200,$J40<=2600),($J40/1000)+0.3,"")) ->  | AD40: =IF('Main Details'!$G$28,IF(AND($J40>3100,$J40<=3450),($J40/1000)+0.3,""),IF(AND($J40>2600,$J40<=3000),($J40/1000)+0.3,"")) ->  | AE40: =IF('Main Details'!$G$28,IF(AND($J40>3450,$J40<=3850),($J40/1000)+0.3,""),IF(AND($J40>3000,$J40<=3450),($J40/1000)+0.3,"")) ->  | AH40: =IF(OR($M40="Y",$B40="GOB"),IF('Main Details'!$G$28, IF('Main Details'!$F$10="2c",IF(AND($J40>0,$J40<=2350),($J40/1000)+0.24,""),IF(AND($J40>0,$J40<=2400),($J40/1000)+0.27,"")), IF('Main Details'!$F$10="2c",IF(AND($J40>0,$J40<=2050),($J40/1000)+0.24,""),IF(AND($J40>0,$J40<=2100),($J40/1000)+0.27,"")) ),"") ->  | AI40: =IF($M40="Y",IF('Main Details'!$G$28, IF('Main Details'!$F$10="2c",IF(AND($J40>2350,$J40<=2650),($J40/1000)+0.3,""),IF(AND($J40>2400,$J40<=2650),($J40/1000)+0.3,"")), IF('Main Details'!$F$10="2c",IF(AND($J40>2050,$J40<=2250),($J40/1000)+0.3,""),IF(AND($J40>2100,$J40<=2250),($J40/1000)+0.3,"")) ),"") ->  | AJ40: =IF($M40="Y",IF('Main Details'!$G$28, IF('Main Details'!$F$10="2c",IF(AND($J40>2650,$J40<=3450),($J40/1000)+0.3,""),""), IF('Main Details'!$F$10="2c",IF(AND($J40>2250,$J40<=3000),($J40/1000)+0.3,""),"") ),"") ->  | AK40: =IF($M40="Y",IF('Main Details'!$G$28, IF('Main Details'!$F$10="2c",IF(AND($J40>3450,$J40<=3850),($J40/1000)+0.3,""),IF(AND($J40>2650,$J40<=3850),($J40/1000)+0.3,"")), IF('Main Details'!$F$10="2c",IF(AND($J40>3000,$J40<=3450),($J40/1000)+0.3,""),IF(AND($J40>2250,$J40<=3450),($J40/1000)+0.3,"")) ),"") ->  | AN40: =IF(AND($J40<=7199,$J40>=4001),($J40+'BUILDERS SETTINGS'!$C$15)/1000," ") ->  | AO40: =IF(AND(#REF!>0,G40>0),(#REF!*0.086)*(J40/1000)," ") ->  | AQ40: 200 | AR40: 0 | AS40: 0 | AT40: 0 | AU40: 0 | AW40: 0 | AX40: 0 | BI40: =IF(OR(P40="Y",#REF!="y",#REF!="Y",AND(B40="Y")),(J40/1000),"") -> 
C41: =SUM(C9:C40) -> 0 | F41: =SUM(F9:F40) ->  | T41: =SUM(T9:T40) -> 0 | U41: =SUM(U9:U40) -> 0 | V41: =SUM(V9:V40) -> 0 | Y41: =SUM(Y9:Y40) -> 0 | Z41: 0 | AA41: 0 | AB41: 0 | AC41: 0 | AD41: 0 | AE41: 0 | AF41: 0 | AG41: 0 | AH41: 0 | AI41: 0 | AJ41: 0 | AK41: 0 | AL41: 0 | AN41: =SUM(AN9:AN40) -> 0 | AO41: =SUM(AO9:AO40) ->  | AW41: =SUM(AW10:AW40) -> 0 | AX41: =SUM(AX10:AX40) -> 0 | AY41: =SUM(AY10:AY40) -> 0 | AZ41: 0 | BA41: 0 | BB41: =SUM(BB10:BB40) -> 0 | BC41: 0 | BD41: 0 | BE41: =SUM(BE10:BE40) -> 0 | BF41: 0 | BG41: =SUM(BG10:BG40) -> 0 | BH41: 0 | BJ41: 0
A42: =SUM(A9:A40) -> 0 | C42: =C41/'BUILDERS SETTINGS'!C36 -> 0 | F42: =SUM(I9:I40)+SUM(#REF!)-A42 ->  | G42: =J44+J45+J46 -> 0 | J42: =SUM(J10:J40)/1000 -> 0 | L42: =SUM(J9:J40)/1000 -> 0 | O42: =SUM(O10:O40)/1000 -> 0 | W42: TOTAL LONGREACH limestone EXT | Y42: L/M TOTAL OPENINGS= | AB42: =SUM(J9:J40)/1000 -> 0 | AC42: TOTAL LENGTH ALL LINTELS OF THE SAME DIMENSIONS= | AJ42: =AD41+AJ41 -> 0 | AK42: =AE41+AK41 -> 0 | AL42: =AF41+AL41 -> 0
W43: TOTAL SILL/FINISH | AC43: qty | AD43: Extras | AH43: Column Base Plates = | AK43: =SUM(AJ45,AJ46,AJ47) -> 0
B44: Render Area Deductions | J44: =BF41 -> 0 | M44: m2 | Y44: Lintel Mitre Factory Cut & Weld | AH44: L/M OF SLOTS & LUGS | AJ44: Columns | AK44: length | AL44: H/D RODS (off centre)
B45: Face Brick Deductions | J45: =BE41 -> 0 | M45: m2 | T45: TOTAL LENGTH OF OPENINGS= | U45: =SUM(J9:J40)/1000 -> 0 | Y45: Lintel Mitre Factory Cut Only | AH45: INT LINTELS | AI45: =SUM(Z41:AF41) -> 0 | AL45: SC Columns (select)
B46: Face Feature Deductions | J46: =BG41 -> 0 | M46: m2 | Y46: T-Bar Mitre Factory Cut & Weld | AH46: ADD LINTELS | AL46: SC Columns (select)
Y47: T-Bar Mitre Factory Cut Only | AH47: TOTAL | AI47: =SUM(AI45:AI46) -> 0 | AL47: SC Columns (select)
C51: =COUNT(J10:J40) -> 0 | G51: no of openings
C52: =SUM(J10:J40)/1000 -> 0 | G52: lm openings
O58: Total Openings
C127: =IF(D127="Y",G127*I127,0) -> 0 | D127: N | F127: =IF(AND(#REF!>0,G127>0),(#REF!*0.086)*(J127/1000)," ") ->  | H127: x | I127: =(IF(J127=""," ",(J127-10)/240)) ->  | K127: =IF(G127>0,(J127+160)/1000," ") ->  | O127: =IF(#REF!="Y",I127," ") ->  | T127: =(OR(G127=25,)) -> FALSE | U127: =IF(T127=TRUE,J127/1000," ") ->  | V127: =(OR(G127=23)) -> FALSE | W127: =IF(V127=TRUE,(J127/1000)," ") ->  | X127: =(OR(G127=22,G127=20,G127=18,G127=16,G127=14,G127=12,G127=10,G127=8,G127=6,G127=4,G127=2)) -> FALSE | Y127: =IF(X127=TRUE,J127/1000,"") ->  | Z127: =(OR(G127=21,G127=19,G127=17,G127=15,G127=13,G127=11,G127=9,G127=7,G127=5,G127=3,G127=1)) -> FALSE | AA127: =IF(Z127=TRUE,J127/1000," ") ->  | AC127: =IF(AND(AB127>0,G127>0),(AB127*0.086)*(J127/1000)," ") ->  | AE127: =IF(AND(AD127>0,I127>0),(AD127*0.086)*(J127/1000)," ") ->  | AF127: =ROUNDUP(G127/2,0)+1 -> 1 | AG127: =ROUNDUP(G127/2,0)+2 -> 2 | AH127: =ROUNDUP(G127/2,0)+1 -> 1 | AL127: =IF(AND($J127<=1499,$J127>=0.1),($J127+'BUILDERS SETTINGS'!$C$8)/1000," ") ->  | AM127: =IF(AND($J127<=1799,$J127>=1500),($J127+'BUILDERS SETTINGS'!$C$9)/1000," ") ->  | AN127: =IF(AND($J127<=2399,$J127>=1800),($J127+'BUILDERS SETTINGS'!$C$11)/1000," ") ->  | AO127: =IF(AND($J127<=2999,$J127>=2400),($J127+'BUILDERS SETTINGS'!$C$13)/1000," ") ->  | AP127: =IF(AND($J127<=3299,$J127>=3000),($J127+'BUILDERS SETTINGS'!$C$14)/1000," ") ->  | AQ127: =IF(AND($J127<=3599,$J127>=3300),($J127+'BUILDERS SETTINGS'!$C$15)/1000," ") ->  | AR127: =IF(AND($J127<=3999,$J127>=3600),($J127+'BUILDERS SETTINGS'!$C$16)/1000," ") ->  | AS127: =IF(AND($J127<=4400,$J127>=4000),($J127+'BUILDERS SETTINGS'!$C$17)/1000," ") ->  | AT127: =IF(AND($J127<=2199,$J127>=0.1,M127="Y"),($J127+'BUILDERS SETTINGS'!$C$10)/1000," ") ->  | AU127: =IF(AND($J127<=2699,$J127>=2200,M127="y"),($J127+'BUILDERS SETTINGS'!$C$12)/1000," ") -> 

Sheet External Brickwork
B2: ='Main Details'!$B$2 -> QUANTITY SHEET FOR EASY START HOMES | G2: PG 5 | M2: PG 5 | S2: PG 5 | T2: ='Main Details'!$B$2 -> QUANTITY SHEET FOR EASY START HOMES | AK2: PG 5 | AL2: ='Main Details'!B2 -> QUANTITY SHEET FOR EASY START HOMES | AQ2: PG 5 | BC2: PG 5
B3: ='Main Details'!$D$6 -> 0 | T3: ='Main Details'!$D$6 -> 0 | AL3: ='Main Details'!D6 -> 0
B4: 1C FACE BRICK CORED | H4: EXT CONTRAST 1c FACE CORED | N4: 2ND EXTERNAL CONTRAST 1C FACE CORED | T4: 2C RENDER BLOCKS EXTERNAL | Z4: 1C RENDERED LONGREACH | AF4: COMMONS EXTERNAL | AL4: 2C FACE BLOCK 290X90X162 | AR4: 1C FACE 290X90X76 CORED | AX4: 1C FEATURE FACE 230X110X76 CORED | BD4: C | BE4: HEIGHT
B5: ='Main Details'!$I$12 -> MIDLAND- Burnished Red | H5: ='Main Details'!I13 -> NO SELECTION MADE | N5: ='Main Details'!P17 -> 230x110x76 | T5: ='Main Details'!I14 -> MIDLAND MAXIBRICK | Z5: ='Main Details'!I15 -> MIDLAND LONGREACH | AF5: ='Main Details'!I16 -> NO SELECTION MADE | AL5: ='Main Details'!I18 -> NO SELECTION MADE | AR5: ='Main Details'!I18 -> NO SELECTION MADE | AX5: ='Main Details'!I12 -> MIDLAND- Burnished Red | BD5: 1 | BE5: 86
C6: length | D6: x | E6: height | G6: Extd | I6: length | J6: x | K6: height | M6: Extd | O6: length | P6: x | Q6: height | S6: Extd | T6: ='Main Details'!P14 -> 305x90x162 | U6: length | V6: x | W6: height | Y6: Extd | Z6: ='Main Details'!P15 -> 305x90x76 | AA6: length | AB6: x | AC6: height | AE6: Extd | AF6: ='Main Details'!P16 ->  | AG6: length | AH6: x | AI6: height | AK6: Extd | AM6: length | AN6: x | AO6: height | AQ6: Extd | AS6: length | AT6: x | AU6: height | AW6: Extd | AY6: length | AZ6: x | BA6: height | BC6: Extd | BD6: 2 | BE6: 172 | BN6: NEW WALL | BO6: 1C | BQ6: STD WALL
B7: EXTERNAL PERIMETER | C7: =IF('Main Details'!R32="Y",'Main Details'!D37,IF('Main Details'!R33="Y",'Main Details'!D45,"0.00")) -> 0.00 | D7: L/m | E7: 2.314 | F7: = | G7: =C7*E7 -> 0 | H7: EXTERNAL PERIMETER | J7: L/m | L7: = | M7: =IF(AND('Main Details'!$C$13="Y",I7>0),I7*K7,"") ->  | N7: EXTERNAL PERIMETER | P7: L/m | R7: = | S7: =IF(AND('Main Details'!$C$17="Y",O7>0),O7*Q7,"") ->  | T7: 25c External House Perimeter | V7: L/m | W7: 2.229 | X7: = | Y7: =U7*W7 -> 0 | Z7: 25c External House Perimeter | AA7: =U7 -> 0 | AB7: L/m | AC7: 0.086 | AD7: = | AE7: =AA7*AC7 -> 0 | AF7: External Perimeter | AH7: L/m | AJ7: = | AK7: =IF(AND('Main Details'!$C$16="y",AG7>0),AG7*AI7,"") ->  | AL7: 25c External House Perimeter | AM7: ='Main Details'!D37-'External Brickwork'!U7-AY7 -> 0 | AN7: L/m | AO7: 2.229 | AP7: = | AQ7: =AM7*AO7 -> 0 | AR7: 25c External House Perimeter | AS7: ='Main Details'!D37-'External Brickwork'!AA7 -> 0 | AT7: L/m | AU7: 0.086 | AV7: = | AW7: =AS7*AU7 -> 0 | AX7: 25c External House Perimeter | AZ7: L/m | BA7: 0.086 | BB7: = | BC7: =AY7*BA7 -> 0 | BD7: 3 | BE7: 257 | BN7: EAVE = EVEN | BO7: =IF(ISBLANK(BG14),"0",(IF(MOD(BG14,2)=0,"1","0"))) -> 0 | BQ7: EAVE = EVEN | BR7: =IF(ISBLANK(BI14),"0",(IF(MOD(BI14,2)=0,"1","0"))) -> 1
D8: Other Lengths per l/m | J8: Other Lengths per l/m | P8: Other Lengths per l/m | AF8: Other Lengths per l/m | BD8: 4 | BE8: 343
D9: l/m x | F9: = | G9: =IF(AND('Main Details'!$C$12="Y",C9>0),C9*E9,"") ->  | H9: 1c Brick Band | J9: l/m x | K9: 0.086 | L9: = | M9: =IF(AND('Main Details'!$C$13="Y",I9>0),I9*K9,"") ->  | N9: 1c Brick Band | P9: l/m x | Q9: 0.086 | R9: = | S9: =IF(AND('Main Details'!$C$17="Y",O9>0),O9*Q9,"") ->  | T9: Garage Brickwork | Z9: Garage Brickwork | AH9: l/m x | AJ9: = | AK9: =IF(AND('Main Details'!$C$16="y",AG9>0),AG9*AI9,"") ->  | AL9: Garage Brickwork | AR9: Garage Brickwork | AX9: Garage Brickwork | BD9: 5 | BE9: 429 | BN9: TOF = EVEN | BO9: =IF(ISBLANK(BG15),"0",(IF(MOD(BG15,2)=0,"1","0"))) -> 1 | BQ9: TOF = EVEN | BR9: =IF(ISBLANK(BI15),"0",(IF(MOD(BI15,2)=0,"1","0"))) -> 0
B10: Garage Perimeter | C10: =IF(OR('Main Details'!R32="Y",'Main Details'!R33="Y"),'Concrete & Reo'!C17,"0.00") -> 0.00 | D10: No x | F10: = | G10: =IF(AND('Main Details'!$C$12="Y",C10>0),C10*E10,"") ->  | H10: 2c Brick Band | J10: l/m x | K10: 0.172 | L10: = | M10: =IF(AND('Main Details'!$C$13="Y",I10>0),I10*K10,"") ->  | N10: 2c Brick Band | P10: l/m x | Q10: 0.172 | R10: = | S10: =IF(AND('Main Details'!$C$17="Y",O10>0),O10*Q10,"") ->  | V10: l/m x | X10: = | Y10: =IF(AND('Main Details'!$C$14="Y",U10>0),U10*W10,"") ->  | AB10: l/m x | AD10: = | AE10: =IF(AND('Main Details'!$C$15="y",AA10>0),AA10*AC10,"") ->  | AH10: l/m x | AJ10: = | AK10: =IF(AND('Main Details'!$C$16="y",AG10>0),AG10*AI10,"") ->  | AN10: l/m x | AP10: = | AQ10: =IF(AND('Main Details'!$C$18="y",AM10>0),AM10*AO10," ") ->  | AT10: l/m x | AV10: = | AW10: =IF(AND('Main Details'!$C$18="y",AS10>0),AS10*AU10,"") ->  | AZ10: l/m x | BB10: = | BC10: =IF(AND('Main Details'!$C$18="y",AY10>0),AY10*BA10,"") ->  | BD10: 6 | BE10: 514
D11: l/m x | F11: = | G11: =IF(AND('Main Details'!$C$12="Y",C11>0),C11*E11,"") ->  | H11: 3c Brick Band | J11: l/m x | K11: 0.257 | L11: = | M11: =IF(AND('Main Details'!$C$13="Y",I11>0),I11*K11,"") ->  | N11: 3c Brick Band | P11: l/m x | Q11: 0.257 | R11: = | S11: =IF(AND('Main Details'!$C$17="Y",O11>0),O11*Q11,"") ->  | V11: No x | X11: = | Y11: =IF(AND('Main Details'!$C$14="Y",U11>0),U11*W11,"") ->  | AB11: No x | AD11: = | AE11: =IF(AND('Main Details'!$C$15="y",AA11>0),AA11*AC11,"") ->  | AH11: l/m x | AJ11: = | AK11: =IF(AND('Main Details'!$C$16="y",AG11>0),AG11*AI11,"") ->  | AL11: Garage Perimeter | AM11: ='Concrete & Reo'!C17 -> 0 | AN11: No x | AP11: = | AQ11: =IF(AND('Main Details'!$C$18="y",AM11>0),AM11*AO11," ") ->  | AR11: Garage Perimeter | AS11: =AM11 -> 0 | AT11: No x | AV11: = | AW11: =IF(AND('Main Details'!$C$18="y",AS11>0),AS11*AU11,"") ->  | AZ11: No x | BB11: = | BC11: =IF(AND('Main Details'!$C$18="y",AY11>0),AY11*BA11,"") ->  | BD11: 7 | BE11: 600
B12: ODD Ceiling - GOB Shelf Lintel | D12: l/m x | E12: 0.343 | F12: = | G12: =IF(AND('Main Details'!$C$12="Y",C12>0),C12*E12,"") ->  | H12: 5c Brick Band | J12: l/m x | K12: 0.429 | L12: = | M12: =IF(AND('Main Details'!$C$13="Y",I12>0),I12*K12,"") ->  | N12: 5c Brick Band | P12: l/m x | Q12: 0.429 | R12: = | S12: =IF(AND('Main Details'!$C$17="Y",O12>0),O12*Q12,"") ->  | V12: l/m x | X12: = | Y12: =IF(AND('Main Details'!$C$14="Y",U12>0),U12*W12,"") ->  | AB12: l/m x | AD12: = | AE12: =IF(AND('Main Details'!$C$15="y",AA12>0),AA12*AC12,"") ->  | AH12: l/m x | AJ12: = | AK12: =IF(AND('Main Details'!$C$16="y",AG12>0),AG12*AI12,"") ->  | AN12: l/m x | AP12: = | AQ12: =IF(AND('Main Details'!$C$18="y",AM12>0),AM12*AO12," ") ->  | AT12: l/m x | AV12: = | AW12: =IF(AND('Main Details'!$C$18="y",AS12>0),AS12*AU12,"") ->  | AZ12: l/m x | BB12: = | BC12: =IF(AND('Main Details'!$C$18="y",AY12>0),AY12*BA12,"") ->  | BD12: 8 | BE12: 686 | BG12: OVER | BH12: 31 | BI12: CALC | BN12: TOTAL 2C | BO12: =BG16-BO13 -> 32 | BQ12: TOTAL 2C | BR12: =BI16-BR13 -> 28
B13: EVEN Ceiling - GOB Shelf Lintel | D13: l/m x | E13: 0.257 | F13: = | G13: =IF(AND('Main Details'!$C$12="Y",C13>0),C13*E13,"") ->  | H13: 7c Brick Band | J13: l/m x | K13: 0.6 | L13: = | M13: =IF(AND('Main Details'!$C$13="Y",I13>0),I13*K13,"") ->  | N13: 7c Brick Band | P13: l/m x | Q13: 0.6 | R13: = | S13: =IF(AND('Main Details'!$C$17="Y",O13>0),O13*Q13,"") ->  | V13: l/m x | X13: = | Y13: =IF(AND('Main Details'!$C$14="Y",U13>0),U13*W13,"") ->  | AB13: l/m x | AD13: = | AE13: =IF(AND('Main Details'!$C$15="y",AA13>0),AA13*AC13,"") ->  | AH13: l/m x | AJ13: = | AK13: =IF(AND('Main Details'!$C$16="y",AG13>0),AG13*AI13,"") ->  | AL13: Garage Attached Piers | AN13: l/m x | AO13: =AO11 -> 0 | AP13: = | AQ13: =IF(AND('Main Details'!$C$18="y",AM13>0),AM13*AO13," ") ->  | AR13: Garage Attached Piers | AS13: =AM13 -> 0 | AT13: l/m x | AU13: =AU11 -> 0 | AV13: = | AW13: =IF(AND('Main Details'!$C$18="y",AS13>0),AS13*AU13,"") ->  | AZ13: l/m x | BB13: = | BC13: =IF(AND('Main Details'!$C$18="y",AY13>0),AY13*BA13,"") ->  | BD13: 9 | BE13: 772 | BG13: NEW WALL | BI13: STANDARD WALL | BN13: TOTAL 1C | BO13: =BO7+BO9 -> 1 | BQ13: TOTAL 1C | BR13: =+BR7+BR9 -> 1
B14: Garage Attached Piers | D14: l/m x | F14: = | G14: =IF(AND('Main Details'!$C$12="Y",C14>0),C14*E14,"") ->  | H14: 9c Brick Band | J14: l/m x | K14: 0.772 | L14: = | M14: =IF(AND('Main Details'!$C$13="Y",I14>0),I14*K14,"") ->  | N14: 9c Brick Band | P14: l/m x | Q14: 0.772 | R14: = | S14: =IF(AND('Main Details'!$C$17="Y",O14>0),O14*Q14,"") ->  | V14: l/m x | X14: = | Y14: =IF(AND('Main Details'!$C$14="Y",U14>0),U14*W14,"") ->  | AB14: No x | AD14: = | AE14: =IF(AND('Main Details'!$C$15="y",AA14>0),AA14*AC14,"") ->  | AH14: l/m x | AJ14: = | AK14: =IF(AND('Main Details'!$C$16="y",AG14>0),AG14*AI14,"") ->  | AN14: l/m x | AP14: = | AQ14: =IF(AND('Main Details'!$C$18="y",AM14>0),AM14*AO14," ") ->  | AR14: Garage Boundary Even Course | AT14: l/m x | AU14: 0.086 | AV14: = | AW14: =IF(AND('Main Details'!$C$18="y",AS14>0),AS14*AU14,"") ->  | AZ14: l/m x | BB14: = | BC14: =IF(AND('Main Details'!$C$18="y",AY14>0),AY14*BA14,"") ->  | BD14: 10 | BE14: 857.3611111 | BF14: EAVE | BG14: 31 | BH14: C | BI14: 26 | BJ14: C
D15: l/m x | F15: = | G15: =IF(AND('Main Details'!$C$12="Y",C15>0),C15*E15,"") ->  | H15: e/o Sloping Sills | J15: l/m x | K15: 0.07 | L15: = | M15: =IF(AND('Main Details'!$C$13="Y",I15>0),I15*K15,"") ->  | N15: e/o Sloping Sills | P15: l/m x | Q15: 0.07 | R15: = | S15: =IF(AND('Main Details'!$C$17="Y",O15>0),O15*Q15,"") ->  | V15: l/m x | X15: = | Y15: =IF(AND('Main Details'!$C$14="Y",U15>0),U15*W15,"") ->  | AB15: l/m x | AD15: = | AE15: =IF(AND('Main Details'!$C$15="y",AA15>0),AA15*AC15,"") ->  | AH15: l/m x | AJ15: = | AK15: =IF(AND('Main Details'!$C$16="y",AG15>0),AG15*AI15,"") ->  | AL15: Garage Boundary Odd Course | AN15: l/m x | AO15: 0.172 | AP15: = | AQ15: =IF(AND('Main Details'!$C$18="y",AM15>0),AM15*AO15," ") ->  | AR15: Garage Boundary Odd Course | AS15: =AM15 -> 0 | AT15: l/m x | AU15: -0.086 | AV15: = | AW15: =IF(AND('Main Details'!$C$18="y",AS15>0),AS15*AU15,"") ->  | AZ15: l/m x | BB15: = | BC15: =IF(AND('Main Details'!$C$18="y",AY15>0),AY15*BA15,"") ->  | BD15: 11 | BE15: 943.0777778 | BF15: T.O.F | BG15: -2 | BH15: C | BI15: -3 | BJ15: C
D16: No x | F16: = | G16: =IF(AND('Main Details'!$C$12="Y",C16>0),C16*E16,"") ->  | H16: e/o 2c Sloping Sills | J16: l/m x | K16: 0.172 | L16: = | M16: =IF(AND('Main Details'!$C$13="Y",I16>0),I16*K16,"") ->  | N16: e/o 2c Sloping Sills | P16: l/m x | Q16: 0.172 | R16: = | S16: =IF(AND('Main Details'!$C$17="Y",O16>0),O16*Q16,"") ->  | V16: l/m x | X16: = | Y16: =IF(AND('Main Details'!$C$14="Y",U16>0),U16*W16,"") ->  | AB16: l/m x | AD16: = | AE16: =IF(AND('Main Details'!$C$15="y",AA16>0),AA16*AC16,"") ->  | AH16: l/m x | AJ16: = | AK16: =IF(AND('Main Details'!$C$16="y",AG16>0),AG16*AI16,"") ->  | AN16: l/m x | AP16: = | AQ16: =IF(AND('Main Details'!$C$18="y",AM16>0),AM16*AO16," ") ->  | AT16: l/m x | AV16: = | AW16: =IF(AND('Main Details'!$C$18="y",AS16>0),AS16*AU16,"") ->  | AZ16: l/m x | BB16: = | BC16: =IF(AND('Main Details'!$C$18="y",AY16>0),AY16*BA16,"") ->  | BD16: 12 | BE16: 1028.794444 | BF16: TOTAL | BG16: =BG14-BG15 -> 33 | BH16: C | BI16: =BI14-BI15 -> 29 | BJ16: C | BQ16: UPTO 2C | BR16: =IF(BI16>BH12,BH12-BT16,BI16-BT16-BT17) -> 28 | BS16: UPTO 1C | BT16: =IF(MOD(BI15,2)=0,"1","0")+IF(AND(MOD(BI14,2)=0,(BI16<=BH12)),"1","0") -> 1
D17: l/m x | F17: = | G17: =IF(AND('Main Details'!$C$12="Y",C17>0),C17*E17,"") ->  | J17: l/m x | L17: = | M17: =IF(AND('Main Details'!$C$13="Y",I17>0),I17*K17,"") ->  | P17: l/m x | R17: = | S17: =IF(AND('Main Details'!$C$17="Y",O17>0),O17*Q17,"") ->  | T17: Std Brickwork not requiring Brick Ties | Z17: Std Brickwork not requiring Brick Ties | AL17: Std Brickwork not requiring Brick Ties | AR17: Std Brickwork not requiring Brick Ties | BD17: 13 | BE17: 1114.511111 | BN17: 31C CUT POINT | BO17: =IF(BG16>BH12,BH12+BG15,"0") -> 29 | BP17: C | BQ17: OVER 2C | BR17: =IF(BI16>BH12,BI16-BH12-BT17,"0") -> 0 | BS17: OVER 1C | BT17: =IF(AND(MOD(BI14,2)=0,(BI16>BH12)),"1","0") -> 0
D18: l/m x | F18: = | G18: =IF(AND('Main Details'!$C$12="Y",C18>0),C18*E18,"") ->  | J18: l/m x | L18: = | M18: =IF(AND('Main Details'!$C$13="Y",I18>0),I18*K18,"") ->  | P18: l/m x | R18: = | S18: =IF(AND('Main Details'!$C$17="Y",O18>0),O18*Q18,"") ->  | V18: l/m x | X18: = | Y18: =IF(AND('Main Details'!$C$14="Y",U18>0),U18*W18,"") ->  | AB18: l/m x | AD18: = | AE18: =IF(AND('Main Details'!$C$15="y",AA18>0),AA18*AC18,"") ->  | AH18: l/m x | AJ18: = | AK18: =IF(AND('Main Details'!$C$16="y",AG18>0),AG18*AI18,"") ->  | AN18: l/m x | AP18: = | AQ18: =IF(AND('Main Details'!$C$18="y",AM18>0),AM18*AO18," ") ->  | AT18: l/m x | AV18: = | AW18: =IF(AND('Main Details'!$C$18="y",AS18>0),AS18*AU18,"") ->  | AZ18: l/m x | BB18: = | BC18: =IF(AND('Main Details'!$C$18="y",AY18>0),AY18*BA18,"") ->  | BD18: 14 | BE18: 1200.227778 | BG18: DIFFERENCE OF HEIGHT BETWEEN WALLS | BJ18: =(BG16-BI16) -> 4
D19: l/m x | F19: = | G19: =IF(AND('Main Details'!$C$12="Y",C19>0),C19*E19,"") ->  | J19: l/m x | L19: = | M19: =IF(AND('Main Details'!$C$13="Y",I19>0),I19*K19,"") ->  | P19: l/m x | R19: = | S19: =IF(AND('Main Details'!$C$17="Y",O19>0),O19*Q19,"") ->  | V19: l/m x | X19: = | Y19: =IF(AND('Main Details'!$C$14="Y",U19>0),U19*W19,"") ->  | AB19: l/m x | AD19: = | AE19: =IF(AND('Main Details'!$C$15="y",AA19>0),AA19*AC19,"") ->  | AH19: l/m x | AJ19: = | AK19: =IF(AND('Main Details'!$C$16="y",AG19>0),AG19*AI19,"") ->  | AN19: l/m x | AP19: = | AQ19: =IF(AND('Main Details'!$C$18="y",AM19>0),AM19*AO19," ") ->  | AT19: l/m x | AV19: = | AW19: =IF(AND('Main Details'!$C$18="y",AS19>0),AS19*AU19,"") ->  | AZ19: l/m x | BB19: = | BC19: =IF(AND('Main Details'!$C$18="y",AY19>0),AY19*BA19,"") ->  | BD19: 15 | BE19: 1285.944444 | BN19: courses over cut | BO19: =IF(BG16>BH12,BG16-BO17,"0")+BG15 -> 2 | BP19: c
D20: l/m x | F20: = | G20: =IF(AND('Main Details'!$C$12="Y",C20>0),C20*E20,"") ->  | J20: l/m x | L20: = | M20: =IF(AND('Main Details'!$C$13="Y",I20>0),I20*K20,"") ->  | P20: l/m x | R20: = | S20: =IF(AND('Main Details'!$C$17="Y",O20>0),O20*Q20,"") ->  | V20: l/m x | X20: = | Y20: =IF(AND('Main Details'!$C$14="Y",U20>0),U20*W20,"") ->  | AB20: l/m x | AD20: = | AE20: =IF(AND('Main Details'!$C$15="y",AA20>0),AA20*AC20,"") ->  | AH20: l/m x | AJ20: = | AK20: =IF(AND('Main Details'!$C$16="y",AG20>0),AG20*AI20,"") ->  | AN20: l/m x | AP20: = | AQ20: =IF(AND('Main Details'!$C$18="y",AM20>0),AM20*AO20," ") ->  | AT20: l/m x | AV20: = | AW20: =IF(AND('Main Details'!$C$18="y",AS20>0),AS20*AU20,"") ->  | AZ20: l/m x | BB20: = | BC20: =IF(AND('Main Details'!$C$18="y",AY20>0),AY20*BA20,"") ->  | BD20: 16 | BE20: 1371.661111
D21: l/m x | F21: = | G21: =IF(AND('Main Details'!$C$12="Y",C21>0),C21*E21,"") ->  | J21: l/m x | L21: = | M21: =IF(AND('Main Details'!$C$13="Y",I21>0),I21*K21,"") ->  | P21: l/m x | R21: = | S21: =IF(AND('Main Details'!$C$17="Y",O21>0),O21*Q21,"") ->  | V21: l/m x | X21: = | Y21: =IF(AND('Main Details'!$C$14="Y",U21>0),U21*W21,"") ->  | AB21: l/m x | AD21: = | AE21: =IF(AND('Main Details'!$C$15="y",AA21>0),AA21*AC21,"") ->  | AH21: l/m x | AJ21: = | AK21: =IF(AND('Main Details'!$C$16="y",AG21>0),AG21*AI21,"") ->  | AN21: l/m x | AP21: = | AQ21: =IF(AND('Main Details'!$C$18="y",AM21>0),AM21*AO21," ") ->  | AT21: l/m x | AV21: = | AW21: =IF(AND('Main Details'!$C$18="y",AS21>0),AS21*AU21,"") ->  | AZ21: l/m x | BB21: = | BC21: =IF(AND('Main Details'!$C$18="y",AY21>0),AY21*BA21,"") ->  | BD21: 17 | BE21: 1457.377778
D22: l/m x | F22: = | G22: =IF(AND('Main Details'!$C$12="Y",C22>0),C22*E22,"") ->  | J22: l/m x | L22: = | M22: =IF(AND('Main Details'!$C$13="Y",I22>0),I22*K22,"") ->  | P22: l/m x | R22: = | S22: =IF(AND('Main Details'!$C$17="Y",O22>0),O22*Q22,"") ->  | V22: l/m x | X22: = | Y22: =IF(AND('Main Details'!$C$14="Y",U22>0),U22*W22,"") ->  | AB22: l/m x | AD22: = | AE22: =IF(AND('Main Details'!$C$15="y",AA22>0),AA22*AC22,"") ->  | AH22: l/m x | AJ22: = | AK22: =IF(AND('Main Details'!$C$16="y",AG22>0),AG22*AI22,"") ->  | AN22: l/m x | AP22: = | AQ22: =IF(AND('Main Details'!$C$18="y",AM22>0),AM22*AO22," ") ->  | AT22: l/m x | AV22: = | AW22: =IF(AND('Main Details'!$C$18="y",AS22>0),AS22*AU22,"") ->  | AZ22: l/m x | BB22: = | BC22: =IF(AND('Main Details'!$C$18="y",AY22>0),AY22*BA22,"") ->  | BD22: 18 | BE22: 1543.094444
D23: l/m x | F23: = | G23: =IF(AND('Main Details'!$C$12="Y",C23>0),C23*E23,"") ->  | J23: l/m x | L23: = | M23: =IF(AND('Main Details'!$C$13="Y",I23>0),I23*K23,"") ->  | P23: l/m x | R23: = | S23: =IF(AND('Main Details'!$C$17="Y",O23>0),O23*Q23,"") ->  | V23: l/m x | X23: = | Y23: =IF(AND('Main Details'!$C$14="Y",U23>0),U23*W23,"") ->  | AB23: l/m x | AD23: = | AE23: =IF(AND('Main Details'!$C$15="y",AA23>0),AA23*AC23,"") ->  | AH23: l/m x | AJ23: = | AK23: =IF(AND('Main Details'!$C$16="y",AG23>0),AG23*AI23,"") ->  | AN23: l/m x | AP23: = | AQ23: =IF(AND('Main Details'!$C$18="y",AM23>0),AM23*AO23," ") ->  | AT23: l/m x | AV23: = | AW23: =IF(AND('Main Details'!$C$18="y",AS23>0),AS23*AU23,"") ->  | AZ23: l/m x | BB23: = | BC23: =IF(AND('Main Details'!$C$18="y",AY23>0),AY23*BA23,"") ->  | BD23: 19 | BE23: 1628.811111
D24: l/m x | F24: = | G24: =IF(AND('Main Details'!$C$12="Y",C24>0),C24*E24,"") ->  | J24: l/m x | L24: = | M24: =IF(AND('Main Details'!$C$13="Y",I24>0),I24*K24,"") ->  | P24: l/m x | R24: = | S24: =IF(AND('Main Details'!$C$17="Y",O24>0),O24*Q24,"") ->  | V24: l/m x | X24: = | Y24: =IF(AND('Main Details'!$C$14="Y",U24>0),U24*W24,"") ->  | AB24: l/m x | AD24: = | AE24: =IF(AND('Main Details'!$C$15="y",AA24>0),AA24*AC24,"") ->  | AH24: l/m x | AJ24: = | AK24: =IF(AND('Main Details'!$C$16="y",AG24>0),AG24*AI24,"") ->  | AN24: l/m x | AP24: = | AQ24: =IF(AND('Main Details'!$C$18="y",AM24>0),AM24*AO24," ") ->  | AT24: l/m x | AV24: = | AW24: =IF(AND('Main Details'!$C$18="y",AS24>0),AS24*AU24,"") ->  | AZ24: l/m x | BB24: = | BC24: =IF(AND('Main Details'!$C$18="y",AY24>0),AY24*BA24,"") ->  | BD24: 20 | BE24: 1714.527778 | BG24: UPTO 31 AMOUNT INC DIFF | BJ24: =BJ18-#REF! ->  | BN24: DIFFERENCE 2C | BO24: =BO12-BR12 -> 4
B25: ↓↓↓↓ OVER 31C ↓↓↓↓ | D25: l/m x | F25: = | G25: =IF(AND('Main Details'!$C$12="Y",C25>0),C25*E25,"") ->  | J25: l/m x | L25: = | M25: =IF(AND('Main Details'!$C$13="Y",I25>0),I25*K25,"") ->  | P25: l/m x | R25: = | S25: =IF(AND('Main Details'!$C$17="Y",O25>0),O25*Q25,"") ->  | V25: l/m x | X25: = | Y25: =IF(AND('Main Details'!$C$14="Y",U25>0),U25*W25,"") ->  | AB25: l/m x | AD25: = | AE25: =IF(AND('Main Details'!$C$15="y",AA25>0),AA25*AC25,"") ->  | AH25: l/m x | AJ25: = | AK25: =IF(AND('Main Details'!$C$16="y",AG25>0),AG25*AI25,"") ->  | AN25: l/m x | AP25: = | AQ25: =IF(AND('Main Details'!$C$18="y",AM25>0),AM25*AO25," ") ->  | AT25: l/m x | AV25: = | AW25: =IF(AND('Main Details'!$C$18="y",AS25>0),AS25*AU25,"") ->  | AZ25: l/m x | BB25: = | BC25: =IF(AND('Main Details'!$C$18="y",AY25>0),AY25*BA25,"") ->  | BD25: 21 | BE25: 1800.244444
D26: l/m x | F26: = | G26: =IF(AND('Main Details'!$C$12="Y",C26>0),C26*E26,"") ->  | I26: Items per No | O26: Items per No | T26: Brickwork above Std External House Perimeter | Z26: Brickwork above Std External House Perimeter | AL26: Brickwork above Std External House Perimeter | AR26: Brickwork above Std External House Perimeter | BD26: 22 | BE26: 1885.961111
D27: l/m x | F27: = | G27: =IF(AND('Main Details'!$C$12="Y",C27>0),C27*E27,"") ->  | J27: No / | K27: =I40 -> 0 | L27: = | M27: =IF(AND('Main Details'!$C$13="Y",I27>0),I27/K27,"") ->  | P27: No / | Q27: =O40 -> 0 | R27: = | S27: =IF(AND('Main Details'!$C$17="Y",O27>0),O27/Q27,"") ->  | V27: l/m x | X27: = | Y27: =IF(AND('Main Details'!$C$14="Y",U27>0),U27*W27,"") ->  | AB27: l/m x | AD27: = | AE27: =IF(AND('Main Details'!$C$15="y",AA27>0),AA27*AC27,"") ->  | AH27: No / | AI27: =AG44 -> 0 | AJ27: = | AK27: =IF(AND('Main Details'!$C$16="y",AG27>0),AG27/AI27,"") ->  | AN27: l/m x | AP27: = | AQ27: =IF(AND('Main Details'!$C$18="y",AM27>0),AM27*AO27," ") ->  | AT27: l/m x | AV27: = | AW27: =IF(AND('Main Details'!$C$18="y",AS27>0),AS27*AU27,"") ->  | AZ27: l/m x | BB27: = | BC27: =IF(AND('Main Details'!$C$18="y",AY27>0),AY27*BA27,"") ->  | BD27: 23 | BE27: 1971.677778
B28: ↓↓↓↓ OVER 31C ↓↓↓↓ | D28: l/m x | F28: = | G28: =IF(AND('Main Details'!$C$12="Y",C28>0),C28*E28,"") ->  | J28: l/m x | L28: = | M28: =IF(AND('Main Details'!$C$13="Y",I28>0),I28*K28,"") ->  | P28: l/m x | R28: = | S28: =IF(AND('Main Details'!$C$17="Y",O28>0),O28*Q28,"") ->  | V28: l/m x | X28: = | Y28: =IF(AND('Main Details'!$C$14="Y",U28>0),U28*W28,"") ->  | AB28: l/m x | AD28: = | AE28: =IF(AND('Main Details'!$C$15="y",AA28>0),AA28*AC28,"") ->  | AN28: l/m x | AP28: = | AQ28: =IF(AND('Main Details'!$C$18="y",AM28>0),AM28*AO28," ") ->  | AT28: l/m x | AV28: = | AW28: =IF(AND('Main Details'!$C$18="y",AS28>0),AS28*AU28,"") ->  | AZ28: l/m x | BB28: = | BC28: =IF(AND('Main Details'!$C$18="y",AY28>0),AY28*BA28,"") ->  | BD28: 24 | BE28: 2057.394444
D29: l/m x | F29: = | G29: =IF(AND('Main Details'!$C$12="Y",C29>0),C29*E29,"") ->  | J29: No / | K29: =I43 -> 50.5 | L29: = | M29: =IF(AND('Main Details'!$C$13="Y",I29>0),I29/K29,"") ->  | P29: No / | Q29: =O43 -> 50.5 | R29: = | S29: =IF(AND('Main Details'!$C$17="Y",O29>0),O29/Q29,"") ->  | V29: l/m x | X29: = | Y29: =IF(AND('Main Details'!$C$14="Y",U29>0),U29*W29,"") ->  | AB29: l/m x | AD29: = | AE29: =IF(AND('Main Details'!$C$15="y",AA29>0),AA29*AC29,"") ->  | AN29: l/m x | AP29: = | AQ29: =IF(AND('Main Details'!$C$18="y",AM29>0),AM29*AO29," ") ->  | AT29: l/m x | AV29: = | AW29: =IF(AND('Main Details'!$C$18="y",AS29>0),AS29*AU29,"") ->  | AZ29: l/m x | BB29: = | BC29: =IF(AND('Main Details'!$C$18="y",AY29>0),AY29*BA29,"") ->  | BD29: 25 | BE29: 2143.111111
D30: l/m x | F30: = | G30: =IF(AND('Main Details'!$C$12="Y",C30>0),C30*E30,"") ->  | J30: No / | K30: =I43 -> 50.5 | L30: = | M30: =IF(AND('Main Details'!$C$13="Y",I30>0),I30/K30,"") ->  | P30: No / | Q30: =O43 -> 50.5 | R30: = | S30: =IF(AND('Main Details'!$C$17="Y",O30>0),O30/Q30,"") ->  | V30: l/m x | X30: = | Y30: =IF(AND('Main Details'!$C$14="Y",U30>0),U30*W30,"") ->  | AB30: l/m x | AD30: = | AE30: =IF(AND('Main Details'!$C$15="y",AA30>0),AA30*AC30,"") ->  | AN30: l/m x | AP30: = | AQ30: =IF(AND('Main Details'!$C$18="y",AM30>0),AM30*AO30," ") ->  | AT30: l/m x | AV30: = | AW30: =IF(AND('Main Details'!$C$18="y",AS30>0),AS30*AU30,"") ->  | AZ30: l/m x | BB30: = | BC30: =IF(AND('Main Details'!$C$18="y",AY30>0),AY30*BA30,"") ->  | BD30: 26 | BE30: 2228.827778
D31: l/m x | F31: = | G31: =IF(AND('Main Details'!$C$12="Y",C31>0),C31*E31,"") ->  | J31: No / | K31: =I43 -> 50.5 | L31: = | M31: =IF(AND('Main Details'!$C$13="Y",I31>0),I31/K31,"") ->  | P31: No / | Q31: =O43 -> 50.5 | R31: = | S31: =IF(AND('Main Details'!$C$17="Y",O31>0),O31/Q31,"") ->  | V31: l/m x | X31: = | Y31: =IF(AND('Main Details'!$C$14="Y",U31>0),U31*W31,"") ->  | AB31: l/m x | AD31: = | AE31: =IF(AND('Main Details'!$C$15="y",AA31>0),AA31*AC31,"") ->  | AH31: l/m x | AJ31: = | AK31: =IF(AND('Main Details'!$C$16="y",AG31>0),AG31*AI31,"") ->  | AN31: l/m x | AP31: = | AQ31: =IF(AND('Main Details'!$C$18="y",AM31>0),AM31*AO31," ") ->  | AT31: l/m x | AV31: = | AW31: =IF(AND('Main Details'!$C$18="y",AS31>0),AS31*AU31,"") ->  | AZ31: l/m x | BB31: = | BC31: =IF(AND('Main Details'!$C$18="y",AY31>0),AY31*BA31,"") ->  | BD31: 27 | BE31: 2314.544444
D32: l/m x | F32: = | G32: =IF(AND('Main Details'!$C$12="Y",C32>0),C32*E32,"") ->  | J32: No / | K32: =I43 -> 50.5 | L32: = | M32: =IF(AND('Main Details'!$C$13="Y",I32>0),I32/K32,"") ->  | P32: No / | Q32: =O43 -> 50.5 | R32: = | S32: =IF(AND('Main Details'!$C$17="Y",O32>0),O32/Q32,"") ->  | V32: l/m x | X32: = | Y32: =IF(AND('Main Details'!$C$14="Y",U32>0),U32*W32,"") ->  | AB32: l/m x | AD32: = | AE32: =IF(AND('Main Details'!$C$15="y",AA32>0),AA32*AC32,"") ->  | AN32: l/m x | AP32: = | AQ32: =IF(AND('Main Details'!$C$18="y",AM32>0),AM32*AO32," ") ->  | AT32: l/m x | AV32: = | AW32: =IF(AND('Main Details'!$C$18="y",AS32>0),AS32*AU32,"") ->  | AZ32: l/m x | BB32: = | BC32: =IF(AND('Main Details'!$C$18="y",AY32>0),AY32*BA32,"") ->  | BD32: 28 | BE32: 2400.261111
B33: Garage / House Wall 25 - 28c | C33: =IF(OR('Main Details'!R32="Y",'Main Details'!R33="Y"),'Main Details'!D45,"0.00") -> 0.00 | D33: l/m x | E33: 0.257 | F33: = | G33: =IF(AND('Main Details'!$C$12="Y",C33>0),C33*E33,"") ->  | J33: No / | K33: =I43 -> 50.5 | L33: = | M33: =IF(AND('Main Details'!$C$13="Y",I33>0),I33/K33,"") ->  | P33: No / | Q33: =O43 -> 50.5 | R33: = | S33: =IF(AND('Main Details'!$C$17="Y",O33>0),O33/Q33,"") ->  | V33: l/m x | X33: = | Y33: =IF(AND('Main Details'!$C$14="Y",U33>0),U33*W33,"") ->  | AB33: l/m x | AD33: = | AE33: =IF(AND('Main Details'!$C$15="y",AA33>0),AA33*AC33,"") ->  | AH33: No / | AI33: =AG47 -> 48.5 | AJ33: = | AK33: =IF(AND('Main Details'!$C$16="y",AG33>0),AG33/AI33,"") ->  | AN33: l/m x | AP33: = | AQ33: =IF(AND('Main Details'!$C$18="y",AM33>0),AM33*AO33," ") ->  | AT33: l/m x | AV33: = | AW33: =IF(AND('Main Details'!$C$18="y",AS33>0),AS33*AU33,"") ->  | AZ33: l/m x | BB33: = | BC33: =IF(AND('Main Details'!$C$18="y",AY33>0),AY33*BA33,"") ->  | BD33: 29 | BE33: 2485.977778
V34: l/m x | X34: = | Y34: =IF(AND('Main Details'!$C$14="Y",U34>0),U34*W34,"") ->  | AB34: l/m x | AD34: = | AE34: =IF(AND('Main Details'!$C$15="y",AA34>0),AA34*AC34,"") ->  | AH34: No / | AI34: =AG47 -> 48.5 | AJ34: = | AK34: =IF(AND('Main Details'!$C$16="y",AG34>0),AG34/AI34,"") ->  | AN34: l/m x | AP34: = | AQ34: =IF(AND('Main Details'!$C$18="y",AM34>0),AM34*AO34," ") ->  | AT34: l/m x | AV34: = | AW34: =IF(AND('Main Details'!$C$18="y",AS34>0),AS34*AU34,"") ->  | AZ34: l/m x | BB34: = | BC34: =IF(AND('Main Details'!$C$18="y",AY34>0),AY34*BA34,"") ->  | BD34: 30 | BE34: 2571.694444
B35: Garage / House Wall Over 28c | D35: l/m x | F35: = | G35: =IF(AND('Main Details'!$C$12="Y",C35>0),C35*E35,"0.00") -> 0.00 | J35: No / | K35: =I43 -> 50.5 | L35: = | M35: =IF(AND('Main Details'!$C$13="Y",I35>0),I35/K35,"") ->  | P35: No / | Q35: =O43 -> 50.5 | R35: = | S35: =IF(AND('Main Details'!$C$17="Y",O35>0),O35/Q35,"") ->  | V35: l/m x | X35: = | Y35: =IF(AND('Main Details'!$C$14="Y",U35>0),U35*W35,"") ->  | AB35: l/m x | AD35: = | AE35: =IF(AND('Main Details'!$C$15="y",AA35>0),AA35*AC35,"") ->  | AH35: No / | AI35: =AG47 -> 48.5 | AJ35: = | AK35: =IF(AND('Main Details'!$C$16="y",AG35>0),AG35/AI35,"") ->  | AN35: l/m x | AP35: = | AQ35: =IF(AND('Main Details'!$C$18="y",AM35>0),AM35*AO35," ") ->  | AT35: l/m x | AV35: = | AW35: =IF(AND('Main Details'!$C$18="y",AS35>0),AS35*AU35,"") ->  | AZ35: l/m x | BB35: = | BC35: =IF(AND('Main Details'!$C$18="y",AY35>0),AY35*BA35,"") ->  | BD35: 31 | BE35: 2657.411111
V36: l/m x | X36: = | Y36: =IF(AND('Main Details'!$C$14="Y",U36>0),U36*W36,"") ->  | Z36: 1C RENDERED CORED SILLS | AD36: = | AE36: =Lintels.windows!BA41 -> 0 | AH36: No / | AI36: =AG47 -> 48.5 | AJ36: = | AK36: =IF(AND('Main Details'!$C$16="y",AG36>0),AG36/AI36,"") ->  | AN36: l/m x | AP36: = | AQ36: =IF(AND('Main Details'!$C$18="y",AM36>0),AM36*AO36," ") ->  | AR36: 1c FACE CORED SILLS | AV36: = | AW36: =Lintels.windows!AY41+'Internal deductions & int walls'!K26/2 -> 0 | AX36: 1c FACE FEATURE CORED SILLS | AZ36: l/m x | BB36: = | BC36: =Lintels.windows!BC41 -> 0 | BD36: 32 | BE36: 2743.127778
E37: TOTAL DEDUCTION | F37: = | G37: =IF('Main Details'!$C$12="Y",-D79,"0") -> 0 | K37: TOTAL DEDUCTION | L37: = | M37: =IF('Main Details'!C13="Y",-(J79),0) -> 0 | Q37: TOTAL DEDUCTION | R37: = | S37: =IF('Main Details'!$C$17="Y",-P79,"") ->  | T37: Garage / House Wall 25 - 28c | V37: l/m x | X37: = | Y37: =IF(AND('Main Details'!$C$14="Y",U37>0),U37*W37,"") ->  | Z37: Garage / House Wall 25 - 28c | AA37: =U37 -> 0 | AB37: l/m x | AD37: = | AE37: =IF(AND('Main Details'!$C$15="y",AA37>0),AA37*AC37,"") ->  | AH37: No / | AI37: =AG47 -> 48.5 | AJ37: = | AK37: =IF(AND('Main Details'!$C$16="y",AG37>0),AG37/AI37,"") ->  | AL37: Garage / House Wall 25 - 28c | AM37: ='Main Details'!D45 -> 0 | AN37: l/m x | AO37: 0.172 | AP37: = | AQ37: =IF(AND('Main Details'!$C$18="y",AM37>0),AM37*AO37," ") ->  | AR37: Garage / House Wall 25 - 28c | AS37: =AM37 -> 0 | AT37: l/m x | AU37: 0.086 | AV37: = | AW37: =IF(AND('Main Details'!$C$18="y",AS37>0),AS37*AU37,"") ->  | AX37: Garage / House Wall 25 - 28c | AY37: =AS37 -> 0 | AZ37: l/m x | BB37: = | BC37: =IF(AND('Main Details'!$C$18="y",AY37>0),AY37*BA37,"") ->  | BD37: 33 | BE37: 2828.844444
E38: TOTAL m2 | F38: = | G38: =IF('Main Details'!C12="y",SUM(G7:G24,G33,G35,G37),"0") -> 0 | K38: TOTAL m2 | L38: = | M38: =SUM(M7:M24,M29:M37) -> 0 | Q38: TOTAL m2 | R38: = | S38: =SUM(S7:S24,S29:S37) -> 0 | T38: Garage / House Wall Over 28c | V38: l/m x | X38: = | Y38: =IF(AND('Main Details'!$C$14="Y",U38>0),U38*W38,"") ->  | Z38: Garage / House Wall Over 28c | AB38: l/m x | AD38: = | AE38: =IF(AND('Main Details'!$C$15="y",AA38>0),AA38*AC38,"") ->  | AL38: Garage / House Wall Over 28c | AN38: l/m x | AP38: = | AQ38: =IF(AND('Main Details'!$C$18="y",AM38>0),AM38*AO38," ") ->  | AR38: Garage / House Wall Over 28c | AT38: l/m x | AV38: = | AW38: =IF(AND('Main Details'!$C$18="y",AS38>0),AS38*AU38,"") ->  | AX38: Garage / House Wall Over 28c | AZ38: l/m x | BB38: = | BC38: =IF(AND('Main Details'!$C$18="y",AY38>0),AY38*BA38,"") ->  | BD38: 34 | BE38: 2914.561111
E39: TOTAL LABOUR NET | F39: = | G39: =SUM(G38*C43)-G42 -> 0 | K39: TOTAL LABOUR NET | L39: = | M39: =M38*I43 -> 0 | Q39: TOTAL LABOUR NET | R39: = | S39: =S38*O43 -> 0 | T39: Garage / House Wall Over 28c | V39: l/m x | X39: = | Y39: =IF(AND('Main Details'!$C$14="Y",U39>0),U39*W39,"") ->  | Z39: Garage / House Wall Over 28c | AA39: =U39 -> 0 | AB39: l/m x | AD39: = | AE39: =IF(AND('Main Details'!$C$15="y",AA39>0),AA39*AC39,"") ->  | AH39: No / | AI39: =AG47 -> 48.5 | AJ39: = | AK39: =IF(AND('Main Details'!$C$16="y",AG39>0),AG39/AI39,"") ->  | AL39: Garage / House Wall Over 28c | AN39: l/m x | AP39: = | AQ39: =IF(AND('Main Details'!$C$18="y",AM39>0),AM39*AO39,"") ->  | AR39: Garage / House Wall Over 28c | AT39: l/m x | AV39: = | AW39: =IF(AND('Main Details'!$C$18="y",AS39>0),AS39*AU39,"") ->  | AX39: Garage / House Wall Over 28c | AY39: =AS39 -> 0 | AZ39: l/m x | BB39: = | BC39: =IF(AND('Main Details'!$C$18="y",AY39>0),AY39*BA39,"") ->  | BD39: 35 | BE39: 3000.277778
D40: WASTAGE + | E40: ='BUILDERS SETTINGS'!C20/100 -> 0 | F40: = | G40: =G39/100*'BUILDERS SETTINGS'!C20 -> 0 | J40: WASTAGE + | K40: ='BUILDERS SETTINGS'!C20/100 -> 0 | L40: = | M40: =M39/100*'BUILDERS SETTINGS'!C20 -> 0 | P40: WASTAGE + | Q40: ='BUILDERS SETTINGS'!C20/100 -> 0 | R40: = | S40: =S39/100*'BUILDERS SETTINGS'!C20 -> 0 | BD40: 36 | BE40: 3085.994444
E41: TOTAL BRICKS | F41: = | G41: =G39+G40 -> 0 | K41: TOTAL CONTRAST BRICKS | L41: = | M41: =M39+M40 -> 0 | Q41: TOTAL CONTRAST BRICKS | R41: = | S41: =S39+S40 -> 0 | W41: TOTAL DEDUCTION | X41: = | Y41: =-Lintels.windows!J44 -> 0 | AC41: TOTAL DEDUCTION | AD41: = | AE41: =IF('Main Details'!$C$15="Y",-AC90,"") -> 0 | AI41: DDT | AK41: =IF('Main Details'!$C$16="Y",-AI92,"") ->  | AO41: TOTAL DEDUCTION | AP41: = | AQ41: =-Lintels.windows!J45-'Internal deductions & int walls'!E44 -> 0 | AU41: TOTAL DEDUCTION | AV41: = | AW41: =IF('Main Details'!$C$18="Y",-AU90,"") -> 0 | BA41: TOTAL DEDUCTION | BB41: = | BC41: =-Lintels.windows!J46 -> 0 | BD41: 37 | BE41: 3171.711111
E42: TOTAL NUMBER SOLID FACE BRICKS | F42: = | G42: =IF('Main Details'!$C$12="Y",(Lintels.windows!$F$42+G56)-((Lintels.windows!O41+Lintels.windows!#REF!)+(Lintels.windows!#REF!+Lintels.windows!#REF!)),"0") -> 0 | K42: TOTAL SOLID CONTRAST 1 FACE BRICKS | L42: = | M42: =IF('Main Details'!$C$13="y",(Lintels.windows!O41+Lintels.windows!#REF!)+M56," ") ->  | Q42: TOTAL SOLID CONTRAST 2 FACE BRICKS | R42: = | S42: =IF('Main Details'!$C$17="y",(Lintels.windows!#REF!+Lintels.windows!#REF!)+S56," ") ->  | W42: TOTAL m2 | X42: = | Y42: =SUM(Y7:Y36,Y37,Y38,Y39,Y41) -> 0 | AC42: TOTAL m2 | AD42: = | AE42: =SUM(AE7:AE36,AE37:AE39) -> 0 | AI42: Total m2 | AJ42: = | AK42: =IF(AND('Main Details'!$C$16="y"),SUM(AK7:AK26,AK27:AK39),0) -> 0 | AO42: TOTAL m2 | AP42: = | AQ42: =SUM(AQ7:AQ36,AQ37:AQ38,AQ39,AQ41) -> 0 | AU42: Total m2 | AV42: = | AW42: =SUM(AW7:AW36,AW37:AW39,AW41) -> 0 | BA42: Total m2 | BB42: = | BC42: =IF(AND('Main Details'!$C$18="y"),SUM(BC7:BC36,BC37:BC39,BC41),"0") -> 0
C43: ='Main Details'!N12 -> 48.5 | D43: Bricks per m2 | I43: ='Main Details'!N13 -> 50.5 | J43: Bricks per m2 | O43: ='Main Details'!N17 -> 50.5 | P43: Bricks per m2 | W43: TOTAL LABOUR NET | X43: = | Y43: =SUM(Y42*U47) -> 0 | AC43: TOTAL LABOUR NET | AD43: = | AE43: =SUM(AE42*AA47) -> 0 | AI43: Net labour/No of bricks | AJ43: = | AK43: =SUM(AK42*AG47)-AK46 -> 0 | AO43: LABOUR NET | AP43: = | AQ43: =AQ42*AM47 ->  | AU43: Net labour/No of bricks | AV43: = | AW43: =SUM((AW42*AS47)) -> 0 | BA43: Net labour/No of bricks | BB43: = | BC43: =SUM((BC42*AY47)) -> 0
C44: ='Main Details'!K12 -> 264 | D44: Pack Size | E44: OVER 31c | F44: = | G44: =SUM(G28:G32)-IF(C69="Y",M44,"0")-IF(C70="Y",S44,"0")-IF(C71="Y",Y47,"0")-IF(C72="Y",AE49,"0")-IF(C73="Y",AK49,"0")-IF(C74="Y",AQ47,"0")-IF(C75="Y",AW49,"0") -> 0 | I44: ='Main Details'!K13 -> 264 | J44: Pack Size | K44: <31C | M44: =SUM(M28:M28)-IF(I70="Y",S44,"0")-IF(I71="Y",Y47,"0")-IF(I72="Y",AE49,"0")-IF(I73="Y",AK49,"0")-IF(I74="Y",AQ47,"0")-IF(I75="Y",AW49,"0") -> 0 | O44: ='Main Details'!K17 -> 264 | P44: Pack Size | Q44: <31C | S44: =SUM(S28:S28)-IF(O69="Y",M44,"0")-IF(O71="Y",Y47,"0")-IF(O72="Y",AE49,"0")-IF(O73="Y",AK49,"0")-IF(O74="Y",AQ47,"0")-IF(O75="Y",AW49,"0") -> 0 | W44: Total Number of Packs | X44: = | Y44: =(ROUNDUP(SUM(Y43/(U48/U49)),0))/U49 -> 0 | AC44: TOTAL No CORED PKS | AD44: = | AE44: =(ROUNDUP(SUM(AE43/(AA48/AA49)),0))/AA49 -> 0 | AI44: Number of packs | AJ44: = | AK44: =(ROUNDUP(SUM(AK43/(AG48/AG49)),0))/AG49 -> 0 | AN44: Wastage : | AO44: 0 | AP44: = | AQ44: =(AQ43*AO44) ->  | AU44: Number of packs | AV44: = | AW44: =(ROUNDUP(SUM(AW43/(AS48/AS49)),0))/AS49 -> 0 | BA44: Number of packs | BB44: = | BC44: =(ROUNDUP(SUM(BC43/(AY48/AY49)),0))/AY49 -> 0
C45: ='Main Details'!M12 -> 4 | D45: No leaves per pack | I45: ='Main Details'!M13 -> 4 | J45: No leaves per pack | O45: ='Main Details'!M17 -> 4 | P45: No leaves per pack | W45: Total Number of Bricks | X45: = | Y45: =SUM(Y44*U48) -> 0 | AC45: Total No Cored Bricks | AD45: = | AE45: =SUM(AE44*AA48) -> 0 | AI45: Total Number of Bricks | AJ45: = | AK45: =SUM(AK44*AG48) -> 0 | AO45: Total Number of Bricks | AP45: = | AQ45: =AQ43+AQ44-(Y61/2) ->  | AU45: Total Number of Bricks | AV45: = | AW45: =SUM(AW44*AS48) -> 0 | BA45: Total Number of Bricks | BB45: = | BC45: =SUM(BC44*AY48) -> 0
B46: EXTRA EXT FACE SOLIDS | H46: EXTRA EXT FACE CONTRAST 1 SOLIDS | N46: EXTRA EXT CONTRAST 2 SOLIDS | AI46: Total Bricks Solids | AJ46: = | AK46: =IF('Main Details'!$C$16="y",AK61,"0") -> 0
C47: length | D47: x | E47: height | G47: Extd | I47: length | J47: x | K47: height | M47: Extd | O47: length | P47: x | Q47: height | S47: Extd | T47: Bricks per m2 | U47: ='Main Details'!N14 -> 18.5 | Z47: Bricks per m2 | AA47: ='Main Details'!N15 -> 37 | AF47: Bricks per m2 | AG47: 48.5 | AI47: No / packs | AJ47: = | AK47: =(ROUNDUP(SUM(AK46/(AG48/AG49)),0))/AG49 -> 0 | AL47: Bricks per m2 | AM47: ='Main Details'!N18 ->  | AR47: Bricks per m2 | AS47: 38.75 | AX47: Bricks per m2 | AY47: 48.5
B48: Above T.Bars | D48: l/m x | E48: 0.086 | F48: = | G48: =IF(AND('Main Details'!$C$12="Y",C48>0),C48*E48,"") ->  | H48: 1c Header Corbel | J48: l/m x | K48: 0.086 | L48: = | M48: =IF(AND('Main Details'!$C$13="Y",I48>0),I48*K48,"") ->  | N48: 1c Header Corbel | P48: l/m x | Q48: 0.086 | R48: = | S48: =IF(AND('Main Details'!$C$17="Y",O48>0),O48*Q48,"") ->  | T48: Pack Size | U48: ='Main Details'!K14 -> 138 | Z48: Pack Size | AA48: ='Main Details'!K15 -> 252 | AF48: Pack Size | AG48: 264 | AI48: Total Solids | AJ48: = | AK48: =SUM(AK47*AG48) -> 0 | AL48: Pack Size | AM48: ='Main Details'!K18 -> 138 | AR48: Pack Size | AS48: 264 | AX48: Pack Size | AY48: 264
B49: ext opening with lintel above | D49: l/m x | E49: 0.086 | F49: = | G49: =IF(AND('Main Details'!$C$12="Y",C49>0),C49*E49,"") ->  | J49: l/m x | L49: = | M49: =IF(AND('Main Details'!$C$13="Y",I49>0),I49*K49,"") ->  | P49: l/m x | R49: = | S49: =IF(AND('Main Details'!$C$17="Y",O49>0),O49*Q49,"") ->  | T49: No leaves per pack | U49: ='Main Details'!M14 -> 3 | Z49: No leaves per pack | AA49: ='Main Details'!M15 -> 3 | AF49: No leaves per pack | AG49: 4 | AI49: Total over 31C | AL49: No leaves per pack | AM49: ='Main Details'!M18 ->  | AR49: No leaves per pack | AS49: ='Main Details'!M19 -> 3 | AX49: No leaves per pack | AY49: 4
B50: Above Garage Lintels G.O.B | C50: =SUM(C12:C13) -> 0 | D50: l/m x | E50: 0.086 | F50: = | G50: =IF(AND('Main Details'!$C$12="Y",C50>0),C50*E50,"") ->  | J50: l/m x | L50: = | M50: =IF(AND('Main Details'!$C$13="Y",I50>0),I50*K50,"") ->  | P50: l/m x | R50: = | S50: =IF(AND('Main Details'!$C$17="Y",O50>0),O50*Q50,"") ->  | T50: 2C FACE 190 SNAPS | Z50: 1C RENDERED LONGREACH SOLID | AF50: COMMONS SOLIDS EXTERNAL | AL50: 2C FINISHING BRICK 290x90x162 | AR50: 1C FACE 290x90x76 SOLIDS | AX50: 1C FEATURE FACE 290x90x76 SOLIDS
D51: l/m x | F51: = | G51: =IF(AND('Main Details'!$C$12="Y",C51>0),C51*E51,"") ->  | J51: l/m x | L51: = | M51: =IF(AND('Main Details'!$C$13="Y",I51>0),I51*K51,"") ->  | P51: l/m x | R51: = | S51: =IF(AND('Main Details'!$C$17="Y",O51>0),O51*Q51,"") ->  | T51: ='Main Details'!I18 -> NO SELECTION MADE | Z51: =Z5 -> MIDLAND LONGREACH | AF51: =AF5 -> NO SELECTION MADE | AR51: =AR5 -> NO SELECTION MADE | AX51: =AX5 -> MIDLAND- Burnished Red
B52: Quioning | D52: No / | E52: =C43 -> 48.5 | F52: = | G52: =IF(AND('Main Details'!$C$12="Y",C52>0),C52/E52,"") ->  | H52: Quioning | J52: No / | K52: =I43 -> 50.5 | L52: = | M52: =IF(AND('Main Details'!$C$13="Y",I52>0),I52/K52,"") ->  | N52: Quioning | P52: No / | Q52: =O43 -> 50.5 | R52: = | S52: =IF(AND('Main Details'!$C$17="Y",O52>0),O52/Q52,"") ->  | U52: length | V52: x | W52: height | Y52: Extd | Z52: RENDER 1C SOLIDS TO ALL SILLS | AA52: length | AB52: x | AC52: height | AE52: Extd | AF52: =AF6 ->  | AG52: length | AH52: x | AI52: height | AK52: Extd | AM52: length | AN52: x | AO52: height | AQ52: Extd | AS52: length | AT52: x | AU52: height | AY52: length | AZ52: x | BA52: height | BC52: Extd
B53: Extra Bricks Per No | D53: No / | E53: =C43 -> 48.5 | F53: = | G53: =IF(AND('Main Details'!$C$12="Y",C53>0),C53/E53,"") ->  | H53: Extra Bricks Per No | J53: No / | K53: =I43 -> 50.5 | L53: = | M53: =IF(AND('Main Details'!$C$13="Y",I53>0),I53/K53,"") ->  | N53: Extra Bricks Per No | P53: No / | Q53: =O43 -> 50.5 | R53: = | S53: =IF(AND('Main Details'!$C$17="Y",O53>0),O53/Q53,"") ->  | T53: Either Side of Openings every 2nd crs | U53: =IF('Main Details'!C30="N",Lintels.windows!V41,0) -> 0 | V53: No / | W53: =$AO$65 -> 19.4 | X53: = | Y53: =IF(AND('Main Details'!$C$18="y",U53>0),U53/W53,"") ->  | Z53: 1c RENDER SOLIDS | AB53: l/m x | AD53: = | AE53: =Lintels.windows!BB41 -> 0 | AF53: 1c Header Corbel | AH53: l/m x | AI53: 0.086 | AJ53: = | AK53: =IF(AND('Main Details'!$C$16="y",AG53>0),AG53*AI53,"") ->  | AP53: = | AR53: 1c FACE SOLIDS | AU53: To 1c sills | AV53: = | AW53: =Lintels.windows!AZ41+'Internal deductions & int walls'!K26/2 -> 0 | AX53: 1c FACE SOLIDS | BA53: To 1c sills | BB53: = | BC53: =Lintels.windows!BD41 -> 0
B54: Extra Bricks Per No | D54: No / | E54: =C43 -> 48.5 | F54: = | G54: =IF(AND('Main Details'!$C$12="Y",C54>0),C54/E54,"") ->  | H54: Extra Bricks Per No | J54: No / | K54: =I43 -> 50.5 | L54: = | M54: =IF(AND('Main Details'!$C$13="Y",I54>0),I54/K54,"") ->  | N54: Extra Bricks Per No | P54: No / | Q54: =O43 -> 50.5 | R54: = | S54: =IF(AND('Main Details'!$C$17="Y",O54>0),O54/Q54,"") ->  | T54: Garage opening either side 490 returns | V54: No / | W54: 19.4 | X54: = | Y54: =U54/W54 -> 0 | AB54: l/m x | AD54: = | AE54: =AA54*AC54 -> 0 | AH54: l/m x | AI54: 0.086 | AJ54: = | AK54: =IF(AND('Main Details'!$C$16="y",AG54>0),AG54*AI54,"") ->  | AN54: l/m x | AP54: = | AQ54: =AM54*AO54 -> 0 | AT54: l/m x | AV54: = | AW54: =AS54*AU54 -> 0 | AZ54: l/m x | BB54: = | BC54: =AY54*BA54 -> 0
B55: Extra Bricks Per No | D55: No / | E55: =C43 -> 48.5 | F55: = | G55: =IF(AND('Main Details'!$C$12="Y",C55>0),C55/E55,"") ->  | H55: Extra Bricks Per No | J55: No / | K55: =I43 -> 50.5 | L55: = | M55: =IF(AND('Main Details'!$C$13="Y",I55>0),I55/K55,"") ->  | N55: Extra Bricks Per No | P55: No / | Q55: =O43 -> 50.5 | R55: = | S55: =IF(AND('Main Details'!$C$17="Y",O55>0),O55/Q55,"") ->  | V55: No / | W55: 19.4 | X55: = | Y55: =IF(AND('Main Details'!$C$18="y",U55>0),U55/W55,"") ->  | AB55: l/m x | AD55: = | AE55: 0 | AH55: l/m x | AJ55: = | AK55: =IF(AND('Main Details'!$C$16="y",AG55>0),AG55*AI55,"") ->  | AN55: l/m x | AP55: = | AQ55: =AM55*AO55 -> 0 | AT55: l/m x | AV55: = | AW55: =AS55*AU55 -> 0 | AZ55: l/m x | BB55: = | BC55: =AY55*BA55 -> 0
E56: Total Extra Main Face Solids | F56: = | G56: =ROUNDUP(SUM(G48:G55)*C43,0) -> 0 | K56: Total Extra Contrast Face Solids | L56: = | M56: =ROUNDUP(SUM(M48:M55)*I43,0) -> 0 | R56: = | S56: =ROUNDUP(SUM(S48:S55)*O43,0) -> 0 | V56: No / | W56: 19.4 | X56: = | Y56: =IF(AND('Main Details'!$C$18="y",U56>0),U56/W56,"") ->  | AB56: l/m x | AD56: = | AE56: 0 | AH56: l/m x | AJ56: = | AK56: =IF(AND('Main Details'!$C$16="y",AG56>0),AG56*AI56,"") ->  | AL56: No longer allow Finishing Bricks | AN56: l/m x | AP56: = | AQ56: 0 | AT56: l/m x | AV56: = | AW56: 0 | AZ56: l/m x | BB56: = | BC56: 0
V57: No / | W57: 19.4 | X57: = | Y57: =IF(AND('Main Details'!$C$18="y",U57>0),U57/W57,"") ->  | AB57: l/m x | AD57: = | AE57: 0 | AF57: Quioning | AH57: No / | AI57: =AG47 -> 48.5 | AJ57: = | AK57: =IF(AND('Main Details'!$C$16="y",AG57>0),AG57/AI57,"") ->  | AN57: l/m x | AP57: = | AQ57: 0 | AT57: l/m x | AV57: = | AW57: 0 | AZ57: l/m x | BB57: = | BC57: 0
V58: No / | W58: 19.4 | X58: = | Y58: =IF(AND('Main Details'!$C$18="y",U58>0),U58/W58,"") ->  | AB58: l/m x | AD58: = | AE58: 0 | AF58: Extra Bricks Per No | AH58: No / | AI58: =AG47 -> 48.5 | AJ58: = | AK58: =IF(AND('Main Details'!$C$16="y",AG58>0),AG58/AI58,"") ->  | AN58: l/m x | AP58: = | AQ58: 0 | AT58: l/m x | AV58: = | AW58: 0 | AZ58: l/m x | BB58: = | BC58: 0
V59: l/m x | X59: = | Y59: =IF(AND('Main Details'!$C$18="y",U59>0),U59*W59,"") ->  | AB59: l/m x | AD59: = | AE59: 0 | AF59: Extra Bricks Per No | AH59: No / | AI59: =AG47 -> 48.5 | AJ59: = | AK59: =IF(AND('Main Details'!$C$16="y",AG59>0),AG59/AI59,"") ->  | AN59: l/m x | AP59: = | AQ59: 0 | AT59: l/m x | AV59: = | AW59: 0 | AZ59: l/m x | BB59: = | BC59: 0
V60: l/m x | X60: = | Y60: =IF(AND('Main Details'!$C$18="y",U60>0),U60*W60,"") ->  | AB60: l/m x | AD60: = | AE60: 0 | AF60: Extra Bricks Per No | AH60: No / | AI60: =AG47 -> 48.5 | AJ60: = | AK60: =IF(AND('Main Details'!$C$16="y",AG60>0),AG60/AI60,"") ->  | AN60: l/m x | AP60: = | AQ60: 0 | AT60: l/m x | AV60: = | AW60: 0 | AZ60: l/m x | BB60: = | BC60: 0
W61: Total Snaps | X61: = | Y61: =ROUNDUP(SUM(Y53:Y60)*U47,0) -> 0 | AC61: Total Solids | AD61: = | AE61: =ROUNDUP(SUM(AE53:AE60)*AA47,0) -> 0 | AF61: Total Extra Internal Face Solids | AJ61: = | AK61: =ROUNDUP(SUM(AK53:AK60)*AG47,0) -> 0 | AO61: Total | AP61: = | AQ61: =ROUNDUP(SUM(AQ53:AQ60)*AM47,0) ->  | AU61: Total Solids | AV61: = | AW61: =ROUNDUP(SUM(AW53:AW60)*AS47,0) -> 0 | BA61: Total Solids | BB61: = | BC61: =ROUNDUP(SUM(BC53:BC60)*AY47,0) -> 0
T64: 2C FACE 140 SNAPS | Z64: 2C FACE 240 SNAPS | AG64: =(Y42+AE42+AQ42+AW42)-Lintels.windows!#REF! ->  | AL64: SNAPS | AM64: 140 | AO64: 190 | AQ64: 240
T65: ='Main Details'!I18 -> NO SELECTION MADE | AG65: =AG64*4.5/50+1 ->  | AL65: Bricks per m2 | AM65: 41.667 | AO65: 19.4 | AQ65: 24.39
Y66: Extd | Z66: ='Main Details'!I18 -> NO SELECTION MADE | AL66: Pack Size | AM66: ='Main Details'!K18 -> 138 | AO66: ='Main Details'!K18 -> 138 | AQ66: ='Main Details'!K18 -> 138
B67: Metal Frame Deduction | C67: Y | D67: =IF(C67="Y",'Internal deductions & int walls'!$G$33," ") -> 0 | H67: Metal Frame Deduction | I67: N | J67: =IF(I67="Y",'Internal deductions & int walls'!$G$33," ") ->  | N67: Metal Frame Deduction | O67: N | P67: =IF(O67="Y",'Internal deductions & int walls'!$G$33," ") ->  | T67: Either Side of Openings every 2nd crs | U67: =IF('Main Details'!$C$30="Y",Lintels.windows!V41,0) -> 0 | V67: No / | W67: =$AM$65 -> 41.667 | X67: = | Y67: =IF(AND('Main Details'!$C$18="y",U67>0),U67/W67,"") ->  | AE67: Extd | AL67: No Leaves Per Pk | AM67: 3 | AO67: 3 | AQ67: 3
B68: DDT Ext Openings as Main | C68: Y | D68: =IF(C68="Y",Lintels.windows!$G$42," ") -> 0 | H68: DDT Ext Openings as Main | I68: N | J68: =IF(I68="Y",Lintels.windows!$G$42,Lintels.windows!$F$41) ->  | N68: DDT Ext Openings as Main | O68: N | P68: =IF(O68="Y",Lintels.windows!$G$42,Lintels.windows!$AO$41) ->  | V68: No / | W68: =$AM$65 -> 41.667 | X68: = | Y68: =IF(AND('Main Details'!$C$18="y",U68>0),U68/W68,"") ->  | Z68: No of Ext / Int 90 Corners to 25c | AB68: No x | AC68: 0.54 | AD68: = | AE68: =IF(AND('Main Details'!$C$18="y",AA68>0),AA68*AC68,"") -> 
B69: Deduct Contrast 1 | C69: Y | D69: =IF(C69="Y",$M$38," ") -> 0 | N69: Deduct Contrast 1 | O69: N | P69: =IF(O69="Y",$M$38," ") ->  | T69: Garage opening either side 490 returns | V69: No / | W69: =$AM$65 -> 41.667 | X69: = | Y69: =IF(AND('Main Details'!$C$18="y",U69>0),U69/W69,"") ->  | Z69: No of Ext / Int 90 Corners to 28c | AB69: No x | AC69: 0.57 | AD69: = | AE69: =IF(AND('Main Details'!$C$18="y",AA69>0),AA69*AC69,"") -> 
B70: Deduct Contrast 2 | C70: Y | D70: =IF(C70="Y",$S$38," ") -> 0 | H70: Deduct Contrast 2 | I70: N | J70: =IF(I70="Y",$S$38," ") ->  | V70: No / | W70: =$AM$65 -> 41.667 | X70: = | Y70: =IF(AND('Main Details'!$C$18="y",U70>0),U70/W70,"") ->  | Z70: No of Ext / Int 90 Corners to 30c | AB70: No x | AC70: 0.62 | AD70: = | AE70: =IF(AND('Main Details'!$C$18="y",AA70>0),AA70*AC70,"") ->  | AL70: Total m2 | AM70: =IF('Main Details'!C18="Y",SUM(Y67:Y74),0) -> 0 | AO70: =IF('Main Details'!C18="Y",SUM(Y53:Y61),0) -> 0 | AQ70: =IF('Main Details'!C18="Y",SUM(AE68:AE75),0) -> 0
B71: DDT Ext Render Blocks | C71: N | D71: =IF(C71="Y",$Y$42," ") ->  | H71: Deduct Ext Blocks | I71: N | J71: =IF(I71="Y",$Y$42," ") ->  | N71: Deduct Ext Blocks | O71: N | P71: =IF(O71="Y",$Y$42," ") ->  | V71: No / | W71: =$AM$65 -> 41.667 | X71: = | Y71: =IF(AND('Main Details'!$C$18="y",U71>0),U71/W71,"") ->  | Z71: No of Ext / Int 90 Corners to 32c | AB71: No x | AC71: 0.66 | AD71: = | AE71: =IF(AND('Main Details'!$C$18="y",AA71>0),AA71*AC71,"") ->  | AG71: Metal Frame Deduction | AH71: N | AI71: =IF(AH71="Y",'Internal deductions & int walls'!$G$33," ") ->  | AL71: Net Labour of Bricks | AM71: =(AM70*AM65) -> 0 | AO71: =SUM(AO70*AO65)-U61 -> 0 | AQ71: =AQ70*AQ65 -> 0
B72: DDT Ext Render Longreach | C72: N | D72: =IF(C72="Y",$AE$42," ") ->  | H72: Deduct Ext Longreach | I72: N | J72: =IF(I72="Y",$AE$42," ") ->  | N72: Deduct Ext Longreach | O72: N | P72: =IF(O72="Y",$AE$42," ") ->  | V72: l/m x | X72: = | Y72: =IF(AND('Main Details'!$C$18="y",U72>0),U72*W72,"") ->  | AB72: No / | AC72: 23.25 | AD72: = | AE72: =IF(AND('Main Details'!$C$18="y",AA72>0),AA72/AC72,"") ->  | AG72: DDT Ext Openings as Main | AH72: N | AI72: =IF(AH72="Y",Lintels.windows!$G$42,Lintels.windows!#REF!) ->  | AL72: Wastage (set on main Blocks) | AM72: =AM71*AO44 -> 0 | AO72: =AO71*AO44 -> 0 | AQ72: =AQ71*AO44 -> 0
B73: DDT External Commons | C73: Y | D73: =IF(C73="Y",$AK$42," ") -> 0 | H73: DDT External Commons | I73: N | J73: =IF(I73="Y",$AK$42," ") ->  | N73: DDT External Commons | O73: N | P73: =IF(O73="Y",$AK$42," ") ->  | V73: l/m x | X73: = | Y73: =IF(AND('Main Details'!$C$18="y",U73>0),U73*W73,"") ->  | AB73: No / | AC73: 23.25 | AD73: = | AE73: =IF(AND('Main Details'!$C$18="y",AA73>0),AA73/AC73,"") ->  | AG73: Deduct Contrast 1 | AH73: N | AI73: =IF(AH73="Y",$M$38," ") ->  | AL73: Total No of Bricks | AM73: =AM74*AM66 -> 0 | AO73: =AO74*AO66 -> 0 | AQ73: =AQ74*AQ66 -> 0
B74: Deduct Limestone Blocks | C74: N | D74: =IF(C74="Y",$AQ$42," ") ->  | H74: Deduct Limestone Blocks | I74: N | J74: =IF(I74="Y",$AQ$42," ") ->  | N74: Deduct Limestone Blocks | O74: N | P74: =IF(O74="Y",$AQ$42," ") ->  | V74: l/m x | X74: = | Y74: =IF(AND('Main Details'!$C$18="y",U74>0),U74*W74,"") ->  | AB74: l/m x | AD74: = | AE74: =IF(AND('Main Details'!$C$18="y",AA74>0),AA74*AC74,"") ->  | AG74: Deduct Contrast 2 | AH74: N | AI74: =IF(AH74="Y",$S$38," ") ->  | AL74: Total No of packs | AM74: =ROUNDUP(SUM(AM72+AM71)/(AM66/AM67),0)/AM67 -> 0 | AO74: =ROUNDUP(SUM(AO72+AO71)/(AO66/AO67),0)/AO67 -> 0 | AQ74: =ROUNDUP(SUM(AQ72+AQ71)/(AQ66/AQ67),0)/AQ67 -> 0
B75: DDT Limestone Longreach | C75: N | D75: =IF(C75="Y",$AW$42," ") ->  | H75: DDT Limestone Longreach | I75: N | J75: =IF(I75="Y",$AW$42," ") ->  | N75: DDT Limestone Longreach | O75: N | P75: =IF(O75="Y",$AW$42," ") ->  | V75: l/m x | X75: = | Y75: =IF(AND('Main Details'!$C$18="y",U75>0),U75*W75,"") ->  | AB75: l/m x | AD75: = | AE75: =IF(AND('Main Details'!$C$18="y",AA75>0),AA75*AC75,"") ->  | AG75: Deduct Ext Blocks | AH75: N | AI75: =IF(AH75="Y",$Y$42," ") -> 
B76: Deduct 240 Snaps | C76: N | D76: =IF(C76="Y",$AQ$70," ") ->  | H76: Deduct 240 Snaps | I76: N | J76: =IF(I76="Y",$AQ$70," ") ->  | N76: Deduct 240 Snaps | O76: N | P76: =IF(O76="Y",$AQ$70," ") ->  | AG76: Deduct Ext Longreach | AH76: N | AI76: =IF(AH76="Y",$AE$42," ") -> 
B77: Deduct 190 Snaps | C77: N | D77: =IF(C77="Y",$AO$70," ") ->  | H77: Deduct 190 Snaps | I77: N | J77: =IF(I77="Y",$AO$70," ") ->  | N77: Deduct 190 Snaps | O77: N | P77: =IF(O77="Y",$AO$70," ") -> 
B78: Deduct 140 Snaps | C78: N | D78: =IF(C78="Y",$AM$70," ") ->  | H78: Deduct 140 Snaps | I78: N | J78: =IF(I78="Y",$AM$70," ") ->  | N78: Deduct 140 Snaps | O78: N | P78: =IF(O78="Y",$AM$70," ") ->  | U78: Metal Frame Deduction | V78: N | W78: =IF(V78="Y",'Internal deductions & int walls'!$G$33," ") ->  | AA78: Metal Frame Deduction | AB78: N | AC78: =IF(AB78="Y",'Internal deductions & int walls'!$G$33," ") ->  | AG78: TOTAL DEDUCTION= | AI78: =SUM(AI71:AI77) ->  | AJ78: m2 | AM78: Metal Frame Deduction | AN78: Y | AO78: =IF(AN78="Y",'Internal deductions & int walls'!$G$33," ") -> 0 | AS78: Metal Frame Deduction | AT78: N | AU78: =IF(AT78="Y",'Internal deductions & int walls'!$G$33," ") -> 
B79: TOTAL DEDUCTION= | D79: =SUM(D67:D78) -> 0 | E79: m2 | H79: TOTAL DEDUCTION= | J79: =SUM(J67:J78) ->  | K79: m2 | N79: TOTAL DEDUCTION= | P79: =SUM(P67:P78) ->  | Q79: m2 | U79: Deduct Openings from render | V79: N | W79: =IF(V79="Y",Lintels.windows!$G$42,Lintels.windows!$R$41) -> 0 | AA79: Deduct Openings from render | AB79: N | AC79: =IF(AB79="Y",Lintels.windows!$G$42," ") ->  | AM79: Deduct ALL Ext Openings as Main | AN79: Y | AS79: Deduct Ext Openings as Main | AT79: N | AU79: =IF(AT79="Y",Lintels.windows!$G$42," ") -> 
U80: Deduct Contrast 1 | V80: N | W80: =IF(V80="Y",$M$38," ") ->  | AA80: Deduct Contrast 1 | AB80: N | AC80: =IF(AB80="Y",$M$38," ") ->  | AM80: Deduct Contrast 1 | AN80: Y | AO80: =IF(AN80="Y",$M$38," ") -> 0 | AS80: Deduct Contrast 1 | AT80: N | AU80: =IF(AT80="Y",$M$38," ") -> 
U81: Deduct Contrast 2 | V81: N | W81: =IF(V81="Y",$S$38," ") ->  | AA81: Deduct Contrast 2 | AB81: N | AC81: =IF(AB81="Y",$S$38," ") ->  | AM81: Deduct Contrast 2 | AN81: Y | AO81: =IF(AN81="Y",$S$38," ") -> 0 | AS81: Deduct Contrast 2 | AT81: N | AU81: =IF(AT81="Y",$S$38," ") -> 
AA82: Deduct Ext Blocks | AB82: N | AC82: =IF(AB82="Y",$Y$42," ") ->  | AM82: Deduct Ext Rendered Blocks | AN82: Y | AO82: =IF(AN82="Y",$Y$42," ") -> 0 | AS82: Deduct Ext Rendered Blocks | AT82: N | AU82: =IF(AT82="Y",$Y$42," ") -> 
U83: Deduct Ext Longreach | V83: N | W83: =IF(V83="Y",$AE$42," ") ->  | AM83: Deduct Ext Rendered Longreach | AN83: N | AO83: =IF(AN83="Y",$AE$42," ") ->  | AS83: Deduct Ext Rendered Longreach | AT83: N | AU83: =IF(AT83="Y",$AE$42," ") -> 
U84: DDT External Commons | V84: N | W84: =IF(V84="Y",$AK$42," ") ->  | AA84: DDT External Commons | AB84: N | AC84: =IF(AB84="Y",$AK$42," ") ->  | AM84: Deduct External Rendered Commons | AN84: Y | AO84: =IF(AN84="Y",$AK$42," ") -> 0 | AS84: Deduct External Rendered Commons | AT84: N | AU84: =IF(AT84="Y",$AK$42," ") -> 
U85: Deduct Limestone Blocks | V85: N | W85: =IF(V85="Y",$AQ$42," ") ->  | AA85: Deduct Limestone Blocks | AB85: N | AC85: =IF(AB85="Y",$AQ$42," ") ->  | AS85: Deduct Limestone Blocks | AT85: N | AU85: =IF(AT85="Y",$AQ$42," ") -> 
U86: DDT Limestone Longreach | V86: N | W86: =IF(V86="Y",$AW$42," ") ->  | AA86: DDT Limestone Longreach | AB86: N | AC86: =IF(AB86="Y",$AW$42," ") ->  | AM86: Deduct Limestone cored/solid 290x90x76 | AN86: N | AO86: =IF(AN86="Y",$AW$42," ") -> 
U87: Deduct 240 Snaps | V87: N | W87: =IF(V87="Y",$AQ$70," ") ->  | AA87: Deduct 240 Snaps | AB87: N | AC87: =IF(AB87="Y",$AQ$70," ") ->  | AM87: Deduct 240 Snaps | AN87: Y | AO87: =IF(AN87="Y",$AQ$70," ") -> 0 | AS87: Deduct 240 Snaps | AT87: N | AU87: =IF(AT87="Y",$AQ$70," ") -> 
U88: Deduct 190 Snaps | V88: N | W88: =IF(V88="Y",$AO$70," ") ->  | AA88: Deduct 190 Snaps | AB88: N | AC88: =IF(AB88="Y",$AO$70," ") ->  | AM88: Deduct 190 Snaps | AN88: Y | AO88: =IF(AN88="Y",$AO$70," ") -> 0 | AS88: Deduct 190 Snaps | AT88: N | AU88: =IF(AT88="Y",$AO$70," ") -> 
U89: Deduct 140 Snaps | V89: N | W89: =IF(V89="Y",$AM$70," ") ->  | AA89: Deduct 140 Snaps | AB89: N | AC89: =IF(AB89="Y",$AM$70," ") ->  | AM89: Deduct 140 Snaps | AN89: Y | AO89: =IF(AN89="Y",$AM$70," ") -> 0 | AS89: Deduct 140 Snaps | AT89: N | AU89: =IF(AT89="Y",$AM$70," ") -> 
U90: TOTAL DEDUCTION= | W90: =SUM(W78:W89,AE20) -> 0 | X90: m2 | AA90: TOTAL DEDUCTION= | AC90: =SUM(AC78:AC89) -> 0 | AD90: m2 | AM90: TOTAL DEDUCTION= | AP90: m2 | AS90: TOTAL DEDUCTION= | AU90: =SUM(AU78:AU89) -> 0 | AV90: m2

Sheet Internal Brickwork
B2: ='Main Details'!B2 -> QUANTITY SHEET FOR EASY START HOMES | G2: PG 6 | M2: PG 6 | S2: PG 6 | Y2: PG 6
B3: ='Main Details'!D6 -> 0
B5: BLOCKS INTERNAL | H5: LONGREACH INTERNAL | N5: COMMONS INTERNAL | T5: INTERNAL FACE CORED
B6: ='Main Details'!I21 -> NO SELECTION MADE | H6: ='Main Details'!I22 -> NO SELECTION MADE | N6: ='Main Details'!I23 -> NO SELECTION MADE | T6: ='Main Details'!$I$20 -> NO SELECTION MADE
B7: ='Main Details'!P21 ->  | C7: length | D7: x | E7: height | G7: Extd | H7: ='Main Details'!P22 ->  | I7: length | J7: x | K7: height | M7: Extd | AE7: wire ties
B8: External Perimeter Walls | C8: =IF('Main Details'!$C$21="y",'Main Details'!$U$20+'Main Details'!$X$20-'Main Details'!$D$45,0) -> 0 | D8: l/m x | E8: 2.229 | F8: = | G8: =IF(AND('Main Details'!$C$21="y"),C8*E8,"") -> 0 | H8: External Perimeter Walls | I8: =C8 -> 0 | J8: l/m x | K8: 0.172 | L8: = | M8: =IF(AND('Main Details'!$C$22="y",I8>0),I8*K8,"") ->  | S8: =IF(AND('Main Details'!$C$23="y",O8>0),O8*Q8,"") ->  | AA8: INTERNAL PLASTER OVER 31C
B9: Internal Partition Walls | C9: =IF('Main Details'!$C$21="y",'Main Details'!$D$38+'Internal deductions & int walls'!$R$29,0) -> 0 | D9: l/m x | E9: 2.229 | F9: = | G9: =IF(AND('Main Details'!$C$21="y"),C9*E9,"") -> 0 | H9: Internal Partition Walls | I9: =C9 -> 0 | J9: l/m x | K9: 0.172 | L9: = | M9: =IF(AND('Main Details'!$C$22="y",I9>0),I9*K9,"") ->  | O9: Length | P9: l/m x | Q9: Height | U9: Length | V9: l/m x | W9: Height | AA9: TOTALS 1 SIDE | AE9: =SUM(G8+M8) -> 0
B10: 31c Plaster- 1 Side | D10: l/m x | F10: = | G10: =IF(AND('Main Details'!$C$21="y",C10>0),C10*E10,"") ->  | H10: 31c Plaster- 1 Side | I10: =C10 -> 0 | J10: l/m x | K10: 0.086 | L10: = | M10: =IF(AND('Main Details'!$C$22="y",I10>0),I10*K10,"") ->  | N10: Over 28c Plaster- 1 Side | P10: l/m x | R10: = | S10: =IF(AND('Main Details'!$C$23="y",O10>0),O10*Q10,"") ->  | T10: Over 31c | V10: l/m x | X10: = | Y10: =IF(AND('Main Details'!$C$20="Y",U10>0),U10*W10,"") ->  | AA10: =SUM(G13,M13,S12) -> 0
B11: 30c Plaster- 1 Side | D11: l/m x | F11: = | G11: =IF(AND('Main Details'!$C$21="y",C11>0),C11*E11,"") ->  | H11: Over 28c Plaster- 1 Side | J11: l/m x | L11: = | M11: =IF(AND('Main Details'!$C$22="y",I11>0),I11*K11,"") ->  | N11: Over 28c Plaster- 1 Side | P11: l/m x | R11: = | S11: =IF(AND('Main Details'!$C$23="y",O11>0),O11*Q11,"") ->  | T11: Over 31c | V11: l/m x | X11: = | Y11: =IF(AND('Main Details'!$C$20="Y",U11>0),U11*W11,"") -> 
B12: Over 28c Plaster- 1 Side | D12: l/m x | F12: = | G12: =IF(AND('Main Details'!$C$21="y",C12>0),C12*E12,"") ->  | H12: Over 28c Plaster- 1 Side | J12: l/m x | L12: = | M12: =IF(AND('Main Details'!$C$22="y",I12>0),I12*K12,"") ->  | N12: Over 31C Plaster- 1 Side | P12: l/m x | R12: = | S12: =IF(AND('Main Details'!$C$23="y",O12>0),O12*Q12,"") ->  | T12: Over 31c | V12: l/m x | X12: = | Y12: =IF(AND('Main Details'!$C$20="Y",U12>0),U12*W12,"") ->  | AA12: TOTALS 2 SIDES
B13: Over 31C Plaster- 1 Side | D13: l/m x | F13: = | G13: =IF(AND('Main Details'!$C$21="y",C13>0),C13*E13,"") ->  | H13: Over 31C Plaster- 1 Side | J13: l/m x | L13: = | M13: =IF(AND('Main Details'!$C$22="y",I13>0),I13*K13,"") ->  | N13: Over 28c Plaster- 2 Sides | P13: l/m x | R13: = | S13: =IF(AND('Main Details'!$C$23="y",O13>0),O13*Q13,"") ->  | T13: Over 31c | V13: l/m x | X13: = | Y13: =IF(AND('Main Details'!$C$20="Y",U13>0),U13*W13,"") ->  | AA13: =SUM(G17,M17,S15)*2 -> 0
B14: 31c Plaster- 2 Sides | D14: l/m x | F14: = | G14: =IF(AND('Main Details'!$C$21="y",C14>0),C14*E14,"") ->  | H14: 28-31C Over 28c Plaster- 2 Sides | I14: =C14 -> 0 | J14: l/m x | L14: = | M14: =IF(AND('Main Details'!$C$22="y",I14>0),I14*K14,"") ->  | N14: Over 28c Plaster- 2 Sides | P14: l/m x | R14: = | S14: =IF(AND('Main Details'!$C$23="y",O14>0),O14*Q14,"") ->  | V14: l/m x | X14: = | Y14: =IF(AND('Main Details'!$C$20="Y",U14>0),U14*W14,"") -> 
B15: 30c Plaster- 2 Sides | D15: l/m x | F15: = | G15: =IF(AND('Main Details'!$C$21="y",C15>0),C15*E15,"") ->  | H15: Over 28c Plaster- 2 Sides | J15: l/m x | L15: = | M15: =IF(AND('Main Details'!$C$22="y",I15>0),I15*K15,"") ->  | N15: Over 31C Plaster- 2 Side | P15: l/m x | R15: = | S15: =IF(AND('Main Details'!$C$23="y",O15>0),O15*Q15,"") ->  | T15: To 31c | V15: l/m x | X15: = | Y15: =IF(AND('Main Details'!$C$20="Y",U15>0),U15*W15,"") ->  | AA15: INTERNAL PLASTER 28-31C
B16: Over 28c Plaster- 2 Sides | D16: l/m x | F16: = | G16: =IF(AND('Main Details'!$C$21="y",C16>0),C16*E16,"") ->  | H16: Over 28c Plaster- 2 Sides | J16: l/m x | L16: = | M16: =IF(AND('Main Details'!$C$22="y",I16>0),I16*K16,"") ->  | N16: Over 28c- No Plaster | P16: l/m x | R16: = | S16: =IF(AND('Main Details'!$C$23="y",O16>0),O16*Q16,"") ->  | T16: To 31c | V16: l/m x | X16: = | Y16: =IF(AND('Main Details'!$C$20="Y",U16>0),U16*W16,"") -> 
B17: Over 31C Plaster- 2 Side | D17: l/m x | F17: = | G17: =IF(AND('Main Details'!$C$21="y",C17>0),C17*E17,"") ->  | H17: Over 31C Plaster- 2 Side | J17: l/m x | L17: = | M17: =IF(AND('Main Details'!$C$22="y",I17>0),I17*K17,"") ->  | N17: Over 31c- No Plaster | P17: l/m x | R17: = | S17: =IF(AND('Main Details'!$C$23="y",O17>0),O17*Q17,"") ->  | T17: To 31c | V17: l/m x | X17: = | Y17: =IF(AND('Main Details'!$C$20="Y",U17>0),U17*W17,"") ->  | AA17: TOTALS 1 SIDE
B18: Over 28c- No Plaster | D18: l/m x | F18: = | G18: =IF(AND('Main Details'!$C$21="y",C18>0),C18*E18,"") ->  | H18: Over 28c- No Plaster | J18: l/m x | L18: = | M18: =IF(AND('Main Details'!$C$22="y",I18>0),I18*K18,"") ->  | N18: To 28c Plaster- 1 Side | P18: l/m x | R18: = | S18: =IF(AND('Main Details'!$C$23="y",O18>0),O18*Q18,"") ->  | T18: To 31c | V18: l/m x | X18: = | Y18: =IF(AND('Main Details'!$C$20="Y",U18>0),U18*W18,"") ->  | AA18: =SUM(G10:G12,M10:M12,S10:S11) -> 0
B19: Over 28c- No Plaster | D19: l/m x | F19: = | G19: =IF(AND('Main Details'!$C$21="y",C19>0),C19*E19,"") ->  | H19: Over 28c- No Plaster | J19: l/m x | L19: = | M19: =IF(AND('Main Details'!$C$22="y",I19>0),I19*K19,"") ->  | N19: To 28c Plaster- 1 Side | P19: l/m x | R19: = | S19: =IF(AND('Main Details'!$C$23="y",O19>0),O19*Q19,"") ->  | T19: To 31c | V19: l/m x | X19: = | Y19: =IF(AND('Main Details'!$C$20="Y",U19>0),U19*W19,"") -> 
B20: Over 31C Plaster- No Plaster | D20: l/m x | F20: = | G20: =IF(AND('Main Details'!$C$21="y",C20>0),C20*E20,"") ->  | H20: Over 31C Plaster- No Plaster | J20: l/m x | L20: = | M20: =IF(AND('Main Details'!$C$22="y",I20>0),I20*K20,"") ->  | N20: To 28c Plaster- 1 Side | P20: l/m x | R20: = | S20: =IF(AND('Main Details'!$C$23="y",O20>0),O20*Q20,"") ->  | T20: To 31c | V20: l/m x | X20: = | Y20: =IF(AND('Main Details'!$C$20="Y",U20>0),U20*W20,"") ->  | AA20: TOTALS 2 SIDES
D21: l/m x | G21: =IF(AND('Main Details'!$C$21="y",C21>0),C21*E21,"") ->  | H21: Over Steel Lintels (25c Only) | J21: l/m x | K21: 0.257 | L21: = | M21: =IF(AND('Main Details'!$C$22="y",I21>0),I21*K21,"") ->  | N21: To 28c Plaster- 1 Side | P21: l/m x | R21: = | S21: =IF(AND('Main Details'!$C$23="y",O21>0),O21*Q21,"") ->  | T21: To 31c | V21: l/m x | X21: = | Y21: =IF(AND('Main Details'!$C$20="Y",U21>0),U21*W21,"") ->  | AA21: =SUM(G14:G16,M14:M16,S13:S14)*2 -> 0
B22: 10c Low Wall | D22: l/m x | E22: 0.857 | F22: = | G22: =IF(AND('Main Details'!$C$21="y",C22>0),C22*E22,"") ->  | H22: Over All Openings | I22: =Lintels.windows!J42 -> 0 | K22: 0.172 | L22: = | M22: =IF(AND('Main Details'!$C$22="y",I22>0),I22*K22,"") ->  | N22: To 28c Plaster- 1 Side | P22: l/m x | R22: = | S22: =IF(AND('Main Details'!$C$23="y",O22>0),O22*Q22,"") ->  | T22: To 31c | V22: l/m x | X22: = | Y22: =IF(AND('Main Details'!$C$20="Y",U22>0),U22*W22,"") -> 
B23: 12c Low Wall | D23: l/m x | E23: 1.029 | F23: = | G23: =IF(AND('Main Details'!$C$21="y",C23>0),C23*E23,"") ->  | H23: even course sills (manual enter) | J23: l/m x | K23: 0.086 | L23: = | M23: =IF(AND('Main Details'!$C$22="y",I23>0),I23*K23,"") ->  | P23: l/m x | R23: = | S23: =IF(AND('Main Details'!$C$23="y",O23>0),O23*Q23,"") ->  | T23: To 31c | V23: l/m x | X23: = | Y23: =IF(AND('Main Details'!$C$20="Y",U23>0),U23*W23,"") -> 
B24: 13c Low Wall | D24: l/m x | E24: 1.029 | F24: = | G24: =IF(AND('Main Details'!$C$21="y",C24>0),C24*E24,"") ->  | H24: between windows (manual enter) | K24: 0.172 | M24: =IF(AND('Main Details'!$C$22="y",I24>0),I24*K24,"") ->  | N24: To 28c Plaster- 2 Sides | P24: l/m x | R24: = | S24: =IF(AND('Main Details'!$C$23="y",O24>0),O24*Q24,"") ->  | T24: To 31c | V24: l/m x | X24: = | Y24: =IF(AND('Main Details'!$C$20="Y",U24>0),U24*W24,"") -> 
B25: 21c Low Wall | D25: l/m x | E25: 1.714 | F25: = | G25: =IF(AND('Main Details'!$C$21="y",C25>0),C25*E25,"") ->  | H25: Over Armaclay Lintels | I25: =SUM('Brick Final Sheet'!S99:S105) -> 0 | J25: l/m x | K25: 0.086 | L25: = | M25: =IF(AND('Main Details'!$C$22="y",I25>0),I25*K25,"") ->  | N25: To 28c Plaster- 2 Sides | P25: l/m x | R25: = | S25: =IF(AND('Main Details'!$C$23="y",O25>0),O25*Q25,"") ->  | T25: To 31c | V25: l/m x | X25: = | Y25: =IF(AND('Main Details'!$C$20="Y",U25>0),U25*W25,"") -> 
B26: Low Wall or Pier | D26: l/m x | F26: = | G26: =IF(AND('Main Details'!$C$21="y",C26>0),C26*E26,"") ->  | H26: 13c Low Wall | I26: =C24 -> 0 | J26: l/m x | K26: 0.086 | L26: = | M26: =IF(AND('Main Details'!$C$22="y",I26>0),I26*K26,"") ->  | N26: To 28c Plaster- 2 Sides | P26: l/m x | R26: = | S26: =IF(AND('Main Details'!$C$23="y",O26>0),O26*Q26,"") ->  | T26: To 31c | V26: l/m x | X26: = | Y26: =IF(AND('Main Details'!$C$20="Y",U26>0),U26*W26,"") -> 
B27: INTERNAL VERTICALLY CORED BLOCKS (>31c walls) | H27: 21c Low Wall | I27: =C25 -> 0 | J27: l/m x | K27: 0.086 | L27: = | M27: =IF(AND('Main Details'!$C$22="y",I27>0),I27*K27,"") ->  | N27: Calculation By Number of Bricks:- | T27: Calculation By Number of Bricks:- | AA27: BRICKWORK:-
B28: Verti Blocks up to 31c | D28: l/m x | E28: 2.572 | F28: = | G28: =IF(C28>0,C28*E28,"0.00") -> 0.00 | H28: Low Wall or Pier | J28: l/m x | L28: = | M28: =IF(AND('Main Details'!$C$22="y",I28>0),I28*K28,"") ->  | P28: No / | Q28: =O42 -> 48.5 | R28: = | S28: =IF(AND('Main Details'!$C$23="y",O28>0),O28/Q28,"") ->  | V28: No / | W28: =U42 -> 48.5 | X28: = | Y28: =IF(AND('Main Details'!$C$20="Y",U28>0),U28/W28,"") ->  | AA28: COMMONS TO 28C
B29: Verti Blocks up to 31c | D29: l/m x | E29: 2.572 | F29: = | G29: =IF(C29>0,C29*E29,"0.00") -> 0.00 | H29: Calculation By Number of Bricks:- | P29: No / | Q29: =O42 -> 48.5 | R29: = | S29: =IF(AND('Main Details'!$C$23="y",O29>0),O29/Q29,"") ->  | V29: No / | W29: =U42 -> 48.5 | X29: = | Y29: =IF(AND('Main Details'!$C$20="Y",U29>0),U29/W29,"") ->  | AA29: =SUM(S18:S22,S24:S26) -> 0
B30: Verti Blocks over 31c | D30: l/m x | F30: = | G30: =IF(C30>0,C30*E30,"0.00") -> 0.00 | J30: No / | K30: =I42 ->  | L30: = | M30: =IF(AND('Main Details'!$C$22="y",I30>0),I30/K30,"") ->  | P30: No / | Q30: =O42 -> 48.5 | R30: = | S30: =IF(AND('Main Details'!$C$23="y",O30>0),O30/Q30,"") ->  | V30: No / | W30: =U42 -> 48.5 | X30: = | Y30: =IF(AND('Main Details'!$C$20="Y",U30>0),U30/W30,"") -> 
B31: Verti Blocks over 31c | D31: l/m x | F31: = | G31: =IF(C31>0,C31*E31,"0.00") -> 0.00 | J31: No / | K31: =I42 ->  | L31: = | M31: =IF(AND('Main Details'!$C$22="y",I31>0),I31/K31,"") ->  | P31: No / | Q31: =O42 -> 48.5 | R31: = | S31: =IF(AND('Main Details'!$C$23="y",O31>0),O31/Q31,"") ->  | V31: No / | W31: =U42 -> 48.5 | X31: = | Y31: =IF(AND('Main Details'!$C$20="Y",U31>0),U31/W31,"") ->  | AA31: INT FACE TO 28C (minus ddtns)
B32: Deduct Openings up to 31c | D32: m2 | F32: = | G32: =IF(C32>0,C32*E32,"0.00") -> 0.00 | J32: No / | K32: =I42 ->  | L32: = | M32: =IF(AND('Main Details'!$C$22="y",I32>0),I32/K32,"") ->  | P32: No / | Q32: =O42 -> 48.5 | R32: = | S32: =IF(AND('Main Details'!$C$23="y",O32>0),O32/Q32,"") ->  | V32: No / | W32: =U42 -> 48.5 | X32: = | Y32: =IF(AND('Main Details'!$C$20="Y",U32>0),U32/W32,"") ->  | AA32: =SUM(Y15:Y26,Y36) -> 0
D33: TOTAL | F33: = | G33: =IF(G28+G29+G30+G31>0,G28+G29+G30+G31-G32,"") ->  | J33: No / | K33: =I42 ->  | L33: = | M33: =IF(AND('Main Details'!$C$22="y",I33>0),I33/K33,"") ->  | P33: No / | Q33: =O42 -> 48.5 | R33: = | S33: =IF(AND('Main Details'!$C$23="y",O33>0),O33/Q33,"") ->  | V33: No / | W33: =U42 -> 48.5 | X33: = | Y33: =IF(AND('Main Details'!$C$20="Y",U33>0),U33/W33,"") -> 
E35: External & Internal deductions | F35: = | G35: =IF('Main Details'!C21="Y",(-(Lintels.windows!J44+Lintels.windows!J45+Lintels.windows!J46+'Internal deductions & int walls'!E43+M34+M25+M30))-M22-M24-M21-M23-AA29-AA32) -> 0 | T35: Deduct ext & int openings
E36: Total m2 | F36: = | G36: =IF(AND('Main Details'!$C$21="y"),SUM($G$8:$G$13,G14:G17,G18:G20,G22:G26,G35)," ") -> 0 | H36: Wastage Percent | I36: ='BUILDERS SETTINGS'!C42 -> 0 | K36: Total m2 | L36: = | M36: =IF(AND('Main Details'!$C$22="y"),SUM($M$8:$M$13,M14:AF17,M18:M20,M21:M34)," ") -> 0 | T36: relevant to face bricks? - | U36: n | X36: = | Y36: =IF(AND('Main Details'!$C$20="Y",U36="y"),-(Lintels.windows!#REF!+'Internal deductions & int walls'!E43),"") -> 
B37: Wastage Percent | C37: ='BUILDERS SETTINGS'!C42 -> 0 | E37: Lab /bricks | F37: = | G37: =SUM(G36*C42) -> 0 | K37: Net labour/No of bricks | L37: = | M37: =SUM(M36*I42)-M41 -> 0 | Q37: Total m2 | R37: = | S37: =IF(AND('Main Details'!$C$23="y"),SUM(S10:S11,S13:S14,S16,S18:S35)) -> FALSE | U37: Total m2 | W37: Nett m2 | X37: = | Y37: =SUM(Y10:Y36) -> 0
E38: including wastage | F38: = | G38: =((G37/100)*C37)+G37 -> 0 | K38: Including Wastage | L38: = | M38: =((M37/100)*I36)+M37 -> 0 | Q38: Net labour/No of bricks | R38: = | S38: =SUM(S37*O42)-S41 -> 0 | W38: Labour Net: | X38: = | Y38: =Y37*U42 -> 0
E39: Number of packs | F39: = | G39: =IF(G38=0,0,(ROUNDUP(SUM(G38/(C43/C44)),0))/C44) -> 0 | K39: Number of packs | L39: = | M39: =IF(M38=0,0,(ROUNDUP(SUM($M$38/($I$43/$I$44)),0))/$I$44) -> 0 | Q39: Number of packs | R39: = | S39: =IF(S38=0,0,(ROUNDUP(SUM($S$38/($O$43/$O$44)),0))/$O$44) -> 0 | V39: Wastage= | W39: ='BUILDERS SETTINGS'!C20/100 -> 0 | X39: = | Y39: =Y38/100*'BUILDERS SETTINGS'!O23 -> 0
E40: Total Number of Bricks | F40: = | G40: =SUM(G39*C43) -> 0 | K40: Total Number of Bricks | L40: = | M40: =SUM(M39*I43) -> 0 | Q40: Total Number of Bricks | R40: = | S40: =SUM(S39*O43) -> 0 | W40: Total Number Face Bricks: | X40: = | Y40: =Y38+Y39-Y41 -> 0
K41: Total Bricks Solids | L41: = | M41: =IF('Main Details'!$C$22="y",M55,"0") -> 0 | Q41: Total Bricks Solids | R41: = | S41: =IF('Main Details'!$C$23="y",S55,"0") -> 0
B42: Bricks per m2 | C42: ='Main Details'!N21 ->  | H42: Bricks per m2 | I42: ='Main Details'!N22 ->  | K42: No / packs | L42: = | M42: =IF(M41=0,0,(ROUNDUP(SUM($M$41/($I$43/$I$44)),0))/$I$44) -> 0 | N42: Bricks per m3 | O42: 48.5 | Q42: No / packs | R42: = | S42: =IF(S41=0,0,(ROUNDUP(SUM($S$41/($O$43/$O$44)),0))/$O$44) -> 0 | U42: 48.5 | V42: Bricks per m2
B43: Pack Size | C43: ='Main Details'!K21 -> 132 | H43: Pack Size | I43: ='Main Details'!K22 -> 252 | K43: Total Solids | L43: = | M43: =SUM(M42*I43) -> 0 | N43: Pack Size | O43: 264 | Q43: Total Solids | R43: = | S43: =SUM(S42*O43) -> 0 | U43: ='Main Details'!K20 -> 264 | V43: Pack Size
B44: No leaves per pack | C44: ='Main Details'!M21 ->  | H44: No leaves per pack | I44: ='Main Details'!M22 ->  | N44: No leaves per pack | O44: 4 | U44: ='Main Details'!M20 -> 4 | V44: No leaves per pack
B45: NOTE TO SCHEDULERS: | H45: EXTRA SOLID LONGREACH | N45: EXTRA SOLID COMMONS | T45: EXTRA INTERNAL FACE SOLIDS
B46: All commons & internal face "to 28c" are automatically deducted | I46: length | J46: x | K46: height | M46: Extd | O46: length | P46: x | Q46: height | S46: Extd | U46: length | V46: x | W46: height
B47: from the blocks to 28c. | H47: 1c Header Corbel | J47: l/m x | K47: 0.172 | L47: = | M47: =IF(AND('Main Details'!$C$22="y",I47>0),I47*K47,"") ->  | N47: 1c Header Corbel | P47: l/m x | Q47: 0.086 | R47: = | S47: =IF(AND('Main Details'!$C$23="y",O47>0),O47*Q47,"") ->  | T47: 1c Header Corbel | V47: l/m x | W47: 0.086 | X47: = | Y47: =IF(AND('Main Details'!$C$20="Y",U47>0),U47*W47,"") -> 
B48: All commons & internal face "over 28c" DO NOT get deducted | D48: =SUM('Internal Brickwork'!Y10:Y13)*'Internal Brickwork'!U42 -> 0 | J48: l/m x | L48: = | M48: =IF(AND('Main Details'!$C$22="y",I48>0),I48*K48,"") ->  | P48: l/m x | R48: = | S48: =IF(AND('Main Details'!$C$23="y",O48>0),O48*Q48,"") ->  | V48: l/m x | X48: = | Y48: =IF(AND('Main Details'!$C$20="Y",U48>0),U48*W48,"") -> 
B49: from the blocks & longreach at all. | J49: l/m x | L49: = | M49: =IF(AND('Main Details'!$C$22="y",I49>0),I49*K49,"") ->  | P49: l/m x | R49: = | S49: =IF(AND('Main Details'!$C$23="y",O49>0),O49*Q49,"") ->  | V49: l/m x | X49: = | Y49: =IF(AND('Main Details'!$C$20="Y",U49>0),U49*W49,"") -> 
J50: l/m x | L50: = | M50: =IF(AND('Main Details'!$C$22="y",I50>0),I50*K50,"") ->  | P50: l/m x | R50: = | S50: =IF(AND('Main Details'!$C$23="y",O50>0),O50*Q50,"") ->  | V50: l/m x | X50: = | Y50: =IF(AND('Main Details'!$C$20="Y",U50>0),U50*W50,"") -> 
J51: No / | K51: =I42 ->  | L51: = | M51: =IF(AND('Main Details'!$C$22="y",I51>0),I51/K51,"") ->  | N51: Quioning per No | P51: No / | Q51: =O42 -> 48.5 | R51: = | S51: =IF(AND('Main Details'!$C$23="y",O51>0),O51/Q51,"") ->  | T51: Quioning | V51: No / | W51: =U42 -> 48.5 | X51: = | Y51: =IF(AND('Main Details'!$C$20="Y",U51>0),U51/W51,"") -> 
J52: No / | K52: =I42 ->  | L52: = | M52: =IF(AND('Main Details'!$C$22="y",I52>0),I52/K52,"") ->  | N52: Extra Bricks Per No | P52: No / | Q52: =O42 -> 48.5 | R52: = | S52: =IF(AND('Main Details'!$C$23="y",O52>0),O52/Q52,"") ->  | T52: Extra Bricks Per No | V52: No / | W52: =U42 -> 48.5 | X52: = | Y52: =IF(AND('Main Details'!$C$20="Y",U52>0),U52/W52,"") -> 
J53: No / | K53: =I42 ->  | L53: = | M53: =IF(AND('Main Details'!$C$22="y",I53>0),I53/K53,"") ->  | N53: Extra Bricks Per No | P53: No / | Q53: =O42 -> 48.5 | R53: = | S53: =IF(AND('Main Details'!$C$23="y",O53>0),O53/Q53,"") ->  | T53: Extra Bricks Per No | V53: No / | W53: =U42 -> 48.5 | X53: = | Y53: =IF(AND('Main Details'!$C$20="Y",U53>0),U53/W53,"") -> 
J54: No / | K54: =I42 ->  | L54: = | M54: =IF(AND('Main Details'!$C$22="y",I54>0),I54/K54,"") ->  | N54: Extra Bricks Per No | P54: No / | Q54: =O42 -> 48.5 | R54: = | S54: =IF(AND('Main Details'!$C$23="y",O54>0),O54/Q54,"") ->  | T54: Extra Bricks Per No | V54: No / | W54: =U42 -> 48.5 | X54: = | Y54: =IF(AND('Main Details'!$C$20="Y",U54>0),U54/W54,"") -> 
K55: Total Longreach Solids | L55: = | M55: =ROUNDUP(SUM(M47:M54)*I42,0) -> 0 | Q55: Total Common Solids= | R55: = | S55: =ROUNDUP(SUM(S47:S54)*O42,0) -> 0 | W55: Total Extra Internal Face Solids | X55: = | Y55: =ROUNDUP(SUM(Y47:Y54)*U42,0) -> 0

Sheet Brick Final Sheet
B2: ='Main Details'!B2 -> QUANTITY SHEET FOR EASY START HOMES | F2: ='Main Details'!D6 -> 0 | M2: PG 7
B3: TOTALS FOR EXTERNAL FACE BLOCKWORK
B5: EXTERNAL BLOCKWORK | D5: No Bricks | F5: Pk size | G5: No Pks | H5: Order Pks | I5: Total Brks | J5: TYPE OF BRICK | M5: Labour
B6: ='External Brickwork'!AL4 -> 2C FACE BLOCK 290X90X162 | D6: ='External Brickwork'!AQ43 ->  | F6: ='External Brickwork'!AM48 -> 138 | G6: =IF(D6>0,D6/F6+0.138,"0") ->  | H6: =(ROUNDUP(((SUM(G6:G7))*3),0))/3+1 ->  | I6: =F6*H6 ->  | J6: ='Main Details'!$I$18 -> NO SELECTION MADE | M6: =D6 -> 
B8: ='External Brickwork'!AR4 -> 1C FACE 290X90X76 CORED | D8: ='External Brickwork'!AW43 -> 0 | F8: ='External Brickwork'!AS48 -> 264 | G8: =IF(D8>0,D8/F8,"0") -> 0 | H8: =(ROUNDUP(((SUM(G8:G9))*3),0))/3 -> 0 | I8: =H8*F8 -> 0 | J8: ='Main Details'!$I$18 -> NO SELECTION MADE | M8: =D8 -> 0
B10: ='External Brickwork'!AR50 -> 1C FACE 290x90x76 SOLIDS | D10: ='External Brickwork'!AW61 -> 0 | F10: ='External Brickwork'!AS48 -> 264 | G10: =IF(D10>0,D10/F10,"0") -> 0 | H10: =(ROUNDUP(((SUM(G10))*3),0)/3) -> 0 | I10: =H10*F10 -> 0 | J10: ='Main Details'!$I$18 -> NO SELECTION MADE | M10: =D10 -> 0
F11: ='External Brickwork'!AM66 -> 138 | G11: =IF(D11>0,D11/F11," ") ->  | H11: ='External Brickwork'!AM74 -> 0
B12: ='External Brickwork'!T50 -> 2C FACE 190 SNAPS | D12: ='External Brickwork'!Y61 -> 0 | F12: ='External Brickwork'!AO66 -> 138 | G12: =IF(D12>0,D12/F12," 0") -> 0 | H12: =(ROUNDUP(SUM(G12*3),0)/3) -> 0 | I12: =H12*F12 -> 0 | J12: ='Main Details'!$I$18 -> NO SELECTION MADE | M12: =D12 -> 0
G13: =IF(D13>0,D13/F13," ") -> 
G14: =IF(D14>0,D14/F14," ") -> 
M15: =D15 -> 0
H16: TOTAL ORDER: | I16: =SUM(I6:I15) ->  | K16: TOTAL LABOUR: | M16: =SUM(M6:M15) -> 
J17: 1c Total | K17: =M8+M10 -> 0
J18: 2c Total | K18: =M6+M12 -> 
B19: 1c FEATURE FACE BRICKWORK
B21: MAIN EXT BRICKS | D21: No Bricks | F21: Pk size | G21: No Pks | H21: Order Pks | I21: Total Brks | J21: TYPE OF BRICK | M21: Labour
B22: EXTERNAL FACE CORED | D22: ='External Brickwork'!BC43 -> 0 | F22: ='External Brickwork'!AY48 -> 264 | G22: =IF(D22>0,D22/F22,"0") -> 0 | H22: =(ROUNDUP(((SUM(G22:G22))*4),0))/4 -> 0 | I22: =F22*H22 -> 0 | J22: ='External Brickwork'!$AX$5 -> MIDLAND- Burnished Red | M22: =D22 -> 0
B23: EXTERNAL FACE SOLID | D23: ='External Brickwork'!BC61 -> 0 | F23: ='External Brickwork'!AY48 -> 264 | G23: =IF(D23>0,D23/F23,"0") -> 0 | H23: =(ROUNDUP(((SUM(G23:G23))*4),0))/4 -> 0 | I23: =F23*H23 -> 0 | J23: ='External Brickwork'!$AX$5 -> MIDLAND- Burnished Red | M23: =D23 -> 0
H24: TOTAL ORDER: | I24: =SUM(I22:I23) -> 0 | J24: TOTAL LABOUR: | M24: =SUM(M22:M23) -> 0
H25: INTERNAL FACE BRICKWORK
B27: INT FACE BRICKS | D27: No Bricks | F27: Pk size | G27: No Pks | H27: Order Pks | I27: Total Brks | J27: TYPE OF BRICK | M27: Labour
B28: INTERNAL FACE CORED | D28: ='Internal Brickwork'!Y40 -> 0 | F28: =IF(D28>0,'Main Details'!K20,"0") -> 0 | G28: =IF(D28>0,D28/F28," ") ->  | H28: =(ROUNDUP(((SUM(G28:G28))*'Internal Brickwork'!U44),0))/'Internal Brickwork'!U44 -> 0 | I28: =SUM(H28*'Internal Brickwork'!U43) -> 0 | J28: ='Internal Brickwork'!T6 -> NO SELECTION MADE | M28: =I28 -> 0
B29: INTERNAL FACE SOLIDS | D29: ='Internal Brickwork'!Y55 -> 0 | F29: =IF(D29>0,'Main Details'!K20,"0") -> 0 | G29: =IF(D29>0,D29/F29," ") ->  | H29: =ROUNDUP(SUM(D29/('Internal Brickwork'!U43/'Internal Brickwork'!U44)),0)/'Internal Brickwork'!U44 -> 0 | I29: =H29*F29 -> 0 | J29: ='Internal Brickwork'!T6 -> NO SELECTION MADE | M29: =I29 -> 0
B30: EXTRAS | D30: No Bricks | H30: TOTAL ORDER: | I30: =SUM(I28:I29) -> 0 | K30: TOTAL LABOUR: | M30: =SUM(M28:M29) -> 0
C31: EXT CONT' SQUINT CORED | F31: =IF(D31=""," ",$J$28) -> 
B32: TOTALS FOR INTERNAL BLOCKWORK
B34: INTERNAL BLOCKWORK | D34: No Bricks | F34: Pk size | G34: No Pks | H34: Order Pks | I34: Total Brks | J34: TYPE OF BRICK | M34: Labour
B35: INTERNALVERTICAL 2C | D35: =SUM('Internal Brickwork'!G38) -> 0 | F35: ='Internal Brickwork'!C43 -> 132 | G35: =IF(D35>0,D35/F35,"0") -> 0 | H35: =(ROUNDUP(((SUM(G35:G35))*3),0))/3 -> 0 | I35: =F35*H35 -> 0 | J35: ='Main Details'!I21 -> NO SELECTION MADE | M35: =D35 -> 0
B36: INTERNAL CORED 1C | D36: =SUM('Internal Brickwork'!M38) -> 0 | F36: ='Internal Brickwork'!I43 -> 252 | G36: =IF(D36>0,D36/F36,"0") -> 0 | H36: =(ROUNDUP(((SUM(G36))*3),0))/3 -> 0 | I36: =F36*H36 -> 0 | J36: ='Main Details'!I22 -> NO SELECTION MADE | M36: 0
M37: 0
B38: INTERNAL COMMONS CORED | D38: =SUM('Internal Brickwork'!S40) -> 0 | F38: ='Internal Brickwork'!O43 -> 264 | G38: =IF(D38>0,D38/F38,"0 ") -> 0 | H38: =(ROUNDUP(((SUM(G38))*3),0))/3 -> 0 | I38: =F38*H38 -> 0 | J38: ='Main Details'!I23 -> NO SELECTION MADE | M38: 0
D39: =SUM('Internal Brickwork'!S12,'Internal Brickwork'!S15,'Internal Brickwork'!S17)*'Internal Brickwork'!O42 -> 0 | M39: 0 | Q39: Reo Type (select)
B40: INTERNAL SOLIDS 1C | D40: ='Internal Brickwork'!M55 -> 0 | F40: ='Internal Brickwork'!I43 -> 252 | G40: =IF(D40>0,D40/F40,"0") -> 0 | H40: =(ROUNDUP(((SUM(G40))*3),0))/3 -> 0 | I40: =H40*F40 -> 0 | J40: ='Main Details'!I22 -> NO SELECTION MADE | M40: 0 | Q40: Order 6m Rods
B41: INTERNAL COMMON SOLIDS | D41: ='Internal Brickwork'!S55 -> 0 | F41: ='Internal Brickwork'!O43 -> 264 | G41: =IF(D41>0,D41/F41,"0 ") -> 0 | H41: =(ROUNDUP(((SUM(G41))*4),0))/4 -> 0 | I41: =H41*F41 -> 0 | J41: ='Main Details'!I23 -> NO SELECTION MADE | M41: 0 | Q41: Order MRBL50 Mesh
H42: TOTAL ORDER: | I42: =SUM(I34:I41) -> 0 | K42: TOTAL LABOUR: | M42: =SUM(M34:M41) -> 0 | U42: 0
J43: 1c Total | K43: =M36+M40+M38+M41 -> 0 | U43: 1
J44: 2c Total | K44: =M35 -> 0 | R44: 940mm | U44: 2
B45: TOTALS FOR EXTERNAL BLOCKWORK | R45: 1250mm | U45: 3
R46: 1570mm | U46: 4
B47: EXTERNAL BLOCKWORK | D47: No Bricks | F47: Pk size | G47: No Pks | H47: Order Pks | I47: Total Brks | J47: TYPE OF BRICK | M47: Labour | R47: 1890mm | U47: 5
B48: EXT RENDER 2C | D48: ='External Brickwork'!Y43 -> 0 | F48: ='External Brickwork'!U48 -> 138 | G48: =IF(D48>0,D48/F48,"0") -> 0 | H48: =(ROUNDUP(((SUM(G48))*3),0))/3 -> 0 | I48: =SUM(H48*'External Brickwork'!U48) -> 0 | J48: ='Main Details'!I14 -> MIDLAND MAXIBRICK | M48: =D48 -> 0 | R48: 2200mm | U48: 6
N49: =MROUND(O106,2) -> 0 | R49: 2500mm | U49: 7
B50: EXT RENDER CORED 1C | D50: ='External Brickwork'!AE43 -> 0 | F50: ='External Brickwork'!AA48 -> 252 | G50: =IF(D50>0,D50/F50,"0") -> 0 | H50: =(ROUNDUP(((SUM(G50:G50))*3),0))/3 -> 0 | I50: =SUM(H50*'External Brickwork'!AA48) -> 0 | J50: ='Main Details'!I15 -> MIDLAND LONGREACH | M50: =D50 -> 0 | R50: 2830mm | U50: 8
M51: 0 | R51: 3140mm | U51: 9
B52: EXT RENDER COMMONS CORED | D52: ='External Brickwork'!AK43 -> 0 | F52: ='External Brickwork'!AG48 -> 264 | G52: =IF(D52>0,D52/F52,"0") -> 0 | H52: =(ROUNDUP(((SUM(G52))*3),0))/3 -> 0 | I52: =SUM(H52*'External Brickwork'!AG48) -> 0 | J52: ='Main Details'!I16 -> NO SELECTION MADE | M52: 0 | U52: 10
M53: 0
B54: EXT RENDER 1C SOLIDS | D54: ='External Brickwork'!AE61 -> 0 | F54: ='External Brickwork'!AA48 -> 252 | G54: =IF(D54>0,D54/F54,"0") -> 0 | H54: =(ROUNDUP(((SUM(G54))*3),0))/3 -> 0 | I54: =H54*F54 -> 0 | J54: ='Main Details'!I15 -> MIDLAND LONGREACH | M54: 0
B55: EXT RENDER COMMONS SOLIDS | D55: ='External Brickwork'!AK61 -> 0 | F55: ='External Brickwork'!AG48 -> 264 | G55: 0 | H55: =(ROUNDUP(((SUM(G55))*4),0))/4 -> 0 | I55: =H55*F55 -> 0 | J55: ='Main Details'!I16 -> NO SELECTION MADE | M55: 0
H56: TOTAL ORDER: | I56: =SUM(I45:I55) -> 0 | K56: TOTAL LABOUR: | M56: =SUM(M45:M55) -> 0 | W56: REINFORCEMENT ROD CALCULATION
B57: WEEPA's | C57: =(ROUNDUP((SUM('Main Details'!D37-'Main Details'!D45)/0.9/25),0)) -> 0 | G57: ABBTF FUND 1C | I57: =I8+I10+I36+I38+I40+I41+I50+I52+I54+I55+I23+I22 -> 0 | J57: 1c Total | K57: =M50+M54+M52+M55 -> 0 | Y57: Length | Z57: x | AA57: Rows | AC57: Total
G58: ABBTF FUND 2C | I58: =I6+I12+I35+I48 ->  | J58: 2c Total | K58: =M48 -> 0 | W58: Internal Perimeter | Y58: ='Main Details'!D37 -> 0 | Z58: x | AA58: 2 | AC58: =Y58*AA58 -> 0 | AD58: lm
B59: ALCOR FLASHINGS | D59: Mortar Filled Piers | G59: BRICK HARDWARE | P59: Cement Calc | W59: Garage Perimeter | Y59: ='Concrete & Reo'!C17 -> 0 | Z59: x | AA59: 2 | AC59: =Y59*AA59 -> 0 | AD59: lm
B60: Alcor Total | C60: =ROUNDUP((Lintels.windows!O42/10)+(C61*3/10)+(C62*3/10),"0") -> 0 | D60: BAGS | F60: 0 | G60: Grey Cement Total | I60: =T60+T61+F60 -> 0 | J60: bags | K60: Order Sand | L60: =R67 ->  | M60: m3 | P60: internal grey | R60: =I35+I36+I38+I40+I41 -> 0 | S60: =R60/1000*1.1 -> 0 | T60: =S60*10.8 -> 0 | W60: Under Openings | Y60: =Lintels.windows!AW41 -> 0 | Z60: x | AA60: 4 | AC60: 0 | AD60: lm
B61: Cavity Closers no | D61: BRICK LINTELS | G61: Lite Cement Total | I61: =T63+T64 ->  | J61: bags | K61: Wire Ties DB | L61: =VLOOKUP(K61,P74:S78,4,0) -> 1 | M61: =VLOOKUP(K61,P74:R78,3,0) -> pks | P61: external grey | R61: =I48+I50+I52+I54+I55 -> 0 | S61: =R61/1000*1.2 -> 0 | T61: =S61*10.8 -> 0 | W61: Over Openings | Z61: x | AA61: 4 | AC61: 0 | AD61: lm
B62: Structural Col's no | E62: at | G62: Cartage Totals | I62: Zones | J62: 1 | K62: DBL BOUNDARY BV | L62: =IF(K61="Wire Ties BV",S75," ") ->  | M62: pack | S62: 0 | T62: =S62*10.8 -> 0 | W62: Internal Partition Openings | Y62: ='Internal deductions & int walls'!L26 -> 0 | Z62: x | AA62: 2 | AC62: 0 | AD62: lm
B63: BRICKWORK REINFORCEMENT | E63: at | G63: STD Cored Face | I63: =I28+I22 -> 0 | J63: 1C | K63: 3.0m Hoop Iron | M63: no | P63: Brickies Lite 1c | R63: =I8+I22+I23+I28+I29+I10 -> 0 | S63: =R63/1000*1.1 -> 0 | T63: =S63*11.2 -> 0 | W63: Ext B/work over 25c | Z63: x | AA63: 2 | AC63: 0 | AD63: lm
E64: at | G64: STD Solid Face | I64: =I29+I23 -> 0 | J64: 1C | K64: Hoop Iron Strap 30m | L64: =VLOOKUP(K64,P82:U83,6,FALSE) -> 0 | M64: rolls | P64: Brickies lite 2c | R64: =I6+I12+I8+I10 ->  | T64: =S64*11.2 ->  | W64: T-bars | Z64: x | AC64: 0 | AD64: lm
C65: = Enter nett l/m of Reo to pay Brickie | E65: at | G65: Cored Longreach | I65: =I8+I36+I50 -> 0 | J65: 1C | K65: 10mm Dyna Bolts | M65: no | W65: Corner Windows | Z65: x | AC65: 0 | AD65: lm
E66: at | G66: Solid Longreach | I66: =I10+I40+I54 -> 0 | J66: 1C | K66: 12mm Dyna Bolts | M66: no | P66: Sand Calculations | W66: Brick Bulkhead | Z66: x | AA66: 4 | AC66: 0 | AD66: lm
B67: =O166 -> 0 | C67: Reo Type (select) | E67: at | G67: Fastwall/Maxi brick | I67: =I35+I48 -> 0 | J67: 2C | K67: Brick Clean 1c | L67: =T90-('Elec,Ceiling,Plaster '!M53) -> 0 | M67: no | P67: Total Bricks | R67: =(I16+I24+I30+I42+I56)/1000+2 ->  | S67: m3 | W67: *Spare* | Y67: 0 | Z67: x | AC67: 0 | AD67: lm
C68: Order 500 cogs | G68: 2c Facebrick | I68: =I6+I12+I14 ->  | J68: 2C | K68: Brick Clean 2c | L68: =T89-('Elec,Ceiling,Plaster '!M54*19.5) ->  | M68: no
E69: at | K69: E/O Red Bricks | L69: =IF(OR('Main Details'!G2=TRUE,'Main Details'!G3=TRUE,'Main Details'!G8=TRUE,'Main Details'!G10=TRUE),"REQUIRED"," ") ->  | AB69: Total : | AC69: =SUM(AC58:AC67) -> 0 | AD69: lm
P72: Wire Ties Calculation
T73: Perimeter M2 | U73: Gge/House
O74: No | P74: Wire Ties BV | R74: each | S74: =(T74-U74)*5+30 -> 30 | T74: =('External Brickwork'!Y7+'External Brickwork'!AE7+'External Brickwork'!AQ7+'External Brickwork'!AW7+'External Brickwork'!BC7)+SUM('External Brickwork'!Y27:Y36)+SUM('External Brickwork'!AE27:AE35)+SUM('External Brickwork'!AQ27:AQ36)+SUM('External Brickwork'!AW27:AW35)-(Lintels.windows!G42)-T75 -> 0 | U74: ='Main Details'!D45*'External Brickwork'!AO7 -> 0
R75: pks | S75: =(T75-U75)*4.5/50 -> 0 | T75: ='Main Details'!E50 -> 0
T76: Perimeter M2 | U76: Gge/House
O77: Yes | P77: Wire Ties DB | R77: pks | S77: =(T77-U77)*4.5/50+1 -> 1 | T77: =('External Brickwork'!Y42+'External Brickwork'!AE42+'External Brickwork'!AQ42+'External Brickwork'!AW42+'External Brickwork'!BC42) -> 0 | U77: =SUM('External Brickwork'!Y37:Y39,'External Brickwork'!AE37:AE39,'External Brickwork'!AQ37:AQ39,'External Brickwork'!AW37:AW39,'External Brickwork'!BC37:BC39)+'Main Details'!D45*'External Brickwork'!AO7 -> 0
P78: Framed N/A | S78: 0
P81: Hoop Iron Conversion
P82: Hoop Iron Strap 30m | S82: =('Main Details'!D37-'Main Details'!D45)/1.2*3 -> 0 | U82: =S84/30 -> 0
P83: Brick Veneer Strap 30m | S83: =(L63*3) -> 0 | T83: =L63*3+Q84*3 -> 3 | U83: =ROUNDUP(T84/30,0) -> 1
P84: DBL bound | Q84: =ROUNDUP('Main Details'!D49/1.2,0)+1 -> 1 | R84: =Q84*3 -> 3 | S84: =S82+S83 -> 0 | T84: =T82+T83 -> 3
P88: Brick Clean Calculator
P89: 2c Bricks | R89: =M16 ->  | S89: =IF('External Brickwork'!AM11>0,('External Brickwork'!AQ11*'External Brickwork'!AM47),"0") -> 0 | T89: =R89+S89 -> 
P90: 1c Face Brick | R90: =M24+M30 -> 0 | T90: =R90+S90 -> 0
O165: =IF(C67=Q39,"0",IF(C67=Q40,B65/5.5,IF(C67=Q41,B65/2.5+2))) -> 0
O166: =CEILING(O165,1) -> 0
P167: REO RODS NETT
P168: REO RODS ROUNDUP EVEN

Sheet Facia & Steel & Roof Hardware
B2: ='Main Details'!B2 -> QUANTITY SHEET FOR EASY START HOMES | AT2: PG 8
B3: ='Main Details'!D6 -> 0
AP4: DURALUX PLUS AREA | AT4: m2
B5: METAL FASCIA | H5: STEEL BEAMS | AC5: HARDWARE | AP5: CFC SHEETS/BOARDS
D7: 1 | E7: =IF($C7*$D7=0," ",$C7*$D7) ->  | H7: 150 UB 14 | K7: Splay & Packer | L7: Point Splay 1,2 | M7: Packer | N7: Slot 1,2 | O7: 180 UB 16 | R7: Splay & Packer | S7: Point Splay 1,2 | T7: Packer | U7: Slot 1,2 | V7: 180 UB 22 | Y7: Splay & Packer | Z7: Point Splay 1,2 | AA7: Packer | AB7: Slot 1,2 | AC7: TENSIONER BRACKETS | AJ7: =SUM('Main Details'!D37/1/6)+('Brick Final Sheet'!L63/6) -> 0 | AL7: PACK | AP7: DURALUX PLUS
D8: 1.5 | E8: =IF($C8*$D8=0," ",$C8*$D8) ->  | AC8: WPA BOLTS | AJ8: BBS | AL8: No | AP8: 2400 | AQ8: x | AR8: 1200 | AT8: No | AW8: =AP8*AR8/1000000 -> 2.88
D9: 2 | H9: l/m | I9: =IF(SUM(J10:J19)=0,"0",SUM(J10:J19)) -> 0 | O9: l/m | P9: =IF(SUM(Q10:Q19)=0,"0",SUM(Q10:Q19)) -> 0 | V9: l/m | W9: =IF(SUM(X10:X19)=0,"0",SUM(X10:X19)) -> 0 | AC9: STEEL TRUSS HARDWARE | AP9: 3000 | AQ9: x | AR9: 1200 | AT9: No | AW9: =AP9*AR9/1000000 -> 3.6
D10: 2.5 | J10: =H10*I10 -> 0 | Q10: =O10*P10 -> 0 | X10: =V10*W10 -> 0 | AC10: CLADDING Screws | AJ10: =IF('Main Details'!G31=TRUE,ROUNDUP(((((AS29+AS32)*4.2/0.45))/50),0)," ") -> 0 | AL10: BOX 50 | AP10: 3600 | AQ10: x | AR10: 1200 | AT10: No | AW10: =AP10*AR10/1000000 -> 4.32
D11: 3 | J11: 0 | Q11: 0 | X11: 0 | AC11: BARGE Screws | AJ11: =IF('Main Details'!G31=TRUE,ROUNDUP(((((AM37/4.2)/0.6))/50),0)," ") -> 0 | AL11: BOX 50 | AP11: 6mm Negative Joiner 3m | AT11: No | AW11: =AP11*AR11/1000000 -> 
D12: 3.5 | J12: 0 | Q12: 0 | X12: 0 | AC12: FLOOR Screws | AJ12: =ROUNDUP(SUM(AS23+AS24+AS26)*10/50,0) -> 0 | AL12: BOX 50 | AP12: 6mm Divisional Mould 3m | AT12: No
D13: 4 | J13: 0 | Q13: 0 | X13: 0 | AC13: EAVE SHEET SCREW | AJ13: =IF('Main Details'!G31=TRUE,ROUNDUP(((SUM(AW14*AS14,AW15*AS15,AW16*AS16,AW17*AS17,AW18*AS18,AW19*AS19,AW20*AS20)*7)/100),0)," ") -> 0 | AL13: BOX 100 | AP13: DURASHEET
D14: 4.5 | J14: 0 | Q14: 0 | X14: 0 | AC14: VERSILUX SCREW | AJ14: =IF('Main Details'!G31=TRUE,ROUNDUP(SUM(AW8*AS8,AW9*AS9,AW10*AS10)*7/100,0)," ") -> 0 | AL14: BOX 100 | AP14: 2400 | AQ14: x | AR14: 450 | AT14: No | AW14: =AP14*AR14/1000000 -> 1.08
D15: 5 | J15: 0 | Q15: 0 | X15: 0 | AC15: TIMBER HARDWARE | AP15: 2400 | AQ15: x | AR15: 600 | AT15: No | AW15: 1.44
D16: 5.5 | J16: 0 | Q16: 0 | X16: 0 | AC16: MULTIGRIPS | AL16: No | AP16: 2400 | AQ16: x | AR16: 750 | AT16: No | AW16: 1.8
D17: 6 | J17: 0 | Q17: 0 | X17: 0 | AC17: CYCLONE STRAPS | AJ17: =IF('Main Details'!E31=TRUE,SUM('Roof & Ceiling Quantities '!F28,'Roof & Ceiling Quantities '!J22,'Roof & Ceiling Quantities '!J40)/'Main Details'!D44," ") ->  | AL17: No | AP17: 1800 | AQ17: x | AR17: 1200 | AT17: No | AW17: 2.16
D18: 6.5 | J18: 0 | Q18: 0 | X18: 0 | AC18: TRUSS GRIP MITEK | AJ18: =IF(AND('Main Details'!C28="N",'Main Details'!E31=TRUE),SUM('Roof & Ceiling Quantities '!AC28+'Roof & Ceiling Quantities '!AG28)/0.9," ") ->  | AL18: No | AP18: 2400 | AQ18: x | AR18: 1200 | AT18: No | AW18: 2.88
D19: 7 | J19: 0 | Q19: 0 | X19: 0 | AC19: MITEK STRAP NAIL | AJ19: =IF(AND('Main Details'!C28="N",'Main Details'!E31=TRUE),SUM('Roof & Ceiling Quantities '!AC28,'Roof & Ceiling Quantities '!AG28)/1.5," ") ->  | AL19: No | AP19: 2700 | AQ19: x | AR19: 1200 | AT19: No | AW19: 3.24
D20: 7.5 | H20: 200 UB 18 | J20: 0 | K20: Splay & Packer | L20: Point Splay 1,2 | M20: Packer | N20: Slot 1,2 | O20: 200 UB 22.3 | Q20: 0 | R20: Splay & Packer | S20: Point Splay 1,2 | T20: Packer | U20: Slot 1,2 | V20: 250 UB 25.7 | X20: 0 | Y20: Splay & Packer | Z20: Point Splay 1,2 | AA20: Packer | AB20: Slot 1,2 | AC20: HANGER STRAPS | AJ20: =IF('Main Details'!E31=TRUE,SUM('Roof & Ceiling Quantities '!P16,'Roof & Ceiling Quantities '!P24,'Roof & Ceiling Quantities '!P36)/0.53," ") ->  | AL20: No | AP20: 3000 | AQ20: x | AR20: 1200 | AT20: No | AW20: 3.6
D21: 8 | J21: 0 | Q21: 0 | X21: 0 | AC21: TIMBER BOLTS / SCREWS | AP21: 4.5mm Divisional Mould 3m | AT21: No
D22: 8.5 | H22: l/m | I22: =IF(SUM(J23:J32)=0,"0",SUM(J23:J32)) -> 0 | J22: 0 | O22: l/m | P22: =IF(SUM(Q23:Q32)=0,"0",SUM(Q23:Q32)) -> 0 | Q22: 0 | V22: l/m | W22: =IF(SUM(X23:X32)=0,"0",SUM(X23:X32)) -> 0 | X22: 0 | AC22: C/HD 63.5 x 10 | AJ22: =IF('Main Details'!E31,SUM(((I9+P9+W9+W22+P22+I22)/0.6))+(AM35*2)," ") ->  | AL22: No | AP22: FLOORING
D23: 9 | E23: =IF($C23*$D23=0," ",$C23*$D23) ->  | J23: =H23*I23 -> 0 | Q23: =O23*P23 -> 0 | X23: =V23*W23 -> 0 | AC23: C/HD 115 x 10 | AJ23: =SUM('Roof & Ceiling Quantities '!AW32:AW40)*2 -> 0 | AL23: No | AM23: NOTE | AP23: PARTICLE BOARD 19mm | AT23: No
B24: TOTAL: | C24: =SUM(E7:E23) -> 0 | D24: l/m | J24: 0 | Q24: 0 | X24: 0 | AC24: C/HD 90 x 10 | AJ24: =SUM(AD34,AD35,AD37,AD38)*2 -> 0 | AL24: No | AP24: 3600 | AQ24: x | AR24: 1200 | AT24: No | AW24: =AP24*AR24/1000000 -> 4.32
C25: Ext corners= | F25: No | J25: 0 | Q25: 0 | X25: 0 | AC25: DYNA 10 X 100mm | AJ25: =SUM(AD34,AD35,AD37,AD38)*2 -> 0 | AL25: No | AP25: DURAFLOOR 19mm | AT25: No
C26: Int corners= | F26: No | J26: 0 | Q26: 0 | X26: 0 | AC26: MUNGO 10 x 100 | AL26: No | AP26: 2700 | AQ26: x | AR26: 600 | AT26: No | AW26: =AP26*AR26/1000000 -> 1.62
C27: Bracket/clip= | D27: =IF('Main Details'!E28=TRUE,(ROUNDUP(C24/0.6,0)),(ROUNDUP(C24/0.9,0)))+5 -> 5 | F27: No | J27: 0 | Q27: 0 | X27: 0 | AC27: ROOF BATTEN SCREW | AL27: BOX | AW27: =AP27*AR27/1000000 -> 0
B28: Straights/joins= | F28: No | J28: 0 | Q28: 0 | X28: 0 | AC28: C/HD 140 X 10 POST SHOE | AJ28: =SUM(AD37:AD38)*2 -> 0 | AL28: No | AP28: CLADDING
C29: 135 deg ext = | F29: No | J29: 0 | Q29: 0 | X29: 0 | AC29: STEEL BATTENS W/- TIMBER ROOF | AP29: Weather Boards 4.2m | AT29: No | AW29: =IF('Main Details'!G31=TRUE,ROUNDUP((((SUM(AW24*AS24,AW26*AS26,AW27*AS27)*10)/50)+((AS29+AM37)*4.2/0.6)/50),0)," ") -> 0
C30: 135 deg int = | F30: No | J30: 0 | Q30: 0 | X30: 0 | AC30: ROOF BATTEN G550 40mm | AL30: 6.1 | AM30: M lengths | AP30: BBS Membrane 1350mm | AT30: L/m
C31: Stop end: Lh | F31: No | J31: 0 | Q31: 0 | X31: 0 | AC31: BATTEN ZIP SCREW | AJ31: =ROUNDUP(SUM(((AJ30*AL30)/0.9)*2)/1000,0.1) -> 0 | AL31: BOX | AM31: 1000 | AP31: Plascourse 150mm x 30m | AT31: Rolls
C32: Rh | F32: No | J32: 0 | Q32: 0 | X32: 0 | AP32: Nuline Plus Square 4.2x175mm | AT32: No
C33: C/B Pop Rvts | D33: =ROUNDUP((SUM(D25+D26+D28+D29+D30+D31+D32)*4)/100,0) -> 0 | F33: Pkt | J33: No | Q33: No | V33: STEEL POSTS | AD33: QTY. | AF33: LGTH. | AG33: CNR. | AH33: STR. | AI33: MISC. ITEMS | AP33: Thermal Break Tape 12.5m | AT33: Rolls
J34: No | Q34: No | V34: 100X100 ADJ. DURAGAL POST | AI34: LEAD FLASHING | AM34: =IF('Main Details'!E28=TRUE,"Check"," ") ->  | AN34: Roll | AP34: Starter Strip 2.7m | AT34: No
J35: No | Q35: No | V35: 100X100 TWIN POST | AI35: PERGOLA RAFTER BRCKET | AN35: No | AP35: Innova Ext Corner 3.0m | AT35: No
J36: No | Q36: No | V36: TIMBER POST | AD36: QTY. | AF36: LGTH. | AI36: TIMBER POST SHOE | AM36: =SUM(AD37,AD38) -> 0 | AN36: No | AP36: Innova Int Corner 3.0m | AT36: No
J37: No | Q37: No | V37: 95X95 KAPUR POST | AI37: BARGE BOARD 4.2m | AN37: No
J38: No | Q38: No | V38: 120X120 KAPUR POST
J39: No | Q39: No | AI39: R2.0 Wall Batts 16m2/PK | AN39: Pks
B40: SLOTTED = | D40: =SUM(N10:N19,U10:U19,AB10:AB19,N23:N32,U23:U32,AB23:AB32) -> 0 | F40: no | H40: SPLAY & PACKER = | L40: =SUM(K10:K19,R10:R19,Y10:Y19,K23:K32,R23:R32,Y23:Y32) -> 0 | M40: no | O40: POINT SPLAY = | S40: =SUM(L10:L19,S10:S19,Z10:Z19,L23:L32,S23:S32,Z23:Z32) -> 0 | T40: no
J41: No | Q41: No
J42: No | Q42: No

Sheet Roof & Ceiling Quantities (hidden)
B2: ='Main Details'!B2 -> QUANTITY SHEET FOR EASY START HOMES | AZ2: PG 9
B3: ='Main Details'!D6 -> 0
H4: ROOF TIMBER QUANTITIES
C6: 120x35 | F6: 200x25 | J6: 170x35 | L6: 170x35 | N6: 170x35 | P6: 120x35 | T6: 170x35 | W6: 120x35 | Z6: 150x25 | AC6: 96x51 U/Purlin | AG6: 96x51 U/Purlin | AJ6: 70x45 | AM6: E-SPLAYS 1,2 | AN6: 70x35 | AQ6: E-SPLAYS 1,2 | AR6: 70x45 | AV6: E-SPLAYS 1,2 | AW6: 90x35 | AZ6: 90x35
C8: Rafters | F8: Ridges | J8: Hips | L8: Valleys | N8: Hips | P8: Hangers | T8: Totals | W8: Totals | Z8: V/boards | AC8: BOTM ROW | AG8: TOP ROW | AJ8: Eave Trimmers | AN8: Soldiers | AR8: Gable Studs | AW8: Pine<6.0 | AZ8: Pine>6.0
B9: 0.6 | D9: =B9*C9 -> 0 | G9: =B9*F9 -> 0 | I9: 2.4 | K9: =I9*J9 -> 0 | M9: =I9*L9 -> 0 | Q9: =IF(J9="","",J9) ->  | R9: 0.6 | T9: =IF((L9+N9)>0,(L9+N9)," ") ->  | U9: =IF(T9=" "," ",I9*T9) ->  | V9: 0.6 | Y9: 0.6 | AB9: =IF(Z9=" "," ",Z9*AA9) -> 0 | AE9: 1.2 | AF9: =AC9*AE9 -> 0 | AH9: 1.2 | AI9: =AG9*AH9 -> 0 | AJ9: =SUM('Facia & Steel & Roof Hardware'!AS16*3.6/3.6) -> 0 | AK9: 3.6 | AL9: =IF(AJ9=" ",0,AK9*AJ9) -> 0 | AN9: =IF(AJ9=" "," ",ROUNDUP(AJ9/2,0)) -> 0 | AO9: 3.6 | AP9: =IF(AN9=" ",0,AO9*AN9) -> 0 | AS9: 3.6 | AT9: =AR9*AS9 -> 0 | AX9: 1.5 | AY9: =AX9*AW9 -> 0 | BA9: 6.3 | BB9: =BA9*AZ9 -> 0 | BD9: 75x38
B10: 0.9 | D10: =B10*C10 -> 0 | G10: 0 | I10: 2.7 | K10: 0 | M10: =I10*L10 -> 0 | Q10: =IF(J10="","",J10) ->  | R10: 0.9 | V10: 0.9 | Y10: 0.9 | AB10: 0 | AE10: 1.5 | AF10: 0 | AH10: 1.5 | AI10: 0 | AL10: =AK10*AJ10 -> 0 | AP10: =AO10*AN10 -> 0 | AT10: =AR10*AS10 -> 0 | AX10: 1.8 | AY10: 0 | BA10: 6.6 | BB10: =BA10*AZ10 -> 0 | BD10: ROOF AREA | BF10: x1.3= | BG10: ='Main Details'!D35*1.3 -> 0
B11: 1.2 | D11: =B11*C11 -> 0 | G11: 0 | I11: 3 | K11: 0 | M11: 0 | R11: 1.2 | S11: =P11*R11 -> 0 | V11: 1.2 | W11: =IF((C11+P11)>0,(C11+P11)," ") ->  | X11: =IF(W11=" "," ",Y11*W11) ->  | Y11: 1.2 | AB11: 0 | AE11: 1.8 | AF11: 0 | AH11: 1.8 | AI11: 0 | AL11: 0 | AP11: 0 | AT11: =AR11*AS11 -> 0 | AX11: 2.1 | AY11: 0 | BA11: 6.9 | BB11: 0 | BD11: ROOF PERIMETER | BF11: = | BG11: ='Main Details'!D39 -> 0
B12: 1.5 | D12: 0 | G12: 0 | I12: 3.3 | K12: 0 | M12: 0 | R12: 1.5 | S12: =P12*R12 -> 0 | V12: 1.5 | W12: =IF((C12+P12)>0,(C12+P12)," ") ->  | Y12: 1.5 | AB12: 0 | AE12: 2.1 | AF12: 0 | AH12: 2.1 | AI12: 0 | AJ12: =SUM(AL9:AL11) -> 0 | AK12: l/m | AN12: =SUM(AP5:AP11) -> 0 | AO12: l/m | AP12: l/m | AR12: =SUM(AT5:AT11) -> 0 | AS12: l/m | AX12: 2.4 | AY12: 0 | BA12: 7.2 | BB12: 0 | BD12: RIDGES,HIPS VALLEYS | BF12: x2= | BG12: =SUM(F28+J22+J40+L22+L40)*2 -> 0
B13: 1.8 | D13: 0 | G13: 0 | I13: 3.6 | K13: 0 | M13: 0 | R13: 1.8 | S13: =P13*R13 -> 0 | V13: 1.8 | W13: =IF((C13+P13)>0,(C13+P13)," ") ->  | Y13: 1.8 | AB13: 0 | AE13: 2.4 | AF13: 0 | AH13: 2.4 | AI13: 0 | AJ13: 300x45 LVL | AN13: 200x63 LVL | AR13: 240x63 LVL | AX13: 2.7 | AY13: 0 | BA13: 7.5 | BB13: 0 | BF13: /5.4= | BG13: =(BG10+BG11+BG12)/5.4 -> 0
B14: 2.1 | D14: 0 | G14: 0 | I14: 3.9 | K14: 0 | M14: 0 | R14: 2.1 | S14: =P14*R14 -> 0 | V14: 2.1 | W14: =IF((C14+P14)>0,(C14+P14)," ") ->  | Y14: 2.1 | AB14: 0 | AE14: 2.7 | AF14: 0 | AH14: 2.7 | AI14: 0 | AX14: 3 | AY14: 0 | BA14: 7.8 | BB14: 0 | BF14: Total= | BG14: =ROUNDUP(BG13,0) -> 0
B15: 2.4 | D15: 0 | G15: 0 | I15: 4.2 | K15: 0 | M15: 0 | R15: 2.4 | S15: =P15*R15 -> 0 | V15: 2.4 | W15: =IF((C15+P15+AW32)>0,(C15+P15+AW32)," ") ->  | Y15: 2.4 | AB15: 0 | AE15: 3 | AF15: 0 | AH15: 3 | AI15: 0 | AL15: =AJ15*AK15 -> 0 | AP15: =AN15*AO15 -> 0 | AT15: =AR15*AS15 -> 0 | AX15: 3.3 | AY15: 0 | BA15: 8.1 | BB15: 0 | BF15: order= | BG15: =IF(AND('Main Details'!C28="N",BG14>0),BG14+8,0) -> 0
B16: 2.7 | D16: 0 | G16: 0 | I16: 4.5 | K16: 0 | M16: 0 | P16: =SUM(S9:S15) -> 0 | R16: l/m | T16: =IF(L16+N16+J16>0,L16+N16+J16,"") ->  | U16: =IF(J16+L16+N16>0,(J16+L16+N16)*2.7,0) -> 0 | V16: 2.7 | W16: =IF((C16)>0,(C16)," ") ->  | Y16: 2.7 | AB16: 0 | AE16: 3.3 | AF16: 0 | AH16: 3.3 | AI16: 0 | AL16: 0 | AP16: 0 | AT16: =AS16*AR16 -> 0 | AX16: 3.6 | AY16: 0 | BA16: 8.4 | BB16: 0
B17: 3 | D17: 0 | G17: 0 | I17: 4.8 | K17: 0 | M17: 0 | P17: 170x35 | T17: =IF(L17+N17+J17>0,L17+N17+J17,"") ->  | U17: =IF(J17+L17+N17>0,(J17+L17+N17)*3,0) -> 0 | V17: 3 | W17: =IF((C17+AW33)>0,(C17+AW33)," ") ->  | Y17: 3 | AB17: 0 | AE17: 3.6 | AF17: 0 | AH17: 3.6 | AI17: 0 | AL17: 0 | AP17: 0 | AT17: 0 | AX17: 3.9 | AY17: 0 | BA17: 8.7 | BB17: =BA17*AZ17 -> 0
B18: 3.3 | D18: 0 | G18: 0 | I18: 5.1 | K18: 0 | M18: 0 | P18: Hangers | T18: =IF(L18+N18+J18>0,L18+N18+J18,"") ->  | U18: =IF(J18+L18+N18>0,(J18+L18+N18)*3.3,0) -> 0 | V18: 3.3 | W18: =IF((C18)>0,(C18)," ") ->  | Y18: 3.3 | AB18: 0 | AE18: 3.9 | AF18: 0 | AH18: 3.9 | AI18: 0 | AL18: 0 | AP18: 0 | AT18: 0 | AX18: 4.2 | AY18: 0 | BA18: 9 | BB18: 0
B19: 3.6 | D19: 0 | G19: 0 | I19: 5.4 | K19: 0 | M19: 0 | R19: 2.7 | S19: =P19*R19 -> 0 | T19: =IF(L19+N19+J19>0,L19+N19+J19,"") ->  | U19: =IF(J19+L19+N19>0,(J19+L19+N19)*3.6,0) -> 0 | V19: 3.6 | W19: =IF((C19+AW34)>0,(C19+AW34)," ") ->  | Y19: 3.6 | AA19: 3.6 | AB19: 0 | AE19: 4.2 | AF19: 0 | AH19: 4.2 | AI19: 0 | AL19: 0 | AP19: 0 | AT19: 0 | AX19: 4.5 | AY19: 0 | BA19: 9.3 | BB19: 0
B20: 3.9 | D20: 0 | G20: 0 | I20: 5.7 | K20: 0 | M20: 0 | R20: 3 | S20: =P20*R20 -> 0 | T20: =IF(L20+N20+J20>0,L20+N20+J20,"") ->  | U20: =IF(J20+L20+N20>0,(J20+L20+N20)*3.9,0) -> 0 | V20: 3.9 | W20: =IF((C20)>0,(C20)," ") ->  | Y20: 3.9 | AB20: 0 | AE20: 4.5 | AF20: 0 | AH20: 4.5 | AI20: 0 | AL20: =AK20*AJ20 -> 0 | AP20: =AO20*AN20 -> 0 | AT20: 0 | AX20: 4.8 | AY20: 0 | BB20: 0
B21: 4.2 | D21: 0 | G21: 0 | I21: 6 | K21: 0 | M21: 0 | R21: 3.3 | S21: =P21*R21 -> 0 | T21: =IF((L21+N21)>0,(L21+N21)," ") ->  | U21: =IF(T21=" "," ",I21*T21) ->  | V21: 4.2 | W21: =IF((C21+AW35)>0,(C21+AW35)," ") ->  | Y21: 4.2 | AA21: 4.2 | AB21: 0 | AE21: 4.8 | AF21: 0 | AH21: 4.8 | AI21: 0 | AL21: 0 | AP21: =AO21*AN21 -> 0 | AT21: 0 | AX21: 5.1 | AY21: 0 | BB21: 0
B22: 4.5 | D22: 0 | G22: 0 | I22: l/m | J22: =SUM(K9:K21) -> 0 | L22: =SUM(M9:M21) -> 0 | R22: 3.6 | S22: =P22*R22 -> 0 | V22: 4.5 | W22: =IF((C22)>0,(C22)," ") ->  | Y22: 4.5 | AB22: 0 | AE22: 5.1 | AF22: =AE22*AC22 -> 0 | AH22: 5.1 | AI22: 0 | AL22: 0 | AP22: =AO22*AN22 -> 0 | AT22: 0 | AX22: 5.4 | AY22: 0 | BB22: 0
B23: 4.8 | D23: 0 | G23: 0 | R23: 3.9 | S23: =P23*R23 -> 0 | V23: 4.8 | W23: =IF((C23+AW36)>0,(C23+AW36)," ") ->  | Y23: 4.8 | AA23: 4.8 | AB23: 0 | AE23: 5.4 | AF23: 0 | AH23: 5.4 | AI23: 0 | AL23: 0 | AP23: =AO23*AN23 -> 0 | AT23: 0 | AX23: 5.7 | AY23: 0 | BB23: 0
B24: 5.1 | D24: 0 | G24: 0 | P24: =SUM(S18:S23) -> 0 | R24: l/m | V24: 5.1 | W24: =IF((C24)>0,(C24)," ") ->  | Y24: 5.1 | AB24: 0 | AE24: 5.7 | AF24: 0 | AH24: 5.7 | AI24: 0 | AL24: 0 | AP24: =AO24*AN24 -> 0 | AT24: 0 | AX24: 6 | AY24: 0 | BB24: 0
B25: 5.4 | D25: 0 | G25: 0 | V25: 5.4 | W25: =IF((C25+AW37)>0,(C25+AW37)," ") ->  | Y25: 5.4 | AA25: 5.4 | AB25: 0 | AE25: 6 | AF25: 0 | AH25: 6 | AI25: 0 | AJ25: =SUM(AL15:AL24) -> 0 | AK25: l/m | AN25: =SUM(AP15:AP24) -> 0 | AO25: l/m | AR25: =SUM(AT15:AT24) -> 0 | AS25: l/m | AW25: =SUM(AY9:AY24) -> 0 | AX25: l/m | AZ25: =SUM(BB9:BB24) -> 0 | BA25: l/m
B26: 5.7 | D26: 0 | G26: 0 | V26: 5.7 | W26: =IF((C26)>0,(C26)," ") ->  | Y26: 5.7 | AB26: 0 | AE26: 6.3 | AF26: 0 | AH26: 6.3 | AI26: 0 | AJ26: 300x63 LVL | AN26: 360x63 LVL | AW26: E-Splays to LVL Beams
B27: 6 | D27: 0 | G27: 0 | V27: 6 | W27: =IF((C27+AW38)>0,(C27+AW38)," ") ->  | Y27: 6 | AA27: 6 | AB27: 0 | AE27: 6.6 | AF27: 0 | AH27: 6.6 | AI27: 0
B28: l/m | C28: =SUM(D9:D27) -> 0 | F28: =SUM(G9:G27) -> 0 | N28: =SUM(O9:O27) -> 0 | T28: =SUM(U9:U27) -> 0 | U28: 0 | V28: l/m | W28: =SUM(X9:X27) -> 0 | Y28: l/m | Z28: =SUM(AB9:AB27) -> 0 | AC28: =SUM(AF3:AF27) -> 0 | AE28: l/m | AG28: =SUM(AI3:AI27) -> 0 | AH28: l/m | AL28: =AJ28*AK28 -> 0 | AP28: =AN28*AO28 -> 0 | AT28: =AR28*AS28 -> 0 | AW28: =SUM(AM15:AM24,AQ15:AQ24,AV15:AV24,AM28:AM35,AQ28:AQ35,AV28:AV35) -> 0 | BA28: No
B29: 6.3 | D29: =B29*C29 -> 0 | P29: 240x45 | V29: 6.3 | W29: =IF((C29+AW39)>0,(C29+AW39)," ") ->  | Y29: 6.3 | AB29: 0 | AC29: 63x63 Struts | AG29: 63x63 Struts | AL29: =AJ29*AK29 -> 0 | AP29: =AN29*AO29 -> 0 | AT29: =AR29*AS29 -> 0
B30: 6.6 | D30: 0 | P30: Hangers | V30: 6.6 | W30: =IF((C30+AW40)>0,(C30+AW40)," ") ->  | Y30: 6.6 | AB30: 0 | AC30: 3.6m | AG30: 4.5m | AL30: =AJ30*AK30 -> 0 | AP30: =AN30*AO30 -> 0 | AT30: =AR30*AS30 -> 0 | AW30: 120x35 Collar Ties
B31: 6.9 | D31: 0 | I31: 6.6 | K31: 0 | M31: 0 | R31: 4.2 | S31: =P31*R31 -> 0 | V31: 6.9 | Y31: 6.9 | AB31: 0 | AC31: =CEILING((((F28+AC28)/1.5)*1.5)/3.6,1) -> 0 | AD31: say:- | AE31: say:- | AG31: =CEILING((((AG28)/1.5)*2.1)/4.5,1) -> 0 | AH31: say:- | AL31: 0 | AP31: =AO31*AN31 -> 0 | AT31: =AS31*AR31 -> 0
B32: 7.2 | D32: 0 | I32: 7.2 | K32: 0 | M32: 0 | R32: 4.5 | S32: =P32*R32 -> 0 | V32: 7.2 | Y32: 7.2 | AB32: 0 | AC32: =IF(AC31>0,AC31, "") ->  | AD32: 3.6 | AE32: 3.6 | AF32: =IF(AC31>0,AC32*AE32, "0.0") -> 0.0 | AG32: =IF(AG31>0,AG31+1, "") ->  | AH32: 4.5 | AI32: =IF(AG31>0,AG32*AH32, "0.0") -> 0.0 | AL32: 0 | AP32: =AO32*AN32 -> 0 | AT32: =AS32*AR32 -> 0 | AX32: 2.4 | AY32: =AW32*AX32 -> 0 | BB32: =AZ32*BA32 -> 0
B33: 7.5 | D33: 0 | I33: 7.8 | K33: 0 | M33: =I33*L33 -> 0 | R33: 4.8 | S33: =P33*R33 -> 0 | V33: 7.5 | Y33: 7.5 | AB33: 0 | AC33: =AF32 -> 0.0 | AD33: l/m | AE33: l/m | AG33: =AI32 -> 0.0 | AH33: l/m | AL33: 0 | AP33: =AO33*AN33 -> 0 | AT33: =AS33*AR33 -> 0 | AX33: 3 | AY33: 0 | BB33: =AZ33*BA33 -> 0
B34: 7.8 | D34: 0 | I34: 8.4 | K34: 0 | M34: =I34*L34 -> 0 | R34: 5.1 | S34: =P34*R34 -> 0 | V34: 7.8 | Y34: 7.8 | AB34: 0 | AC34: 280x30 LOSP Barge Board | AG34: 70x45 Roof Battens | AL34: 0 | AP34: =AO34*AN34 -> 0 | AT34: =AS34*AR34 -> 0 | AX34: 3.6 | AY34: 0 | BB34: =AZ34*BA34 -> 0
B35: 8.1 | D35: 0 | I35: 9 | K35: 0 | M35: 0 | R35: 5.4 | S35: =P35*R35 -> 0 | V35: 8.1 | Y35: 8.1 | AB35: 0 | AL35: 0 | AP35: =AO35*AN35 -> 0 | AT35: =AS35*AR35 -> 0 | AX35: 4.2 | AY35: 0 | BB35: =BA35*AZ35 -> 0
B36: 8.4 | D36: 0 | I36: 9.6 | K36: 0 | M36: 0 | P36: =SUM(S31:S35) -> 0 | R36: l/m | V36: 8.4 | Y36: 8.4 | AB36: 0 | AF36: =AC36*AE36 -> 0 | AG36: =BG15 -> 0 | AH36: 5.4 | AI36: =AG36*AH36 -> 0 | AJ36: =SUM(AL28:AL35) -> 0 | AK36: l/m | AN36: =SUM(AP28:AP35) -> 0 | AO36: l/m | AR36: =SUM(AT28:AT35) -> 0 | AS36: l/m | AX36: 4.8 | AY36: 0 | BB36: 0
B37: 8.7 | D37: 0 | I37: 10.2 | K37: 0 | M37: 0 | V37: 8.7 | Y37: 8.7 | AB37: 0 | AF37: =AC37*AE37 -> 0 | AI37: =AG37*AH37 -> 0 | AJ37: 90x35 Wall Plate | AL37: l/m | AN37: 150x25 H3 CCA | AP37: l/m | AR37: Perimeter | AT37: l/m | AX37: 5.4 | AY37: 0 | BB37: 0
B38: 9 | D38: 0 | I38: 10.8 | K38: 0 | M38: 0 | V38: 9 | Y38: 9 | AB38: 0 | AF38: =AC38*AE38 -> 0 | AI38: =AG38*AH38 -> 0 | AR38: Batten 70x35 | AX38: 6 | AY38: 0 | BB38: 0
B39: 9.3 | D39: 0 | I39: 11.4 | K39: 0 | M39: 0 | V39: 9.3 | Y39: 9.3 | AB39: 0 | AF39: =AC39*AE39 -> 0 | AI39: =AG39*AH39 -> 0 | AJ39: =(ROUNDUP((('Facia & Steel & Roof Hardware'!I9+'Facia & Steel & Roof Hardware'!P9+'Facia & Steel & Roof Hardware'!W9+'Facia & Steel & Roof Hardware'!I22+'Facia & Steel & Roof Hardware'!P22+'Facia & Steel & Roof Hardware'!W22)+'Main Details'!$D$37+'Main Details'!$D$38+'Internal deductions & int walls'!R29+'Internal deductions & int walls'!AD32+'Internal deductions & int walls'!#REF!+'Concrete & Reo'!C17)/6,0)) ->  | AK39: say:- | AP39: =AN39*AO39 -> 0 | AS39: 6 | AT39: =AR39*AS39 -> 0 | AX39: 6.3 | AY39: 0 | BB39: 0
B40: l/m | C40: =SUM(D29:D39) -> 0 | I40: l/m | J40: =SUM(K31:K39) -> 0 | L40: =SUM(M31:M39) -> 0 | N40: =SUM(O29:O39) -> 0 | T40: =SUM(U29:U39) -> 0 | V40: l/m | W40: =SUM(X29:X39) -> 0 | Y40: l/m | AC40: =SUM(AF36:AF39) -> 0 | AE40: l/m | AG40: =SUM(AI36:AI39) -> 0 | AH40: l/m | AJ40: =SUM(AJ39,1)+10 ->  | AK40: 6 | AL40: =AJ40*AK40 ->  | AP40: =AN40*AO40 -> 0 | AT40: =AR40*AS40 -> 0 | AX40: 6.6 | AY40: 0 | BB40: 0
AJ41: =AL39+AL40 ->  | AK41: l/m | AN41: =AP39+AP40 -> 0 | AO41: l/m | AR41: =AT39+AT40 -> 0 | AS41: l/m | AW41: =SUM(AY32:AY40) -> 0 | AX41: l/m | AZ41: =SUM(BB32:BB40) -> 0 | BA41: l/m

Sheet Elec,Ceiling,Plaster
A1: ='Main Details'!B2 -> QUANTITY SHEET FOR EASY START HOMES | T1: PG 10
A2: ='Main Details'!D6 -> 0
B4: SYNERGY No.
B5: ELECTRICAL | H5: CEILINGS
B7: Switch Plate Colour (select) | H7: DDT EXT PERIMETER: | I7: ='Main Details'!D37 -> 0 | J7: =(('Main Details'!D37-'Main Details'!D45)*'Main Details'!D40)+('Main Details'!D45*'Main Details'!D46) -> 0
B8: Weatherproof Light Point | F8: No | H8: DDT INT PERIMETER: | I8: ='Main Details'!D38*0.09 -> 0 | J8: =(('Main Details'!D38+'Internal deductions & int walls'!R29)*0.09+('Internal deductions & int walls'!$AD$32*0.11)) -> 0 | M8: =SUM(I14,I16,I18) -> 0 | N8: Flat e/o Int + Flat Ext
B9: LED Downlight | F9: No | H9: Slab Area: | I9: ='Main Details'!D33 -> 0 | J9: =J7+J8 -> 0 | L9: = | M9: =I9-J9 -> 0 | N9: Ceiling Area Int Flat
B10: Light Point | F10: No | H10: Total Raking Int & Ext | I10: =SUM(I12:I13,I15) -> 0 | J10: m2 | M10: =SUM(I12:I13) -> 0 | N10: DDT Raking area (Int Only)
B11: Shades And Globes | F11: No | H11: Total e/o 13mm Gypr | I11: =SUM(I15:I17) -> 0 | J11: m2 | L11: TOTAL | M11: =((M9+M8))-M10-K16 -> 0 | N11: m2 Flat Ceiling (Int & Ext)
B12: Wall Light | F12: No | H12: Raking Ceilings INT | J12: m2 | L12: l/m | M12: Steel Frame Roof Coffered Ceiling E/O
B13: Plug Base | F13: No | H13: Raking Ceilings INT | J13: m2 | L13: m2 | M13: Insulation to RAKING ceilings / Bulkheads
B14: LED Linear Batten | F14: No | H14: E/O Flat Ceilings INT | J14: m2 | L14: m2
B15: Motion Sensor Light | F15: No | H15: Raking (13mm) EXT | J15: m2 | L15: m2 | Q15: =('Main Details'!D37-'Main Details'!D45+'Internal deductions & int walls'!R29)*K38 -> 0
B16: Install Feature Light Fixture | F16: No | H16: Flat (13mm) EXT | J16: m2 | L16: m2 | Q16: =Q15-'Internal deductions & int walls'!E43-Lintels.windows!G42-'Main Details'!E50+(K20) -> 0
H17: Vertical (13mm) EXT | J17: m2 | L17: m2
B18: Smoke Detector | F18: No | H18: Flat (10mm) EXT | J18: m2 | L18: l/m | Q18: No
B19: Smoke Detector Interconnection | F19: No | H19: Insulation to FLAT Ceilings | K19: =IF(P19="Yes",Q16,"") ->  | L19: m2 | M19: R2.0 Wall Batts | P19: No | Q19: Yes
H20: Garage Area | I20: ='Main Details'!D34 -> 0 | J20: m2 | L20: m2 | M20: Additional Wall Height -E/O
B21: Exhaust Fan | F21: No | H21: P/board Porch | J21: m2
B22: Fan, Light, Heat Combo | F22: No | H22: Durasheet Porch | J22: m2
B23: Ceiling Fan | F23: No | H23: P/board Alfresco | J23: m2
B24: Ceiling Fan With Light | F24: No | H24: House Nett | I24: =I25-I23-I21-I20 -> 0 | J24: m2 | Q24: Ext/Int Wall Intersections L/m
H25: Gross Insulation Area | I25: =(('Main Details'!$D$33+'Main Details'!$D$34)+I14+I15+I16)-K13-Q32-Q34 -> 0 | J25: m2 | Q25: ='Main Details'!D37+('Main Details'!D38*2)+('Internal deductions & int walls'!R29*2)-(M35*0.09) -> 0
B26: 2 Way Switch | F26: No | H26: Ddt Garage if Separate | J26: m2 | Q26: 1
B27: 3 Way Switch | F27: No | H27: Total Nett Insulation | I27: =SUM(I25-I26)+I22 -> 0 | J27: m2
B28: Dimmer Switch
F29: No
B30: Single GPO | F30: No
B31: Double GPO | F31: No | Q31: EXT PER CAV WALLS (INSUL)
B32: Double GPO With USB | F32: No | I32: PLASTERING | Q32: ='Internal Brickwork'!C8*'Main Details'!D40 -> 0
B33: Weatherproof Single GPO | F33: No | Q33: GARAGE WALL DDT (INSUL)
B34: Weatherproof Double GPO | F34: No | Q34: =('Main Details'!D45+'Concrete & Reo'!C17)*'Main Details'!D46 -> 0
I35: Internal Wall Intersections | L35: = | N35: No
B37: Wall Oven Connection | F37: No | K37: Length all Plastered Walls | L37: = | M37: =Q25 -> 0 | N37: lm
B38: Induction Hotplate Connection | F38: No | I38: Plaster To Ceiling = | K38: 2.4 | L38: = | M38: =M37*K38 -> 0 | N38: m2
B39: Solar HWU Connection | F39: No | I39: Deduct Int Face To 28c | L39: = | M39: =SUM('Internal Brickwork'!Y15:Y26) -> 0 | N39: m2
B40: Heat Pump Connection | F40: No | I40: Garage/House Wall Over 28c | L40: = | N40: m2
B42: 20mm Conduit | F42: No | I42: Internal Wall Painting | L42: = | M42: =M38-Tiling!B29 -> 0 | N42: m2
B43: 20mm Conduit With Blank Plate | F43: L/m | Q43: RENDER RATE WITH FACE BRICKS
B44: 25mm Conduit | F44: No | I44: Low Walls | L44: = | M44: =SUM('Internal Brickwork'!G22:G26,'Internal Brickwork'!M26:M28)*2 -> 0 | N44: m2 | R44: 2C
B45: 25mm Conduit With Blank Plate | F45: L/m | I45: (extra) | L45: = | N45: m2 | Q45: =M53/2.314 -> 0 | R45: 1C
B46: 32mm Conduit | F46: No | I46: Deduct Over Lintels Below 28c | L46: = | M46: =SUM('Internal Brickwork'!M20) -> 0 | N46: m2
B47: Fuse Box | F47: Item | I47: Deduct Over Lintels Above 28c | L47: = | N47: m2
B48: Remote Meter | F48: Item | I48: Deduct Drywall Lining (Plaster Only) | L48: = | M48: =K15 -> 0 | N48: m2
B49: Power Run Single Phase | F49: L/m | I49: Plaster Up To 31c | L49: = | M49: =SUM(M38,M44:M45)-M39-M46-M48+M40 -> 0 | N49: m2 | Q49: 1m3 = 75m2
B50: Power Run Three Phase | F50: L/m | I50: Plaster Over 31c | L50: = | M50: =SUM('Internal Brickwork'!AA10,'Internal Brickwork'!AA13)-M47 -> 0 | N50: m2 | Q50: 1m3 = 50m2
B51: Comms Run <10m | F51: No
B52: Comms Run >10m | F52: lm | I52: External Render Total | L52: = | M52: =('External Brickwork'!Y42+'External Brickwork'!AE42)-'External Brickwork'!Y41+M53+M54 -> 0 | N52: m2
B53: Comms Run Separate Trench | F53: lm | I53: 1c Face Brick Rendered | L53: = | N53: m2
I54: 2c Face Brick Rendered | L54: = | N54: m2
B55: Intelligent Homes Items Quote | F55: Y/N | I55: External Band / Corbel | L55: = | N55: L/m
B56: 3 Point Pack | F56: No | I56: Int. Plaster Beads | L56: = | M56: M2 Rate as above | N56: No
B57: Extra C1 Points | F57: No | I57: Ext. Render beads | L57: = | N57: No
B58: TV Splitter for up to 3 C1 points | F58: No | I58: Int Plaster Sand | L58: = | M58: =SUM(M49:M50)*0.02 -> 0 | N58: m3
B59: Network Point | F59: No | I59: Ext Plaster Sand | L59: = | M59: =ROUNDUP(M52*0.02,0) -> 0 | N59: m3
B60: Antenna | F60: No
B62: Laminate (select) | C62: Benchtops (select)
A63: e/o Feature Doors (select)
B64: Laminex | C64: Tightwrap***
A65: e/o Contour Doors | B65: Formica | C65: Tightwrap 600mm 1 Side | I65: TV Splitter (select)
C66: Tightwrap 650mm 1 Side
A67: e/o Vinyl Wrap Doors | C67: Tightwrap 750mm 1 Side | I67: 2 Way TV Splitter
C68: Tightwrap 650mm 2 Side | I68: 3 Way TV Splitter
A69: e/o Colourtech Doors | C69: Tightwrap 750mm 2 Side | I69: 4 Way TV Splitter
C70: Tightwrap 900mm 2 Side | H70: Switch Plate Colour (select)
A71: e/o Postform Doors | C71: Tightwrap 950mm 2 Side
H72: B/ Alum w/- White Switch
C73: Tightform*** | H73: B/ Alum w/- Black Switch
A74: e/o Squareform Doors | C74: Tightform 600mm 1 Side | H74: White
C75: Tightform 650mm 1 Side | H75: As Per Clipspec
A76: e/o ABS Doors | C76: Tightform 750mm 1 Side | H76: HPM excel life white
C77: Tightform 650mm 2 Side | H77: HPM excel life urban grey
C78: Tightform 750mm 2 Side
A79: e/o Set Feat Drawers (select) | C79: Tightform 900mm 2 Side
C80: Tightform 950mm 2 Side
A81: e/o Set Contour Drawers
C82: Square Style***
A83: e/o Set Vinyl Wrap Drawers | C83: Square Style 600mm 1 Side
C84: Square Style 650mm 1 Side
A85: e/o Set Colourtech Drawers | C85: Square Style 750mm 1 Side
C86: Square Style 650mm 2 Side
A87: e/o Set Postform Drawers | C87: Square Style 750mm 2 Side
C88: Square Style 900mm 2 Side
A89: e/o Set Squareform Drawers | C89: Square Style 950mm 2 Side
C91: Postform***
C92: Postform 600mm 1 Side
C93: Postform 650mm 1 Side
A94: e/o Feat Pot Drawers (select) | C94: Postform 750mm 1 Side
C95: Postform 650mm 2 Side
A96: e/o Contour Pot Drawers | C96: Postform 750mm 2 Side
C97: Postform 900mm 2 Side
A98: e/o Vinyl Wrap Pot Drawers | C98: Postform 950mm 2 Side
A100: e/o Colourtech Pot Drawers | C100: Polyform***
C101: Polyform 600mm 1 Side
A102: e/o Postform Pot Drawers | C102: Polyform 750mm 1 Side
C103: Polyform 750mm 2 Side
A104: e/o Squareform Pot Drawers | C104: Polyform 900mm 2 Side
A106: e/o ABS Pot Drawers
C107: Vanity Benchtops (select)
C109: Tightwrap Vanity Tops
C110: Tightform Vanity Tops
C111: Squarestyle Vanity Tops
C112: Postform Vanity Tops
C113: Polyform Vanity Tops
C114: Std. Laminated Vanity Tops
C117: Cupboards (select)
C119: Bench Cupboards 600mm
C120: Bench Cupboards 650mm
C121: Bench Cupboards 700mm
C124: Island Cupboards (select)
C126: Island Cupboards 600mm
C127: Island Cupboards 650mm
C130: Stone Benchtops (select)
C132: Freestyle Benchtops
C133: Essastone Benchtops
C134: Granite Benchtops

Sheet FIxing Carpentry & Moulding
B2: ='Main Details'!B2 -> QUANTITY SHEET FOR EASY START HOMES | AQ2: PG 11
B3: ='Main Details'!D6 -> 0
B4: INTERNAL MOULDINGS | AC4: SHELVING | AJ4: 600mm Shelves
AJ5: 300mm Shelves
B6: ROOM: | L6: 175x30 | O6: 19x19 | R6: 105/80x19 | U6: 30mm Design | X6: EXTRA HARDWARE ITEMS | AC6: ROOM | AD6: 450mm 16mm | AF6: 600mm 16mm | AH6: 300mm 16mm | AJ6: 67x18mm | AM6: 40x18mm | AP6: 19mm Chrome
D7: SKIRTING | F7: NOSING | I7: SCOTIA | L7: CAPPING | O7: SQ BEAD | R7: G/batten | U7: Pine Scotia | AD7: Melamine | AF7: Melamine | AH7: Melamine | AJ7: MDF | AM7: MDF Batten | AP7: Rail
C8: =D8*E8 -> 0 | E8: 0.9 | F8: =IF(G8=" "," ",1) ->  | G8: =IF(Lintels.windows!E9="Y",((INT(((Lintels.windows!K9*100)+30)/30)*30)/100)," ") ->  | H8: =IF(G8=" "," ",F8*G8) ->  | I8: =IF(F8>0,F8," ") ->  | J8: =IF(G8>0,G8," ") ->  | K8: =IF(AND(G8=" ")," ",I8*J8) ->  | M8: 0.9 | N8: =L8*M8 -> 0 | O8: =IF(L8>0,L8*2," ") ->  | P8: =IF(M8>0,M8," ") -> 0.9 | Q8: =IF(AND(L8>0,M8>0),O8*P8," ") ->  | T8: =R8*S8 -> 0 | U8: =IF(AND(B8>0,ROUNDUP(B8/V8,0)-B8/V8<=1),ROUNDUP(B8/V8,0)+1,ROUNDUP(B8/V8,0)) -> 0 | V8: 5.4 | W8: =U8*V8 -> 0 | X8: Trico Roller Catch | AA8: No | AC8: PANTRY | AE8: 3600x450 | AG8: 3600x600 | AI8: 3600x300 | AL8: =AJ8*AK8 -> 0 | AO8: =AM8*AN8 -> 0 | AR8: =AP8*AQ8 -> 0
B9: =IF(Lintels.windows!E10="Y",Lintels.windows!B10,"") ->  | C9: =D9*E9 -> 0 | E9: 1.2 | F9: =IF(G9=" "," ",1) ->  | G9: =IF(Lintels.windows!E10="Y",((INT(((Lintels.windows!K10*100)+30)/30)*30)/100)," ") ->  | I9: =IF(F9>0,F9," ") ->  | J9: =IF(G9>0,G9," ") ->  | M9: 1.2 | N9: =L9*M9 -> 0 | O9: =IF(L9>0,L9*2," ") ->  | P9: 1.2 | Q9: =IF(AND(L9>0,M9>0),O9*P9," ") ->  | T9: 0 | W9: =U9*V9 -> 0 | AE9: 2400x450 | AG9: 2400x600 | AI9: 2400x300 | AL9: =AJ9*AK9 -> 0 | AO9: =AM9*AN9 -> 0 | AR9: =AP9*AQ9 -> 0
B10: =IF(Lintels.windows!E11="Y",Lintels.windows!B11,"") ->  | C10: =D10*E10 -> 0 | E10: 1.5 | G10: =IF(Lintels.windows!E11="Y",((INT(((Lintels.windows!K11*100)+30)/30)*30)/100)," ") ->  | I10: =IF(F10>0,F10," ") ->  | J10: =IF(G10>0,G10," ") ->  | M10: 1.5 | N10: =L10*L10 -> 0 | O10: =IF(L10>0,L10*2," ") ->  | P10: 1.5 | Q10: =IF(AND(L10>0,M10>0),O10*P10," ") ->  | T10: =R10*S10 -> 0 | W10: =U10*V10 -> 0 | X10: Pelmet | AA10: No | AC10: nett l/m shelving = | AE10: 1800x450 | AG10: 1800x600 | AI10: 1800x300 | AL10: =AJ10*AK10 -> 0 | AO10: =AM10*AN10 -> 0 | AR10: =AP10*AQ10 -> 0
B11: =IF(Lintels.windows!E12="Y",Lintels.windows!B12,"") ->  | C11: =D11*E11 -> 0 | E11: 1.8 | G11: =IF(Lintels.windows!E11="Y",((INT(((Lintels.windows!K11*100)+30)/30)*30)/100)," ") ->  | M11: 1.8 | N11: =L11*M11 -> 0 | P11: 1.8 | Q11: =IF(AND(L11>0,M11>0),O11*P11," ") ->  | T11: 0 | W11: 0 | X11: Floor Guide | AA11: No | AD11: LM | AL11: 0 | AO11: 0 | AR11: 0
B12: =IF(Lintels.windows!E13="Y",Lintels.windows!B13,"") ->  | C12: 0 | E12: 2.1 | G12: =IF(Lintels.windows!E12="Y",((INT(((Lintels.windows!K12*100)+30)/30)*30)/100)," ") ->  | M12: 2.1 | N12: 0 | P12: 2.1 | T12: 0 | W12: 0 | X12: Track | AA12: No | AC12: LINEN | AE12: 3600x450 | AG12: 3600x600 | AI12: 3600x300 | AL12: 0 | AO12: 0 | AR12: 0
C13: 0 | E13: 2.4 | G13: =IF(Lintels.windows!E13="Y",((INT(((Lintels.windows!K13*100)+30)/30)*30)/100)," ") ->  | M13: 2.4 | N13: 0 | P13: 2.4 | T13: 0 | W13: 0 | AE13: 2400x450 | AG13: 2400x600 | AI13: 2400x300 | AL13: 0 | AO13: 0 | AR13: 0
B14: =IF(Lintels.windows!E15="Y",Lintels.windows!B15,"") ->  | C14: 0 | E14: 2.7 | G14: =IF(Lintels.windows!E14="Y",((INT(((Lintels.windows!K14*100)+30)/30)*30)/100)," ") ->  | M14: 2.7 | N14: 0 | P14: 2.7 | R14: L/M | S14: =SUM(T8:T13) -> 0 | U14: L/M | V14: =SUM(W8:W13) -> 0 | X14: (Tiled Roof) 3.6m Scribe | AA14: No | AC14: nett l/m shelving = | AE14: 1800x450 | AG14: 1800x600 | AI14: 1800x300 | AL14: 0 | AO14: 0 | AR14: 0
B15: =IF(Lintels.windows!E16="Y",Lintels.windows!B16,"") ->  | C15: 0 | E15: 3 | G15: =IF(Lintels.windows!E15="Y",((INT(((Lintels.windows!K15*100)+30)/30)*30)/100)," ") ->  | M15: 3 | N15: 0 | P15: 3 | R15: 13x13 | U15: 42 x 18 | AD15: LM | AL15: 0 | AO15: 0 | AR15: 0
B16: =IF(Lintels.windows!E17="Y",Lintels.windows!B17,"") ->  | C16: 0 | E16: 3.3 | G16: =IF(Lintels.windows!E16="Y",((INT(((Lintels.windows!K16*100)+30)/30)*30)/100)," ") ->  | M16: 3.3 | N16: 0 | P16: 3.3 | R16: Jh Quad | U16: DBN Arch. | X16: Ball Bearing Hinges | AA16: No | AC16: BROOM | AE16: 3600x450 | AG16: 3600x600 | AI16: 3600x300 | AL16: 0 | AO16: 0 | AR16: 0
B17: =IF(Lintels.windows!E18="Y",Lintels.windows!B18,"") ->  | C17: 0 | E17: 3.6 | G17: =IF(Lintels.windows!E17="Y",((INT(((Lintels.windows!K17*100)+30)/30)*30)/100)," ") ->  | M17: 3.6 | N17: 0 | P17: 3.6 | T17: =R17*S17 -> 0 | V17: 5.4 | W17: =U17*V17 -> 0 | AE17: 2400x450 | AG17: 2400x600 | AI17: 2400x300 | AL17: 0 | AO17: 0 | AR17: 0
B18: =IF(Lintels.windows!E19="Y",Lintels.windows!B19,"") ->  | C18: 0 | E18: 3.9 | G18: =IF(Lintels.windows!E18="Y",((INT(((Lintels.windows!K18*100)+30)/30)*30)/100)," ") ->  | M18: 3.9 | N18: 0 | P18: 3.9 | T18: =R18*S18 -> 0 | W18: =U18*V18 -> 0 | AC18: nett l/m shelving = | AE18: 1800x450 | AG18: 1800x600 | AI18: 1800x300 | AL18: 0 | AO18: 0 | AR18: 0
B19: =IF(Lintels.windows!E20="Y",Lintels.windows!B20,"") ->  | C19: 0 | E19: 4.2 | G19: =IF(Lintels.windows!E19="Y",((INT(((Lintels.windows!K19*100)+30)/30)*30)/100)," ") ->  | M19: 4.2 | N19: 0 | P19: 4.2 | T19: =R19*S19 -> 0 | W19: =U19*V19 -> 0 | X19: Finial (select) | AA19: No | AD19: LM | AL19: 0 | AO19: 0 | AR19: 0
B20: =IF(Lintels.windows!E21="Y",Lintels.windows!B21,"") ->  | C20: 0 | E20: 4.5 | G20: =IF(Lintels.windows!E20="Y",((INT(((Lintels.windows!K20*100)+30)/30)*30)/100)," ") ->  | M20: 4.5 | N20: 0 | P20: 4.5 | T20: =R20*S20 -> 0 | W20: =U20*V20 -> 0 | AC20: BED 1 | AE20: 3600x450 | AG20: 3600x600 | AI20: 3600x300 | AL20: 0 | AO20: 0 | AR20: 0
B21: =IF(Lintels.windows!E22="Y",Lintels.windows!B22,"") ->  | C21: 0 | E21: 4.8 | G21: =IF(Lintels.windows!E21="Y",((INT(((Lintels.windows!K21*100)+30)/30)*30)/100)," ") ->  | M21: 4.8 | N21: 0 | P21: 4.8 | R21: L/M | S21: =SUM(T17:T20) -> 0 | U21: L/M | V21: =SUM(W17:W209) -> 0 | AE21: 2400x450 | AG21: 2400x600 | AI21: 2400x300 | AL21: 0 | AO21: 0 | AR21: 0
B22: =IF(Lintels.windows!E23="Y",Lintels.windows!B23,"") ->  | C22: 0 | E22: 5.1 | G22: =IF(Lintels.windows!E22="Y",((INT(((Lintels.windows!K22*100)+30)/30)*30)/100)," ") ->  | M22: 5.1 | N22: 0 | P22: 5.1 | R22: Mdf D/Arch | U22: Pine Arch | X22: EXTRA FIXER ITEMS | AC22: nett l/m shelving = | AE22: 1800x450 | AG22: 1800x600 | AI22: 1800x300 | AL22: 0 | AO22: 0 | AR22: 0
B23: =IF(Lintels.windows!E24="Y",Lintels.windows!B24,"") ->  | C23: 0 | E23: 5.4 | G23: =IF(Lintels.windows!E23="Y",((INT(((Lintels.windows!K23*100)+30)/30)*30)/100)," ") ->  | M23: 5.4 | N23: 0 | P23: 5.4 | AD23: LM | AL23: 0 | AO23: 0 | AR23: 0
B24: =IF(Lintels.windows!E25="Y",Lintels.windows!B25,"") ->  | C24: 0 | E24: 5.7 | F24: =IF(G24=" "," ",1) ->  | G24: =IF(Lintels.windows!E24="Y",((INT(((Lintels.windows!K24*100)+30)/30)*30)/100)," ") ->  | M24: 5.7 | N24: 0 | P24: 5.7 | S24: 5.4 | T24: =R24*S24 -> 0 | V24: 5.4 | W24: =U24*V24 -> 0 | X24: Post Beads | AA24: No | AC24: BED 2 | AE24: 3600x450 | AG24: 3600x600 | AI24: 3600x300 | AL24: 0 | AO24: 0 | AR24: 0
B25: =IF(Lintels.windows!E26="Y",Lintels.windows!B26,"") ->  | C25: 0 | E25: 6 | F25: =IF(G25=" "," ",1) ->  | G25: =IF(Lintels.windows!E25="Y",((INT(((Lintels.windows!K25*100)+30)/30)*30)/100)," ") ->  | M25: 6 | N25: 0 | P25: 6 | T25: =R25*S25 -> 0 | W25: =U25*V25 -> 0 | AE25: 2400x450 | AG25: 2400x600 | AI25: 2400x300 | AL25: 0 | AO25: 0 | AR25: 0
B26: =IF(Lintels.windows!E27="Y",Lintels.windows!B27,"") ->  | G26: =IF(Lintels.windows!E26="Y",((INT(((Lintels.windows!K26*100)+30)/30)*30)/100)," ") ->  | N26: 0 | T26: =R26*S26 -> 0 | W26: =U26*V26 -> 0 | X26: Wet Area Fixings | AA26: No | AC26: nett l/m shelving = | AE26: 1800x450 | AG26: 1800x600 | AI26: 1800x300 | AL26: 0 | AO26: 0 | AR26: 0
B27: =IF(Lintels.windows!E28="Y",Lintels.windows!B28,"") ->  | G27: =IF(Lintels.windows!E27="Y",((INT(((Lintels.windows!K27*100)+30)/30)*30)/100)," ") ->  | N27: 0 | R27: L/M | S27: =SUM(T24:T26) -> 0 | U27: L/M | V27: =SUM(W24:W26) -> 0 | AD27: LM | AL27: 0 | AO27: 0 | AR27: 0
B28: =IF(Lintels.windows!E29="Y",Lintels.windows!B29,"") ->  | G28: =IF(Lintels.windows!E27="Y",((INT(((Lintels.windows!K27*100)+30)/30)*30)/100)," ") ->  | N28: 0 | R28: 42x10 | U28: 86x10 | AC28: BED 3 | AE28: 3600x450 | AG28: 3600x600 | AI28: 3600x300 | AL28: 0 | AO28: 0 | AR28: 0
B29: =IF(Lintels.windows!E30="Y",Lintels.windows!B30,"") ->  | G29: =IF(Lintels.windows!E28="Y",((INT(((Lintels.windows!K28*100)+30)/30)*30)/100)," ") ->  | N29: 0 | R29: Des Pine Trim | U29: INT. Cedar | AE29: 2400x450 | AG29: 2400x600 | AI29: 2400x300 | AL29: 0 | AO29: 0 | AR29: 0
G30: =IF(Lintels.windows!E29="Y",((INT(((Lintels.windows!K29*100)+30)/30)*30)/100)," ") ->  | N30: 0 | R30: =IF(AND(B30>0,ROUNDUP(B30/S30,0)-B30/S30<=1),ROUNDUP(B30/S30,0)+1,ROUNDUP(B30/S30,0)) -> 0 | S30: 5.4 | T30: =R30*S30 -> 0 | W30: =U30*V30 -> 0 | AC30: nett l/m shelving = | AE30: 1800x450 | AG30: 1800x600 | AI30: 1800x300 | AL30: 0 | AO30: 0 | AR30: 0
B31: =IF(Lintels.windows!E32="Y",Lintels.windows!B32,"") ->  | G31: =IF(Lintels.windows!E30="Y",((INT(((Lintels.windows!K30*100)+30)/30)*30)/100)," ") ->  | N31: 0 | T31: =R31*S31 -> 0 | W31: 0 | X31: CAVITY SLIDERS | AD31: LM | AL31: 0 | AO31: 0 | AR31: 0
B32: =IF(Lintels.windows!E33="Y",Lintels.windows!B33,"") ->  | G32: =IF(Lintels.windows!E31="Y",((INT(((Lintels.windows!K31*100)+30)/30)*30)/100)," ") ->  | N32: 0 | R32: L/M | S32: =SUM(T30:T31) -> 0 | U32: L/M | V32: =SUM(W30:W31) -> 0 | AC32: BED 4 | AE32: 3600x450 | AG32: 3600x600 | AI32: 3600x300 | AL32: 0 | AO32: 0 | AR32: 0
B33: =IF(Lintels.windows!E34="Y",Lintels.windows!B34,"") ->  | G33: =IF(Lintels.windows!E32="Y",((INT(((Lintels.windows!K32*100)+30)/30)*30)/100)," ") ->  | N33: 0 | R33: Gable Batten | U33: W/Tex | X33: Single Cavity Slider | AA33: No | AE33: 2400x450 | AG33: 2400x600 | AI33: 2400x300 | AL33: 0 | AO33: 0 | AR33: 0
B34: =IF(Lintels.windows!E35="Y",Lintels.windows!B35,"") ->  | G34: =IF(Lintels.windows!E37="Y",((INT(((Lintels.windows!K37*100)+30)/30)*30)/100)," ") ->  | N34: 0 | R34: 80x30 | U34: Scribe | AC34: nett l/m shelving = | AE34: 1800x450 | AG34: 1800x600 | AI34: 1800x300 | AL34: 0 | AO34: 0 | AR34: 0
B35: =IF(Lintels.windows!E36="Y",Lintels.windows!B36,"") ->  | G35: =IF(Lintels.windows!E38="Y",((INT(((Lintels.windows!K38*100)+30)/30)*30)/100)," ") ->  | N35: 0 | T35: 0 | V35: 3.6 | W35: 0 | X35: Double Cavity Slider | AA35: No | AD35: LM | AL35: 0 | AO35: 0 | AR35: 0
B36: =IF(Lintels.windows!E37="Y",Lintels.windows!B37,"") ->  | G36: =IF(Lintels.windows!E39="Y",((INT(((Lintels.windows!K39*100)+30)/30)*30)/100)," ") ->  | N36: 0 | T36: 0 | W36: 0 | AC36: SHELF RAIL TOTALS: | AJ36: =IF(AL36>0,AL37," ") ->  | AK36: 5.4 | AL36: =SUM(AL8:AL35) -> 0 | AM36: =IF(AO36>0,AO37," ") ->  | AN36: 5.4 | AO36: =SUM(AO8:AO35) -> 0
B37: TOTALS:- | D37: L/M | E37: =IF((SUM(C8:C25))>0,SUM(C8:C25)," ") ->  | F37: L/M | G37: =IF((SUM(H8:H36))>0,SUM(H8:H36)," ") ->  | I37: L/M | J37: =IF((SUM(K8:K36))>0,SUM(K8:K36)," ") ->  | L37: L/M | M37: =IF((SUM(N8:N36))>0,SUM(N8:N36)," ") ->  | O37: L/M | P37: =IF((SUM(Q8:Q36))>0,SUM(Q8:Q36)," ") ->  | R37: L/M | S37: =SUM(T35:T36) -> 0 | U37: L/M | V37: =SUM(W35:W36) -> 0 | AC37: TOTALS: | AD37: =AD32+AD28+AD24+AD20+AD16+AD12+AD8 -> 0 | AE37: 3600x450 | AF37: =AF8+AF12+AF16+AF20+AF24+AF28+AF32 -> 0 | AG37: 3600x600 | AH37: =AH8+AH12+AH16+AH20+AH24+AH28+AH32 -> 0 | AI37: 3600x300 | AJ37: L/m | AK37: =IF(AL37>1,AJ36*AK36," ") ->  | AL37: =ROUNDUP(AL36/5.4,0)+1 -> 1 | AM37: L/m | AN37: =IF(AO37>2,AM36*AN36," ") ->  | AO37: =ROUNDUP(AO36/5.4,0)+2 -> 2 | AP37: L/m | AQ37: =SUM(AR8:AR35) -> 0
AD38: =AD9+AD13+AD17+AD21+AD25+AD29+AD33 -> 0 | AE38: 2400x450 | AF38: =AF9+AF13+AF17+AF21+AF25+AF29+AF33 -> 0 | AG38: 2400x600 | AH38: =AH9+AH13+AH17+AH21+AH25+AH29+AH33 -> 0 | AI38: 2400x300
AD39: =AD10+AD14+AD18+AD22+AD26+AD30+AD34 -> 0 | AE39: 1800x450 | AF39: =AF10+AF14+AF18+AF22+AF26+AF30+AF34 -> 0 | AG39: 1800x600 | AH39: =AH10+AH14+AH18+AH22+AH26+AH30+AH34 -> 0 | AI39: 1800x300 | AJ39: Gallows Bracket | AN39: Pillars= | AQ39: Each
R40: SLIDING LINENS / ROBES | AC40: TOTAL NETT L/M SHELVING = | AE40: =AL36 -> 0 | AJ40: Vertical Shelf | AN40: Ends= | AQ40: Pair/s
B42: ROOM | R42: COLOUR | V42: SIZE | Y42: DESCRIPTION
Y54: Finial (select)
Y55: 1000mm Finial
Y56: 1200mm Finial
Y57: 1500mm Finial

Sheet Lists (hidden)
W1: 1234 | AH1: Provisional Sums and Extras | AK1: TRUE
A2: 2 | B2: 3 | C2: 4 | D2: 5 | E2: 6 | F2: 7 | G2: 8 | H2: 9 | I2: 10 | J2: 11 | K2: 12 | L2: 13 | M2: 14 | N2: 15 | O2: 16 | P2: 17 | T2: 1 | V2: 1 | W2: 2 | Y2: 1 | Z2: 2 | AA2: 3 | AC2: 1 | AD2: 2 | AE2: 3 | AF2: 4 | AH2: cost centre | AI2: desc | AJ2: value | AK2: # or UOM | AL2: 5
A3: Item Code | B3: Description | C3: Extra Description | D3: Supplier's Code | E3: Product Cat | F3: Prod Group | G3: Cost Centre | H3: User Code | I3: Sell UOM | J3: Purch UOM | K3: Vendor | L3: Sort Code | M3: Bin No | N3: Drawing No. | O3: Active | P3: Supplier Part Numbers | Q3: Column2 | R3: Column3 | V3: Description | W3: Item Code
A4: 010-010-100100 | B4: SURVEYING | C4: AS PER QUOTE | E4: CO | F4: CO | G4: 10 | H4: M | I4: QT | J4: QT | N4: SURVEYS-0001 | O4: Y | Q4: =SURVEYORS[[#This Row],[Item Code]] -> 010-010-100100 | R4: =CONCATENATE(SURVEYORS[[#This Row],[Description]], " ",#REF!) ->  | T4: BRAD ROCKE | V4: N12 RE-ENTRY BAR 1.5m | W4: 110-200-100100 | Y4: 0.935 | Z4: MIDLAND FASTWALL 935mm | AA4: 130-390-100100 | AC4: =CONCATENATE(AD4," - ",AE4) -> VINYL ROBE - 2 DOOR - 1200mm W x 2440mm H | AD4: VINYL ROBE | AE4: 2 DOOR - 1200mm W x 2440mm H | AF4: 420-100-100400 | AN4: CONC | AO4: DISC 1 | AP4: DISC 2 | AQ4: SHOWER SCREENS | AR4: IMF | AS4: SIDES
A5: 010-100-100100 | B5: C1 CONTOURS VACANT (NORMAL) | C5: <1012 M2 | E5: CO | F5: CO | G5: 10 | H5: S | I5: IT | J5: IT | N5: SURVEYS-1020 | O5: Y | Q5: =SURVEYORS[[#This Row],[Item Code]] -> 010-100-100100 | R5: =CONCATENATE(SURVEYORS[[#This Row],[Description]], " ",#REF!) ->  | T5: BILLY MOI | V5: N12 RE-ENTRY BAR 2.0m | W5: 110-200-100200 | Y5: 1.25 | Z5: MIDLAND FASTWALL 1250mm | AA5: 130-390-100200 | AC5: =CONCATENATE(AD5," - ",AE5) -> VINYL ROBE - 2 DOOR - 1500mm W x 2440mm H | AD5: VINYL ROBE | AE5: 2 DOOR - 1500mm W x 2440mm H | AF5: 420-100-100500 | AN5: =CONCATENATE(AP5," ",AO5) -> FRAMED PIVOT DOOR AND PANEL SHOWER SCREEN 1850x1000 | AO5: SHOWER SCREEN 1850x1000 | AP5: FRAMED PIVOT DOOR AND PANEL | AQ5: =AN5 -> FRAMED PIVOT DOOR AND PANEL SHOWER SCREEN 1850x1000 | AR5: 525-300-100300 | AS5: 1
A6: 010-100-100200 | B6: C2 CONTOURS LARGE / PART LOT | C6: (VACANT) > 1012 M2 | E6: CO | F6: CO | G6: 10 | H6: S | I6: IT | J6: IT | N6: SURVEYS-1030 | O6: Y | Q6: =SURVEYORS[[#This Row],[Item Code]] -> 010-100-100200 | R6: =CONCATENATE(SURVEYORS[[#This Row],[Description]], " ",#REF!) ->  | T6: KARA JASKOLA | V6: N16 RE-ENTRY BAR 1.5m | W6: 110-200-100300 | Y6: 1.565 | Z6: MIDLAND FASTWALL 1565mm | AA6: 130-390-100300 | AC6: VINYL ROBE - 2 DOOR - 1800mm W x 2440mm H | AD6: VINYL ROBE | AE6: 2 DOOR - 1800mm W x 2440mm H | AF6: 420-100-100600 | AN6: =CONCATENATE(AP6," ",AO6) -> FRAMED PIVOT DOOR AND PANEL SHOWER SCREEN 1850x1100 | AO6: SHOWER SCREEN 1850x1100 | AP6: FRAMED PIVOT DOOR AND PANEL | AQ6: FRAMED PIVOT DOOR AND PANEL SHOWER SCREEN 1850x1100 | AR6: 525-300-100400 | AS6: 1
A7: 010-100-100300 | B7: C3 CONTOURS HOUSE EXISTING | C7: < 1012 M2 | E7: CO | F7: CO | G7: 10 | H7: S | I7: IT | J7: IT | N7: SURVEYS-1040 | O7: Y | Q7: =SURVEYORS[[#This Row],[Item Code]] -> 010-100-100300 | R7: =CONCATENATE(SURVEYORS[[#This Row],[Description]], " ",#REF!) ->  | T7: BRETT - Boss Man | V7: N16 RE-ENTRY BAR 2.0m | W7: 110-200-100400 | Y7: 1.88 | Z7: MIDLAND FASTWALL 1880mm | AA7: 130-390-100400 | AC7: =CONCATENATE(AD7," - ",AE7) -> VINYL ROBE - 2 DOOR - 2100mm W x 2440mm H | AD7: VINYL ROBE | AE7: 2 DOOR - 2100mm W x 2440mm H | AF7: 420-100-100700 | AN7: FRAMED PIVOT DOOR AND PANEL SHOWER SCREEN 1850x1200 | AO7: SHOWER SCREEN 1850x1200 | AP7: FRAMED PIVOT DOOR AND PANEL | AQ7: FRAMED PIVOT DOOR AND PANEL SHOWER SCREEN 1850x1200 | AR7: 525-300-100500 | AS7: 1
A8: 010-100-100400 | B8: C4 CONTOURS STRATA LOT (VAC) | C8: < 1012 M2 | E8: CO | F8: CO | G8: 10 | H8: S | I8: IT | J8: IT | N8: SURVEYS-1050 | O8: Y | Q8: =SURVEYORS[[#This Row],[Item Code]] -> 010-100-100400 | R8: =CONCATENATE(SURVEYORS[[#This Row],[Description]], " ",#REF!) ->  | T8: DAN BRADS FAN | Y8: 2.195 | Z8: MIDLAND FASTWALL 2195mm | AA8: 130-390-100500 | AC8: VINYL ROBE - 2 DOOR - 2400mm W x 2440mm H | AD8: VINYL ROBE | AE8: 2 DOOR - 2400mm W x 2440mm H | AF8: 420-100-100800 | AN8: FRAMED PIVOT DOOR AND PANEL SHOWER SCREEN 1850x1500 | AO8: SHOWER SCREEN 1850x1500 | AP8: FRAMED PIVOT DOOR AND PANEL | AQ8: FRAMED PIVOT DOOR AND PANEL SHOWER SCREEN 1850x1500 | AR8: 525-300-100800 | AS8: 1
A9: 010-100-100500 | B9: C5 CONTOURS STRATA LOT + HOUSE | C9: < 1012 M2 | E9: CO | F9: CO | G9: 10 | H9: S | I9: IT | J9: IT | N9: SURVEYS-1060 | O9: Y | Q9: =SURVEYORS[[#This Row],[Item Code]] -> 010-100-100500 | R9: =CONCATENATE(SURVEYORS[[#This Row],[Description]], " ",#REF!) ->  | T9: SCOTT KENYON | Y9: 2.51 | Z9: MIDLAND FASTWALL 2510mm | AA9: 130-390-100600 | AC9: VINYL ROBE - 3 DOOR - 2400mm W x 2440mm H | AD9: VINYL ROBE | AE9: 3 DOOR - 2400mm W x 2440mm H | AF9: 420-100-200100 | AN9: FRAMED PIVOT DOOR AND PANEL SHOWER SCREEN 1850x1700 | AO9: SHOWER SCREEN 1850x1700 | AP9: FRAMED PIVOT DOOR AND PANEL | AQ9: FRAMED PIVOT DOOR AND PANEL SHOWER SCREEN 1850x1700 | AR9: 525-300-101000 | AS9: 1
A10: 010-100-100600 | B10: C6 CONTOURS DISPLAY HOME | C10: < 1012 M2 VACANT | E10: CO | F10: CO | G10: 10 | H10: S | I10: IT | J10: IT | N10: SURVEYS-1070 | O10: Y | Q10: =SURVEYORS[[#This Row],[Item Code]] -> 010-100-100600 | R10: =CONCATENATE(SURVEYORS[[#This Row],[Description]], " ",#REF!) ->  | T10: TOM CONLAN | Y10: 2.825 | Z10: MIDLAND FASTWALL 2825mm | AA10: 130-390-100700 | AC10: VINYL ROBE - 3 DOOR - 2700mm W x 2440mm H | AD10: VINYL ROBE | AE10: 3 DOOR - 2700mm W x 2440mm H | AF10: 420-100-200200 | AN10: FRAMED PIVOT DOOR AND PANEL SHOWER SCREEN 1850x1800 | AO10: SHOWER SCREEN 1850x1800 | AP10: FRAMED PIVOT DOOR AND PANEL | AQ10: FRAMED PIVOT DOOR AND PANEL SHOWER SCREEN 1850x1800 | AR10: 525-300-101100 | AS10: 1
A11: 010-100-200100 | B11: A.H.D. WITH C1 TO C6 | C11: CONTOURS SURVEYS | E11: CO | F11: CO | G11: 10 | H11: M | I11: EA | J11: EA | N11: SURVEYS-1080 | O11: Y | Q11: =SURVEYORS[[#This Row],[Item Code]] -> 010-100-200100 | R11: =CONCATENATE(SURVEYORS[[#This Row],[Description]], " ",#REF!) ->  | T11: MATT PATERSON | V11: Description | W11: Item Code | Y11: 3.14 | Z11: MIDLAND FASTWALL 3140mm | AA11: 130-390-100800 | AC11: VINYL ROBE - 3 DOOR - 3000mm W x 2440mm H | AD11: VINYL ROBE | AE11: 3 DOOR - 3000mm W x 2440mm H | AF11: 420-100-200300 | AN11: FRAMED PIVOT DOOR AND PANEL SHOWER SCREEN 1850x2000 | AO11: SHOWER SCREEN 1850x2000 | AP11: FRAMED PIVOT DOOR AND PANEL | AQ11: FRAMED PIVOT DOOR AND PANEL SHOWER SCREEN 1850x2000 | AR11: 525-300-101300 | AS11: 1
A12: 010-100-200200 | B12: CONTOURS WITH A.H.D. VARIABLES | E12: CO | F12: CO | G12: 10 | H12: S | I12: EA | J12: EA | N12: SURVEYS-4030 | O12: Y | Q12: =SURVEYORS[[#This Row],[Item Code]] -> 010-100-200200 | R12: =CONCATENATE(SURVEYORS[[#This Row],[Description]], " ",#REF!) ->  | T12: JACK GOLDRICK | V12: TRENCHMESH - NO SELECTION | AC12: VINYL ROBE - 3 DOOR - 3300mm W x 2440mm H | AD12: VINYL ROBE | AE12: 3 DOOR - 3300mm W x 2440mm H | AF12: 420-100-200400 | AN12: FRAMED PIVOT DOOR AND PANEL SHOWER SCREEN 1850x900x900 | AO12: SHOWER SCREEN 1850x900x900 | AP12: FRAMED PIVOT DOOR AND PANEL | AQ12: FRAMED PIVOT DOOR AND PANEL SHOWER SCREEN 1850x900x900 | AR12: 525-400-100100 | AS12: 2
A13: 010-200-100100 | B13: A21 ESTABLISH A.D.H. | C13: A.H.D. & CERTIFICATES | E13: CO | F13: CO | G13: 10 | H13: S | I13: EA | J13: EA | N13: SURVEYS-4500 | O13: Y | Q13: =SURVEYORS[[#This Row],[Item Code]] -> 010-200-100100 | R13: =CONCATENATE(SURVEYORS[[#This Row],[Description]], " ",#REF!) ->  | T13: JAMES FITZGERALD | V13: TRENCH MESH 8TM - 3 BAR | W13: 110-100-200100 | AC13: VINYL ROBE - 4 DOOR - 3600mm W x 2440mm H | AD13: VINYL ROBE | AE13: 4 DOOR - 3600mm W x 2440mm H | AF13: 420-100-300100 | AN13: FRAMED PIVOT DOOR AND PANEL SHOWER SCREEN 1850x900x1000 | AO13: SHOWER SCREEN 1850x900x1000 | AP13: FRAMED PIVOT DOOR AND PANEL | AQ13: FRAMED PIVOT DOOR AND PANEL SHOWER SCREEN 1850x900x1000 | AR13: 525-400-100200 | AS13: 2
A14: 010-300-100050 | B14: REPEG (OLD AREA VACANT LOT) | C14: PRE DP15000,PRE D65000 <1000M2 | E14: CO | F14: CO | G14: 10 | H14: S | I14: IT | J14: IT | N14: SURVEYS-1995 | O14: Y | Q14: =SURVEYORS[[#This Row],[Item Code]] -> 010-300-100050 | R14: =CONCATENATE(SURVEYORS[[#This Row],[Description]], " ",#REF!) ->  | T14: JESSY GEORGE | V14: TRENCH MESH 8TM - 4 BAR | W14: 110-100-200200 | Y14: INTERNAL SIZE: 235mm x 880mm | Z14: RADIANT THERMANICHE RSN04 | AA14: 490-550-100150 | AC14: VINYL ROBE - 4 DOOR - 3900mm W x 2440mm H | AD14: VINYL ROBE | AE14: 4 DOOR - 3900mm W x 2440mm H | AF14: 420-100-300200 | AN14: FRAMED PIVOT DOOR AND PANEL SHOWER SCREEN 1850x1000x1000 | AO14: SHOWER SCREEN 1850x1000x1000 | AP14: FRAMED PIVOT DOOR AND PANEL | AQ14: FRAMED PIVOT DOOR AND PANEL SHOWER SCREEN 1850x1000x1000 | AR14: 525-400-101500 | AS14: 2
A15: 010-300-100100 | B15: B1 REPEG (NORMAL VACANT LOT) | C15: BOUNDARY SURVEYS <1012 M2 | E15: CO | F15: CO | G15: 10 | H15: S | I15: IT | J15: IT | N15: SURVEYS-2000 | O15: Y | Q15: =SURVEYORS[[#This Row],[Item Code]] -> 010-300-100100 | R15: =CONCATENATE(SURVEYORS[[#This Row],[Description]], " ",#REF!) ->  | T15: VNIX - CMD | V15: TRENCH MESH 11TM - 3 BAR | W15: 110-100-200300 | Y15: INTERNAL SIZE: 325mm x 325mm | Z15: RADIANT THERMANICHE RSN01 | AA15: 490-550-100250 | AC15: VINYL ROBE - 4 DOOR - 4200mm W x 2440mm H | AD15: VINYL ROBE | AE15: 4 DOOR - 4200mm W x 2440mm H | AF15: 420-100-300300 | AN15: FRAMED PIVOT DOOR AND PANEL SHOWER SCREEN 1850x1200x1200 | AO15: SHOWER SCREEN 1850x1200x1200 | AP15: FRAMED PIVOT DOOR AND PANEL | AQ15: FRAMED PIVOT DOOR AND PANEL SHOWER SCREEN 1850x1200x1200 | AR15: 525-400-101700 | AS15: 2
A16: 010-300-100200 | B16: B1 REPEG BOUNDARY SURVEY - OLD | C16: ESTABLISHED AREA VACANT LOT | E16: CO | F16: CO | G16: 10 | H16: M | I16: IT | J16: IT | N16: SURVEYS-2005 | O16: Y | Q16: =SURVEYORS[[#This Row],[Item Code]] -> 010-300-100200 | R16: =CONCATENATE(SURVEYORS[[#This Row],[Description]], " ",#REF!) ->  | T16: VNIX - LM | V16: TRENCH MESH 11TM - 4 BAR | W16: 110-100-200310 | Y16: INTERNAL SIZE: 330mm x 580mm | Z16: RADIANT THERMANICHE RSN03 | AA16: 490-550-100350 | AC16: VINYL ROBE - 4 DOOR - 4500mm W x 2440mm H | AD16: VINYL ROBE | AE16: 4 DOOR - 4500mm W x 2440mm H | AF16: 420-100-300400 | AN16: FRAMED PIVOT DOOR AND PANEL E/O WIDTH PER 100mm FDP | AO16: E/O WIDTH PER 100mm FDP | AP16: FRAMED PIVOT DOOR AND PANEL | AQ16: FRAMED PIVOT DOOR AND PANEL E/O WIDTH PER 100mm FDP | AR16: 525-400-102700
A17: 010-300-100300 | B17: B1RI REPEG REAR LOT | C17: BOUNDARY SURVEYS | E17: CO | F17: CO | G17: 10 | H17: S | I17: IT | J17: IT | N17: SURVEYS-2010 | O17: Y | Q17: =SURVEYORS[[#This Row],[Item Code]] -> 010-300-100300 | R17: =CONCATENATE(SURVEYORS[[#This Row],[Description]], " ",#REF!) ->  | Y17: INTERNAL SIZE: 340mm x 400mm | Z17: RADIANT THERMANICHE RSN02 | AA17: 490-550-100450 | AC17: VINYL ROBE 2 DOOR - 1200mm WIDE x 2700mm HIGH | AD17: VINYL ROBE 2 DOOR | AE17: 1200mm WIDE x 2700mm HIGH | AF17: 420-110-100100 | AN17: FRAMED PIVOT DOOR & 2 RETURN SHOWER SCREEN 1850Hx900Wx900R | AO17: SHOWER SCREEN 1850Hx900Wx900R | AP17: FRAMED PIVOT DOOR & 2 RETURN | AQ17: FRAMED PIVOT DOOR & 2 RETURN SHOWER SCREEN 1850Hx900Wx900R | AR17: 525-400-200200 | AS17: 2
A18: 010-300-100400 | B18: B2 REPEG LARGE LOT | C18: BOUNDARY SURVEYS >1013 M2 | E18: CO | F18: CO | G18: 10 | H18: S | I18: IT | J18: IT | N18: SURVEYS-2020 | O18: Y | Q18: =SURVEYORS[[#This Row],[Item Code]] -> 010-300-100400 | R18: =CONCATENATE(SURVEYORS[[#This Row],[Description]], " ",#REF!) ->  | T18: COLOURBOND | V18: Description | W18: Item Code | Y18: INTERNAL SIZE: 340mm x 975mm | Z18: RADIANT THERMANICHE RSN10 | AA18: 490-550-100500 | AC18: VINYL ROBE 2 DOOR - 1500mm WIDE x 2700mm HIGH | AD18: VINYL ROBE 2 DOOR | AE18: 1500mm WIDE x 2700mm HIGH | AF18: 420-110-100200 | AK18: QT | AN18: SEMI FRAMELESS PIVOT 2 RETURN SHOWER SCREEN 1850Hx1000Wx900R | AO18: SHOWER SCREEN 1850Hx1000Wx900R | AP18: SEMI FRAMELESS PIVOT 2 RETURN | AQ18: SEMI FRAMELESS PIVOT 2 RETURN SHOWER SCREEN 1850Hx1000Wx900R | AR18: 525-400-300100 | AS18: 2
A19: 010-300-100500 | B19: B2F REPEG LARGE FIXED DISTANCE | C19: LINE PEGS. BOUNDARY SURVEYS | E19: CO | F19: CO | G19: 10 | H19: S | I19: IT | J19: IT | N19: SURVEYS-2030 | O19: Y | Q19: =SURVEYORS[[#This Row],[Item Code]] -> 010-300-100500 | R19: =CONCATENATE(SURVEYORS[[#This Row],[Description]], " ",#REF!) ->  | T19: TILED | V19: SLABMESH - NO SELECTION | AC19: VINYL ROBE 2 DOOR - 1800mm WIDE x 2700mm HIGH | AD19: VINYL ROBE 2 DOOR | AE19: 1800mm WIDE x 2700mm HIGH | AF19: 420-110-100600 | AK19: EA | AN19: SEMI FRAMELESS PIVOT 2 RETURN SHOWER SCREEN 1850Hx1100Wx900R | AO19: SHOWER SCREEN 1850Hx1100Wx900R | AP19: SEMI FRAMELESS PIVOT 2 RETURN | AQ19: SEMI FRAMELESS PIVOT 2 RETURN SHOWER SCREEN 1850Hx1100Wx900R | AR19: 525-400-300200 | AS19: 2
A20: 010-300-100800 | B20: B4 PART REPEG INC. 4 PEGS | C20: BOUNDARY SURVEYS | E20: CO | F20: CO | G20: 10 | H20: S | I20: IT | J20: IT | N20: SURVEYS-2060 | O20: Y | Q20: =SURVEYORS[[#This Row],[Item Code]] -> 010-300-100800 | R20: =CONCATENATE(SURVEYORS[[#This Row],[Description]], " ",#REF!) ->  | V20: RF52 MESH - 6 x 2.4m | W20: 110-100-100125 | AC20: VINYL ROBE 2 DOOR - 2100mm WIDE x 2700mm HIGH | AD20: VINYL ROBE 2 DOOR | AE20: 2100mm WIDE x 2700mm HIGH | AF20: 420-110-100800 | AK20: EA | AN20: SEMI FRAMELESS PIVOT 2 RETURN SHOWER SCREEN 1850Hx1200Wx900R | AO20: SHOWER SCREEN 1850Hx1200Wx900R | AP20: SEMI FRAMELESS PIVOT 2 RETURN | AQ20: SEMI FRAMELESS PIVOT 2 RETURN SHOWER SCREEN 1850Hx1200Wx900R | AR20: 525-400-300300 | AS20: 2
A21: 010-300-100900 | B21: B5 LOCATE (HOUSE POINTS)+ PEGS | C21: BOUNDARY SURVEYS | E21: CO | F21: CO | G21: 10 | H21: S | I21: IT | J21: IT | N21: SURVEYS-2070 | O21: Y | Q21: =SURVEYORS[[#This Row],[Item Code]] -> 010-300-100900 | R21: =CONCATENATE(SURVEYORS[[#This Row],[Description]], " ",#REF!) ->  | T21: STEEL TRUSS | V21: RF63 MESH - 6 x 2.4m | W21: 110-100-100200 | Y21: SURVEYING | Z21: AS PER QUOTE | AA21: 010-010-100100 | AC21: VINYL ROBE 3 DOOR - 2400mm WIDE x 2700mm HIGH | AD21: VINYL ROBE 3 DOOR | AE21: 2400mm WIDE x 2700mm HIGH | AF21: 420-110-200500 | AK21: EA | AN21: SEMI FRAMELESS PIVOT 2 RETURN SHOWER SCREEN 1850Hx1500Wx900R | AO21: SHOWER SCREEN 1850Hx1500Wx900R | AP21: SEMI FRAMELESS PIVOT 2 RETURN | AQ21: SEMI FRAMELESS PIVOT 2 RETURN SHOWER SCREEN 1850Hx1500Wx900R | AR21: 525-400-300600 | AS21: 2
A22: 010-300-101000 | B22: B5R RE-PEG LOCATE (HOUSE | C22: POINTS + PEGS)BOUNDARY SURVEYS | E22: CO | F22: CO | G22: 10 | H22: S | I22: IT | J22: IT | N22: SURVEYS-2080 | O22: Y | Q22: =SURVEYORS[[#This Row],[Item Code]] -> 010-300-101000 | R22: =CONCATENATE(SURVEYORS[[#This Row],[Description]], " ",#REF!) ->  | T22: TIMBER | V22: RF62 MESH - 6 x 2.4m | W22: 110-100-100300 | Y22: C1 CONTOURS VACANT (NORMAL) | Z22: <1012 M2 | AA22: 010-100-100100 | AC22: VINYL ROBE 3 DOOR - 2700mm WIDE x 2700mm HIGH | AD22: VINYL ROBE 3 DOOR | AE22: 2700mm WIDE x 2700mm HIGH | AF22: 420-110-200700 | AK22: EA | AN22: SEMI FRAMELESS PIVOT DOOR & SHOWER SCREEN 1850x800 | AO22: SHOWER SCREEN 1850x800 | AP22: SEMI FRAMELESS PIVOT DOOR & | AQ22: SEMI FRAMELESS PIVOT DOOR & SHOWER SCREEN 1850x800 | AR22: 525-500-100100 | AS22: 1
A23: 010-300-101100 | B23: B6 ENVELOPE BOUNDARY NOT | C23: PEGGED.BOUNDARY SURVEYS | E23: CO | F23: CO | G23: 10 | H23: S | I23: IT | J23: IT | N23: SURVEYS-2090 | O23: Y | Q23: =SURVEYORS[[#This Row],[Item Code]] -> 010-300-101100 | R23: =CONCATENATE(SURVEYORS[[#This Row],[Description]], " ",#REF!) ->  | V23: RF72 MESH - 6 x 2.4m | W23: 110-100-100400 | Y23: C2 CONTOURS LARGE / PART LOT | Z23: (VACANT) > 1012 M2 | AA23: 010-100-100200 | AC23: VINYL ROBE 3 DOOR - 3000mm WIDE x 2700mm HIGH | AD23: VINYL ROBE 3 DOOR | AE23: 3000mm WIDE x 2700mm HIGH | AF23: 420-110-200900 | AK23: EA | AN23: SEMI FRAMELESS PIVOT DOOR & SHOWER SCREEN 1850x900 | AO23: SHOWER SCREEN 1850x900 | AP23: SEMI FRAMELESS PIVOT DOOR & | AQ23: SEMI FRAMELESS PIVOT DOOR & SHOWER SCREEN 1850x900 | AR23: 525-500-100200 | AS23: 1
A24: 010-300-101200 | B24: B7 REPLACE PEGS + # OF PEGS | E24: CO | F24: CO | G24: 10 | H24: S | I24: IT | J24: IT | N24: SURVEYS-2095 | O24: Y | Q24: =SURVEYORS[[#This Row],[Item Code]] -> 010-300-101200 | R24: =CONCATENATE(SURVEYORS[[#This Row],[Description]], " ",#REF!) ->  | T24: R1 | Y24: C3 CONTOURS HOUSE EXISTING | Z24: < 1012 M2 | AA24: 010-100-100300 | AC24: VINYL ROBE 3 DOOR - 3300mm WIDE x 2700mm HIGH | AD24: VINYL ROBE 3 DOOR | AE24: 3300mm WIDE x 2700mm HIGH | AF24: 420-110-201000 | AK24: EA | AN24: SEMI FRAMELESS PIVOT DOOR & SHOWER SCREEN 1850x1000 | AO24: SHOWER SCREEN 1850x1000 | AP24: SEMI FRAMELESS PIVOT DOOR & | AQ24: SEMI FRAMELESS PIVOT DOOR & SHOWER SCREEN 1850x1000 | AR24: 525-500-100300 | AS24: 1
A25: 010-400-100100 | B25: S11 SET OUTS PARAPET NAILS | C25: (PREV. RE-PEG) + NAILS / PEG | E25: CO | F25: CO | G25: 10 | H25: S | I25: IT | J25: IT | N25: SURVEYS-3010 | O25: Y | Q25: =SURVEYORS[[#This Row],[Item Code]] -> 010-400-100100 | R25: =CONCATENATE(SURVEYORS[[#This Row],[Description]], " ",#REF!) ->  | T25: R2 | Y25: C4 CONTOURS STRATA LOT (VAC) | Z25: < 1012 M2 | AA25: 010-100-100400 | AC25: VINYL ROBE 3 DOOR - 3600mm WIDE x 2700mm HIGH | AD25: VINYL ROBE 3 DOOR | AE25: 3600mm WIDE x 2700mm HIGH | AF25: 420-110-201200 | AK25: EA | AN25: SEMI FRAMELESS PIVOT DOOR & SHOWER SCREEN 1850x1100 | AO25: SHOWER SCREEN 1850x1100 | AP25: SEMI FRAMELESS PIVOT DOOR & | AQ25: SEMI FRAMELESS PIVOT DOOR & SHOWER SCREEN 1850x1100 | AR25: 525-500-100400 | AS25: 1
A26: 010-400-100200 | B26: S11R SET OUTS RE-PEG NAILS | C26: =+ NAILS / PEG ->  | E26: CO | F26: CO | G26: 10 | H26: S | I26: IT | J26: IT | N26: SURVEYS-3020 | O26: Y | Q26: =SURVEYORS[[#This Row],[Item Code]] -> 010-400-100200 | R26: =CONCATENATE(SURVEYORS[[#This Row],[Description]], " ",#REF!) ->  | T26: R3 | V26: SINGLE ENTRY FRAME - 720 | W26: 170-100-100100 | Y26: C5 CONTOURS STRATA LOT + HOUSE | Z26: < 1012 M2 | AA26: 010-100-100500 | AC26: VINYL ROBE 4 DOOR - 3600mm WIDE x 2700mm HIGH | AD26: VINYL ROBE 4 DOOR | AE26: 3600mm WIDE x 2700mm HIGH | AF26: 420-110-300500 | AK26: EA | AN26: SEMI FRAMELESS PIVOT DOOR & SHOWER SCREEN 1850x1200 | AO26: SHOWER SCREEN 1850x1200 | AP26: SEMI FRAMELESS PIVOT DOOR & | AQ26: SEMI FRAMELESS PIVOT DOOR & SHOWER SCREEN 1850x1200 | AR26: 525-500-100500 | AS26: 1
A27: 010-400-100300 | B27: S12 SET OUTS HOUSE RE-PEGS | C27: (PREV. RE-PEG) + NAILS / PEG | E27: CO | F27: CO | G27: 10 | H27: S | I27: IT | J27: IT | N27: SURVEYS-3030 | O27: Y | Q27: =SURVEYORS[[#This Row],[Item Code]] -> 010-400-100300 | R27: =CONCATENATE(SURVEYORS[[#This Row],[Description]], " ",#REF!) ->  | T27: R4 | V27: SINGLE ENTRY FRAME - 820 | W27: 170-100-100200 | Y27: C6 CONTOURS DISPLAY HOME | Z27: < 1012 M2 VACANT | AA27: 010-100-100600 | AC27: VINYL ROBE 4 DOOR - 4200mm WIDE x 2700mm HIGH | AD27: VINYL ROBE 4 DOOR | AE27: 4200mm WIDE x 2700mm HIGH | AF27: 420-110-301000 | AK27: EA | AN27: SEMI FRAMELESS PIVOT DOOR & SHOWER SCREEN 1850x1300 | AO27: SHOWER SCREEN 1850x1300 | AP27: SEMI FRAMELESS PIVOT DOOR & | AQ27: SEMI FRAMELESS PIVOT DOOR & SHOWER SCREEN 1850x1300 | AR27: 525-500-100600 | AS27: 1
A28: 010-400-100400 | B28: S12R SET OUTS RE-PEG HOUSE | C28: =+ PEG ->  | E28: CO | F28: CO | G28: 10 | H28: S | I28: IT | J28: IT | N28: SURVEYS-3040 | O28: Y | Q28: =SURVEYORS[[#This Row],[Item Code]] -> 010-400-100400 | R28: =CONCATENATE(SURVEYORS[[#This Row],[Description]], " ",#REF!) ->  | V28: SINGLE ENTRY FRAME - 870 | W28: 170-100-100300 | Y28: A.H.D. WITH C1 TO C6 | Z28: CONTOURS SURVEYS | AA28: 010-100-200100 | AC28: MIRROR / VINYL ROBE - 2 DOOR - 1200mm W x 2440mm H | AD28: MIRROR / VINYL ROBE | AE28: 2 DOOR - 1200mm W x 2440mm H | AF28: 420-200-100400 | AK28: EA | AN28: SEMI FRAMELESS PIVOT DOOR & SHOWER SCREEN 1850x1400 | AO28: SHOWER SCREEN 1850x1400 | AP28: SEMI FRAMELESS PIVOT DOOR & | AQ28: SEMI FRAMELESS PIVOT DOOR & SHOWER SCREEN 1850x1400 | AR28: 525-500-100700 | AS28: 1
A29: 010-400-100500 | B29: S13 SET OUTS HOUSE PIN | C29: (PREV. RE-PEG) + PIN / PEG | E29: CO | F29: CO | G29: 10 | H29: S | I29: IT | J29: IT | N29: SURVEYS-3050 | O29: Y | Q29: =SURVEYORS[[#This Row],[Item Code]] -> 010-400-100500 | R29: =CONCATENATE(SURVEYORS[[#This Row],[Description]], " ",#REF!) ->  | T29: EASYSTART | V29: SINGLE ENTRY FRAME - 920 | W29: 170-100-100400 | Y29: CONTOURS WITH A.H.D. VARIABLES | AA29: 010-100-200200 | AC29: MIRROR / VINYL ROBE - 2 DOOR - 1500mm W x 2440mm H | AD29: MIRROR / VINYL ROBE | AE29: 2 DOOR - 1500mm W x 2440mm H | AF29: 420-200-100500 | AN29: SEMI FRAMELESS PIVOT DOOR & SHOWER SCREEN 1850x1500 | AO29: SHOWER SCREEN 1850x1500 | AP29: SEMI FRAMELESS PIVOT DOOR & | AQ29: SEMI FRAMELESS PIVOT DOOR & SHOWER SCREEN 1850x1500 | AR29: 525-500-100800 | AS29: 1
A30: 010-400-100600 | B30: S13R SET OUTS RE-PEG + PINS | E30: CO | F30: CO | G30: 10 | H30: S | I30: IT | J30: IT | N30: SURVEYS-3060 | O30: Y | Q30: =SURVEYORS[[#This Row],[Item Code]] -> 010-400-100600 | R30: =CONCATENATE(SURVEYORS[[#This Row],[Description]], " ",#REF!) ->  | T30: NEW GENERATION | V30: SINGLE ENTRY FRAME - 820 | W30: 170-100-200200 | Y30: A21 ESTABLISH A.D.H. | Z30: A.H.D. & CERTIFICATES | AA30: 010-200-100100 | AC30: MIRROR / VINYL ROBE - 2 DOOR - 1800mm W x 2440mm H | AD30: MIRROR / VINYL ROBE | AE30: 2 DOOR - 1800mm W x 2440mm H | AF30: 420-200-100600 | AN30: SEMI FRAMELESS PIVOT DOOR & SHOWER SCREEN 1850x1600 | AO30: SHOWER SCREEN 1850x1600 | AP30: SEMI FRAMELESS PIVOT DOOR & | AQ30: SEMI FRAMELESS PIVOT DOOR & SHOWER SCREEN 1850x1600 | AR30: 525-500-100900 | AS30: 1
